Workbook

Sheet Portada

Sheet Índice
E4: Consejo Monetario Centroamericano
E5: Secretaría Ejecutiva
E6: www.secmca.org
B13: REPORTE MENSUAL DE INDICADORES DE COYUNTURA DE LA ECONOMÍA INTERNACIONAL
J17: Al mes de:
B22: CONTENIDO
B24: Principales Indicadores macroeconómicos Internacionales
D26: PIB trimestral países seleccionados
D27: Inflación países seleccionados | J27: Junio
D28: Tasas de interés de Referencia
D29: Indices de confianza de EEUU | J29: 2014
D30: Precios de commodities
D31: Tipos de Cambio de los principales socios comerciales
D32: Indices Bursátiles
D33: Series Mensuales
D34: Series Trimestrales
D35: Notas Técnicas

Sheet Datos mensuales (hidden)
A1: Fecha | D1: Inflación Interanual medida por el Indice de Precios al Consumidor | T1: Commodities | AQ1: Tipos de Cambio | AU1: Depósitos 6 Meses | AW1: Depósitos 3 meses | AZ1: Bonos Gobierno 10 años
D2: 1 | E2: 2 | F2: 3 | G2: 4 | H2: 5 | I2: 6 | J2: 7 | K2: 1 | L2: 2 | M2: 3 | N2: 4 | O2: 5 | P2: 6 | Q2: 7 | T2: a | U2: b | V2: a-b | AM2: 1 | AN2: 2 | AO2: 3 | AP2: 4 | AQ2: 5 | AR2: 6 | AS2: 7 | BC2: Indice confianza del Consumidor | BG2: Indice Producción Industrial
D3: Brasil | E3: China | F3: Colombia | G3: Estados Unidos | H3: EuroZona | I3: Japón | J3: México | K3: Brasil | L3: China | M3: Colombia | N3: Estados Unidos | O3: EuroZona | P3: Japón | Q3: México | R3: =IF(AND(Inflación!$J$6<>1,Inflación!$J$6<>2,Inflación!$J$6<>3,Inflación!$J$6<>4,Inflación!$J$6<>5,Inflación!$J$6<>6,Inflación!$J$6<>7),LOOKUP(1,K2:Q2,K3:Q3),LOOKUP(Inflación!$J$6,K2:Q2,K3:Q3)) -> Brasil | T3: WTI-NY | U3: Brent | V3: Diferencial | W3: Oro | X3: Azúcar | Y3: Algodón | Z3: Café | AA3: Trigo | AB3: Aceite de Palma | AC3: Maíz | AD3: Arroz | AE3: Banano | AF3: Brasil | AG3: Canadá | AH3: China | AI3: Colombia | AJ3: EuroZona | AK3: Japón | AL3: México | AM3: Brasil | AN3: Canadá | AO3: China | AP3: Colombia | AQ3: EuroZona | AR3: Japón | AS3: México | AT3: =IF(AND('Tipos de Cambio'!$J$6<>1,'Tipos de Cambio'!$J$6<>2,'Tipos de Cambio'!$J$6<>3,'Tipos de Cambio'!$J$6<>4,'Tipos de Cambio'!$J$6<>5,'Tipos de Cambio'!$J$6<>6,'Tipos de Cambio'!$J$6<>7),LOOKUP(1,'Datos mensuales'!$AM$2:$AS$2,'Datos mensuales'!$AM3:$AS3),LOOKUP('Tipos de Cambio'!$J$6,$AM$2:$AS$2,$AM3:$AS3)) -> Brasil | AU3: LIBOR | AV3: Letras Tesoro US | AW3: Estados Unidos | AX3: EuroZona | AY3: Japón | AZ3: Estados Unidos | BA3: EuroZona | BB3: Japón | BC3: Confianza | BD3: Situación Presente | BE3: Expectativas | BF3: Normal | BG3: Serie Original | BH3: Tendencia-Ciclo | BI3: Tendencia | BJ3: Dow Jones | BK3: Nasdaq Composite | BL3: Standard & Poor's 500
D4: % | E4: % | F4: % | G4: % | H4: % | I4: % | J4: % | K4: % | L4: % | M4: % | N4: % | O4: % | P4: % | Q4: % | R4: Var. Interanual | S4: aceleración | T4: US$ por barril | U4: US$ por barril | V4: de los barriles | W4: $/toz | X4: US centavos/Kilo | Y4: US centavos/libra | Z4: US centavos/libra | AA4: (US$/tm) | AB4: (US$/tm) | AC4: (US$/tm) | AD4: (US$/tm) | AE4: (US$/tm) | AM4: MN/ME | AN4: MN/ME | AO4: MN/ME | AP4: MN/ME | AQ4: MN/ME | AR4: MN/ME | AS4: MN/ME | AT4: MN/ME | AU4: % | AV4: % | AW4: % | AX4: % | AY4: % | AZ4: % | BA4: % | BB4: % | BC4: Nivel | BD4: Nivel | BE4: Nivel | BF4: (1985=100) | BG4: % | BH4: % | BI4: %
A5: 1990 | B5: enero | D5: n.d. | E5: n.d. | F5: n.d. | G5: n.d. | H5: n.d. | I5: n.d. | J5: n.d. | T5: 22.86 | U5: n.d. | V5: =IF(OR(T5="",U5="n.d."),"",U5-T5) ->  | W5: n.d. | X5: n.d. | Y5: n.d. | Z5: n.d. | AA5: n.d. | AB5: 230.56 | AC5: n.d. | AD5: n.d. | AE5: n.d. | AM5: n.d. | AN5: n.d. | AO5: n.d. | AP5: n.d. | AR5: n.d. | AS5: n.d. | AT5: =IF(AND('Tipos de Cambio'!$J$6<>1,'Tipos de Cambio'!$J$6<>2,'Tipos de Cambio'!$J$6<>3,'Tipos de Cambio'!$J$6<>4,'Tipos de Cambio'!$J$6<>5,'Tipos de Cambio'!$J$6<>6,'Tipos de Cambio'!$J$6<>7),LOOKUP(1,'Datos mensuales'!$AM$2:$AS$2,'Datos mensuales'!$AM5:$AS5),LOOKUP('Tipos de Cambio'!$J$6,'Datos mensuales'!$AM$2:$AS$2,'Datos mensuales'!$AM5:$AS5)) -> n.d. | AU5: n.d. | AV5: n.d. | AW5: n.d. | AX5: n.d. | AY5: n.d. | AZ5: n.d. | BA5: n.d. | BB5: n.d. | BC5: n.d. | BD5: n.d. | BE5: n.d. | BF5: 100 | BG5: n.d. | BH5: n.d. | BI5: n.d. | BJ5: 2590.54 | BK5: 415.81 | BL5: 329.08
B6: febrero | D6: n.d. | E6: n.d. | F6: n.d. | G6: n.d. | H6: n.d. | I6: n.d. | J6: n.d. | T6: 22.11 | U6: n.d. | V6: =IF(OR(T6="",U6="n.d."),"",U6-T6) ->  | W6: n.d. | X6: n.d. | Y6: n.d. | Z6: n.d. | AA6: n.d. | AB6: 223.95 | AC6: n.d. | AD6: n.d. | AE6: n.d. | AM6: n.d. | AN6: n.d. | AO6: n.d. | AP6: n.d. | AR6: n.d. | AS6: n.d. | AT6: =IF(AND('Tipos de Cambio'!$J$6<>1,'Tipos de Cambio'!$J$6<>2,'Tipos de Cambio'!$J$6<>3,'Tipos de Cambio'!$J$6<>4,'Tipos de Cambio'!$J$6<>5,'Tipos de Cambio'!$J$6<>6,'Tipos de Cambio'!$J$6<>7),LOOKUP(1,'Datos mensuales'!$AM$2:$AS$2,'Datos mensuales'!$AM6:$AS6),LOOKUP('Tipos de Cambio'!$J$6,'Datos mensuales'!$AM$2:$AS$2,'Datos mensuales'!$AM6:$AS6)) -> n.d. | AU6: n.d. | AV6: n.d. | AW6: n.d. | AX6: n.d. | AY6: n.d. | AZ6: n.d. | BA6: n.d. | BB6: n.d. | BC6: n.d. | BD6: n.d. | BE6: n.d. | BF6: 100 | BG6: n.d. | BH6: n.d. | BI6: n.d. | BJ6: 2627.25 | BK6: 425.83 | BL6: 331.89
B7: marzo | D7: n.d. | E7: n.d. | F7: n.d. | G7: n.d. | H7: n.d. | I7: n.d. | J7: n.d. | T7: 20.39 | U7: n.d. | W7: n.d. | X7: n.d. | Y7: n.d. | Z7: n.d. | AA7: n.d. | AB7: 236.34 | AC7: n.d. | AD7: n.d. | AE7: n.d. | AM7: n.d. | AN7: n.d. | AO7: n.d. | AP7: n.d. | AR7: n.d. | AS7: n.d. | AT7: =IF(AND('Tipos de Cambio'!$J$6<>1,'Tipos de Cambio'!$J$6<>2,'Tipos de Cambio'!$J$6<>3,'Tipos de Cambio'!$J$6<>4,'Tipos de Cambio'!$J$6<>5,'Tipos de Cambio'!$J$6<>6,'Tipos de Cambio'!$J$6<>7),LOOKUP(1,'Datos mensuales'!$AM$2:$AS$2,'Datos mensuales'!$AM7:$AS7),LOOKUP('Tipos de Cambio'!$J$6,'Datos mensuales'!$AM$2:$AS$2,'Datos mensuales'!$AM7:$AS7)) -> n.d. | AU7: n.d. | AV7: n.d. | AW7: n.d. | AX7: n.d. | AY7: n.d. | AZ7: n.d. | BA7: n.d. | BB7: n.d. | BC7: n.d. | BD7: n.d. | BE7: n.d. | BF7: 100 | BG7: n.d. | BH7: n.d. | BI7: n.d. | BJ7: 2707.21 | BK7: 435.54 | BL7: 339.94
B8: abril | D8: n.d. | E8: n.d. | F8: n.d. | G8: n.d. | H8: n.d. | I8: n.d. | J8: n.d. | T8: 18.43 | U8: n.d. | W8: n.d. | X8: n.d. | Y8: n.d. | Z8: n.d. | AA8: n.d. | AB8: 220.64 | AC8: n.d. | AD8: n.d. | AE8: n.d. | AM8: n.d. | AN8: n.d. | AO8: n.d. | AP8: n.d. | AR8: n.d. | AS8: n.d. | AT8: =IF(AND('Tipos de Cambio'!$J$6<>1,'Tipos de Cambio'!$J$6<>2,'Tipos de Cambio'!$J$6<>3,'Tipos de Cambio'!$J$6<>4,'Tipos de Cambio'!$J$6<>5,'Tipos de Cambio'!$J$6<>6,'Tipos de Cambio'!$J$6<>7),LOOKUP(1,'Datos mensuales'!$AM$2:$AS$2,'Datos mensuales'!$AM8:$AS8),LOOKUP('Tipos de Cambio'!$J$6,'Datos mensuales'!$AM$2:$AS$2,'Datos mensuales'!$AM8:$AS8)) -> n.d. | AU8: n.d. | AV8: n.d. | AW8: n.d. | AX8: n.d. | AY8: n.d. | AZ8: n.d. | BA8: n.d. | BB8: n.d. | BC8: n.d. | BD8: n.d. | BE8: n.d. | BF8: 100 | BG8: n.d. | BH8: n.d. | BI8: n.d. | BJ8: 2656.76 | BK8: 420.07 | BL8: 330.8
B9: mayo | D9: n.d. | E9: n.d. | F9: n.d. | G9: n.d. | H9: n.d. | I9: n.d. | J9: n.d. | T9: 18.2 | U9: n.d. | W9: n.d. | X9: n.d. | Y9: n.d. | Z9: n.d. | AA9: n.d. | AB9: 232.21 | AC9: n.d. | AD9: n.d. | AE9: n.d. | AM9: n.d. | AN9: n.d. | AO9: n.d. | AP9: n.d. | AR9: n.d. | AS9: n.d. | AT9: =IF(AND('Tipos de Cambio'!$J$6<>1,'Tipos de Cambio'!$J$6<>2,'Tipos de Cambio'!$J$6<>3,'Tipos de Cambio'!$J$6<>4,'Tipos de Cambio'!$J$6<>5,'Tipos de Cambio'!$J$6<>6,'Tipos de Cambio'!$J$6<>7),LOOKUP(1,'Datos mensuales'!$AM$2:$AS$2,'Datos mensuales'!$AM9:$AS9),LOOKUP('Tipos de Cambio'!$J$6,'Datos mensuales'!$AM$2:$AS$2,'Datos mensuales'!$AM9:$AS9)) -> n.d. | AU9: n.d. | AV9: n.d. | AW9: n.d. | AX9: n.d. | AY9: n.d. | AZ9: n.d. | BA9: n.d. | BB9: n.d. | BC9: n.d. | BD9: n.d. | BE9: n.d. | BF9: 100 | BG9: n.d. | BH9: n.d. | BI9: n.d. | BJ9: 2876.66 | BK9: 458.97 | BL9: 361.23
B10: junio | D10: n.d. | E10: n.d. | F10: n.d. | G10: n.d. | H10: n.d. | I10: n.d. | J10: n.d. | T10: 16.7 | U10: n.d. | W10: n.d. | X10: n.d. | Y10: n.d. | Z10: n.d. | AA10: n.d. | AB10: 224.77 | AC10: n.d. | AD10: n.d. | AE10: n.d. | AM10: n.d. | AN10: n.d. | AO10: n.d. | AP10: n.d. | AR10: n.d. | AS10: n.d. | AT10: =IF(AND('Tipos de Cambio'!$J$6<>1,'Tipos de Cambio'!$J$6<>2,'Tipos de Cambio'!$J$6<>3,'Tipos de Cambio'!$J$6<>4,'Tipos de Cambio'!$J$6<>5,'Tipos de Cambio'!$J$6<>6,'Tipos de Cambio'!$J$6<>7),LOOKUP(1,'Datos mensuales'!$AM$2:$AS$2,'Datos mensuales'!$AM10:$AS10),LOOKUP('Tipos de Cambio'!$J$6,'Datos mensuales'!$AM$2:$AS$2,'Datos mensuales'!$AM10:$AS10)) -> n.d. | AU10: n.d. | AV10: n.d. | AW10: n.d. | AX10: n.d. | AY10: n.d. | AZ10: n.d. | BA10: n.d. | BB10: n.d. | BC10: n.d. | BD10: n.d. | BE10: n.d. | BF10: 100 | BG10: n.d. | BH10: n.d. | BI10: n.d. | BJ10: 2880.69 | BK10: 462.29 | BL10: 358.02
B11: julio | D11: n.d. | E11: n.d. | F11: n.d. | G11: n.d. | H11: n.d. | I11: n.d. | J11: n.d. | T11: 18.45 | U11: n.d. | W11: n.d. | X11: n.d. | Y11: n.d. | Z11: n.d. | AA11: n.d. | AB11: 230.56 | AC11: n.d. | AD11: n.d. | AE11: n.d. | AM11: n.d. | AN11: n.d. | AO11: n.d. | AP11: n.d. | AR11: n.d. | AS11: n.d. | AT11: =IF(AND('Tipos de Cambio'!$J$6<>1,'Tipos de Cambio'!$J$6<>2,'Tipos de Cambio'!$J$6<>3,'Tipos de Cambio'!$J$6<>4,'Tipos de Cambio'!$J$6<>5,'Tipos de Cambio'!$J$6<>6,'Tipos de Cambio'!$J$6<>7),LOOKUP(1,'Datos mensuales'!$AM$2:$AS$2,'Datos mensuales'!$AM11:$AS11),LOOKUP('Tipos de Cambio'!$J$6,'Datos mensuales'!$AM$2:$AS$2,'Datos mensuales'!$AM11:$AS11)) -> n.d. | AU11: n.d. | AV11: n.d. | AW11: n.d. | AX11: n.d. | AY11: n.d. | AZ11: n.d. | BA11: n.d. | BB11: n.d. | BC11: n.d. | BD11: n.d. | BE11: n.d. | BF11: 100 | BG11: n.d. | BH11: n.d. | BI11: n.d. | BJ11: 2905.2 | BK11: 438.24 | BL11: 356.15
B12: agosto | D12: n.d. | E12: n.d. | F12: n.d. | G12: n.d. | H12: n.d. | I12: n.d. | J12: n.d. | T12: 27.31 | U12: n.d. | W12: n.d. | X12: n.d. | Y12: n.d. | Z12: n.d. | AA12: n.d. | AB12: 240.47 | AC12: n.d. | AD12: n.d. | AE12: n.d. | AM12: n.d. | AN12: n.d. | AO12: n.d. | AP12: n.d. | AR12: n.d. | AS12: n.d. | AT12: =IF(AND('Tipos de Cambio'!$J$6<>1,'Tipos de Cambio'!$J$6<>2,'Tipos de Cambio'!$J$6<>3,'Tipos de Cambio'!$J$6<>4,'Tipos de Cambio'!$J$6<>5,'Tipos de Cambio'!$J$6<>6,'Tipos de Cambio'!$J$6<>7),LOOKUP(1,'Datos mensuales'!$AM$2:$AS$2,'Datos mensuales'!$AM12:$AS12),LOOKUP('Tipos de Cambio'!$J$6,'Datos mensuales'!$AM$2:$AS$2,'Datos mensuales'!$AM12:$AS12)) -> n.d. | AU12: n.d. | AV12: n.d. | AW12: n.d. | AX12: n.d. | AY12: n.d. | AZ12: n.d. | BA12: n.d. | BB12: n.d. | BC12: n.d. | BD12: n.d. | BE12: n.d. | BF12: 100 | BG12: n.d. | BH12: n.d. | BI12: n.d. | BJ12: 2614.36 | BK12: 381.21 | BL12: 322.56
B13: septiembre | D13: n.d. | E13: n.d. | F13: n.d. | G13: n.d. | H13: n.d. | I13: n.d. | J13: n.d. | T13: 33.51 | U13: n.d. | W13: n.d. | X13: n.d. | Y13: n.d. | Z13: n.d. | AA13: n.d. | AB13: 234.69 | AC13: n.d. | AD13: n.d. | AE13: n.d. | AM13: n.d. | AN13: n.d. | AO13: n.d. | AP13: n.d. | AR13: n.d. | AS13: n.d. | AT13: =IF(AND('Tipos de Cambio'!$J$6<>1,'Tipos de Cambio'!$J$6<>2,'Tipos de Cambio'!$J$6<>3,'Tipos de Cambio'!$J$6<>4,'Tipos de Cambio'!$J$6<>5,'Tipos de Cambio'!$J$6<>6,'Tipos de Cambio'!$J$6<>7),LOOKUP(1,'Datos mensuales'!$AM$2:$AS$2,'Datos mensuales'!$AM13:$AS13),LOOKUP('Tipos de Cambio'!$J$6,'Datos mensuales'!$AM$2:$AS$2,'Datos mensuales'!$AM13:$AS13)) -> n.d. | AU13: n.d. | AV13: n.d. | AW13: n.d. | AX13: n.d. | AY13: n.d. | AZ13: n.d. | BA13: n.d. | BB13: n.d. | BC13: n.d. | BD13: n.d. | BE13: n.d. | BF13: 100 | BG13: n.d. | BH13: n.d. | BI13: n.d. | BJ13: 2452.48 | BK13: 344.51 | BL13: 306.05
B14: octubre | D14: n.d. | E14: n.d. | F14: n.d. | G14: n.d. | H14: n.d. | I14: n.d. | J14: n.d. | T14: 36.04 | U14: n.d. | W14: n.d. | X14: n.d. | Y14: n.d. | Z14: n.d. | AA14: n.d. | AB14: 239.65 | AC14: n.d. | AD14: n.d. | AE14: n.d. | AM14: n.d. | AN14: n.d. | AO14: n.d. | AP14: n.d. | AR14: n.d. | AS14: n.d. | AT14: =IF(AND('Tipos de Cambio'!$J$6<>1,'Tipos de Cambio'!$J$6<>2,'Tipos de Cambio'!$J$6<>3,'Tipos de Cambio'!$J$6<>4,'Tipos de Cambio'!$J$6<>5,'Tipos de Cambio'!$J$6<>6,'Tipos de Cambio'!$J$6<>7),LOOKUP(1,'Datos mensuales'!$AM$2:$AS$2,'Datos mensuales'!$AM14:$AS14),LOOKUP('Tipos de Cambio'!$J$6,'Datos mensuales'!$AM$2:$AS$2,'Datos mensuales'!$AM14:$AS14)) -> n.d. | AU14: n.d. | AV14: n.d. | AW14: n.d. | AX14: n.d. | AY14: n.d. | AZ14: n.d. | BA14: n.d. | BB14: n.d. | BC14: n.d. | BD14: n.d. | BE14: n.d. | BF14: 100 | BG14: n.d. | BH14: n.d. | BI14: n.d. | BJ14: 2442.33 | BK14: 329.84 | BL14: 304
B15: noviembre | D15: n.d. | E15: n.d. | F15: n.d. | G15: n.d. | H15: n.d. | I15: n.d. | J15: n.d. | T15: 32.33 | U15: n.d. | W15: n.d. | X15: n.d. | Y15: n.d. | Z15: n.d. | AA15: n.d. | AB15: 274.35 | AC15: n.d. | AD15: n.d. | AE15: n.d. | AM15: n.d. | AN15: n.d. | AO15: n.d. | AP15: n.d. | AR15: n.d. | AS15: n.d. | AT15: =IF(AND('Tipos de Cambio'!$J$6<>1,'Tipos de Cambio'!$J$6<>2,'Tipos de Cambio'!$J$6<>3,'Tipos de Cambio'!$J$6<>4,'Tipos de Cambio'!$J$6<>5,'Tipos de Cambio'!$J$6<>6,'Tipos de Cambio'!$J$6<>7),LOOKUP(1,'Datos mensuales'!$AM$2:$AS$2,'Datos mensuales'!$AM15:$AS15),LOOKUP('Tipos de Cambio'!$J$6,'Datos mensuales'!$AM$2:$AS$2,'Datos mensuales'!$AM15:$AS15)) -> n.d. | AU15: n.d. | AV15: n.d. | AW15: n.d. | AX15: n.d. | AY15: n.d. | AZ15: n.d. | BA15: n.d. | BB15: n.d. | BC15: n.d. | BD15: n.d. | BE15: n.d. | BF15: 100 | BG15: n.d. | BH15: n.d. | BI15: n.d. | BJ15: 2559.65 | BK15: 359.06 | BL15: 322.22
B16: diciembre | D16: n.d. | E16: n.d. | F16: n.d. | G16: n.d. | H16: n.d. | I16: n.d. | J16: n.d. | T16: 27.28 | U16: n.d. | W16: n.d. | X16: n.d. | Y16: n.d. | Z16: n.d. | AA16: n.d. | AB16: 285.92 | AC16: n.d. | AD16: n.d. | AE16: n.d. | AM16: n.d. | AN16: 1.16 | AO16: n.d. | AP16: n.d. | AQ16: 0.6702412869 | AR16: 133.55 | AS16: 2.9409 | AT16: =IF(AND('Tipos de Cambio'!$J$6<>1,'Tipos de Cambio'!$J$6<>2,'Tipos de Cambio'!$J$6<>3,'Tipos de Cambio'!$J$6<>4,'Tipos de Cambio'!$J$6<>5,'Tipos de Cambio'!$J$6<>6,'Tipos de Cambio'!$J$6<>7),LOOKUP(1,'Datos mensuales'!$AM$2:$AS$2,'Datos mensuales'!$AM16:$AS16),LOOKUP('Tipos de Cambio'!$J$6,'Datos mensuales'!$AM$2:$AS$2,'Datos mensuales'!$AM16:$AS16)) -> n.d. | AU16: n.d. | AV16: n.d. | AW16: n.d. | AX16: n.d. | AY16: n.d. | AZ16: n.d. | BA16: n.d. | BB16: n.d. | BC16: n.d. | BD16: n.d. | BE16: n.d. | BF16: 100 | BG16: n.d. | BH16: n.d. | BI16: n.d. | BJ16: 2633.66 | BK16: 373.84 | BL16: 330.22
A17: 1991 | B17: enero | D17: n.d. | E17: n.d. | F17: n.d. | G17: 5.651491366 | H17: 3.901526058 | I17: n.d. | J17: 27.1068992 | T17: 25.23 | U17: n.d. | W17: n.d. | X17: n.d. | Y17: n.d. | Z17: n.d. | AA17: n.d. | AB17: 288.4 | AC17: n.d. | AD17: n.d. | AE17: n.d. | AM17: n.d. | AN17: 1.1559 | AO17: n.d. | AP17: n.d. | AQ17: 0.6622516556 | AR17: 133.7 | AS17: 2.9532 | AT17: =IF(AND('Tipos de Cambio'!$J$6<>1,'Tipos de Cambio'!$J$6<>2,'Tipos de Cambio'!$J$6<>3,'Tipos de Cambio'!$J$6<>4,'Tipos de Cambio'!$J$6<>5,'Tipos de Cambio'!$J$6<>6,'Tipos de Cambio'!$J$6<>7),LOOKUP(1,'Datos mensuales'!$AM$2:$AS$2,'Datos mensuales'!$AM17:$AS17),LOOKUP('Tipos de Cambio'!$J$6,'Datos mensuales'!$AM$2:$AS$2,'Datos mensuales'!$AM17:$AS17)) -> n.d. | AU17: n.d. | AV17: n.d. | AW17: n.d. | AX17: n.d. | AY17: n.d. | AZ17: n.d. | BA17: n.d. | BB17: n.d. | BC17: n.d. | BD17: n.d. | BE17: n.d. | BF17: 100 | BG17: -0.8896015821 | BH17: -1.246924698 | BI17: 0.3605192111 | BJ17: 2736.39 | BK17: 414.2 | BL17: 343.93
B18: febrero | D18: n.d. | E18: n.d. | F18: n.d. | G18: 5.3125 | H18: 4.131401521 | I18: n.d. | J18: 26.46218753 | T18: 20.48 | U18: n.d. | W18: n.d. | X18: n.d. | Y18: n.d. | Z18: n.d. | AA18: n.d. | AB18: 279.31 | AC18: n.d. | AD18: n.d. | AE18: n.d. | AM18: n.d. | AN18: 1.1546 | AO18: n.d. | AP18: n.d. | AQ18: 0.6757213325 | AR18: 130.54 | AS18: 2.965 | AT18: =IF(AND('Tipos de Cambio'!$J$6<>1,'Tipos de Cambio'!$J$6<>2,'Tipos de Cambio'!$J$6<>3,'Tipos de Cambio'!$J$6<>4,'Tipos de Cambio'!$J$6<>5,'Tipos de Cambio'!$J$6<>6,'Tipos de Cambio'!$J$6<>7),LOOKUP(1,'Datos mensuales'!$AM$2:$AS$2,'Datos mensuales'!$AM18:$AS18),LOOKUP('Tipos de Cambio'!$J$6,'Datos mensuales'!$AM$2:$AS$2,'Datos mensuales'!$AM18:$AS18)) -> n.d. | AU18: n.d. | AV18: n.d. | AW18: n.d. | AX18: n.d. | AY18: n.d. | AZ18: n.d. | BA18: n.d. | BB18: n.d. | BC18: n.d. | BD18: n.d. | BE18: n.d. | BF18: 100 | BG18: -2.462629576 | BH18: -2.441834494 | BI18: 0.3903994113 | BJ18: 2882.18 | BK18: 453.05 | BL18: 367.07
B19: marzo | D19: n.d. | E19: n.d. | F19: n.d. | G19: 4.895104895 | H19: 3.878076703 | I19: n.d. | J19: 26.0436111 | T19: 19.9 | U19: n.d. | W19: n.d. | X19: n.d. | Y19: n.d. | Z19: n.d. | AA19: n.d. | AB19: 287.58 | AC19: n.d. | AD19: n.d. | AE19: n.d. | AM19: n.d. | AN19: 1.1569 | AO19: n.d. | AP19: n.d. | AQ19: 0.624141805 | AR19: 137.39 | AS19: 2.9769 | AT19: =IF(AND('Tipos de Cambio'!$J$6<>1,'Tipos de Cambio'!$J$6<>2,'Tipos de Cambio'!$J$6<>3,'Tipos de Cambio'!$J$6<>4,'Tipos de Cambio'!$J$6<>5,'Tipos de Cambio'!$J$6<>6,'Tipos de Cambio'!$J$6<>7),LOOKUP(1,'Datos mensuales'!$AM$2:$AS$2,'Datos mensuales'!$AM19:$AS19),LOOKUP('Tipos de Cambio'!$J$6,'Datos mensuales'!$AM$2:$AS$2,'Datos mensuales'!$AM19:$AS19)) -> n.d. | AU19: n.d. | AV19: n.d. | AW19: n.d. | AX19: n.d. | AY19: n.d. | AZ19: n.d. | BA19: n.d. | BB19: n.d. | BC19: n.d. | BD19: n.d. | BE19: n.d. | BF19: 100 | BG19: -3.500708347 | BH19: -3.204751341 | BI19: 0.4279756708 | BJ19: 2913.86 | BK19: 482.3 | BL19: 375.22
B20: abril | D20: n.d. | E20: n.d. | F20: n.d. | G20: 4.887509697 | H20: 3.849443969 | I20: n.d. | J20: 25.45460707 | T20: 20.83 | U20: n.d. | W20: n.d. | X20: n.d. | Y20: n.d. | Z20: n.d. | AA20: n.d. | AB20: 263.61 | AC20: n.d. | AD20: n.d. | AE20: n.d. | AM20: n.d. | AN20: 1.1533 | AO20: n.d. | AP20: n.d. | AQ20: 0.5871645822 | AR20: 137.11 | AS20: 2.989 | AT20: =IF(AND('Tipos de Cambio'!$J$6<>1,'Tipos de Cambio'!$J$6<>2,'Tipos de Cambio'!$J$6<>3,'Tipos de Cambio'!$J$6<>4,'Tipos de Cambio'!$J$6<>5,'Tipos de Cambio'!$J$6<>6,'Tipos de Cambio'!$J$6<>7),LOOKUP(1,'Datos mensuales'!$AM$2:$AS$2,'Datos mensuales'!$AM20:$AS20),LOOKUP('Tipos de Cambio'!$J$6,'Datos mensuales'!$AM$2:$AS$2,'Datos mensuales'!$AM20:$AS20)) -> n.d. | AU20: n.d. | AV20: n.d. | AW20: n.d. | AX20: n.d. | AY20: n.d. | AZ20: n.d. | BA20: n.d. | BB20: n.d. | BC20: n.d. | BD20: n.d. | BE20: n.d. | BF20: 100 | BG20: -3.193194269 | BH20: -3.112476375 | BI20: 0.4739086176 | BJ20: 2887.87 | BK20: 484.72 | BL20: 375.35
B21: mayo | D21: n.d. | E21: n.d. | F21: n.d. | G21: 4.953560372 | H21: 4.096728307 | I21: n.d. | J21: 24.50823996 | T21: 21.23 | U21: n.d. | W21: n.d. | X21: n.d. | Y21: n.d. | Z21: n.d. | AA21: n.d. | AB21: 262.78 | AC21: n.d. | AD21: n.d. | AE21: n.d. | AM21: n.d. | AN21: 1.1497 | AO21: n.d. | AP21: n.d. | AQ21: 0.5824111823 | AR21: 138.22 | AS21: 3.0012 | AT21: =IF(AND('Tipos de Cambio'!$J$6<>1,'Tipos de Cambio'!$J$6<>2,'Tipos de Cambio'!$J$6<>3,'Tipos de Cambio'!$J$6<>4,'Tipos de Cambio'!$J$6<>5,'Tipos de Cambio'!$J$6<>6,'Tipos de Cambio'!$J$6<>7),LOOKUP(1,'Datos mensuales'!$AM$2:$AS$2,'Datos mensuales'!$AM21:$AS21),LOOKUP('Tipos de Cambio'!$J$6,'Datos mensuales'!$AM$2:$AS$2,'Datos mensuales'!$AM21:$AS21)) -> n.d. | AU21: n.d. | AV21: n.d. | AW21: n.d. | AX21: n.d. | AY21: n.d. | AZ21: n.d. | BA21: n.d. | BB21: n.d. | BC21: n.d. | BD21: n.d. | BE21: n.d. | BF21: 100 | BG21: -2.388830874 | BH21: -2.50887437 | BI21: 0.5286019622 | BJ21: 3027.5 | BK21: 506.11 | BL21: 389.83
B22: junio | D22: n.d. | E22: n.d. | F22: n.d. | G22: 4.695919938 | H22: 4.318795283 | I22: n.d. | J22: 23.10339672 | T22: 20.19 | U22: n.d. | W22: n.d. | X22: n.d. | Y22: n.d. | Z22: n.d. | AA22: n.d. | AB22: 257 | AC22: n.d. | AD22: n.d. | AE22: n.d. | AM22: n.d. | AN22: 1.1437 | AO22: n.d. | AP22: n.d. | AQ22: 0.5604438715 | AR22: 139.75 | AS22: 3.0134 | AT22: =IF(AND('Tipos de Cambio'!$J$6<>1,'Tipos de Cambio'!$J$6<>2,'Tipos de Cambio'!$J$6<>3,'Tipos de Cambio'!$J$6<>4,'Tipos de Cambio'!$J$6<>5,'Tipos de Cambio'!$J$6<>6,'Tipos de Cambio'!$J$6<>7),LOOKUP(1,'Datos mensuales'!$AM$2:$AS$2,'Datos mensuales'!$AM22:$AS22),LOOKUP('Tipos de Cambio'!$J$6,'Datos mensuales'!$AM$2:$AS$2,'Datos mensuales'!$AM22:$AS22)) -> n.d. | AU22: n.d. | AV22: n.d. | AW22: n.d. | AX22: n.d. | AY22: n.d. | AZ22: n.d. | BA22: n.d. | BB22: n.d. | BC22: n.d. | BD22: n.d. | BE22: n.d. | BF22: 100 | BG22: -1.801268215 | BH22: -1.977412195 | BI22: 0.5922059424 | BJ22: 2906.75 | BK22: 475.92 | BL22: 371.16
B23: julio | D23: n.d. | E23: n.d. | F23: n.d. | G23: 4.447852761 | H23: 5.043330018 | I23: n.d. | J23: 21.96698108 | T23: 21.4 | U23: n.d. | W23: n.d. | X23: n.d. | Y23: n.d. | Z23: n.d. | AA23: n.d. | AB23: 281.79 | AC23: n.d. | AD23: n.d. | AE23: n.d. | AM23: n.d. | AN23: 1.1491 | AO23: n.d. | AP23: n.d. | AQ23: 0.5590652429 | AR23: 137.83 | AS23: 3.0322 | AT23: =IF(AND('Tipos de Cambio'!$J$6<>1,'Tipos de Cambio'!$J$6<>2,'Tipos de Cambio'!$J$6<>3,'Tipos de Cambio'!$J$6<>4,'Tipos de Cambio'!$J$6<>5,'Tipos de Cambio'!$J$6<>6,'Tipos de Cambio'!$J$6<>7),LOOKUP(1,'Datos mensuales'!$AM$2:$AS$2,'Datos mensuales'!$AM23:$AS23),LOOKUP('Tipos de Cambio'!$J$6,'Datos mensuales'!$AM$2:$AS$2,'Datos mensuales'!$AM23:$AS23)) -> n.d. | AU23: n.d. | AV23: n.d. | AW23: n.d. | AX23: n.d. | AY23: n.d. | AZ23: n.d. | BA23: n.d. | BB23: n.d. | BC23: n.d. | BD23: n.d. | BE23: n.d. | BF23: 100 | BG23: -1.682801035 | BH23: -1.753256319 | BI23: 0.6646561307 | BJ23: 3024.82 | BK23: 502.04 | BL23: 387.81
B24: agosto | D24: n.d. | E24: n.d. | F24: n.d. | G24: 3.799392097 | H24: 4.547380314 | I24: n.d. | J24: 20.75825504 | T24: 21.69 | U24: n.d. | W24: n.d. | X24: n.d. | Y24: n.d. | Z24: n.d. | AA24: n.d. | AB24: 279.31 | AC24: n.d. | AD24: n.d. | AE24: n.d. | AM24: n.d. | AN24: 1.1447 | AO24: n.d. | AP24: n.d. | AQ24: 0.5730002292 | AR24: 136.82 | AS24: 3.038 | AT24: =IF(AND('Tipos de Cambio'!$J$6<>1,'Tipos de Cambio'!$J$6<>2,'Tipos de Cambio'!$J$6<>3,'Tipos de Cambio'!$J$6<>4,'Tipos de Cambio'!$J$6<>5,'Tipos de Cambio'!$J$6<>6,'Tipos de Cambio'!$J$6<>7),LOOKUP(1,'Datos mensuales'!$AM$2:$AS$2,'Datos mensuales'!$AM24:$AS24),LOOKUP('Tipos de Cambio'!$J$6,'Datos mensuales'!$AM$2:$AS$2,'Datos mensuales'!$AM24:$AS24)) -> n.d. | AU24: n.d. | AV24: n.d. | AW24: n.d. | AX24: n.d. | AY24: n.d. | AZ24: n.d. | BA24: n.d. | BB24: n.d. | BC24: n.d. | BD24: n.d. | BE24: n.d. | BF24: 100 | BG24: -1.80404072 | BH24: -1.60011538 | BI24: 0.7457046267 | BJ24: 3043.6 | BK24: 525.68 | BL24: 395.43
B25: septiembre | D25: n.d. | E25: n.d. | F25: n.d. | G25: 3.391107762 | H25: 3.911946158 | I25: n.d. | J25: 20.24714789 | T25: 21.89 | U25: n.d. | W25: n.d. | X25: n.d. | Y25: n.d. | Z25: n.d. | AA25: n.d. | AB25: 266.92 | AC25: n.d. | AD25: n.d. | AE25: n.d. | AM25: n.d. | AN25: 1.1368 | AO25: n.d. | AP25: n.d. | AQ25: 0.5888934692 | AR25: 134.3 | AS25: 3.0502 | AT25: =IF(AND('Tipos de Cambio'!$J$6<>1,'Tipos de Cambio'!$J$6<>2,'Tipos de Cambio'!$J$6<>3,'Tipos de Cambio'!$J$6<>4,'Tipos de Cambio'!$J$6<>5,'Tipos de Cambio'!$J$6<>6,'Tipos de Cambio'!$J$6<>7),LOOKUP(1,'Datos mensuales'!$AM$2:$AS$2,'Datos mensuales'!$AM25:$AS25),LOOKUP('Tipos de Cambio'!$J$6,'Datos mensuales'!$AM$2:$AS$2,'Datos mensuales'!$AM25:$AS25)) -> n.d. | AU25: n.d. | AV25: n.d. | AW25: n.d. | AX25: n.d. | AY25: n.d. | AZ25: n.d. | BA25: n.d. | BB25: n.d. | BC25: n.d. | BD25: n.d. | BE25: n.d. | BF25: 100 | BG25: -1.160500662 | BH25: -1.170661992 | BI25: 0.8349301284 | BJ25: 3016.77 | BK25: 526.88 | BL25: 387.86
B26: octubre | D26: n.d. | E26: n.d. | F26: n.d. | G26: 2.921348315 | H26: 3.66601617 | I26: n.d. | J26: 19.92167568 | T26: 23.23 | U26: n.d. | W26: n.d. | X26: n.d. | Y26: n.d. | Z26: n.d. | AA26: n.d. | AB26: 285.1 | AC26: n.d. | AD26: n.d. | AE26: n.d. | AM26: n.d. | AN26: 1.1279 | AO26: n.d. | AP26: n.d. | AQ26: 0.58910162 | AR26: 130.77 | AS26: 3.0624 | AT26: =IF(AND('Tipos de Cambio'!$J$6<>1,'Tipos de Cambio'!$J$6<>2,'Tipos de Cambio'!$J$6<>3,'Tipos de Cambio'!$J$6<>4,'Tipos de Cambio'!$J$6<>5,'Tipos de Cambio'!$J$6<>6,'Tipos de Cambio'!$J$6<>7),LOOKUP(1,'Datos mensuales'!$AM$2:$AS$2,'Datos mensuales'!$AM26:$AS26),LOOKUP('Tipos de Cambio'!$J$6,'Datos mensuales'!$AM$2:$AS$2,'Datos mensuales'!$AM26:$AS26)) -> n.d. | AU26: n.d. | AV26: n.d. | AW26: n.d. | AX26: n.d. | AY26: n.d. | AZ26: n.d. | BA26: n.d. | BB26: n.d. | BC26: n.d. | BD26: n.d. | BE26: n.d. | BF26: 100 | BG26: -0.6184882787 | BH26: -0.4816878203 | BI26: 0.9317427437 | BJ26: 3069.1 | BK26: 542.98 | BL26: 392.46
B27: noviembre | D27: n.d. | E27: n.d. | F27: n.d. | G27: 2.989536622 | H27: 4.126010594 | I27: n.d. | J27: 19.7207363 | T27: 22.46 | U27: n.d. | W27: n.d. | X27: n.d. | Y27: n.d. | Z27: n.d. | AA27: n.d. | AB27: 299.14 | AC27: n.d. | AD27: n.d. | AE27: n.d. | AM27: n.d. | AN27: 1.1303 | AO27: n.d. | AP27: n.d. | AQ27: 0.6153846154 | AR27: 127 | AS27: 3.0698 | AT27: =IF(AND('Tipos de Cambio'!$J$6<>1,'Tipos de Cambio'!$J$6<>2,'Tipos de Cambio'!$J$6<>3,'Tipos de Cambio'!$J$6<>4,'Tipos de Cambio'!$J$6<>5,'Tipos de Cambio'!$J$6<>6,'Tipos de Cambio'!$J$6<>7),LOOKUP(1,'Datos mensuales'!$AM$2:$AS$2,'Datos mensuales'!$AM27:$AS27),LOOKUP('Tipos de Cambio'!$J$6,'Datos mensuales'!$AM$2:$AS$2,'Datos mensuales'!$AM27:$AS27)) -> n.d. | AU27: n.d. | AV27: n.d. | AW27: n.d. | AX27: n.d. | AY27: n.d. | AZ27: n.d. | BA27: n.d. | BB27: n.d. | BC27: n.d. | BD27: n.d. | BE27: n.d. | BF27: 100 | BG27: 0.4800687899 | BH27: 0.2024014628 | BI27: 1.035407488 | BJ27: 2894.68 | BK27: 523.9 | BL27: 375.22
B28: diciembre | D28: n.d. | E28: n.d. | F28: n.d. | G28: 3.064275037 | H28: 4.126010594 | I28: n.d. | J28: 18.79462234 | T28: 19.5 | U28: n.d. | W28: n.d. | X28: n.d. | Y28: n.d. | Z28: n.d. | AA28: n.d. | AB28: 310.71 | AC28: n.d. | AD28: n.d. | AE28: n.d. | AM28: n.d. | AN28: 1.1457 | AO28: n.d. | AP28: n.d. | AQ28: 0.6371455878 | AR28: 128.11 | AS28: 3.07 | AT28: =IF(AND('Tipos de Cambio'!$J$6<>1,'Tipos de Cambio'!$J$6<>2,'Tipos de Cambio'!$J$6<>3,'Tipos de Cambio'!$J$6<>4,'Tipos de Cambio'!$J$6<>5,'Tipos de Cambio'!$J$6<>6,'Tipos de Cambio'!$J$6<>7),LOOKUP(1,'Datos mensuales'!$AM$2:$AS$2,'Datos mensuales'!$AM28:$AS28),LOOKUP('Tipos de Cambio'!$J$6,'Datos mensuales'!$AM$2:$AS$2,'Datos mensuales'!$AM28:$AS28)) -> n.d. | AU28: n.d. | AV28: n.d. | AW28: n.d. | AX28: n.d. | AY28: n.d. | AZ28: n.d. | BA28: n.d. | BB28: n.d. | BC28: n.d. | BD28: n.d. | BE28: n.d. | BF28: 100 | BG28: 0.7791596836 | BH28: 0.6326072057 | BI28: 1.145085719 | BJ28: 3168.83 | BK28: 586.34 | BL28: 417.09
A29: 1992 | B29: enero | D29: n.d. | E29: n.d. | F29: n.d. | G29: 2.600297177 | H29: 3.865872246 | I29: n.d. | J29: 17.947391 | T29: 18.79 | U29: n.d. | W29: n.d. | X29: n.d. | Y29: n.d. | Z29: n.d. | AA29: n.d. | AB29: 316.5 | AC29: n.d. | AD29: n.d. | AE29: n.d. | AM29: n.d. | AN29: 1.1565 | AO29: n.d. | AP29: n.d. | AQ29: 0.6339546089 | AR29: 130 | AS29: 3.0685 | AT29: =IF(AND('Tipos de Cambio'!$J$6<>1,'Tipos de Cambio'!$J$6<>2,'Tipos de Cambio'!$J$6<>3,'Tipos de Cambio'!$J$6<>4,'Tipos de Cambio'!$J$6<>5,'Tipos de Cambio'!$J$6<>6,'Tipos de Cambio'!$J$6<>7),LOOKUP(1,'Datos mensuales'!$AM$2:$AS$2,'Datos mensuales'!$AM29:$AS29),LOOKUP('Tipos de Cambio'!$J$6,'Datos mensuales'!$AM$2:$AS$2,'Datos mensuales'!$AM29:$AS29)) -> n.d. | AU29: n.d. | AV29: n.d. | AW29: n.d. | AX29: n.d. | AY29: n.d. | AZ29: n.d. | BA29: n.d. | BB29: n.d. | BC29: n.d. | BD29: n.d. | BE29: n.d. | BF29: 100 | BG29: 0.6153472528 | BH29: 1.091124463 | BI29: 1.259875549 | BJ29: 3223.39 | BK29: 620.21 | BL29: 408.79
B30: febrero | D30: n.d. | E30: n.d. | F30: n.d. | G30: 2.818991098 | H30: 3.843504615 | I30: n.d. | J30: 17.2971584 | T30: 19.01 | U30: n.d. | W30: n.d. | X30: n.d. | Y30: n.d. | Z30: n.d. | AA30: n.d. | AB30: 315.67 | AC30: n.d. | AD30: n.d. | AE30: n.d. | AM30: n.d. | AN30: 1.1825 | AO30: n.d. | AP30: n.d. | AQ30: 0.6173982836 | AR30: 130.5 | AS30: 3.0636 | AT30: =IF(AND('Tipos de Cambio'!$J$6<>1,'Tipos de Cambio'!$J$6<>2,'Tipos de Cambio'!$J$6<>3,'Tipos de Cambio'!$J$6<>4,'Tipos de Cambio'!$J$6<>5,'Tipos de Cambio'!$J$6<>6,'Tipos de Cambio'!$J$6<>7),LOOKUP(1,'Datos mensuales'!$AM$2:$AS$2,'Datos mensuales'!$AM30:$AS30),LOOKUP('Tipos de Cambio'!$J$6,'Datos mensuales'!$AM$2:$AS$2,'Datos mensuales'!$AM30:$AS30)) -> n.d. | AU30: n.d. | AV30: n.d. | AW30: n.d. | AX30: n.d. | AY30: n.d. | AZ30: n.d. | BA30: n.d. | BB30: n.d. | BC30: n.d. | BD30: n.d. | BE30: n.d. | BF30: 100 | BG30: 2.020505688 | BH30: 2.090461385 | BI30: 1.378835381 | BJ30: 3267.67 | BK30: 633.47 | BL30: 412.7
B31: marzo | D31: n.d. | E31: n.d. | F31: n.d. | G31: 3.185185185 | H31: 4.31188869 | I31: n.d. | J31: 16.82485349 | T31: 18.92 | U31: n.d. | W31: n.d. | X31: n.d. | Y31: n.d. | Z31: n.d. | AA31: n.d. | AB31: 327.24 | AC31: n.d. | AD31: n.d. | AE31: n.d. | AM31: n.d. | AN31: 1.1926 | AO31: n.d. | AP31: n.d. | AQ31: 0.6020107158 | AR31: 132.86 | AS31: 3.0672 | AT31: =IF(AND('Tipos de Cambio'!$J$6<>1,'Tipos de Cambio'!$J$6<>2,'Tipos de Cambio'!$J$6<>3,'Tipos de Cambio'!$J$6<>4,'Tipos de Cambio'!$J$6<>5,'Tipos de Cambio'!$J$6<>6,'Tipos de Cambio'!$J$6<>7),LOOKUP(1,'Datos mensuales'!$AM$2:$AS$2,'Datos mensuales'!$AM31:$AS31),LOOKUP('Tipos de Cambio'!$J$6,'Datos mensuales'!$AM$2:$AS$2,'Datos mensuales'!$AM31:$AS31)) -> n.d. | AU31: n.d. | AV31: n.d. | AW31: n.d. | AX31: n.d. | AY31: n.d. | AZ31: n.d. | BA31: n.d. | BB31: n.d. | BC31: n.d. | BD31: n.d. | BE31: n.d. | BF31: 100 | BG31: 3.466612638 | BH31: 3.233699619 | BI31: 1.501008597 | BJ31: 3235.47 | BK31: 603.77 | BL31: 403.69
B32: abril | D32: n.d. | E32: n.d. | F32: n.d. | G32: 3.180473373 | H32: 4.187259747 | I32: n.d. | J32: 16.64437541 | T32: 20.23 | U32: n.d. | W32: n.d. | X32: n.d. | Y32: n.d. | Z32: n.d. | AA32: n.d. | AB32: 333.03 | AC32: n.d. | AD32: n.d. | AE32: n.d. | AM32: n.d. | AN32: 1.1875 | AO32: n.d. | AP32: n.d. | AQ32: 0.6066856762 | AR32: 133.54 | AS32: 3.0675 | AT32: =IF(AND('Tipos de Cambio'!$J$6<>1,'Tipos de Cambio'!$J$6<>2,'Tipos de Cambio'!$J$6<>3,'Tipos de Cambio'!$J$6<>4,'Tipos de Cambio'!$J$6<>5,'Tipos de Cambio'!$J$6<>6,'Tipos de Cambio'!$J$6<>7),LOOKUP(1,'Datos mensuales'!$AM$2:$AS$2,'Datos mensuales'!$AM32:$AS32),LOOKUP('Tipos de Cambio'!$J$6,'Datos mensuales'!$AM$2:$AS$2,'Datos mensuales'!$AM32:$AS32)) -> n.d. | AU32: n.d. | AV32: n.d. | AW32: n.d. | AX32: n.d. | AY32: n.d. | AZ32: n.d. | BA32: n.d. | BB32: n.d. | BC32: n.d. | BD32: n.d. | BE32: n.d. | BF32: 100 | BG32: 3.96021556 | BH32: 3.641214045 | BI32: 1.625484376 | BJ32: 3359.12 | BK32: 578.68 | BL32: 414.95
B33: mayo | D33: n.d. | E33: n.d. | F33: n.d. | G33: 3.02359882 | H33: 4.044820989 | I33: n.d. | J33: 16.27677843 | T33: 20.98 | U33: n.d. | W33: n.d. | X33: n.d. | Y33: n.d. | Z33: n.d. | AA33: n.d. | AB33: 323.94 | AC33: n.d. | AD33: n.d. | AE33: n.d. | AM33: n.d. | AN33: 1.2 | AO33: n.d. | AP33: n.d. | AQ33: 0.6170554116 | AR33: 130.77 | AS33: 3.0982 | AT33: =IF(AND('Tipos de Cambio'!$J$6<>1,'Tipos de Cambio'!$J$6<>2,'Tipos de Cambio'!$J$6<>3,'Tipos de Cambio'!$J$6<>4,'Tipos de Cambio'!$J$6<>5,'Tipos de Cambio'!$J$6<>6,'Tipos de Cambio'!$J$6<>7),LOOKUP(1,'Datos mensuales'!$AM$2:$AS$2,'Datos mensuales'!$AM33:$AS33),LOOKUP('Tipos de Cambio'!$J$6,'Datos mensuales'!$AM$2:$AS$2,'Datos mensuales'!$AM33:$AS33)) -> n.d. | AU33: n.d. | AV33: n.d. | AW33: n.d. | AX33: n.d. | AY33: n.d. | AZ33: n.d. | BA33: n.d. | BB33: n.d. | BC33: n.d. | BD33: n.d. | BE33: n.d. | BF33: 100 | BG33: 3.286247085 | BH33: 3.277349319 | BI33: 1.751467235 | BJ33: 3396.88 | BK33: 585.31 | BL33: 415.35
B34: junio | D34: n.d. | E34: n.d. | F34: n.d. | G34: 3.088235294 | H34: 3.922102683 | I34: n.d. | J34: 15.84818352 | T34: 22.39 | U34: n.d. | W34: n.d. | X34: n.d. | Y34: n.d. | Z34: n.d. | AA34: n.d. | AB34: 333.85 | AC34: n.d. | AD34: n.d. | AE34: n.d. | AM34: n.d. | AN34: 1.2 | AO34: n.d. | AP34: n.d. | AQ34: 0.6353240152 | AR34: 126.84 | AS34: 3.1185 | AT34: =IF(AND('Tipos de Cambio'!$J$6<>1,'Tipos de Cambio'!$J$6<>2,'Tipos de Cambio'!$J$6<>3,'Tipos de Cambio'!$J$6<>4,'Tipos de Cambio'!$J$6<>5,'Tipos de Cambio'!$J$6<>6,'Tipos de Cambio'!$J$6<>7),LOOKUP(1,'Datos mensuales'!$AM$2:$AS$2,'Datos mensuales'!$AM34:$AS34),LOOKUP('Tipos de Cambio'!$J$6,'Datos mensuales'!$AM$2:$AS$2,'Datos mensuales'!$AM34:$AS34)) -> n.d. | AU34: n.d. | AV34: n.d. | AW34: n.d. | AX34: n.d. | AY34: n.d. | AZ34: n.d. | BA34: n.d. | BB34: n.d. | BC34: n.d. | BD34: n.d. | BE34: n.d. | BF34: 100 | BG34: 2.312435682 | BH34: 2.901394208 | BI34: 1.878297292 | BJ34: 3318.52 | BK34: 563.6 | BL34: 408.14
B35: julio | D35: n.d. | E35: n.d. | F35: n.d. | G35: 3.15712188 | H35: 3.32702191 | I35: n.d. | J35: 15.55846208 | T35: 21.78 | U35: n.d. | W35: n.d. | X35: n.d. | Y35: n.d. | Z35: n.d. | AA35: n.d. | AB35: 315.67 | AC35: n.d. | AD35: n.d. | AE35: n.d. | AM35: n.d. | AN35: 1.1917 | AO35: n.d. | AP35: n.d. | AQ35: 0.6707357972 | AR35: 125.88 | AS35: 3.1165 | AT35: =IF(AND('Tipos de Cambio'!$J$6<>1,'Tipos de Cambio'!$J$6<>2,'Tipos de Cambio'!$J$6<>3,'Tipos de Cambio'!$J$6<>4,'Tipos de Cambio'!$J$6<>5,'Tipos de Cambio'!$J$6<>6,'Tipos de Cambio'!$J$6<>7),LOOKUP(1,'Datos mensuales'!$AM$2:$AS$2,'Datos mensuales'!$AM35:$AS35),LOOKUP('Tipos de Cambio'!$J$6,'Datos mensuales'!$AM$2:$AS$2,'Datos mensuales'!$AM35:$AS35)) -> n.d. | AU35: n.d. | AV35: n.d. | AW35: n.d. | AX35: n.d. | AY35: n.d. | AZ35: n.d. | BA35: n.d. | BB35: n.d. | BC35: n.d. | BD35: n.d. | BE35: n.d. | BF35: 100 | BG35: 3.220656941 | BH35: 2.756915044 | BI35: 2.00541791 | BJ35: 3393.78 | BK35: 580.83 | BL35: 424.21
B36: agosto | D36: n.d. | E36: n.d. | F36: n.d. | G36: 3.147877013 | H36: 3.309469134 | I36: n.d. | J36: 15.46479305 | T36: 21.34 | U36: n.d. | W36: n.d. | X36: n.d. | Y36: n.d. | Z36: n.d. | AA36: n.d. | AB36: 315.67 | AC36: n.d. | AD36: n.d. | AE36: n.d. | AM36: n.d. | AN36: 1.1909 | AO36: n.d. | AP36: n.d. | AQ36: 0.6891798759 | AR36: 126.23 | AS36: 3.0913 | AT36: =IF(AND('Tipos de Cambio'!$J$6<>1,'Tipos de Cambio'!$J$6<>2,'Tipos de Cambio'!$J$6<>3,'Tipos de Cambio'!$J$6<>4,'Tipos de Cambio'!$J$6<>5,'Tipos de Cambio'!$J$6<>6,'Tipos de Cambio'!$J$6<>7),LOOKUP(1,'Datos mensuales'!$AM$2:$AS$2,'Datos mensuales'!$AM36:$AS36),LOOKUP('Tipos de Cambio'!$J$6,'Datos mensuales'!$AM$2:$AS$2,'Datos mensuales'!$AM36:$AS36)) -> n.d. | AU36: n.d. | AV36: n.d. | AW36: n.d. | AX36: n.d. | AY36: n.d. | AZ36: n.d. | BA36: n.d. | BB36: n.d. | BC36: n.d. | BD36: n.d. | BE36: n.d. | BF36: 100 | BG36: 2.587025586 | BH36: 2.505348193 | BI36: 2.132343123 | BJ36: 3257.35 | BK36: 563.12 | BL36: 414.03
B37: septiembre | D37: n.d. | E37: n.d. | F37: n.d. | G37: 2.988338192 | H37: 3.319390096 | I37: n.d. | J37: 15.32038066 | T37: 21.88 | U37: n.d. | W37: n.d. | X37: n.d. | Y37: n.d. | Z37: n.d. | AA37: n.d. | AB37: 323.32 | AC37: n.d. | AD37: n.d. | AE37: n.d. | AM37: n.d. | AN37: 1.2223 | AO37: n.d. | AP37: n.d. | AQ37: 0.6907508462 | AR37: 123.3530769 | AS37: 3.0857 | AT37: =IF(AND('Tipos de Cambio'!$J$6<>1,'Tipos de Cambio'!$J$6<>2,'Tipos de Cambio'!$J$6<>3,'Tipos de Cambio'!$J$6<>4,'Tipos de Cambio'!$J$6<>5,'Tipos de Cambio'!$J$6<>6,'Tipos de Cambio'!$J$6<>7),LOOKUP(1,'Datos mensuales'!$AM$2:$AS$2,'Datos mensuales'!$AM37:$AS37),LOOKUP('Tipos de Cambio'!$J$6,'Datos mensuales'!$AM$2:$AS$2,'Datos mensuales'!$AM37:$AS37)) -> n.d. | AU37: n.d. | AV37: n.d. | AW37: n.d. | AX37: n.d. | AY37: n.d. | AZ37: n.d. | BA37: n.d. | BB37: n.d. | BC37: n.d. | BD37: n.d. | BE37: n.d. | BF37: 100 | BG37: 1.941211595 | BH37: 2.377687325 | BI37: 2.258639832 | BJ37: 3271.66 | BK37: 583.27 | BL37: 417.8
B38: octubre | D38: n.d. | E38: n.d. | F38: n.d. | G38: 3.202328967 | H38: 3.173322576 | I38: n.d. | J38: 14.81539186 | T38: 21.69 | U38: n.d. | W38: n.d. | X38: n.d. | Y38: n.d. | Z38: n.d. | AA38: n.d. | AB38: 326.41 | AC38: n.d. | AD38: n.d. | AE38: n.d. | AM38: n.d. | AN38: 1.2451 | AO38: n.d. | AP38: n.d. | AQ38: 0.6749460043 | AR38: 121.0508333 | AS38: 3.1238 | AT38: =IF(AND('Tipos de Cambio'!$J$6<>1,'Tipos de Cambio'!$J$6<>2,'Tipos de Cambio'!$J$6<>3,'Tipos de Cambio'!$J$6<>4,'Tipos de Cambio'!$J$6<>5,'Tipos de Cambio'!$J$6<>6,'Tipos de Cambio'!$J$6<>7),LOOKUP(1,'Datos mensuales'!$AM$2:$AS$2,'Datos mensuales'!$AM38:$AS38),LOOKUP('Tipos de Cambio'!$J$6,'Datos mensuales'!$AM$2:$AS$2,'Datos mensuales'!$AM38:$AS38)) -> n.d. | AU38: n.d. | AV38: n.d. | AW38: n.d. | AX38: n.d. | AY38: n.d. | AZ38: n.d. | BA38: n.d. | BB38: n.d. | BC38: n.d. | BD38: n.d. | BE38: n.d. | BF38: 100 | BG38: 2.95682837 | BH38: 2.759430268 | BI38: 2.383901057 | BJ38: 3226.28 | BK38: 605.17 | BL38: 418.68
B39: noviembre | D39: n.d. | E39: n.d. | F39: n.d. | G39: 3.047895501 | H39: 3.065595716 | I39: n.d. | J39: 12.96439965 | T39: 20.34 | U39: n.d. | W39: n.d. | X39: n.d. | Y39: n.d. | Z39: n.d. | AA39: n.d. | AB39: 341.29 | AC39: n.d. | AD39: n.d. | AE39: n.d. | AM39: n.d. | AN39: 1.268 | AO39: n.d. | AP39: n.d. | AQ39: 0.6298419097 | AR39: 123.8342857 | AS39: 3.1198 | AT39: =IF(AND('Tipos de Cambio'!$J$6<>1,'Tipos de Cambio'!$J$6<>2,'Tipos de Cambio'!$J$6<>3,'Tipos de Cambio'!$J$6<>4,'Tipos de Cambio'!$J$6<>5,'Tipos de Cambio'!$J$6<>6,'Tipos de Cambio'!$J$6<>7),LOOKUP(1,'Datos mensuales'!$AM$2:$AS$2,'Datos mensuales'!$AM39:$AS39),LOOKUP('Tipos de Cambio'!$J$6,'Datos mensuales'!$AM$2:$AS$2,'Datos mensuales'!$AM39:$AS39)) -> n.d. | AU39: n.d. | AV39: n.d. | AW39: n.d. | AX39: n.d. | AY39: n.d. | AZ39: n.d. | BA39: n.d. | BB39: n.d. | BC39: n.d. | BD39: n.d. | BE39: n.d. | BF39: 100 | BG39: 3.4876455 | BH39: 3.458710598 | BI39: 2.507729275 | BJ39: 3305.16 | BK39: 652.73 | BL39: 431.35
B40: diciembre | D40: n.d. | E40: n.d. | F40: n.d. | G40: 2.900652647 | H40: 3.172690763 | I40: n.d. | J40: 11.93809461 | T40: 19.41 | U40: n.d. | W40: n.d. | X40: n.d. | Y40: n.d. | Z40: n.d. | AA40: n.d. | AB40: 331.37 | AC40: n.d. | AD40: n.d. | AE40: n.d. | AM40: n.d. | AN40: 1.2727 | AO40: n.d. | AP40: n.d. | AQ40: 0.6329915179 | AR40: 123.8153846 | AS40: 3.1182 | AT40: =IF(AND('Tipos de Cambio'!$J$6<>1,'Tipos de Cambio'!$J$6<>2,'Tipos de Cambio'!$J$6<>3,'Tipos de Cambio'!$J$6<>4,'Tipos de Cambio'!$J$6<>5,'Tipos de Cambio'!$J$6<>6,'Tipos de Cambio'!$J$6<>7),LOOKUP(1,'Datos mensuales'!$AM$2:$AS$2,'Datos mensuales'!$AM40:$AS40),LOOKUP('Tipos de Cambio'!$J$6,'Datos mensuales'!$AM$2:$AS$2,'Datos mensuales'!$AM40:$AS40)) -> n.d. | AU40: n.d. | AV40: n.d. | AW40: n.d. | AX40: n.d. | AY40: n.d. | AZ40: n.d. | BA40: n.d. | BB40: n.d. | BC40: n.d. | BD40: n.d. | BE40: n.d. | BF40: 100 | BG40: 3.953365491 | BH40: 4.193488009 | BI40: 2.629754794 | BJ40: 3301.11 | BK40: 676.95 | BL40: 435.71
A41: 1993 | B41: enero | D41: n.d. | E41: n.d. | F41: n.d. | G41: 3.258508327 | H41: 3.388473853 | I41: n.d. | J41: 11.3189773 | T41: 19.03 | U41: n.d. | W41: n.d. | X41: n.d. | Y41: n.d. | Z41: n.d. | AA41: n.d. | AB41: 338.81 | AC41: n.d. | AD41: n.d. | AE41: n.d. | AM41: n.d. | AN41: 1.2776 | AO41: n.d. | AP41: n.d. | AQ41: 0.6188884763 | AR41: 124.7857143 | AS41: 3.1146 | AT41: =IF(AND('Tipos de Cambio'!$J$6<>1,'Tipos de Cambio'!$J$6<>2,'Tipos de Cambio'!$J$6<>3,'Tipos de Cambio'!$J$6<>4,'Tipos de Cambio'!$J$6<>5,'Tipos de Cambio'!$J$6<>6,'Tipos de Cambio'!$J$6<>7),LOOKUP(1,'Datos mensuales'!$AM$2:$AS$2,'Datos mensuales'!$AM41:$AS41),LOOKUP('Tipos de Cambio'!$J$6,'Datos mensuales'!$AM$2:$AS$2,'Datos mensuales'!$AM41:$AS41)) -> n.d. | AU41: n.d. | AV41: n.d. | AW41: n.d. | AX41: n.d. | AY41: n.d. | AZ41: n.d. | BA41: n.d. | BB41: n.d. | BC41: n.d. | BD41: n.d. | BE41: n.d. | BF41: 100 | BG41: 5.097837113 | BH41: 4.699105649 | BI41: 2.749675825 | BJ41: 3310.03 | BK41: 696.34 | BL41: 438.78
B42: febrero | D42: n.d. | E42: n.d. | F42: n.d. | G42: 3.246753247 | H42: 3.369594057 | I42: n.d. | J42: 10.91434166 | T42: 20.09 | U42: n.d. | W42: n.d. | X42: n.d. | Y42: n.d. | Z42: n.d. | AA42: n.d. | AB42: 351.21 | AC42: n.d. | AD42: n.d. | AE42: n.d. | AM42: n.d. | AN42: 1.2597 | AO42: n.d. | AP42: n.d. | AQ42: 0.6091617934 | AR42: 120.9857143 | AS42: 3.1049 | AT42: =IF(AND('Tipos de Cambio'!$J$6<>1,'Tipos de Cambio'!$J$6<>2,'Tipos de Cambio'!$J$6<>3,'Tipos de Cambio'!$J$6<>4,'Tipos de Cambio'!$J$6<>5,'Tipos de Cambio'!$J$6<>6,'Tipos de Cambio'!$J$6<>7),LOOKUP(1,'Datos mensuales'!$AM$2:$AS$2,'Datos mensuales'!$AM42:$AS42),LOOKUP('Tipos de Cambio'!$J$6,'Datos mensuales'!$AM$2:$AS$2,'Datos mensuales'!$AM42:$AS42)) -> n.d. | AU42: n.d. | AV42: n.d. | AW42: n.d. | AX42: n.d. | AY42: n.d. | AZ42: n.d. | BA42: n.d. | BB42: n.d. | BC42: n.d. | BD42: n.d. | BE42: n.d. | BF42: 100 | BG42: 4.723416312 | BH42: 4.618472977 | BI42: 2.867299791 | BJ42: 3370.81 | BK42: 670.77 | BL42: 443.38
B43: marzo | D43: n.d. | E43: n.d. | F43: n.d. | G43: 3.086862886 | H43: 3.23560486 | I43: n.d. | J43: 10.43681962 | T43: 20.32 | U43: n.d. | W43: n.d. | X43: n.d. | Y43: n.d. | Z43: n.d. | AA43: n.d. | AB43: 337.16 | AC43: n.d. | AD43: n.d. | AE43: n.d. | AM43: n.d. | AN43: 1.2469 | AO43: n.d. | AP43: n.d. | AQ43: 0.6070171179 | AR43: 121 | AS43: 3.1083 | AT43: =IF(AND('Tipos de Cambio'!$J$6<>1,'Tipos de Cambio'!$J$6<>2,'Tipos de Cambio'!$J$6<>3,'Tipos de Cambio'!$J$6<>4,'Tipos de Cambio'!$J$6<>5,'Tipos de Cambio'!$J$6<>6,'Tipos de Cambio'!$J$6<>7),LOOKUP(1,'Datos mensuales'!$AM$2:$AS$2,'Datos mensuales'!$AM43:$AS43),LOOKUP('Tipos de Cambio'!$J$6,'Datos mensuales'!$AM$2:$AS$2,'Datos mensuales'!$AM43:$AS43)) -> n.d. | AU43: n.d. | AV43: n.d. | AW43: n.d. | AX43: n.d. | AY43: n.d. | AZ43: n.d. | BA43: n.d. | BB43: n.d. | BC43: n.d. | BD43: n.d. | BE43: n.d. | BF43: 100 | BG43: 3.769072483 | BH43: 4.016152638 | BI43: 2.982569604 | BJ43: 3435.11 | BK43: 690.13 | BL43: 451.67
B44: abril | D44: n.d. | E44: n.d. | F44: n.d. | G44: 3.225806452 | H44: 3.228356832 | I44: n.d. | J44: 10.09226247 | T44: 20.25 | U44: n.d. | W44: n.d. | X44: n.d. | Y44: n.d. | Z44: n.d. | AA44: n.d. | AB44: 323.94 | AC44: n.d. | AD44: n.d. | AE44: n.d. | AM44: n.d. | AN44: 1.262 | AO44: n.d. | AP44: n.d. | AQ44: 0.626566416 | AR44: 112.42 | AS44: 3.0955 | AT44: =IF(AND('Tipos de Cambio'!$J$6<>1,'Tipos de Cambio'!$J$6<>2,'Tipos de Cambio'!$J$6<>3,'Tipos de Cambio'!$J$6<>4,'Tipos de Cambio'!$J$6<>5,'Tipos de Cambio'!$J$6<>6,'Tipos de Cambio'!$J$6<>7),LOOKUP(1,'Datos mensuales'!$AM$2:$AS$2,'Datos mensuales'!$AM44:$AS44),LOOKUP('Tipos de Cambio'!$J$6,'Datos mensuales'!$AM$2:$AS$2,'Datos mensuales'!$AM44:$AS44)) -> n.d. | AU44: n.d. | AV44: n.d. | AW44: n.d. | AX44: n.d. | AY44: n.d. | AZ44: n.d. | BA44: n.d. | BB44: n.d. | BC44: n.d. | BD44: n.d. | BE44: n.d. | BF44: 100 | BG44: 3.361600383 | BH44: 3.323368453 | BI44: 3.095549807 | BJ44: 3427.55 | BK44: 661.42 | BL44: 440.19
B45: mayo | D45: n.d. | E45: n.d. | F45: n.d. | G45: 3.221188261 | H45: 3.112687155 | I45: n.d. | J45: 9.996329434 | T45: 19.95 | U45: n.d. | W45: n.d. | X45: n.d. | Y45: n.d. | Z45: n.d. | AA45: n.d. | AB45: 305.76 | AC45: n.d. | AD45: n.d. | AE45: n.d. | AM45: n.d. | AN45: 1.27 | AO45: n.d. | AP45: n.d. | AQ45: 0.6226262375 | AR45: 110.4 | AS45: 3.1227 | AT45: =IF(AND('Tipos de Cambio'!$J$6<>1,'Tipos de Cambio'!$J$6<>2,'Tipos de Cambio'!$J$6<>3,'Tipos de Cambio'!$J$6<>4,'Tipos de Cambio'!$J$6<>5,'Tipos de Cambio'!$J$6<>6,'Tipos de Cambio'!$J$6<>7),LOOKUP(1,'Datos mensuales'!$AM$2:$AS$2,'Datos mensuales'!$AM45:$AS45),LOOKUP('Tipos de Cambio'!$J$6,'Datos mensuales'!$AM$2:$AS$2,'Datos mensuales'!$AM45:$AS45)) -> n.d. | AU45: n.d. | AV45: n.d. | AW45: n.d. | AX45: n.d. | AY45: n.d. | AZ45: n.d. | BA45: n.d. | BB45: n.d. | BC45: n.d. | BD45: n.d. | BE45: n.d. | BF45: 100 | BG45: 2.635838958 | BH45: 2.832570473 | BI45: 3.206377632 | BJ45: 3527.43 | BK45: 700.53 | BL45: 450.19
B46: junio | D46: n.d. | E46: n.d. | F46: n.d. | G46: 2.995720399 | H46: 3.10575285 | I46: n.d. | J46: 9.869636886 | T46: 19.09 | U46: n.d. | W46: n.d. | X46: n.d. | Y46: n.d. | Z46: n.d. | AA46: n.d. | AB46: 294.19 | AC46: n.d. | AD46: n.d. | AE46: n.d. | AM46: n.d. | AN46: 1.28 | AO46: n.d. | AP46: n.d. | AQ46: 0.6052536013 | AR46: 107.34 | AS46: 3.1213 | AT46: =IF(AND('Tipos de Cambio'!$J$6<>1,'Tipos de Cambio'!$J$6<>2,'Tipos de Cambio'!$J$6<>3,'Tipos de Cambio'!$J$6<>4,'Tipos de Cambio'!$J$6<>5,'Tipos de Cambio'!$J$6<>6,'Tipos de Cambio'!$J$6<>7),LOOKUP(1,'Datos mensuales'!$AM$2:$AS$2,'Datos mensuales'!$AM46:$AS46),LOOKUP('Tipos de Cambio'!$J$6,'Datos mensuales'!$AM$2:$AS$2,'Datos mensuales'!$AM46:$AS46)) -> n.d. | AU46: n.d. | AV46: n.d. | AW46: n.d. | AX46: n.d. | AY46: n.d. | AZ46: n.d. | BA46: n.d. | BB46: n.d. | BC46: n.d. | BD46: n.d. | BE46: n.d. | BF46: 100 | BG46: 2.841897692 | BH46: 2.557374297 | BI46: 3.315206792 | BJ46: 3516.08 | BK46: 703.95 | BL46: 450.53
B47: julio | D47: n.d. | E47: n.d. | F47: n.d. | G47: 2.775800712 | H47: 3.311518325 | I47: n.d. | J47: 9.704931389 | T47: 17.89 | U47: n.d. | W47: n.d. | X47: n.d. | Y47: n.d. | Z47: n.d. | AA47: n.d. | AB47: 299.14 | AC47: n.d. | AD47: n.d. | AE47: n.d. | AM47: n.d. | AN47: 1.28 | AO47: n.d. | AP47: n.d. | AQ47: 0.5831923952 | AR47: 107.73 | AS47: 3.1236 | AT47: =IF(AND('Tipos de Cambio'!$J$6<>1,'Tipos de Cambio'!$J$6<>2,'Tipos de Cambio'!$J$6<>3,'Tipos de Cambio'!$J$6<>4,'Tipos de Cambio'!$J$6<>5,'Tipos de Cambio'!$J$6<>6,'Tipos de Cambio'!$J$6<>7),LOOKUP(1,'Datos mensuales'!$AM$2:$AS$2,'Datos mensuales'!$AM47:$AS47),LOOKUP('Tipos de Cambio'!$J$6,'Datos mensuales'!$AM$2:$AS$2,'Datos mensuales'!$AM47:$AS47)) -> n.d. | AU47: n.d. | AV47: n.d. | AW47: n.d. | AX47: n.d. | AY47: n.d. | AZ47: n.d. | BA47: n.d. | BB47: n.d. | BC47: n.d. | BD47: n.d. | BE47: n.d. | BF47: 100 | BG47: 2.224056091 | BH47: 2.464508415 | BI47: 3.422165652 | BJ47: 3539.47 | BK47: 704.7 | BL47: 448.13
B48: agosto | D48: n.d. | E48: n.d. | F48: n.d. | G48: 2.767920511 | H48: 3.321129707 | I48: n.d. | J48: 9.618670439 | T48: 18.01 | U48: n.d. | W48: n.d. | X48: n.d. | Y48: n.d. | Z48: n.d. | AA48: n.d. | AB48: 294.19 | AC48: n.d. | AD48: n.d. | AE48: n.d. | AM48: n.d. | AN48: 1.31 | AO48: n.d. | AP48: n.d. | AQ48: 0.5897269564 | AR48: 103.71 | AS48: 3.1126 | AT48: =IF(AND('Tipos de Cambio'!$J$6<>1,'Tipos de Cambio'!$J$6<>2,'Tipos de Cambio'!$J$6<>3,'Tipos de Cambio'!$J$6<>4,'Tipos de Cambio'!$J$6<>5,'Tipos de Cambio'!$J$6<>6,'Tipos de Cambio'!$J$6<>7),LOOKUP(1,'Datos mensuales'!$AM$2:$AS$2,'Datos mensuales'!$AM48:$AS48),LOOKUP('Tipos de Cambio'!$J$6,'Datos mensuales'!$AM$2:$AS$2,'Datos mensuales'!$AM48:$AS48)) -> n.d. | AU48: n.d. | AV48: n.d. | AW48: n.d. | AX48: n.d. | AY48: n.d. | AZ48: n.d. | BA48: n.d. | BB48: n.d. | BC48: n.d. | BD48: n.d. | BE48: n.d. | BF48: 100 | BG48: 2.65154692 | BH48: 2.607027626 | BI48: 3.527331522 | BJ48: 3651.25 | BK48: 742.84 | BL48: 463.56
B49: septiembre | D49: n.d. | E49: n.d. | F49: n.d. | G49: 2.689313517 | H49: 3.304166123 | I49: n.d. | J49: 9.478212291 | T49: 17.5 | U49: n.d. | W49: n.d. | X49: n.d. | Y49: n.d. | Z49: n.d. | AA49: n.d. | AB49: 290.88 | AC49: n.d. | AD49: n.d. | AE49: n.d. | AM49: n.d. | AN49: 1.32 | AO49: n.d. | AP49: n.d. | AQ49: 0.6162948354 | AR49: 105.28 | AS49: 3.1127 | AT49: =IF(AND('Tipos de Cambio'!$J$6<>1,'Tipos de Cambio'!$J$6<>2,'Tipos de Cambio'!$J$6<>3,'Tipos de Cambio'!$J$6<>4,'Tipos de Cambio'!$J$6<>5,'Tipos de Cambio'!$J$6<>6,'Tipos de Cambio'!$J$6<>7),LOOKUP(1,'Datos mensuales'!$AM$2:$AS$2,'Datos mensuales'!$AM49:$AS49),LOOKUP('Tipos de Cambio'!$J$6,'Datos mensuales'!$AM$2:$AS$2,'Datos mensuales'!$AM49:$AS49)) -> n.d. | AU49: n.d. | AV49: n.d. | AW49: n.d. | AX49: n.d. | AY49: n.d. | AZ49: n.d. | BA49: n.d. | BB49: n.d. | BC49: n.d. | BD49: n.d. | BE49: n.d. | BF49: 100 | BG49: 2.902076814 | BH49: 2.795618272 | BI49: 3.630716564 | BJ49: 3555.12 | BK49: 762.78 | BL49: 458.93
B50: octubre | D50: n.d. | E50: n.d. | F50: n.d. | G50: 2.750352609 | H50: 3.310308875 | I50: n.d. | J50: 9.140076424 | T50: 18.15 | U50: n.d. | W50: n.d. | X50: n.d. | Y50: n.d. | Z50: n.d. | AA50: n.d. | AB50: 275.18 | AC50: n.d. | AD50: n.d. | AE50: n.d. | AM50: n.d. | AN50: 1.33 | AO50: n.d. | AP50: n.d. | AQ50: 0.6105006105 | AR50: 106.92 | AS50: 3.1142 | AT50: =IF(AND('Tipos de Cambio'!$J$6<>1,'Tipos de Cambio'!$J$6<>2,'Tipos de Cambio'!$J$6<>3,'Tipos de Cambio'!$J$6<>4,'Tipos de Cambio'!$J$6<>5,'Tipos de Cambio'!$J$6<>6,'Tipos de Cambio'!$J$6<>7),LOOKUP(1,'Datos mensuales'!$AM$2:$AS$2,'Datos mensuales'!$AM50:$AS50),LOOKUP('Tipos de Cambio'!$J$6,'Datos mensuales'!$AM$2:$AS$2,'Datos mensuales'!$AM50:$AS50)) -> n.d. | AU50: n.d. | AV50: n.d. | AW50: n.d. | AX50: n.d. | AY50: n.d. | AZ50: n.d. | BA50: n.d. | BB50: n.d. | BC50: n.d. | BD50: n.d. | BE50: n.d. | BF50: 100 | BG50: 2.897449436 | BH50: 2.899725481 | BI50: 3.732270895 | BJ50: 3680.59 | BK50: 779.26 | BL50: 467.83
B51: noviembre | D51: n.d. | E51: n.d. | F51: n.d. | G51: 2.676056338 | H51: 3.182231459 | I51: n.d. | J51: 8.718169779 | T51: 16.61 | U51: n.d. | W51: n.d. | X51: n.d. | Y51: n.d. | Z51: n.d. | AA51: n.d. | AB51: 297.7 | AC51: n.d. | AD51: n.d. | AE51: n.d. | AM51: n.d. | AN51: 1.32 | AO51: n.d. | AP51: n.d. | AQ51: 0.5882352941 | AR51: 107.8 | AS51: 3.1553 | AT51: =IF(AND('Tipos de Cambio'!$J$6<>1,'Tipos de Cambio'!$J$6<>2,'Tipos de Cambio'!$J$6<>3,'Tipos de Cambio'!$J$6<>4,'Tipos de Cambio'!$J$6<>5,'Tipos de Cambio'!$J$6<>6,'Tipos de Cambio'!$J$6<>7),LOOKUP(1,'Datos mensuales'!$AM$2:$AS$2,'Datos mensuales'!$AM51:$AS51),LOOKUP('Tipos de Cambio'!$J$6,'Datos mensuales'!$AM$2:$AS$2,'Datos mensuales'!$AM51:$AS51)) -> n.d. | AU51: n.d. | AV51: n.d. | AW51: n.d. | AX51: n.d. | AY51: n.d. | AZ51: n.d. | BA51: n.d. | BB51: n.d. | BC51: n.d. | BD51: n.d. | BE51: n.d. | BF51: 100 | BG51: 2.884094806 | BH51: 3.043296683 | BI51: 3.831889836 | BJ51: 3683.95 | BK51: 754.4 | BL51: 461.79
B52: diciembre | D52: n.d. | E52: n.d. | F52: n.d. | G52: 2.748414376 | H52: 3.191903464 | I52: n.d. | J52: 8.009184506 | T52: 14.52 | U52: n.d. | W52: n.d. | X52: n.d. | Y52: n.d. | Z52: n.d. | AA52: n.d. | AB52: 337.57 | AC52: n.d. | AD52: n.d. | AE52: n.d. | AM52: n.d. | AN52: 1.33 | AO52: n.d. | AP52: n.d. | AQ52: 0.5848979353 | AR52: 109.7 | AS52: 3.1077 | AT52: =IF(AND('Tipos de Cambio'!$J$6<>1,'Tipos de Cambio'!$J$6<>2,'Tipos de Cambio'!$J$6<>3,'Tipos de Cambio'!$J$6<>4,'Tipos de Cambio'!$J$6<>5,'Tipos de Cambio'!$J$6<>6,'Tipos de Cambio'!$J$6<>7),LOOKUP(1,'Datos mensuales'!$AM$2:$AS$2,'Datos mensuales'!$AM52:$AS52),LOOKUP('Tipos de Cambio'!$J$6,'Datos mensuales'!$AM$2:$AS$2,'Datos mensuales'!$AM52:$AS52)) -> n.d. | AU52: n.d. | AV52: n.d. | AW52: n.d. | AX52: n.d. | AY52: n.d. | AZ52: n.d. | BA52: n.d. | BB52: n.d. | BC52: n.d. | BD52: n.d. | BE52: n.d. | BF52: 100 | BG52: 3.346643611 | BH52: 3.181064961 | BI52: 3.929414043 | BJ52: 3754.09 | BK52: 776.82 | BL52: 466.45
A53: 1994 | B53: enero | D53: n.d. | E53: n.d. | F53: n.d. | G53: 2.52454418 | H53: 2.941935484 | I53: n.d. | J53: 7.498121603 | T53: 15.03 | U53: n.d. | W53: n.d. | X53: n.d. | Y53: n.d. | Z53: n.d. | AA53: n.d. | AB53: 334.68 | AC53: n.d. | AD53: n.d. | AE53: n.d. | AM53: n.d. | AN53: 1.32 | AO53: n.d. | AP53: n.d. | AQ53: 0.5736905513 | AR53: 111.51 | AS53: 3.1075 | AT53: =IF(AND('Tipos de Cambio'!$J$6<>1,'Tipos de Cambio'!$J$6<>2,'Tipos de Cambio'!$J$6<>3,'Tipos de Cambio'!$J$6<>4,'Tipos de Cambio'!$J$6<>5,'Tipos de Cambio'!$J$6<>6,'Tipos de Cambio'!$J$6<>7),LOOKUP(1,'Datos mensuales'!$AM$2:$AS$2,'Datos mensuales'!$AM53:$AS53),LOOKUP('Tipos de Cambio'!$J$6,'Datos mensuales'!$AM$2:$AS$2,'Datos mensuales'!$AM53:$AS53)) -> n.d. | AU53: n.d. | AV53: n.d. | AW53: n.d. | AX53: n.d. | AY53: n.d. | AZ53: n.d. | BA53: n.d. | BB53: n.d. | BC53: n.d. | BD53: n.d. | BE53: n.d. | BF53: 100 | BG53: 3.275348375 | BH53: 3.185465895 | BI53: 4.024633049 | BJ53: 3978.36 | BK53: 800.47 | BL53: 481.61
B54: febrero | D54: n.d. | E54: n.d. | F54: n.d. | G54: 2.51572327 | H54: 2.926078029 | I54: n.d. | J54: 7.175372422 | T54: 14.78 | U54: n.d. | W54: n.d. | X54: n.d. | Y54: n.d. | Z54: n.d. | AA54: n.d. | AB54: 319.8 | AC54: n.d. | AD54: n.d. | AE54: n.d. | AM54: n.d. | AN54: 1.34 | AO54: n.d. | AP54: n.d. | AQ54: 0.5756389592 | AR54: 106.21 | AS54: 3.1115 | AT54: =IF(AND('Tipos de Cambio'!$J$6<>1,'Tipos de Cambio'!$J$6<>2,'Tipos de Cambio'!$J$6<>3,'Tipos de Cambio'!$J$6<>4,'Tipos de Cambio'!$J$6<>5,'Tipos de Cambio'!$J$6<>6,'Tipos de Cambio'!$J$6<>7),LOOKUP(1,'Datos mensuales'!$AM$2:$AS$2,'Datos mensuales'!$AM54:$AS54),LOOKUP('Tipos de Cambio'!$J$6,'Datos mensuales'!$AM$2:$AS$2,'Datos mensuales'!$AM54:$AS54)) -> n.d. | AU54: n.d. | AV54: n.d. | AW54: n.d. | AX54: n.d. | AY54: n.d. | AZ54: n.d. | BA54: n.d. | BB54: n.d. | BC54: n.d. | BD54: n.d. | BE54: n.d. | BF54: 100 | BG54: 2.927343622 | BH54: 3.294214728 | BI54: 4.117289228 | BJ54: 3832.02 | BK54: 792.5 | BL54: 467.14
B55: marzo | D55: n.d. | E55: n.d. | F55: n.d. | G55: 2.506963788 | H55: 2.814378918 | I55: n.d. | J55: 7.10227911 | T55: 14.68 | U55: n.d. | W55: n.d. | X55: n.d. | Y55: n.d. | Z55: n.d. | AA55: n.d. | AB55: 326.41 | AC55: n.d. | AD55: n.d. | AE55: n.d. | AM55: n.d. | AN55: 1.36 | AO55: n.d. | AP55: n.d. | AQ55: 0.5909117769 | AR55: 105.14 | AS55: 3.2841 | AT55: =IF(AND('Tipos de Cambio'!$J$6<>1,'Tipos de Cambio'!$J$6<>2,'Tipos de Cambio'!$J$6<>3,'Tipos de Cambio'!$J$6<>4,'Tipos de Cambio'!$J$6<>5,'Tipos de Cambio'!$J$6<>6,'Tipos de Cambio'!$J$6<>7),LOOKUP(1,'Datos mensuales'!$AM$2:$AS$2,'Datos mensuales'!$AM55:$AS55),LOOKUP('Tipos de Cambio'!$J$6,'Datos mensuales'!$AM$2:$AS$2,'Datos mensuales'!$AM55:$AS55)) -> n.d. | AU55: n.d. | AV55: n.d. | AW55: n.d. | AX55: n.d. | AY55: n.d. | AZ55: n.d. | BA55: n.d. | BB55: n.d. | BC55: n.d. | BD55: n.d. | BE55: n.d. | BF55: 100 | BG55: 4.029543697 | BH55: 3.756173102 | BI55: 4.207071099 | BJ55: 3635.96 | BK55: 743.46 | BL55: 445.77
B56: abril | D56: n.d. | E56: n.d. | F56: n.d. | G56: 2.361111111 | H56: 2.706152668 | I56: n.d. | J56: 7.009725927 | T56: 16.42 | U56: n.d. | W56: n.d. | X56: n.d. | Y56: n.d. | Z56: n.d. | AA56: n.d. | AB56: 358.64 | AC56: n.d. | AD56: n.d. | AE56: n.d. | AM56: n.d. | AN56: 1.38 | AO56: n.d. | AP56: n.d. | AQ56: 0.5888587917 | AR56: 103.53 | AS56: 3.3536 | AT56: =IF(AND('Tipos de Cambio'!$J$6<>1,'Tipos de Cambio'!$J$6<>2,'Tipos de Cambio'!$J$6<>3,'Tipos de Cambio'!$J$6<>4,'Tipos de Cambio'!$J$6<>5,'Tipos de Cambio'!$J$6<>6,'Tipos de Cambio'!$J$6<>7),LOOKUP(1,'Datos mensuales'!$AM$2:$AS$2,'Datos mensuales'!$AM56:$AS56),LOOKUP('Tipos de Cambio'!$J$6,'Datos mensuales'!$AM$2:$AS$2,'Datos mensuales'!$AM56:$AS56)) -> n.d. | AU56: n.d. | AV56: n.d. | AW56: n.d. | AX56: n.d. | AY56: n.d. | AZ56: n.d. | BA56: n.d. | BB56: n.d. | BC56: n.d. | BD56: n.d. | BE56: n.d. | BF56: 100 | BG56: 4.270255182 | BH56: 4.438051444 | BI56: 4.293615541 | BJ56: 3681.69 | BK56: 733.84 | BL56: 450.91
B57: mayo | D57: n.d. | E57: n.d. | F57: n.d. | G57: 2.288488211 | H57: 2.802190804 | I57: n.d. | J57: 6.915597974 | T57: 17.89 | U57: n.d. | W57: n.d. | X57: n.d. | Y57: n.d. | Z57: n.d. | AA57: n.d. | AB57: 403.27 | AC57: n.d. | AD57: n.d. | AE57: n.d. | AM57: n.d. | AN57: 1.38 | AO57: n.d. | AP57: n.d. | AQ57: 0.6032090723 | AR57: 103.73 | AS57: 3.312 | AT57: =IF(AND('Tipos de Cambio'!$J$6<>1,'Tipos de Cambio'!$J$6<>2,'Tipos de Cambio'!$J$6<>3,'Tipos de Cambio'!$J$6<>4,'Tipos de Cambio'!$J$6<>5,'Tipos de Cambio'!$J$6<>6,'Tipos de Cambio'!$J$6<>7),LOOKUP(1,'Datos mensuales'!$AM$2:$AS$2,'Datos mensuales'!$AM57:$AS57),LOOKUP('Tipos de Cambio'!$J$6,'Datos mensuales'!$AM$2:$AS$2,'Datos mensuales'!$AM57:$AS57)) -> n.d. | AU57: n.d. | AV57: n.d. | AW57: n.d. | AX57: n.d. | AY57: n.d. | AZ57: n.d. | BA57: n.d. | BB57: n.d. | BC57: n.d. | BD57: n.d. | BE57: n.d. | BF57: 100 | BG57: 5.242783666 | BH57: 5.141885326 | BI57: 4.376534117 | BJ57: 3758.37 | BK57: 735.19 | BL57: 456.5
B58: junio | D58: n.d. | E58: n.d. | F58: n.d. | G58: 2.493074792 | H58: 2.694458566 | I58: n.d. | J58: 6.851272564 | T58: 19.06 | U58: n.d. | W58: n.d. | X58: n.d. | Y58: n.d. | Z58: n.d. | AA58: n.d. | AB58: 419.79 | AC58: n.d. | AD58: n.d. | AE58: n.d. | AM58: n.d. | AN58: 1.38 | AO58: n.d. | AP58: n.d. | AQ58: 0.6138358603 | AR58: 102.72 | AS58: 3.3607 | AT58: =IF(AND('Tipos de Cambio'!$J$6<>1,'Tipos de Cambio'!$J$6<>2,'Tipos de Cambio'!$J$6<>3,'Tipos de Cambio'!$J$6<>4,'Tipos de Cambio'!$J$6<>5,'Tipos de Cambio'!$J$6<>6,'Tipos de Cambio'!$J$6<>7),LOOKUP(1,'Datos mensuales'!$AM$2:$AS$2,'Datos mensuales'!$AM58:$AS58),LOOKUP('Tipos de Cambio'!$J$6,'Datos mensuales'!$AM$2:$AS$2,'Datos mensuales'!$AM58:$AS58)) -> n.d. | AU58: n.d. | AV58: n.d. | AW58: n.d. | AX58: n.d. | AY58: n.d. | AZ58: n.d. | BA58: n.d. | BB58: n.d. | BC58: n.d. | BD58: n.d. | BE58: n.d. | BF58: 100 | BG58: 5.764518292 | BH58: 5.611429663 | BI58: 4.455455761 | BJ58: 3624.96 | BK58: 705.93 | BL58: 444.27
B59: julio | D59: n.d. | E59: n.d. | F59: n.d. | G59: 2.770083102 | H59: 2.571899151 | I59: n.d. | J59: 6.811858148 | T59: 19.66 | U59: n.d. | W59: n.d. | X59: n.d. | Y59: n.d. | Z59: n.d. | AA59: n.d. | AB59: 419.79 | AC59: n.d. | AD59: n.d. | AE59: n.d. | AM59: n.d. | AN59: 1.38 | AO59: n.d. | AP59: n.d. | AQ59: 0.636577758 | AR59: 98.5 | AS59: 3.4009 | AT59: =IF(AND('Tipos de Cambio'!$J$6<>1,'Tipos de Cambio'!$J$6<>2,'Tipos de Cambio'!$J$6<>3,'Tipos de Cambio'!$J$6<>4,'Tipos de Cambio'!$J$6<>5,'Tipos de Cambio'!$J$6<>6,'Tipos de Cambio'!$J$6<>7),LOOKUP(1,'Datos mensuales'!$AM$2:$AS$2,'Datos mensuales'!$AM59:$AS59),LOOKUP('Tipos de Cambio'!$J$6,'Datos mensuales'!$AM$2:$AS$2,'Datos mensuales'!$AM59:$AS59)) -> n.d. | AU59: n.d. | AV59: n.d. | AW59: n.d. | AX59: n.d. | AY59: n.d. | AZ59: n.d. | BA59: n.d. | BB59: n.d. | BC59: n.d. | BD59: n.d. | BE59: n.d. | BF59: 100 | BG59: 5.636523861 | BH59: 5.874453696 | BI59: 4.530069243 | BJ59: 3764.5 | BK59: 722.16 | BL59: 458.26
B60: agosto | D60: n.d. | E60: n.d. | F60: n.d. | G60: 2.900552486 | H60: 2.670210073 | I60: n.d. | J60: 6.738403272 | T60: 18.38 | U60: n.d. | W60: n.d. | X60: n.d. | Y60: n.d. | Z60: n.d. | AA60: n.d. | AB60: 472.52 | AC60: n.d. | AD60: n.d. | AE60: n.d. | AM60: n.d. | AN60: 1.38 | AO60: n.d. | AP60: n.d. | AQ60: 0.6391409945 | AR60: 99.81 | AS60: 3.3821 | AT60: =IF(AND('Tipos de Cambio'!$J$6<>1,'Tipos de Cambio'!$J$6<>2,'Tipos de Cambio'!$J$6<>3,'Tipos de Cambio'!$J$6<>4,'Tipos de Cambio'!$J$6<>5,'Tipos de Cambio'!$J$6<>6,'Tipos de Cambio'!$J$6<>7),LOOKUP(1,'Datos mensuales'!$AM$2:$AS$2,'Datos mensuales'!$AM60:$AS60),LOOKUP('Tipos de Cambio'!$J$6,'Datos mensuales'!$AM$2:$AS$2,'Datos mensuales'!$AM60:$AS60)) -> n.d. | AU60: n.d. | AV60: n.d. | AW60: n.d. | AX60: n.d. | AY60: n.d. | AZ60: n.d. | BA60: n.d. | BB60: n.d. | BC60: n.d. | BD60: n.d. | BE60: n.d. | BF60: 100 | BG60: 6.295158389 | BH60: 6.112046933 | BI60: 4.60014877 | BJ60: 3913.42 | BK60: 765.62 | BL60: 475.49
B61: septiembre | D61: n.d. | E61: n.d. | F61: n.d. | G61: 2.963473467 | H61: 2.680151707 | I61: n.d. | J61: 6.707227195 | T61: 17.45 | U61: n.d. | W61: n.d. | X61: n.d. | Y61: n.d. | Z61: n.d. | AA61: n.d. | AB61: 507.39 | AC61: n.d. | AD61: n.d. | AE61: n.d. | AM61: n.d. | AN61: 1.35 | AO61: n.d. | AP61: n.d. | AQ61: 0.6447868979 | AR61: 98.31 | AS61: 3.3998 | AT61: =IF(AND('Tipos de Cambio'!$J$6<>1,'Tipos de Cambio'!$J$6<>2,'Tipos de Cambio'!$J$6<>3,'Tipos de Cambio'!$J$6<>4,'Tipos de Cambio'!$J$6<>5,'Tipos de Cambio'!$J$6<>6,'Tipos de Cambio'!$J$6<>7),LOOKUP(1,'Datos mensuales'!$AM$2:$AS$2,'Datos mensuales'!$AM61:$AS61),LOOKUP('Tipos de Cambio'!$J$6,'Datos mensuales'!$AM$2:$AS$2,'Datos mensuales'!$AM61:$AS61)) -> n.d. | AU61: n.d. | AV61: n.d. | AW61: n.d. | AX61: n.d. | AY61: n.d. | AZ61: n.d. | BA61: n.d. | BB61: n.d. | BC61: n.d. | BD61: n.d. | BE61: n.d. | BF61: 100 | BG61: 6.169649638 | BH61: 6.233067783 | BI61: 4.665566398 | BJ61: 3843.18 | BK61: 764.42 | BL61: 462.69
B62: octubre | D62: n.d. | E62: n.d. | F62: n.d. | G62: 2.608098833 | H62: 2.56086792 | I62: n.d. | J62: 6.830487802 | T62: 17.72 | U62: n.d. | W62: n.d. | X62: n.d. | Y62: n.d. | Z62: n.d. | AA62: n.d. | AB62: 510.69 | AC62: n.d. | AD62: n.d. | AE62: n.d. | AM62: n.d. | AN62: 1.35 | AO62: n.d. | AP62: n.d. | AQ62: 0.6585879874 | AR62: 98.42 | AS62: 3.4158 | AT62: =IF(AND('Tipos de Cambio'!$J$6<>1,'Tipos de Cambio'!$J$6<>2,'Tipos de Cambio'!$J$6<>3,'Tipos de Cambio'!$J$6<>4,'Tipos de Cambio'!$J$6<>5,'Tipos de Cambio'!$J$6<>6,'Tipos de Cambio'!$J$6<>7),LOOKUP(1,'Datos mensuales'!$AM$2:$AS$2,'Datos mensuales'!$AM62:$AS62),LOOKUP('Tipos de Cambio'!$J$6,'Datos mensuales'!$AM$2:$AS$2,'Datos mensuales'!$AM62:$AS62)) -> n.d. | AU62: n.d. | AV62: n.d. | AW62: n.d. | AX62: n.d. | AY62: n.d. | AZ62: n.d. | BA62: n.d. | BB62: n.d. | BC62: n.d. | BD62: n.d. | BE62: n.d. | BF62: 100 | BG62: 6.250685198 | BH62: 6.322354233 | BI62: 4.726302054 | BJ62: 3908.12 | BK62: 777.49 | BL62: 472.35
B63: noviembre | D63: n.d. | E63: n.d. | F63: n.d. | G63: 2.674897119 | H63: 2.454682779 | I63: n.d. | J63: 6.929957395 | T63: 18.07 | U63: n.d. | W63: n.d. | X63: n.d. | Y63: n.d. | Z63: n.d. | AA63: n.d. | AB63: 584.24 | AC63: n.d. | AD63: n.d. | AE63: n.d. | AM63: n.d. | AN63: 1.36 | AO63: n.d. | AP63: n.d. | AQ63: 0.6498992656 | AR63: 97.96 | AS63: 3.4426 | AT63: =IF(AND('Tipos de Cambio'!$J$6<>1,'Tipos de Cambio'!$J$6<>2,'Tipos de Cambio'!$J$6<>3,'Tipos de Cambio'!$J$6<>4,'Tipos de Cambio'!$J$6<>5,'Tipos de Cambio'!$J$6<>6,'Tipos de Cambio'!$J$6<>7),LOOKUP(1,'Datos mensuales'!$AM$2:$AS$2,'Datos mensuales'!$AM63:$AS63),LOOKUP('Tipos de Cambio'!$J$6,'Datos mensuales'!$AM$2:$AS$2,'Datos mensuales'!$AM63:$AS63)) -> n.d. | AU63: n.d. | AV63: n.d. | AW63: n.d. | AX63: n.d. | AY63: n.d. | AZ63: n.d. | BA63: n.d. | BB63: n.d. | BC63: n.d. | BD63: n.d. | BE63: n.d. | BF63: 100 | BG63: 6.474991432 | BH63: 6.557407882 | BI63: 4.782445471 | BJ63: 3739.22 | BK63: 750.32 | BL63: 453.69
B64: diciembre | D64: n.d. | E64: n.d. | F64: n.d. | G64: 2.674897119 | H64: 2.552495913 | I64: n.d. | J64: 7.05154663 | T64: 17.16 | U64: n.d. | W64: n.d. | X64: n.d. | Y64: n.d. | Z64: n.d. | AA64: n.d. | AB64: 590.02 | AC64: n.d. | AD64: n.d. | AE64: n.d. | AM64: n.d. | AN64: 1.39 | AO64: n.d. | AP64: n.d. | AQ64: 1.240815 | AR64: 100.12 | AS64: 3.9308 | AT64: =IF(AND('Tipos de Cambio'!$J$6<>1,'Tipos de Cambio'!$J$6<>2,'Tipos de Cambio'!$J$6<>3,'Tipos de Cambio'!$J$6<>4,'Tipos de Cambio'!$J$6<>5,'Tipos de Cambio'!$J$6<>6,'Tipos de Cambio'!$J$6<>7),LOOKUP(1,'Datos mensuales'!$AM$2:$AS$2,'Datos mensuales'!$AM64:$AS64),LOOKUP('Tipos de Cambio'!$J$6,'Datos mensuales'!$AM$2:$AS$2,'Datos mensuales'!$AM64:$AS64)) -> n.d. | AU64: n.d. | AV64: n.d. | AW64: n.d. | AX64: n.d. | AY64: n.d. | AZ64: n.d. | BA64: n.d. | BB64: n.d. | BC64: n.d. | BD64: n.d. | BE64: n.d. | BF64: 100 | BG64: 7.015749303 | BH64: 6.832939082 | BI64: 4.834197664 | BJ64: 3834.44 | BK64: 751.96 | BL64: 459.27
A65: 1995 | B65: enero | D65: n.d. | E65: n.d. | F65: n.d. | G65: 2.804377565 | H65: 2.444221609 | I65: n.d. | J65: 10.22636284 | T65: 18.04 | U65: n.d. | W65: n.d. | X65: n.d. | Y65: n.d. | Z65: n.d. | AA65: n.d. | AB65: 541.27 | AC65: n.d. | AD65: n.d. | AE65: n.d. | AM65: n.d. | AN65: 1.41 | AO65: n.d. | AP65: n.d. | AQ65: 1.240815 | AR65: 99.75 | AS65: 5.5133 | AT65: =IF(AND('Tipos de Cambio'!$J$6<>1,'Tipos de Cambio'!$J$6<>2,'Tipos de Cambio'!$J$6<>3,'Tipos de Cambio'!$J$6<>4,'Tipos de Cambio'!$J$6<>5,'Tipos de Cambio'!$J$6<>6,'Tipos de Cambio'!$J$6<>7),LOOKUP(1,'Datos mensuales'!$AM$2:$AS$2,'Datos mensuales'!$AM65:$AS65),LOOKUP('Tipos de Cambio'!$J$6,'Datos mensuales'!$AM$2:$AS$2,'Datos mensuales'!$AM65:$AS65)) -> n.d. | AU65: 6.79501 | AV65: n.d. | AW65: n.d. | AX65: n.d. | AY65: n.d. | AZ65: n.d. | BA65: n.d. | BB65: n.d. | BC65: n.d. | BD65: n.d. | BE65: n.d. | BF65: 100 | BG65: 6.798522073 | BH65: 6.872558617 | BI65: 4.88188178 | BJ65: 3843.86 | BK65: 755.2 | BL65: 470.42
B66: febrero | D66: n.d. | E66: n.d. | F66: n.d. | G66: 2.862985685 | H66: 2.431421446 | I66: n.d. | J66: 14.31012361 | T66: 18.57 | U66: n.d. | W66: n.d. | X66: n.d. | Y66: n.d. | Z66: n.d. | AA66: n.d. | AB66: 546.23 | AC66: n.d. | AD66: n.d. | AE66: n.d. | AM66: n.d. | AN66: 1.4 | AO66: n.d. | AP66: n.d. | AQ66: 1.258693999 | AR66: 98.24 | AS66: 5.6851 | AT66: =IF(AND('Tipos de Cambio'!$J$6<>1,'Tipos de Cambio'!$J$6<>2,'Tipos de Cambio'!$J$6<>3,'Tipos de Cambio'!$J$6<>4,'Tipos de Cambio'!$J$6<>5,'Tipos de Cambio'!$J$6<>6,'Tipos de Cambio'!$J$6<>7),LOOKUP(1,'Datos mensuales'!$AM$2:$AS$2,'Datos mensuales'!$AM66:$AS66),LOOKUP('Tipos de Cambio'!$J$6,'Datos mensuales'!$AM$2:$AS$2,'Datos mensuales'!$AM66:$AS66)) -> n.d. | AU66: 6.54441 | AV66: n.d. | AW66: n.d. | AX66: n.d. | AY66: n.d. | AZ66: n.d. | BA66: n.d. | BB66: n.d. | BC66: n.d. | BD66: n.d. | BE66: n.d. | BF66: 100 | BG66: 6.664693901 | BH66: 6.497929487 | BI66: 4.925955238 | BJ66: 4011.05 | BK66: 793.74 | BL66: 487.39
B67: marzo | D67: n.d. | E67: n.d. | F67: n.d. | G67: 2.85326087 | H67: 2.525818091 | I67: n.d. | J67: 20.42959076 | T67: 18.54 | U67: n.d. | W67: n.d. | X67: n.d. | Y67: n.d. | Z67: n.d. | AA67: n.d. | AB67: 567.71 | AC67: n.d. | AD67: n.d. | AE67: n.d. | AM67: n.d. | AN67: 1.41 | AO67: n.d. | AP67: n.d. | AQ67: 1.317063001 | AR67: 90.79 | AS67: 6.7019 | AT67: =IF(AND('Tipos de Cambio'!$J$6<>1,'Tipos de Cambio'!$J$6<>2,'Tipos de Cambio'!$J$6<>3,'Tipos de Cambio'!$J$6<>4,'Tipos de Cambio'!$J$6<>5,'Tipos de Cambio'!$J$6<>6,'Tipos de Cambio'!$J$6<>7),LOOKUP(1,'Datos mensuales'!$AM$2:$AS$2,'Datos mensuales'!$AM67:$AS67),LOOKUP('Tipos de Cambio'!$J$6,'Datos mensuales'!$AM$2:$AS$2,'Datos mensuales'!$AM67:$AS67)) -> n.d. | AU67: 6.46399 | AV67: n.d. | AW67: n.d. | AX67: n.d. | AY67: n.d. | AZ67: n.d. | BA67: n.d. | BB67: n.d. | BC67: n.d. | BD67: n.d. | BE67: n.d. | BF67: 100 | BG67: 5.736962699 | BH67: 5.828197789 | BI67: 4.967007753 | BJ67: 4157.69 | BK67: 817.21 | BL67: 500.71
B68: abril | D68: n.d. | E68: n.d. | F68: n.d. | G68: 3.052917232 | H68: 2.622421079 | I68: n.d. | J68: 29.39213505 | T68: 19.9 | U68: n.d. | W68: n.d. | X68: n.d. | Y68: n.d. | Z68: n.d. | AA68: n.d. | AB68: 511.39 | AC68: n.d. | AD68: n.d. | AE68: n.d. | AM68: n.d. | AN68: 1.38 | AO68: n.d. | AP68: n.d. | AQ68: 1.341432 | AR68: 83.67 | AS68: 6.2996 | AT68: =IF(AND('Tipos de Cambio'!$J$6<>1,'Tipos de Cambio'!$J$6<>2,'Tipos de Cambio'!$J$6<>3,'Tipos de Cambio'!$J$6<>4,'Tipos de Cambio'!$J$6<>5,'Tipos de Cambio'!$J$6<>6,'Tipos de Cambio'!$J$6<>7),LOOKUP(1,'Datos mensuales'!$AM$2:$AS$2,'Datos mensuales'!$AM68:$AS68),LOOKUP('Tipos de Cambio'!$J$6,'Datos mensuales'!$AM$2:$AS$2,'Datos mensuales'!$AM68:$AS68)) -> n.d. | AU68: 6.39583 | AV68: n.d. | AW68: n.d. | AX68: n.d. | AY68: n.d. | AZ68: n.d. | BA68: n.d. | BB68: n.d. | BC68: n.d. | BD68: n.d. | BE68: n.d. | BF68: 100 | BG68: 5.146355207 | BH68: 5.219449206 | BI68: 5.005729276 | BJ68: 4321.27 | BK68: 843.98 | BL68: 514.71
B69: mayo | D69: n.d. | E69: n.d. | F69: n.d. | G69: 3.186440678 | H69: 2.41605749 | I69: n.d. | J69: 34.15202689 | T69: 19.74 | U69: n.d. | W69: n.d. | X69: n.d. | Y69: n.d. | Z69: n.d. | AA69: n.d. | AB69: 491.14 | AC69: n.d. | AD69: n.d. | AE69: n.d. | AM69: n.d. | AN69: 1.36 | AO69: n.d. | AP69: n.d. | AQ69: 1.321642999 | AR69: 85 | AS69: 5.9627 | AT69: =IF(AND('Tipos de Cambio'!$J$6<>1,'Tipos de Cambio'!$J$6<>2,'Tipos de Cambio'!$J$6<>3,'Tipos de Cambio'!$J$6<>4,'Tipos de Cambio'!$J$6<>5,'Tipos de Cambio'!$J$6<>6,'Tipos de Cambio'!$J$6<>7),LOOKUP(1,'Datos mensuales'!$AM$2:$AS$2,'Datos mensuales'!$AM69:$AS69),LOOKUP('Tipos de Cambio'!$J$6,'Datos mensuales'!$AM$2:$AS$2,'Datos mensuales'!$AM69:$AS69)) -> n.d. | AU69: 6.17541 | AV69: n.d. | AW69: n.d. | AX69: n.d. | AY69: n.d. | AZ69: n.d. | BA69: n.d. | BB69: n.d. | BC69: n.d. | BD69: n.d. | BE69: n.d. | BF69: 100 | BG69: 4.867334078 | BH69: 4.816325905 | BI69: 5.04286061 | BJ69: 4465.14 | BK69: 864.58 | BL69: 533.4
B70: junio | D70: n.d. | E70: n.d. | F70: n.d. | G70: 3.040540541 | H70: 2.611386139 | I70: n.d. | J70: 37.72054442 | T70: 18.45 | U70: n.d. | V70: =IF(OR(T70="",U70="n.d."),"",U70-T70) ->  | W70: n.d. | X70: n.d. | Y70: n.d. | Z70: n.d. | AA70: n.d. | AB70: 521.99 | AC70: n.d. | AD70: n.d. | AE70: n.d. | AM70: n.d. | AN70: 1.38 | AO70: n.d. | AP70: n.d. | AQ70: 1.331441001 | AR70: 84.53 | AS70: 6.2232 | AT70: =IF(AND('Tipos de Cambio'!$J$6<>1,'Tipos de Cambio'!$J$6<>2,'Tipos de Cambio'!$J$6<>3,'Tipos de Cambio'!$J$6<>4,'Tipos de Cambio'!$J$6<>5,'Tipos de Cambio'!$J$6<>6,'Tipos de Cambio'!$J$6<>7),LOOKUP(1,'Datos mensuales'!$AM$2:$AS$2,'Datos mensuales'!$AM70:$AS70),LOOKUP('Tipos de Cambio'!$J$6,'Datos mensuales'!$AM$2:$AS$2,'Datos mensuales'!$AM70:$AS70)) -> n.d. | AU70: 5.90234 | AV70: n.d. | AW70: n.d. | AX70: n.d. | AY70: n.d. | AZ70: n.d. | BA70: n.d. | BB70: n.d. | BC70: n.d. | BD70: n.d. | BE70: n.d. | BF70: 100 | BG70: 4.578489965 | BH70: 4.495136478 | BI70: 5.079147129 | BJ70: 4556.09 | BK70: 933.45 | BL70: 544.75
B71: julio | D71: n.d. | E71: n.d. | F71: n.d. | G71: 2.762803235 | H71: 2.408596838 | I71: n.d. | J71: 39.90763733 | T71: 17.33 | U71: n.d. | W71: n.d. | X71: n.d. | Y71: n.d. | Z71: n.d. | AA71: n.d. | AB71: 563.41 | AC71: n.d. | AD71: n.d. | AE71: n.d. | AM71: n.d. | AN71: 1.36 | AO71: n.d. | AP71: n.d. | AQ71: 1.344815 | AR71: 87.22 | AS71: 6.1394 | AT71: =IF(AND('Tipos de Cambio'!$J$6<>1,'Tipos de Cambio'!$J$6<>2,'Tipos de Cambio'!$J$6<>3,'Tipos de Cambio'!$J$6<>4,'Tipos de Cambio'!$J$6<>5,'Tipos de Cambio'!$J$6<>6,'Tipos de Cambio'!$J$6<>7),LOOKUP(1,'Datos mensuales'!$AM$2:$AS$2,'Datos mensuales'!$AM71:$AS71),LOOKUP('Tipos de Cambio'!$J$6,'Datos mensuales'!$AM$2:$AS$2,'Datos mensuales'!$AM71:$AS71)) -> n.d. | AU71: 5.85733 | AV71: n.d. | AW71: n.d. | AX71: n.d. | AY71: n.d. | AZ71: n.d. | BA71: n.d. | BB71: n.d. | BC71: n.d. | BD71: n.d. | BE71: n.d. | BF71: 100 | BG71: 3.977400339 | BH71: 4.386828374 | BI71: 5.115308158 | BJ71: 4708.47 | BK71: 1001.21 | BL71: 562.06
B72: agosto | D72: n.d. | E72: n.d. | F72: n.d. | G72: 2.617449664 | H72: 2.292616788 | I72: n.d. | J72: 41.56845747 | T72: 18.02 | U72: n.d. | W72: n.d. | X72: n.d. | Y72: n.d. | Z72: n.d. | AA72: n.d. | AB72: 540.41 | AC72: n.d. | AD72: n.d. | AE72: n.d. | AM72: n.d. | AN72: 1.35 | AO72: n.d. | AP72: n.d. | AQ72: 1.304411 | AR72: 94.55 | AS72: 6.1909 | AT72: =IF(AND('Tipos de Cambio'!$J$6<>1,'Tipos de Cambio'!$J$6<>2,'Tipos de Cambio'!$J$6<>3,'Tipos de Cambio'!$J$6<>4,'Tipos de Cambio'!$J$6<>5,'Tipos de Cambio'!$J$6<>6,'Tipos de Cambio'!$J$6<>7),LOOKUP(1,'Datos mensuales'!$AM$2:$AS$2,'Datos mensuales'!$AM72:$AS72),LOOKUP('Tipos de Cambio'!$J$6,'Datos mensuales'!$AM$2:$AS$2,'Datos mensuales'!$AM72:$AS72)) -> n.d. | AU72: 5.93217 | AV72: n.d. | AW72: n.d. | AX72: n.d. | AY72: n.d. | AZ72: n.d. | BA72: n.d. | BB72: n.d. | BC72: n.d. | BD72: n.d. | BE72: n.d. | BF72: 100 | BG72: 4.77647656 | BH72: 4.547421492 | BI72: 5.152011512 | BJ72: 4610.56 | BK72: 1020.11 | BL72: 561.88
B73: septiembre | D73: n.d. | E73: n.d. | F73: n.d. | G73: 2.543507363 | H73: 2.388574243 | I73: n.d. | J73: 43.47642701 | T73: 18.23 | U73: n.d. | W73: n.d. | X73: n.d. | Y73: n.d. | Z73: n.d. | AA73: n.d. | AB73: 524.82 | AC73: n.d. | AD73: n.d. | AE73: n.d. | AM73: n.d. | AN73: 1.35 | AO73: n.d. | AP73: n.d. | AQ73: 1.288802 | AR73: 100.49 | AS73: 6.3025 | AT73: =IF(AND('Tipos de Cambio'!$J$6<>1,'Tipos de Cambio'!$J$6<>2,'Tipos de Cambio'!$J$6<>3,'Tipos de Cambio'!$J$6<>4,'Tipos de Cambio'!$J$6<>5,'Tipos de Cambio'!$J$6<>6,'Tipos de Cambio'!$J$6<>7),LOOKUP(1,'Datos mensuales'!$AM$2:$AS$2,'Datos mensuales'!$AM73:$AS73),LOOKUP('Tipos de Cambio'!$J$6,'Datos mensuales'!$AM$2:$AS$2,'Datos mensuales'!$AM73:$AS73)) -> n.d. | AU73: 5.86793 | AV73: n.d. | AW73: n.d. | AX73: n.d. | AY73: n.d. | AZ73: n.d. | BA73: n.d. | BB73: n.d. | BC73: n.d. | BD73: n.d. | BE73: n.d. | BF73: 100 | BG73: 4.795466829 | BH73: 4.499932089 | BI73: 5.189864178 | BJ73: 4789.08 | BK73: 1043.54 | BL73: 584.41
B74: octubre | D74: n.d. | E74: n.d. | F74: n.d. | G74: 2.809364548 | H74: 2.398523985 | I74: n.d. | J74: 45.66387077 | T74: 17.43 | U74: n.d. | W74: n.d. | X74: n.d. | Y74: n.d. | Z74: n.d. | AA74: n.d. | AB74: 553.62 | AC74: n.d. | AD74: n.d. | AE74: n.d. | AM74: n.d. | AN74: 1.35 | AO74: n.d. | AP74: n.d. | AQ74: 1.322172 | AR74: 100.65 | AS74: 6.6911 | AT74: =IF(AND('Tipos de Cambio'!$J$6<>1,'Tipos de Cambio'!$J$6<>2,'Tipos de Cambio'!$J$6<>3,'Tipos de Cambio'!$J$6<>4,'Tipos de Cambio'!$J$6<>5,'Tipos de Cambio'!$J$6<>6,'Tipos de Cambio'!$J$6<>7),LOOKUP(1,'Datos mensuales'!$AM$2:$AS$2,'Datos mensuales'!$AM74:$AS74),LOOKUP('Tipos de Cambio'!$J$6,'Datos mensuales'!$AM$2:$AS$2,'Datos mensuales'!$AM74:$AS74)) -> n.d. | AU74: 5.89631 | AV74: n.d. | AW74: n.d. | AX74: n.d. | AY74: n.d. | AZ74: n.d. | BA74: n.d. | BB74: n.d. | BC74: n.d. | BD74: n.d. | BE74: n.d. | BF74: 100 | BG74: 3.76858533 | BH74: 3.98860908 | BI74: 5.229422235 | BJ74: 4755.48 | BK74: 1036.06 | BL74: 581.5
B75: noviembre | D75: n.d. | E75: n.d. | F75: n.d. | G75: 2.605210421 | H75: 2.383585207 | I75: n.d. | J75: 48.46203301 | T75: 17.99 | U75: n.d. | W75: n.d. | X75: n.d. | Y75: n.d. | Z75: n.d. | AA75: n.d. | AB75: 549.55 | AC75: n.d. | AD75: n.d. | AE75: n.d. | AM75: n.d. | AN75: 1.35 | AO75: n.d. | AP75: n.d. | AQ75: 1.323805 | AR75: 101.92 | AS75: 7.6584 | AT75: =IF(AND('Tipos de Cambio'!$J$6<>1,'Tipos de Cambio'!$J$6<>2,'Tipos de Cambio'!$J$6<>3,'Tipos de Cambio'!$J$6<>4,'Tipos de Cambio'!$J$6<>5,'Tipos de Cambio'!$J$6<>6,'Tipos de Cambio'!$J$6<>7),LOOKUP(1,'Datos mensuales'!$AM$2:$AS$2,'Datos mensuales'!$AM75:$AS75),LOOKUP('Tipos de Cambio'!$J$6,'Datos mensuales'!$AM$2:$AS$2,'Datos mensuales'!$AM75:$AS75)) -> n.d. | AU75: 5.7342 | AV75: n.d. | AW75: n.d. | AX75: n.d. | AY75: n.d. | AZ75: n.d. | BA75: n.d. | BB75: n.d. | BC75: n.d. | BD75: n.d. | BE75: n.d. | BF75: 100 | BG75: 3.388068268 | BH75: 3.263896193 | BI75: 5.271185104 | BJ75: 5074.49 | BK75: 1059.22 | BL75: 605.37
B76: diciembre | D76: n.d. | E76: n.d. | F76: n.d. | G76: 2.538410154 | H76: 2.378616969 | I76: n.d. | J76: 51.96610231 | T76: 19.03 | U76: n.d. | W76: n.d. | X76: n.d. | Y76: n.d. | Z76: n.d. | AA76: n.d. | AB76: 539.94 | AC76: n.d. | AD76: n.d. | AE76: n.d. | AM76: n.d. | AN76: 1.37 | AO76: n.d. | AP76: n.d. | AQ76: 1.304303999 | AR76: 101.81 | AS76: 7.6647 | AT76: =IF(AND('Tipos de Cambio'!$J$6<>1,'Tipos de Cambio'!$J$6<>2,'Tipos de Cambio'!$J$6<>3,'Tipos de Cambio'!$J$6<>4,'Tipos de Cambio'!$J$6<>5,'Tipos de Cambio'!$J$6<>6,'Tipos de Cambio'!$J$6<>7),LOOKUP(1,'Datos mensuales'!$AM$2:$AS$2,'Datos mensuales'!$AM76:$AS76),LOOKUP('Tipos de Cambio'!$J$6,'Datos mensuales'!$AM$2:$AS$2,'Datos mensuales'!$AM76:$AS76)) -> n.d. | AU76: 5.6141 | AV76: n.d. | AW76: n.d. | AX76: n.d. | AY76: n.d. | AZ76: n.d. | BA76: n.d. | BB76: n.d. | BC76: n.d. | BD76: n.d. | BE76: n.d. | BF76: 100 | BG76: 2.727522645 | BH76: 2.620828843 | BI76: 5.315557419 | BJ76: 5117.12 | BK76: 1052.14 | BL76: 615.93
A77: 1996 | B77: enero | D77: n.d. | E77: 6.508281079 | F77: n.d. | G77: 2.727877578 | H77: 2.373669399 | I77: -0.4955401388 | J77: 51.71858945 | T77: 18.86 | U77: n.d. | W77: n.d. | X77: n.d. | Y77: n.d. | Z77: n.d. | AA77: n.d. | AB77: 482.3 | AC77: n.d. | AD77: n.d. | AE77: n.d. | AM77: n.d. | AN77: 1.37 | AO77: n.d. | AP77: n.d. | AQ77: 1.291838 | AR77: 105.84 | AS77: 7.5048 | AT77: =IF(AND('Tipos de Cambio'!$J$6<>1,'Tipos de Cambio'!$J$6<>2,'Tipos de Cambio'!$J$6<>3,'Tipos de Cambio'!$J$6<>4,'Tipos de Cambio'!$J$6<>5,'Tipos de Cambio'!$J$6<>6,'Tipos de Cambio'!$J$6<>7),LOOKUP(1,'Datos mensuales'!$AM$2:$AS$2,'Datos mensuales'!$AM77:$AS77),LOOKUP('Tipos de Cambio'!$J$6,'Datos mensuales'!$AM$2:$AS$2,'Datos mensuales'!$AM77:$AS77)) -> n.d. | AU77: 5.42472 | AV77: n.d. | AW77: n.d. | AX77: n.d. | AY77: n.d. | AZ77: n.d. | BA77: n.d. | BB77: n.d. | BC77: n.d. | BD77: n.d. | BE77: n.d. | BF77: 100 | BG77: 1.840812749 | BH77: 2.493095985 | BI77: 5.362796235 | BJ77: 5395.3 | BK77: 1059.79 | BL77: 636.02
B78: febrero | D78: n.d. | E78: 6.981581985 | F78: n.d. | G78: 2.650762094 | H78: 2.36153378 | I78: -0.3976143141 | J78: 48.94689578 | T78: 19.09 | U78: n.d. | W78: n.d. | X78: n.d. | Y78: n.d. | Z78: n.d. | AA78: n.d. | AB78: 483.42 | AC78: n.d. | AD78: n.d. | AE78: n.d. | AM78: n.d. | AN78: 1.38 | AO78: n.d. | AP78: n.d. | AQ78: 1.288603001 | AR78: 105.73 | AS78: 7.5042 | AT78: =IF(AND('Tipos de Cambio'!$J$6<>1,'Tipos de Cambio'!$J$6<>2,'Tipos de Cambio'!$J$6<>3,'Tipos de Cambio'!$J$6<>4,'Tipos de Cambio'!$J$6<>5,'Tipos de Cambio'!$J$6<>6,'Tipos de Cambio'!$J$6<>7),LOOKUP(1,'Datos mensuales'!$AM$2:$AS$2,'Datos mensuales'!$AM78:$AS78),LOOKUP('Tipos de Cambio'!$J$6,'Datos mensuales'!$AM$2:$AS$2,'Datos mensuales'!$AM78:$AS78)) -> n.d. | AU78: 5.18043 | AV78: n.d. | AW78: n.d. | AX78: n.d. | AY78: n.d. | AZ78: n.d. | BA78: n.d. | BB78: n.d. | BC78: n.d. | BD78: n.d. | BE78: n.d. | BF78: 100 | BG78: 3.529216266 | BH78: 2.924456404 | BI78: 5.412965617 | BJ78: 5485.62 | BK78: 1100.05 | BL78: 640.43
B79: marzo | D79: n.d. | E79: 7.055126824 | F79: n.d. | G79: 2.84015852 | H79: 2.366504854 | I79: -0.09950248756 | J79: 43.75147966 | T79: 21.33 | U79: n.d. | W79: n.d. | X79: n.d. | Y79: n.d. | Z79: n.d. | AA79: n.d. | AB79: 462.98 | AC79: n.d. | AD79: n.d. | AE79: n.d. | AM79: n.d. | AN79: 1.37 | AO79: n.d. | AP79: n.d. | AQ79: 1.281337001 | AR79: 105.82 | AS79: 7.5736 | AT79: =IF(AND('Tipos de Cambio'!$J$6<>1,'Tipos de Cambio'!$J$6<>2,'Tipos de Cambio'!$J$6<>3,'Tipos de Cambio'!$J$6<>4,'Tipos de Cambio'!$J$6<>5,'Tipos de Cambio'!$J$6<>6,'Tipos de Cambio'!$J$6<>7),LOOKUP(1,'Datos mensuales'!$AM$2:$AS$2,'Datos mensuales'!$AM79:$AS79),LOOKUP('Tipos de Cambio'!$J$6,'Datos mensuales'!$AM$2:$AS$2,'Datos mensuales'!$AM79:$AS79)) -> n.d. | AU79: 5.40848 | AV79: n.d. | AW79: n.d. | AX79: n.d. | AY79: n.d. | AZ79: n.d. | BA79: n.d. | BB79: n.d. | BC79: n.d. | BD79: n.d. | BE79: n.d. | BF79: 100 | BG79: 3.235391311 | BH79: 3.492644538 | BI79: 5.465926875 | BJ79: 5587.14 | BK79: 1101.38 | BL79: 645.5
B80: abril | D80: n.d. | E80: 7.070700497 | F80: n.d. | G80: 2.896642528 | H80: 2.361632554 | I80: 0.1984126984 | J80: 36.92713715 | T80: 23.5 | U80: n.d. | W80: n.d. | X80: n.d. | Y80: n.d. | Z80: n.d. | AA80: n.d. | AB80: 494.92 | AC80: n.d. | AD80: n.d. | AE80: n.d. | AM80: n.d. | AN80: 1.36 | AO80: n.d. | AP80: n.d. | AQ80: 1.263904999 | AR80: 107.46 | AS80: 7.4713 | AT80: =IF(AND('Tipos de Cambio'!$J$6<>1,'Tipos de Cambio'!$J$6<>2,'Tipos de Cambio'!$J$6<>3,'Tipos de Cambio'!$J$6<>4,'Tipos de Cambio'!$J$6<>5,'Tipos de Cambio'!$J$6<>6,'Tipos de Cambio'!$J$6<>7),LOOKUP(1,'Datos mensuales'!$AM$2:$AS$2,'Datos mensuales'!$AM80:$AS80),LOOKUP('Tipos de Cambio'!$J$6,'Datos mensuales'!$AM$2:$AS$2,'Datos mensuales'!$AM80:$AS80)) -> n.d. | AU80: 5.55983 | AV80: n.d. | AW80: n.d. | AX80: n.d. | AY80: n.d. | AZ80: n.d. | BA80: n.d. | BB80: n.d. | BC80: n.d. | BD80: n.d. | BE80: n.d. | BF80: 100 | BG80: 4.161901748 | BH80: 4.099976248 | BI80: 5.521369248 | BJ80: 5569.07 | BK80: 1190.58 | BL80: 654.17
B81: mayo | D81: n.d. | E81: 6.519500884 | F81: n.d. | G81: 2.890932983 | H81: 2.455843213 | I81: 0.198019802 | J81: 33.82946575 | T81: 21.17 | U81: n.d. | W81: n.d. | X81: n.d. | Y81: n.d. | Z81: n.d. | AA81: n.d. | AB81: 503.07 | AC81: n.d. | AD81: n.d. | AE81: n.d. | AM81: n.d. | AN81: 1.37 | AO81: n.d. | AP81: n.d. | AQ81: 1.246680001 | AR81: 106.45 | AS81: 7.4345 | AT81: =IF(AND('Tipos de Cambio'!$J$6<>1,'Tipos de Cambio'!$J$6<>2,'Tipos de Cambio'!$J$6<>3,'Tipos de Cambio'!$J$6<>4,'Tipos de Cambio'!$J$6<>5,'Tipos de Cambio'!$J$6<>6,'Tipos de Cambio'!$J$6<>7),LOOKUP(1,'Datos mensuales'!$AM$2:$AS$2,'Datos mensuales'!$AM81:$AS81),LOOKUP('Tipos de Cambio'!$J$6,'Datos mensuales'!$AM$2:$AS$2,'Datos mensuales'!$AM81:$AS81)) -> n.d. | AU81: 5.59989 | AV81: n.d. | AW81: n.d. | AX81: n.d. | AY81: n.d. | AZ81: n.d. | BA81: n.d. | BB81: n.d. | BC81: n.d. | BD81: n.d. | BE81: n.d. | BF81: 100 | BG81: 4.596682355 | BH81: 4.636129304 | BI81: 5.578848708 | BJ81: 5643.17 | BK81: 1243.44 | BL81: 669.12
B82: junio | D82: n.d. | E82: 6.374479836 | F82: n.d. | G82: 2.754098361 | H82: 2.146906284 | I82: 0 | J82: 31.82490474 | T82: 20.42 | U82: n.d. | W82: n.d. | X82: n.d. | Y82: n.d. | Z82: n.d. | AA82: n.d. | AB82: 446.58 | AC82: n.d. | AD82: n.d. | AE82: n.d. | AM82: n.d. | AN82: 1.37 | AO82: n.d. | AP82: n.d. | AQ82: 1.252922 | AR82: 108.86 | AS82: 7.5426 | AT82: =IF(AND('Tipos de Cambio'!$J$6<>1,'Tipos de Cambio'!$J$6<>2,'Tipos de Cambio'!$J$6<>3,'Tipos de Cambio'!$J$6<>4,'Tipos de Cambio'!$J$6<>5,'Tipos de Cambio'!$J$6<>6,'Tipos de Cambio'!$J$6<>7),LOOKUP(1,'Datos mensuales'!$AM$2:$AS$2,'Datos mensuales'!$AM82:$AS82),LOOKUP('Tipos de Cambio'!$J$6,'Datos mensuales'!$AM$2:$AS$2,'Datos mensuales'!$AM82:$AS82)) -> n.d. | AU82: 5.75625 | AV82: n.d. | AW82: n.d. | AX82: n.d. | AY82: n.d. | AZ82: n.d. | BA82: n.d. | BB82: n.d. | BC82: n.d. | BD82: n.d. | BE82: n.d. | BF82: 100 | BG82: 5.055121894 | BH82: 4.982831786 | BI82: 5.637828424 | BJ82: 5654.62 | BK82: 1185.02 | BL82: 670.63
B83: julio | D83: n.d. | E83: 6.26867043 | F83: n.d. | G83: 2.950819672 | H83: 2.146906284 | I83: 0.3984063745 | J83: 31.02771172 | T83: 21.3 | U83: n.d. | W83: n.d. | X83: n.d. | Y83: n.d. | Z83: n.d. | AA83: n.d. | AB83: 418.14 | AC83: n.d. | AD83: n.d. | AE83: n.d. | AM83: n.d. | AN83: 1.37 | AO83: n.d. | AP83: n.d. | AQ83: 1.270637999 | AR83: 109.32 | AS83: 7.6194 | AT83: =IF(AND('Tipos de Cambio'!$J$6<>1,'Tipos de Cambio'!$J$6<>2,'Tipos de Cambio'!$J$6<>3,'Tipos de Cambio'!$J$6<>4,'Tipos de Cambio'!$J$6<>5,'Tipos de Cambio'!$J$6<>6,'Tipos de Cambio'!$J$6<>7),LOOKUP(1,'Datos mensuales'!$AM$2:$AS$2,'Datos mensuales'!$AM83:$AS83),LOOKUP('Tipos de Cambio'!$J$6,'Datos mensuales'!$AM$2:$AS$2,'Datos mensuales'!$AM83:$AS83)) -> n.d. | AU83: 5.84902 | AV83: n.d. | AW83: n.d. | AX83: n.d. | AY83: n.d. | AZ83: n.d. | BA83: n.d. | BB83: n.d. | BC83: n.d. | BD83: n.d. | BE83: n.d. | BF83: 100 | BG83: 5.27838013 | BH83: 5.033085354 | BI83: 5.697713837 | BJ83: 5528.91 | BK83: 1080.6 | BL83: 639.95
B84: agosto | D84: n.d. | E84: 5.418789042 | F84: n.d. | G84: 2.877697842 | H84: 2.048439571 | I84: 0.1990049751 | J84: 30.60292753 | T84: 21.9 | U84: n.d. | W84: n.d. | X84: n.d. | Y84: n.d. | Z84: n.d. | AA84: n.d. | AB84: 449.59 | AC84: n.d. | AD84: n.d. | AE84: n.d. | AM84: n.d. | AN84: 1.37 | AO84: n.d. | AP84: n.d. | AQ84: 1.283248999 | AR84: 107.75 | AS84: 7.5115 | AT84: =IF(AND('Tipos de Cambio'!$J$6<>1,'Tipos de Cambio'!$J$6<>2,'Tipos de Cambio'!$J$6<>3,'Tipos de Cambio'!$J$6<>4,'Tipos de Cambio'!$J$6<>5,'Tipos de Cambio'!$J$6<>6,'Tipos de Cambio'!$J$6<>7),LOOKUP(1,'Datos mensuales'!$AM$2:$AS$2,'Datos mensuales'!$AM84:$AS84),LOOKUP('Tipos de Cambio'!$J$6,'Datos mensuales'!$AM$2:$AS$2,'Datos mensuales'!$AM84:$AS84)) -> n.d. | AU84: 5.70499 | AV84: n.d. | AW84: n.d. | AX84: n.d. | AY84: n.d. | AZ84: n.d. | BA84: n.d. | BB84: n.d. | BC84: n.d. | BD84: n.d. | BE84: n.d. | BF84: 100 | BG84: 4.536860172 | BH84: 4.817529604 | BI84: 5.757874432 | BJ84: 5616.2 | BK84: 1141.5 | BL84: 651.99
B85: septiembre | D85: n.d. | E85: 5.566198684 | F85: n.d. | G85: 3.002610966 | H85: 2.044252044 | I85: 0 | J85: 30.00199563 | T85: 23.97 | U85: n.d. | W85: n.d. | X85: n.d. | Y85: n.d. | Z85: n.d. | AA85: n.d. | AB85: 468.69 | AC85: n.d. | AD85: n.d. | AE85: n.d. | AM85: n.d. | AN85: 1.37 | AO85: n.d. | AP85: n.d. | AQ85: 1.269068001 | AR85: 109.75 | AS85: 7.544 | AT85: =IF(AND('Tipos de Cambio'!$J$6<>1,'Tipos de Cambio'!$J$6<>2,'Tipos de Cambio'!$J$6<>3,'Tipos de Cambio'!$J$6<>4,'Tipos de Cambio'!$J$6<>5,'Tipos de Cambio'!$J$6<>6,'Tipos de Cambio'!$J$6<>7),LOOKUP(1,'Datos mensuales'!$AM$2:$AS$2,'Datos mensuales'!$AM85:$AS85),LOOKUP('Tipos de Cambio'!$J$6,'Datos mensuales'!$AM$2:$AS$2,'Datos mensuales'!$AM85:$AS85)) -> n.d. | AU85: 5.83203 | AV85: n.d. | AW85: n.d. | AX85: n.d. | AY85: n.d. | AZ85: n.d. | BA85: n.d. | BB85: n.d. | BC85: n.d. | BD85: n.d. | BE85: n.d. | BF85: 100 | BG85: 4.817354778 | BH85: 4.760861254 | BI85: 5.817643448 | BJ85: 5882.16 | BK85: 1226.91 | BL85: 687.31
B86: octubre | D86: n.d. | E86: 5.727882576 | F86: n.d. | G86: 2.992843201 | H86: 2.03003003 | I86: 0.496031746 | J86: 28.97098586 | T86: 24.88 | U86: n.d. | W86: n.d. | X86: n.d. | Y86: n.d. | Z86: n.d. | AA86: n.d. | AB86: 448.41 | AC86: n.d. | AD86: n.d. | AE86: n.d. | AM86: n.d. | AN86: 1.35 | AO86: n.d. | AP86: n.d. | AQ86: 1.258411 | AR86: 112.36 | AS86: 7.7263 | AT86: =IF(AND('Tipos de Cambio'!$J$6<>1,'Tipos de Cambio'!$J$6<>2,'Tipos de Cambio'!$J$6<>3,'Tipos de Cambio'!$J$6<>4,'Tipos de Cambio'!$J$6<>5,'Tipos de Cambio'!$J$6<>6,'Tipos de Cambio'!$J$6<>7),LOOKUP(1,'Datos mensuales'!$AM$2:$AS$2,'Datos mensuales'!$AM86:$AS86),LOOKUP('Tipos de Cambio'!$J$6,'Datos mensuales'!$AM$2:$AS$2,'Datos mensuales'!$AM86:$AS86)) -> n.d. | AU86: 5.63706 | AV86: n.d. | AW86: n.d. | AX86: n.d. | AY86: n.d. | AZ86: n.d. | BA86: n.d. | BB86: n.d. | BC86: n.d. | BD86: n.d. | BE86: n.d. | BF86: 100 | BG86: 4.890953083 | BH86: 5.00980244 | BI86: 5.876300234 | BJ86: 6029.38 | BK86: 1221.51 | BL86: 705.27
B87: noviembre | D87: n.d. | E87: 5.911032776 | F87: n.d. | G87: 3.255208333 | H87: 1.932077283 | I87: 0.4975124378 | J87: 27.77434128 | T87: 23.71 | U87: n.d. | W87: n.d. | X87: n.d. | Y87: n.d. | Z87: n.d. | AA87: n.d. | AB87: 466.77 | AC87: n.d. | AD87: n.d. | AE87: n.d. | AM87: n.d. | AN87: 1.34 | AO87: n.d. | AP87: n.d. | AQ87: 1.276900001 | AR87: 112.26 | AS87: 7.906 | AT87: =IF(AND('Tipos de Cambio'!$J$6<>1,'Tipos de Cambio'!$J$6<>2,'Tipos de Cambio'!$J$6<>3,'Tipos de Cambio'!$J$6<>4,'Tipos de Cambio'!$J$6<>5,'Tipos de Cambio'!$J$6<>6,'Tipos de Cambio'!$J$6<>7),LOOKUP(1,'Datos mensuales'!$AM$2:$AS$2,'Datos mensuales'!$AM87:$AS87),LOOKUP('Tipos de Cambio'!$J$6,'Datos mensuales'!$AM$2:$AS$2,'Datos mensuales'!$AM87:$AS87)) -> n.d. | AU87: 5.54874 | AV87: n.d. | AW87: n.d. | AX87: n.d. | AY87: n.d. | AZ87: n.d. | BA87: n.d. | BB87: n.d. | BC87: n.d. | BD87: n.d. | BE87: n.d. | BF87: 100 | BG87: 5.532863387 | BH87: 5.440745791 | BI87: 5.933063079 | BJ87: 6521.7 | BK87: 1292.61 | BL87: 757.02
B88: diciembre | D88: n.d. | E88: 6.705039214 | F88: n.d. | G88: 3.32247557 | H88: 1.928143713 | I88: 0.5970149254 | J88: 27.70480835 | T88: 25.23 | U88: n.d. | W88: n.d. | X88: n.d. | Y88: n.d. | Z88: n.d. | AA88: n.d. | AB88: 480.96 | AC88: n.d. | AD88: n.d. | AE88: n.d. | AM88: n.d. | AN88: 1.36 | AO88: n.d. | AP88: n.d. | AQ88: 1.250251999 | AR88: 113.76 | AS88: 7.8727 | AT88: =IF(AND('Tipos de Cambio'!$J$6<>1,'Tipos de Cambio'!$J$6<>2,'Tipos de Cambio'!$J$6<>3,'Tipos de Cambio'!$J$6<>4,'Tipos de Cambio'!$J$6<>5,'Tipos de Cambio'!$J$6<>6,'Tipos de Cambio'!$J$6<>7),LOOKUP(1,'Datos mensuales'!$AM$2:$AS$2,'Datos mensuales'!$AM88:$AS88),LOOKUP('Tipos de Cambio'!$J$6,'Datos mensuales'!$AM$2:$AS$2,'Datos mensuales'!$AM88:$AS88)) -> n.d. | AU88: 5.59551 | AV88: n.d. | AW88: n.d. | AX88: n.d. | AY88: n.d. | AZ88: n.d. | BA88: n.d. | BB88: n.d. | BC88: n.d. | BD88: n.d. | BE88: n.d. | BF88: 100 | BG88: 5.789985069 | BH88: 5.960929628 | BI88: 5.987104413 | BJ88: 6448.26 | BK88: 1291.03 | BL88: 740.74
A89: 1997 | B89: enero | D89: n.d. | E89: 6.304403522 | F89: n.d. | G89: 3.044041451 | H89: 2.019839847 | I89: 0.5976095618 | J89: 26.44319495 | T89: 25.13 | U89: n.d. | W89: n.d. | X89: n.d. | Y89: n.d. | Z89: n.d. | AA89: n.d. | AB89: 522.67 | AC89: n.d. | AD89: n.d. | AE89: n.d. | AM89: n.d. | AN89: 1.35 | AO89: n.d. | AP89: n.d. | AQ89: 1.216206 | AR89: 118.02 | AS89: 7.827 | AT89: =IF(AND('Tipos de Cambio'!$J$6<>1,'Tipos de Cambio'!$J$6<>2,'Tipos de Cambio'!$J$6<>3,'Tipos de Cambio'!$J$6<>4,'Tipos de Cambio'!$J$6<>5,'Tipos de Cambio'!$J$6<>6,'Tipos de Cambio'!$J$6<>7),LOOKUP(1,'Datos mensuales'!$AM$2:$AS$2,'Datos mensuales'!$AM89:$AS89),LOOKUP('Tipos de Cambio'!$J$6,'Datos mensuales'!$AM$2:$AS$2,'Datos mensuales'!$AM89:$AS89)) -> n.d. | AU89: 5.67951 | AV89: n.d. | AW89: n.d. | AX89: n.d. | AY89: n.d. | AZ89: n.d. | BA89: n.d. | BB89: n.d. | BC89: n.d. | BD89: n.d. | BE89: n.d. | BF89: 100 | BG89: 6.6602934 | BH89: 6.389554671 | BI89: 6.037578396 | BJ89: 6813.08 | BK89: 1379.85 | BL89: 786.16
B90: febrero | D90: n.d. | E90: 6.23836213 | F90: n.d. | G90: 3.034215623 | H90: 1.81947913 | I90: 0.5988023952 | J90: 25.63570784 | T90: 22.18 | U90: n.d. | W90: n.d. | X90: n.d. | Y90: n.d. | Z90: n.d. | AA90: n.d. | AB90: 532.26 | AC90: n.d. | AD90: n.d. | AE90: n.d. | AM90: n.d. | AN90: 1.36 | AO90: n.d. | AP90: n.d. | AQ90: 1.165761 | AR90: 123.01 | AS90: 7.8003 | AT90: =IF(AND('Tipos de Cambio'!$J$6<>1,'Tipos de Cambio'!$J$6<>2,'Tipos de Cambio'!$J$6<>3,'Tipos de Cambio'!$J$6<>4,'Tipos de Cambio'!$J$6<>5,'Tipos de Cambio'!$J$6<>6,'Tipos de Cambio'!$J$6<>7),LOOKUP(1,'Datos mensuales'!$AM$2:$AS$2,'Datos mensuales'!$AM90:$AS90),LOOKUP('Tipos de Cambio'!$J$6,'Datos mensuales'!$AM$2:$AS$2,'Datos mensuales'!$AM90:$AS90)) -> n.d. | AU90: 5.60117 | AV90: n.d. | AW90: n.d. | AX90: n.d. | AY90: n.d. | AZ90: n.d. | BA90: n.d. | BB90: n.d. | BC90: n.d. | BD90: n.d. | BE90: n.d. | BF90: 100 | BG90: 6.29235461 | BH90: 6.656533078 | BI90: 6.083653724 | BJ90: 6877.73 | BK90: 1309 | BL90: 790.82
B91: marzo | D91: n.d. | E91: 5.921830565 | F91: n.d. | G91: 2.761721259 | H91: 1.600474215 | I91: 0.4980079681 | J91: 24.45944993 | T91: 20.97 | U91: n.d. | W91: n.d. | X91: n.d. | Y91: n.d. | Z91: n.d. | AA91: n.d. | AB91: 508.01 | AC91: n.d. | AD91: n.d. | AE91: n.d. | AM91: n.d. | AN91: 1.37 | AO91: n.d. | AP91: n.d. | AQ91: 1.149755999 | AR91: 122.64 | AS91: 7.9647 | AT91: =IF(AND('Tipos de Cambio'!$J$6<>1,'Tipos de Cambio'!$J$6<>2,'Tipos de Cambio'!$J$6<>3,'Tipos de Cambio'!$J$6<>4,'Tipos de Cambio'!$J$6<>5,'Tipos de Cambio'!$J$6<>6,'Tipos de Cambio'!$J$6<>7),LOOKUP(1,'Datos mensuales'!$AM$2:$AS$2,'Datos mensuales'!$AM91:$AS91),LOOKUP('Tipos de Cambio'!$J$6,'Datos mensuales'!$AM$2:$AS$2,'Datos mensuales'!$AM91:$AS91)) -> n.d. | AU91: 5.78413 | AV91: n.d. | AW91: n.d. | AX91: n.d. | AY91: n.d. | AZ91: n.d. | BA91: n.d. | BB91: n.d. | BC91: n.d. | BD91: n.d. | BE91: n.d. | BF91: 100 | BG91: 7.186883209 | BH91: 6.728550469 | BI91: 6.124539644 | BJ91: 6583.47 | BK91: 1221.7 | BL91: 757.12
B92: abril | D92: n.d. | E92: 5.565876616 | F92: n.d. | G92: 2.495201536 | H92: 1.301467108 | I92: 1.98019802 | J92: 22.32663217 | T92: 19.7 | U92: n.d. | W92: n.d. | X92: n.d. | Y92: n.d. | Z92: n.d. | AA92: n.d. | AB92: 509.47 | AC92: n.d. | AD92: n.d. | AE92: n.d. | AM92: n.d. | AN92: 1.39 | AO92: n.d. | AP92: n.d. | AQ92: 1.145015 | AR92: 125.51 | AS92: 7.9037 | AT92: =IF(AND('Tipos de Cambio'!$J$6<>1,'Tipos de Cambio'!$J$6<>2,'Tipos de Cambio'!$J$6<>3,'Tipos de Cambio'!$J$6<>4,'Tipos de Cambio'!$J$6<>5,'Tipos de Cambio'!$J$6<>6,'Tipos de Cambio'!$J$6<>7),LOOKUP(1,'Datos mensuales'!$AM$2:$AS$2,'Datos mensuales'!$AM92:$AS92),LOOKUP('Tipos de Cambio'!$J$6,'Datos mensuales'!$AM$2:$AS$2,'Datos mensuales'!$AM92:$AS92)) -> n.d. | AU92: 6.00746 | AV92: n.d. | AW92: n.d. | AX92: n.d. | AY92: n.d. | AZ92: n.d. | BA92: n.d. | BB92: n.d. | BC92: n.d. | BD92: n.d. | BE92: n.d. | BF92: 100 | BG92: 6.342765083 | BH92: 6.476582936 | BI92: 6.159501135 | BJ92: 7008.99 | BK92: 1260.76 | BL92: 801.34
B93: mayo | D93: n.d. | E93: 5.744158325 | F93: n.d. | G93: 2.234993614 | H93: 1.393316802 | I93: 1.976284585 | J93: 21.23326143 | T93: 20.82 | U93: n.d. | W93: n.d. | X93: n.d. | Y93: n.d. | Z93: n.d. | AA93: n.d. | AB93: 508.57 | AC93: n.d. | AD93: n.d. | AE93: n.d. | AM93: n.d. | AN93: 1.38 | AO93: n.d. | AP93: n.d. | AQ93: 1.149341 | AR93: 118.99 | AS93: 7.9057 | AT93: =IF(AND('Tipos de Cambio'!$J$6<>1,'Tipos de Cambio'!$J$6<>2,'Tipos de Cambio'!$J$6<>3,'Tipos de Cambio'!$J$6<>4,'Tipos de Cambio'!$J$6<>5,'Tipos de Cambio'!$J$6<>6,'Tipos de Cambio'!$J$6<>7),LOOKUP(1,'Datos mensuales'!$AM$2:$AS$2,'Datos mensuales'!$AM93:$AS93),LOOKUP('Tipos de Cambio'!$J$6,'Datos mensuales'!$AM$2:$AS$2,'Datos mensuales'!$AM93:$AS93)) -> n.d. | AU93: 5.9957 | AV93: n.d. | AW93: n.d. | AX93: n.d. | AY93: n.d. | AZ93: n.d. | BA93: n.d. | BB93: n.d. | BC93: n.d. | BD93: n.d. | BE93: n.d. | BF93: 100 | BG93: 6.249966479 | BH93: 6.173681726 | BI93: 6.187860592 | BJ93: 7331.04 | BK93: 1400.32 | BL93: 848.28
B94: junio | D94: n.d. | E94: 5.524081456 | F94: n.d. | G94: 2.297383535 | H94: 1.393316802 | I94: 2.279484638 | J94: 20.3491939 | T94: 19.26 | U94: n.d. | W94: n.d. | X94: n.d. | Y94: n.d. | Z94: n.d. | AA94: n.d. | AB94: 471.65 | AC94: n.d. | AD94: n.d. | AE94: n.d. | AM94: n.d. | AN94: 1.38 | AO94: n.d. | AP94: n.d. | AQ94: 1.136627001 | AR94: 117.2 | AS94: 7.9465 | AT94: =IF(AND('Tipos de Cambio'!$J$6<>1,'Tipos de Cambio'!$J$6<>2,'Tipos de Cambio'!$J$6<>3,'Tipos de Cambio'!$J$6<>4,'Tipos de Cambio'!$J$6<>5,'Tipos de Cambio'!$J$6<>6,'Tipos de Cambio'!$J$6<>7),LOOKUP(1,'Datos mensuales'!$AM$2:$AS$2,'Datos mensuales'!$AM94:$AS94),LOOKUP('Tipos de Cambio'!$J$6,'Datos mensuales'!$AM$2:$AS$2,'Datos mensuales'!$AM94:$AS94)) -> n.d. | AU94: 5.91071 | AV94: n.d. | AW94: n.d. | AX94: n.d. | AY94: n.d. | AZ94: n.d. | BA94: n.d. | BB94: n.d. | BC94: n.d. | BD94: n.d. | BE94: n.d. | BF94: 100 | BG94: 5.88839129 | BH94: 6.263214902 | BI94: 6.20897808 | BJ94: 7672.79 | BK94: 1442.07 | BL94: 885.14
B95: julio | D95: n.d. | E95: 6.366593106 | F95: n.d. | G95: 2.229299363 | H95: 1.499586728 | I95: 1.984126984 | J95: 19.69613574 | T95: 19.66 | U95: n.d. | W95: n.d. | X95: n.d. | Y95: n.d. | Z95: n.d. | AA95: n.d. | AB95: 445.03 | AC95: n.d. | AD95: n.d. | AE95: n.d. | AM95: n.d. | AN95: 1.38 | AO95: n.d. | AP95: n.d. | AQ95: 1.104913 | AR95: 115.16 | AS95: 7.8857 | AT95: =IF(AND('Tipos de Cambio'!$J$6<>1,'Tipos de Cambio'!$J$6<>2,'Tipos de Cambio'!$J$6<>3,'Tipos de Cambio'!$J$6<>4,'Tipos de Cambio'!$J$6<>5,'Tipos de Cambio'!$J$6<>6,'Tipos de Cambio'!$J$6<>7),LOOKUP(1,'Datos mensuales'!$AM$2:$AS$2,'Datos mensuales'!$AM95:$AS95),LOOKUP('Tipos de Cambio'!$J$6,'Datos mensuales'!$AM$2:$AS$2,'Datos mensuales'!$AM95:$AS95)) -> n.d. | AU95: 5.84324 | AV95: n.d. | AW95: n.d. | AX95: n.d. | AY95: n.d. | AZ95: n.d. | BA95: n.d. | BB95: n.d. | BC95: n.d. | BD95: n.d. | BE95: n.d. | BF95: 100 | BG95: 7.003935634 | BH95: 6.749560754 | BI95: 6.222228496 | BJ95: 8222.61 | BK95: 1593.81 | BL95: 954.29
B96: agosto | D96: n.d. | E96: 6.262067138 | F96: n.d. | G96: 2.22504768 | H96: 1.70031881 | I96: 2.184707051 | J96: 19.17640984 | T96: 19.95 | U96: n.d. | W96: n.d. | X96: n.d. | Y96: n.d. | Z96: n.d. | AA96: n.d. | AB96: 444.55 | AC96: n.d. | AD96: n.d. | AE96: n.d. | AM96: n.d. | AN96: 1.39 | AO96: n.d. | AP96: n.d. | AQ96: 1.072733 | AR96: 117.9 | AS96: 7.7843 | AT96: =IF(AND('Tipos de Cambio'!$J$6<>1,'Tipos de Cambio'!$J$6<>2,'Tipos de Cambio'!$J$6<>3,'Tipos de Cambio'!$J$6<>4,'Tipos de Cambio'!$J$6<>5,'Tipos de Cambio'!$J$6<>6,'Tipos de Cambio'!$J$6<>7),LOOKUP(1,'Datos mensuales'!$AM$2:$AS$2,'Datos mensuales'!$AM96:$AS96),LOOKUP('Tipos de Cambio'!$J$6,'Datos mensuales'!$AM$2:$AS$2,'Datos mensuales'!$AM96:$AS96)) -> n.d. | AU96: 5.83506 | AV96: n.d. | AW96: n.d. | AX96: n.d. | AY96: n.d. | AZ96: n.d. | BA96: n.d. | BB96: n.d. | BC96: n.d. | BD96: n.d. | BE96: n.d. | BF96: 100 | BG96: 7.381523945 | BH96: 7.328321133 | BI96: 6.227006091 | BJ96: 7622.42 | BK96: 1587.32 | BL96: 899.47
B97: septiembre | D97: n.d. | E97: 5.550533896 | F97: n.d. | G97: 2.154626109 | H97: 1.590855527 | I97: 2.472799209 | J97: 18.76187705 | T97: 19.8 | U97: n.d. | W97: n.d. | X97: n.d. | Y97: n.d. | Z97: n.d. | AA97: n.d. | AB97: 460.63 | AC97: n.d. | AD97: n.d. | AE97: n.d. | AM97: n.d. | AN97: 1.39 | AO97: n.d. | AP97: n.d. | AQ97: 1.099915001 | AR97: 120.75 | AS97: 7.7792 | AT97: =IF(AND('Tipos de Cambio'!$J$6<>1,'Tipos de Cambio'!$J$6<>2,'Tipos de Cambio'!$J$6<>3,'Tipos de Cambio'!$J$6<>4,'Tipos de Cambio'!$J$6<>5,'Tipos de Cambio'!$J$6<>6,'Tipos de Cambio'!$J$6<>7),LOOKUP(1,'Datos mensuales'!$AM$2:$AS$2,'Datos mensuales'!$AM97:$AS97),LOOKUP('Tipos de Cambio'!$J$6,'Datos mensuales'!$AM$2:$AS$2,'Datos mensuales'!$AM97:$AS97)) -> n.d. | AU97: 5.83594 | AV97: n.d. | AW97: n.d. | AX97: n.d. | AY97: n.d. | AZ97: n.d. | BA97: n.d. | BB97: n.d. | BC97: n.d. | BD97: n.d. | BE97: n.d. | BF97: 100 | BG97: 7.64325428 | BH97: 7.912338618 | BI97: 6.222756366 | BJ97: 7945.25 | BK97: 1685.69 | BL97: 947.28
B98: octubre | D98: n.d. | E98: 5.601459278 | F98: n.d. | G98: 2.0846494 | H98: 1.495173063 | I98: 2.566633761 | J98: 18.23519264 | T98: 21.33 | U98: n.d. | W98: n.d. | X98: n.d. | Y98: n.d. | Z98: n.d. | AA98: n.d. | AB98: 490.54 | AC98: n.d. | AD98: n.d. | AE98: n.d. | AM98: n.d. | AN98: 1.39 | AO98: n.d. | AP98: n.d. | AQ98: 1.120318 | AR98: 121.06 | AS98: 7.8114 | AT98: =IF(AND('Tipos de Cambio'!$J$6<>1,'Tipos de Cambio'!$J$6<>2,'Tipos de Cambio'!$J$6<>3,'Tipos de Cambio'!$J$6<>4,'Tipos de Cambio'!$J$6<>5,'Tipos de Cambio'!$J$6<>6,'Tipos de Cambio'!$J$6<>7),LOOKUP(1,'Datos mensuales'!$AM$2:$AS$2,'Datos mensuales'!$AM98:$AS98),LOOKUP('Tipos de Cambio'!$J$6,'Datos mensuales'!$AM$2:$AS$2,'Datos mensuales'!$AM98:$AS98)) -> n.d. | AU98: 5.83679 | AV98: n.d. | AW98: n.d. | AX98: n.d. | AY98: n.d. | AZ98: n.d. | BA98: n.d. | BB98: n.d. | BC98: n.d. | BD98: n.d. | BE98: n.d. | BF98: 100 | BG98: 8.688925843 | BH98: 8.436338951 | BI98: 6.209013549 | BJ98: 7442.08 | BK98: 1593.61 | BL98: 914.62
B99: noviembre | D99: n.d. | E99: 5.398210093 | F99: n.d. | G99: 1.828499369 | H99: 1.589357193 | I99: 2.178217822 | J99: 17.77350892 | T99: 20.19 | U99: n.d. | W99: n.d. | X99: n.d. | Y99: n.d. | Z99: n.d. | AA99: n.d. | AB99: 493.09 | AC99: n.d. | AD99: n.d. | AE99: n.d. | AM99: n.d. | AN99: 1.41 | AO99: n.d. | AP99: n.d. | AQ99: 1.139368 | AR99: 125.27 | AS99: 8.2838 | AT99: =IF(AND('Tipos de Cambio'!$J$6<>1,'Tipos de Cambio'!$J$6<>2,'Tipos de Cambio'!$J$6<>3,'Tipos de Cambio'!$J$6<>4,'Tipos de Cambio'!$J$6<>5,'Tipos de Cambio'!$J$6<>6,'Tipos de Cambio'!$J$6<>7),LOOKUP(1,'Datos mensuales'!$AM$2:$AS$2,'Datos mensuales'!$AM99:$AS99),LOOKUP('Tipos de Cambio'!$J$6,'Datos mensuales'!$AM$2:$AS$2,'Datos mensuales'!$AM99:$AS99)) -> n.d. | AU99: 5.88164 | AV99: n.d. | AW99: n.d. | AX99: n.d. | AY99: n.d. | AZ99: n.d. | BA99: n.d. | BB99: n.d. | BC99: n.d. | BD99: n.d. | BE99: n.d. | BF99: 100 | BG99: 8.713655031 | BH99: 8.665956656 | BI99: 6.185439978 | BJ99: 7823.12 | BK99: 1600.55 | BL99: 955.4
B100: diciembre | D100: n.d. | E100: 5.191769837 | F100: n.d. | G100: 1.702395965 | H100: 1.492186582 | I100: 1.879327399 | J100: 15.7185061 | T100: 18.33 | U100: n.d. | W100: n.d. | X100: n.d. | Y100: n.d. | Z100: n.d. | AA100: n.d. | AB100: 498.67 | AC100: n.d. | AD100: n.d. | AE100: n.d. | AM100: n.d. | AN100: 1.43 | AO100: n.d. | AP100: n.d. | AQ100: 1.111581 | AR100: 129.38 | AS100: 8.0833 | AT100: =IF(AND('Tipos de Cambio'!$J$6<>1,'Tipos de Cambio'!$J$6<>2,'Tipos de Cambio'!$J$6<>3,'Tipos de Cambio'!$J$6<>4,'Tipos de Cambio'!$J$6<>5,'Tipos de Cambio'!$J$6<>6,'Tipos de Cambio'!$J$6<>7),LOOKUP(1,'Datos mensuales'!$AM$2:$AS$2,'Datos mensuales'!$AM100:$AS100),LOOKUP('Tipos de Cambio'!$J$6,'Datos mensuales'!$AM$2:$AS$2,'Datos mensuales'!$AM100:$AS100)) -> n.d. | AU100: 5.91853 | AV100: n.d. | AW100: n.d. | AX100: n.d. | AY100: n.d. | AZ100: n.d. | BA100: n.d. | BB100: n.d. | BC100: n.d. | BD100: n.d. | BE100: n.d. | BF100: 100 | BG100: 8.381396411 | BH100: 8.625913466 | BI100: 6.151859388 | BJ100: 7908.24 | BK100: 1570.35 | BL100: 970.43
A101: 1998 | B101: enero | D101: n.d. | E101: 5.383454816 | F101: n.d. | G101: 1.571338781 | H101: 1.08950328 | I101: 1.881188119 | J101: 15.27189223 | T101: 16.72 | U101: n.d. | W101: n.d. | X101: n.d. | Y101: n.d. | Z101: n.d. | AA101: n.d. | AB101: 548.63 | AC101: n.d. | AD101: n.d. | AE101: n.d. | AM101: n.d. | AN101: 1.44 | AO101: n.d. | AP101: n.d. | AQ101: 1.087724 | AR101: 129.45 | AS101: 8.1798 | AT101: =IF(AND('Tipos de Cambio'!$J$6<>1,'Tipos de Cambio'!$J$6<>2,'Tipos de Cambio'!$J$6<>3,'Tipos de Cambio'!$J$6<>4,'Tipos de Cambio'!$J$6<>5,'Tipos de Cambio'!$J$6<>6,'Tipos de Cambio'!$J$6<>7),LOOKUP(1,'Datos mensuales'!$AM$2:$AS$2,'Datos mensuales'!$AM101:$AS101),LOOKUP('Tipos de Cambio'!$J$6,'Datos mensuales'!$AM$2:$AS$2,'Datos mensuales'!$AM101:$AS101)) -> n.d. | AU101: 5.65997 | AV101: n.d. | AW101: n.d. | AX101: n.d. | AY101: n.d. | AZ101: n.d. | BA101: n.d. | BB101: n.d. | BC101: 128.3 | BD101: 159.3 | BE101: 107.7 | BF101: 100 | BG101: 8.762311092 | BH101: 8.309069172 | BI101: 6.10827053 | BJ101: 7906.5 | BK101: 1619.36 | BL101: 980.28
B102: febrero | D102: n.d. | E102: 4.696547911 | F102: n.d. | G102: 1.441102757 | H102: 1.086194814 | I102: 1.984126984 | J102: 15.35156343 | T102: 16.06 | U102: n.d. | W102: n.d. | X102: n.d. | Y102: n.d. | Z102: n.d. | AA102: n.d. | AB102: 595.77 | AC102: n.d. | AD102: n.d. | AE102: n.d. | AM102: n.d. | AN102: 1.43 | AO102: n.d. | AP102: n.d. | AQ102: 1.088446 | AR102: 126 | AS102: 8.4932 | AT102: =IF(AND('Tipos de Cambio'!$J$6<>1,'Tipos de Cambio'!$J$6<>2,'Tipos de Cambio'!$J$6<>3,'Tipos de Cambio'!$J$6<>4,'Tipos de Cambio'!$J$6<>5,'Tipos de Cambio'!$J$6<>6,'Tipos de Cambio'!$J$6<>7),LOOKUP(1,'Datos mensuales'!$AM$2:$AS$2,'Datos mensuales'!$AM102:$AS102),LOOKUP('Tipos de Cambio'!$J$6,'Datos mensuales'!$AM$2:$AS$2,'Datos mensuales'!$AM102:$AS102)) -> n.d. | AU102: 5.64121 | AV102: n.d. | AW102: n.d. | AX102: n.d. | AY102: n.d. | AZ102: n.d. | BA102: n.d. | BB102: n.d. | BC102: 137.4 | BD102: 171.8 | BE102: 114.5 | BF102: 100 | BG102: 7.550475352 | BH102: 7.709222417 | BI102: 6.054842024 | BJ102: 8545.71 | BK102: 1770.51 | BL102: 1049.34
B103: marzo | D103: n.d. | E103: 4.779102079 | F103: n.d. | G103: 1.375 | H103: 1.085180863 | I103: 2.279484638 | J103: 15.26824704 | T103: 15.12 | U103: n.d. | W103: n.d. | X103: n.d. | Y103: n.d. | Z103: n.d. | AA103: n.d. | AB103: 599.87 | AC103: n.d. | AD103: n.d. | AE103: n.d. | AM103: n.d. | AN103: 1.42 | AO103: n.d. | AP103: n.d. | AQ103: 1.08433 | AR103: 128.69 | AS103: 8.5689 | AT103: =IF(AND('Tipos de Cambio'!$J$6<>1,'Tipos de Cambio'!$J$6<>2,'Tipos de Cambio'!$J$6<>3,'Tipos de Cambio'!$J$6<>4,'Tipos de Cambio'!$J$6<>5,'Tipos de Cambio'!$J$6<>6,'Tipos de Cambio'!$J$6<>7),LOOKUP(1,'Datos mensuales'!$AM$2:$AS$2,'Datos mensuales'!$AM103:$AS103),LOOKUP('Tipos de Cambio'!$J$6,'Datos mensuales'!$AM$2:$AS$2,'Datos mensuales'!$AM103:$AS103)) -> n.d. | AU103: 5.71378 | AV103: n.d. | AW103: n.d. | AX103: n.d. | AY103: n.d. | AZ103: n.d. | BA103: n.d. | BB103: n.d. | BC103: 133.8 | BD103: 172.7 | BE103: 107.9 | BF103: 100 | BG103: 6.886345874 | BH103: 7.25230228 | BI103: 5.991890096 | BJ103: 8799.8 | BK103: 1835.68 | BL103: 1101.75
B104: abril | D104: n.d. | E104: 4.736407776 | F104: n.d. | G104: 1.435705368 | H104: 1.378182668 | I104: 0.3883495146 | J104: 15.10318774 | T104: 15.35 | U104: n.d. | W104: n.d. | X104: n.d. | Y104: n.d. | Z104: n.d. | AA104: n.d. | AB104: 628.88 | AC104: n.d. | AD104: n.d. | AE104: n.d. | AM104: n.d. | AN104: 1.43 | AO104: n.d. | AP104: n.d. | AQ104: 1.091061 | AR104: 131.67 | AS104: 8.4996 | AT104: =IF(AND('Tipos de Cambio'!$J$6<>1,'Tipos de Cambio'!$J$6<>2,'Tipos de Cambio'!$J$6<>3,'Tipos de Cambio'!$J$6<>4,'Tipos de Cambio'!$J$6<>5,'Tipos de Cambio'!$J$6<>6,'Tipos de Cambio'!$J$6<>7),LOOKUP(1,'Datos mensuales'!$AM$2:$AS$2,'Datos mensuales'!$AM104:$AS104),LOOKUP('Tipos de Cambio'!$J$6,'Datos mensuales'!$AM$2:$AS$2,'Datos mensuales'!$AM104:$AS104)) -> n.d. | AU104: 5.66895 | AV104: n.d. | AW104: n.d. | AX104: n.d. | AY104: n.d. | AZ104: n.d. | BA104: n.d. | BB104: n.d. | BC104: 137.2 | BD104: 169.3 | BE104: 115.8 | BF104: 100 | BG104: 7.179592676 | BH104: 7.118096991 | BI104: 5.919837846 | BJ104: 9063.36 | BK104: 1868.41 | BL104: 1111.75
B105: mayo | D105: n.d. | E105: 4.540717298 | F105: n.d. | G105: 1.686445971 | H105: 1.281006172 | I105: 0.484496124 | J105: 14.97076458 | T105: 14.91 | U105: n.d. | W105: n.d. | X105: n.d. | Y105: n.d. | Z105: n.d. | AA105: n.d. | AB105: 643.72 | AC105: n.d. | AD105: n.d. | AE105: n.d. | AM105: n.d. | AN105: 1.45 | AO105: n.d. | AP105: n.d. | AQ105: 1.109045 | AR105: 135 | AS105: 8.5612 | AT105: =IF(AND('Tipos de Cambio'!$J$6<>1,'Tipos de Cambio'!$J$6<>2,'Tipos de Cambio'!$J$6<>3,'Tipos de Cambio'!$J$6<>4,'Tipos de Cambio'!$J$6<>5,'Tipos de Cambio'!$J$6<>6,'Tipos de Cambio'!$J$6<>7),LOOKUP(1,'Datos mensuales'!$AM$2:$AS$2,'Datos mensuales'!$AM105:$AS105),LOOKUP('Tipos de Cambio'!$J$6,'Datos mensuales'!$AM$2:$AS$2,'Datos mensuales'!$AM105:$AS105)) -> n.d. | AU105: 5.76542 | AV105: n.d. | AW105: n.d. | AX105: n.d. | AY105: n.d. | AZ105: n.d. | BA105: n.d. | BB105: n.d. | BC105: 136.3 | BD105: 170.9 | BE105: 113.3 | BF105: 100 | BG105: 7.168880336 | BH105: 6.825045924 | BI105: 5.839185539 | BJ105: 8899.95 | BK105: 1778.87 | BL105: 1090.82
B106: junio | D106: n.d. | E106: 3.992987738 | F106: n.d. | G106: 1.684341859 | H106: 1.385815768 | I106: 0.09689922481 | J106: 15.30661449 | T106: 13.72 | U106: n.d. | W106: n.d. | X106: n.d. | Y106: n.d. | Z106: n.d. | AA106: n.d. | AB106: 583.24 | AC106: n.d. | AD106: n.d. | AE106: n.d. | AM106: n.d. | AN106: 1.47 | AO106: n.d. | AP106: n.d. | AQ106: 1.101406 | AR106: 140.57 | AS106: 8.8994 | AT106: =IF(AND('Tipos de Cambio'!$J$6<>1,'Tipos de Cambio'!$J$6<>2,'Tipos de Cambio'!$J$6<>3,'Tipos de Cambio'!$J$6<>4,'Tipos de Cambio'!$J$6<>5,'Tipos de Cambio'!$J$6<>6,'Tipos de Cambio'!$J$6<>7),LOOKUP(1,'Datos mensuales'!$AM$2:$AS$2,'Datos mensuales'!$AM106:$AS106),LOOKUP('Tipos de Cambio'!$J$6,'Datos mensuales'!$AM$2:$AS$2,'Datos mensuales'!$AM106:$AS106)) -> n.d. | AU106: 5.74609 | AV106: n.d. | AW106: n.d. | AX106: n.d. | AY106: n.d. | AZ106: n.d. | BA106: n.d. | BB106: n.d. | BC106: 138.2 | BD106: 171.3 | BE106: 116.2 | BF106: 100 | BG106: 5.94695733 | BH106: 5.985621357 | BI106: 5.75050314 | BJ106: 8952.01 | BK106: 1894.74 | BL106: 1133.84
B107: julio | D107: n.d. | E107: 3.169277012 | F107: n.d. | G107: 1.682242991 | H107: 1.27966496 | I107: -0.09727626459 | J107: 15.41298272 | T107: 14.17 | U107: n.d. | W107: n.d. | X107: n.d. | Y107: n.d. | Z107: n.d. | AA107: n.d. | AB107: 583.59 | AC107: n.d. | AD107: n.d. | AE107: n.d. | AM107: n.d. | AN107: 1.49 | AO107: n.d. | AP107: n.d. | AQ107: 1.0975 | AR107: 140.73 | AS107: 8.904 | AT107: =IF(AND('Tipos de Cambio'!$J$6<>1,'Tipos de Cambio'!$J$6<>2,'Tipos de Cambio'!$J$6<>3,'Tipos de Cambio'!$J$6<>4,'Tipos de Cambio'!$J$6<>5,'Tipos de Cambio'!$J$6<>6,'Tipos de Cambio'!$J$6<>7),LOOKUP(1,'Datos mensuales'!$AM$2:$AS$2,'Datos mensuales'!$AM107:$AS107),LOOKUP('Tipos de Cambio'!$J$6,'Datos mensuales'!$AM$2:$AS$2,'Datos mensuales'!$AM107:$AS107)) -> n.d. | AU107: 5.75136 | AV107: n.d. | AW107: n.d. | AX107: n.d. | AY107: n.d. | AZ107: n.d. | BA107: n.d. | BB107: n.d. | BC107: 137.2 | BD107: 172.9 | BE107: 113.4 | BF107: 100 | BG107: 4.651695578 | BH107: 4.844822158 | BI107: 5.654413314 | BJ107: 8883.29 | BK107: 1872.39 | BL107: 1120.67
B108: agosto | D108: n.d. | E108: 2.814214617 | F108: n.d. | G108: 1.616915423 | H108: 1.079763149 | I108: -0.2915451895 | J108: 15.4955573 | T108: 13.47 | U108: n.d. | W108: n.d. | X108: n.d. | Y108: n.d. | Z108: n.d. | AA108: n.d. | AB108: 589.9 | AC108: n.d. | AD108: n.d. | AE108: n.d. | AM108: n.d. | AN108: 1.54 | AO108: n.d. | AP108: n.d. | AQ108: 1.101566 | AR108: 144.65 | AS108: 9.2596 | AT108: =IF(AND('Tipos de Cambio'!$J$6<>1,'Tipos de Cambio'!$J$6<>2,'Tipos de Cambio'!$J$6<>3,'Tipos de Cambio'!$J$6<>4,'Tipos de Cambio'!$J$6<>5,'Tipos de Cambio'!$J$6<>6,'Tipos de Cambio'!$J$6<>7),LOOKUP(1,'Datos mensuales'!$AM$2:$AS$2,'Datos mensuales'!$AM108:$AS108),LOOKUP('Tipos de Cambio'!$J$6,'Datos mensuales'!$AM$2:$AS$2,'Datos mensuales'!$AM108:$AS108)) -> n.d. | AU108: 5.71406 | AV108: n.d. | AW108: n.d. | AX108: n.d. | AY108: n.d. | AZ108: n.d. | BA108: n.d. | BB108: n.d. | BC108: 133.1 | BD108: 172.6 | BE108: 106.8 | BF108: 100 | BG108: 5.796531379 | BH108: 5.66117836 | BI108: 5.551538927 | BJ108: 7539.06 | BK108: 1499.25 | BL108: 957.28
B109: septiembre | D109: n.d. | E109: 2.54180665 | F109: n.d. | G109: 1.488833747 | H109: 0.9859645053 | I109: -0.1930501931 | J109: 15.92492389 | T109: 15.03 | U109: n.d. | W109: n.d. | X109: n.d. | Y109: n.d. | Z109: n.d. | AA109: n.d. | AB109: 626.84 | AC109: n.d. | AD109: n.d. | AE109: n.d. | AM109: n.d. | AN109: 1.52 | AO109: n.d. | AP109: n.d. | AQ109: 1.154125 | AR109: 134.59 | AS109: 10.2154 | AT109: =IF(AND('Tipos de Cambio'!$J$6<>1,'Tipos de Cambio'!$J$6<>2,'Tipos de Cambio'!$J$6<>3,'Tipos de Cambio'!$J$6<>4,'Tipos de Cambio'!$J$6<>5,'Tipos de Cambio'!$J$6<>6,'Tipos de Cambio'!$J$6<>7),LOOKUP(1,'Datos mensuales'!$AM$2:$AS$2,'Datos mensuales'!$AM109:$AS109),LOOKUP('Tipos de Cambio'!$J$6,'Datos mensuales'!$AM$2:$AS$2,'Datos mensuales'!$AM109:$AS109)) -> n.d. | AU109: 5.41146 | AV109: n.d. | AW109: n.d. | AX109: n.d. | AY109: n.d. | AZ109: n.d. | BA109: n.d. | BB109: n.d. | BC109: 126.4 | BD109: 170.7 | BE109: 96.8 | BF109: 100 | BG109: 4.598027077 | BH109: 4.807060781 | BI109: 5.442431596 | BJ109: 7842.62 | BK109: 1693.84 | BL109: 1017.01
B110: octubre | D110: n.d. | E110: 0.08683392312 | F110: n.d. | G110: 1.485148515 | H110: 0.8815682635 | I110: 0.1924927815 | J110: 16.65384342 | T110: 14.46 | U110: n.d. | W110: n.d. | X110: n.d. | Y110: n.d. | Z110: n.d. | AA110: n.d. | AB110: 613.46 | AC110: n.d. | AD110: n.d. | AE110: n.d. | AM110: n.d. | AN110: 1.55 | AO110: n.d. | AP110: n.d. | AQ110: 1.193755001 | AR110: 121.3 | AS110: 10.1523 | AT110: =IF(AND('Tipos de Cambio'!$J$6<>1,'Tipos de Cambio'!$J$6<>2,'Tipos de Cambio'!$J$6<>3,'Tipos de Cambio'!$J$6<>4,'Tipos de Cambio'!$J$6<>5,'Tipos de Cambio'!$J$6<>6,'Tipos de Cambio'!$J$6<>7),LOOKUP(1,'Datos mensuales'!$AM$2:$AS$2,'Datos mensuales'!$AM110:$AS110),LOOKUP('Tipos de Cambio'!$J$6,'Datos mensuales'!$AM$2:$AS$2,'Datos mensuales'!$AM110:$AS110)) -> n.d. | AU110: 5.05946 | AV110: n.d. | AW110: n.d. | AX110: n.d. | AY110: n.d. | AZ110: n.d. | BA110: n.d. | BB110: n.d. | BC110: 119.3 | BD110: 165.2 | BE110: 88.7 | BF110: 100 | BG110: 4.471229558 | BH110: 4.181943601 | BI110: 5.327635015 | BJ110: 8592.11 | BK110: 1771.39 | BL110: 1098.67
B111: noviembre | D111: n.d. | E111: -0.6953247334 | F111: n.d. | G111: 1.547987616 | H111: 0.7880403291 | I111: 0.7751937984 | J111: 17.40626722 | T111: 13 | U111: n.d. | W111: n.d. | X111: n.d. | Y111: n.d. | Z111: n.d. | AA111: n.d. | AB111: 616.53 | AC111: n.d. | AD111: n.d. | AE111: n.d. | AM111: n.d. | AN111: 1.54 | AO111: n.d. | AP111: n.d. | AQ111: 1.164422999 | AR111: 120.58 | AS111: 9.9874 | AT111: =IF(AND('Tipos de Cambio'!$J$6<>1,'Tipos de Cambio'!$J$6<>2,'Tipos de Cambio'!$J$6<>3,'Tipos de Cambio'!$J$6<>4,'Tipos de Cambio'!$J$6<>5,'Tipos de Cambio'!$J$6<>6,'Tipos de Cambio'!$J$6<>7),LOOKUP(1,'Datos mensuales'!$AM$2:$AS$2,'Datos mensuales'!$AM111:$AS111),LOOKUP('Tipos de Cambio'!$J$6,'Datos mensuales'!$AM$2:$AS$2,'Datos mensuales'!$AM111:$AS111)) -> n.d. | AU111: 5.15021 | AV111: n.d. | AW111: n.d. | AX111: n.d. | AY111: n.d. | AZ111: n.d. | BA111: n.d. | BB111: n.d. | BC111: 126.4 | BD111: 166.7 | BE111: 99.5 | BF111: 100 | BG111: 3.511708497 | BH111: 3.72829036 | BI111: 5.207632916 | BJ111: 9116.55 | BK111: 1949.54 | BL111: 1163.63
B112: diciembre | D112: n.d. | E112: -1.645486069 | F112: n.d. | G112: 1.611903286 | H112: 0.7872192637 | I112: 0.5825242718 | J112: 18.60914414 | T112: 11.35 | U112: n.d. | W112: n.d. | X112: n.d. | Y112: n.d. | Z112: n.d. | AA112: n.d. | AB112: 579.74 | AC112: n.d. | AD112: n.d. | AE112: n.d. | AM112: n.d. | AN112: 1.54 | AO112: n.d. | AP112: n.d. | AQ112: 1.172122 | AR112: 117.62 | AS112: 9.9117 | AT112: =IF(AND('Tipos de Cambio'!$J$6<>1,'Tipos de Cambio'!$J$6<>2,'Tipos de Cambio'!$J$6<>3,'Tipos de Cambio'!$J$6<>4,'Tipos de Cambio'!$J$6<>5,'Tipos de Cambio'!$J$6<>6,'Tipos de Cambio'!$J$6<>7),LOOKUP(1,'Datos mensuales'!$AM$2:$AS$2,'Datos mensuales'!$AM112:$AS112),LOOKUP('Tipos de Cambio'!$J$6,'Datos mensuales'!$AM$2:$AS$2,'Datos mensuales'!$AM112:$AS112)) -> n.d. | AU112: 5.09256 | AV112: n.d. | AW112: n.d. | AX112: n.d. | AY112: n.d. | AZ112: n.d. | BA112: n.d. | BB112: n.d. | BC112: 126.7 | BD112: 168.6 | BE112: 98.7 | BF112: 100 | BG112: 3.544587424 | BH112: 3.497706495 | BI112: 5.082814719 | BJ112: 9181.43 | BK112: 2192.69 | BL112: 1229.23
A113: 1999 | B113: enero | D113: n.d. | E113: -1.039352218 | F113: n.d. | G113: 1.670792079 | H113: 0.7880403291 | I113: 0.1943634597 | J113: 19.015 | T113: 12.52 | U113: n.d. | W113: n.d. | X113: n.d. | Y113: n.d. | Z113: n.d. | AA113: n.d. | AB113: 560.56 | AC113: n.d. | AD113: n.d. | AE113: n.d. | AM113: n.d. | AN113: 1.52 | AO113: n.d. | AP113: n.d. | AQ113: 1.16078 | AR113: 113.1835 | AS113: 10.1104 | AT113: =IF(AND('Tipos de Cambio'!$J$6<>1,'Tipos de Cambio'!$J$6<>2,'Tipos de Cambio'!$J$6<>3,'Tipos de Cambio'!$J$6<>4,'Tipos de Cambio'!$J$6<>5,'Tipos de Cambio'!$J$6<>6,'Tipos de Cambio'!$J$6<>7),LOOKUP(1,'Datos mensuales'!$AM$2:$AS$2,'Datos mensuales'!$AM113:$AS113),LOOKUP('Tipos de Cambio'!$J$6,'Datos mensuales'!$AM$2:$AS$2,'Datos mensuales'!$AM113:$AS113)) -> n.d. | AU113: 5.01204 | AV113: n.d. | AW113: n.d. | AX113: n.d. | AY113: n.d. | AZ113: n.d. | BA113: n.d. | BB113: n.d. | BC113: 128.9 | BD113: 172.9 | BE113: 99.6 | BF113: 100 | BG113: 3.50093305 | BH113: 3.553328312 | BI113: 4.953454271 | BJ113: 9358.82 | BK113: 2505.89 | BL113: 1279.64
B114: febrero | D114: n.d. | E114: -1.725048407 | F114: n.d. | G114: 1.605929586 | H114: 0.7856730214 | I114: -0.09727626459 | J114: 18.53915106 | T114: 12.01 | U114: n.d. | W114: n.d. | X114: n.d. | Y114: n.d. | Z114: n.d. | AA114: n.d. | AB114: 484.72 | AC114: n.d. | AD114: n.d. | AE114: n.d. | AM114: n.d. | AN114: 1.5 | AO114: n.d. | AP114: n.d. | AQ114: 1.120765 | AR114: 116.6635 | AS114: 10.015 | AT114: =IF(AND('Tipos de Cambio'!$J$6<>1,'Tipos de Cambio'!$J$6<>2,'Tipos de Cambio'!$J$6<>3,'Tipos de Cambio'!$J$6<>4,'Tipos de Cambio'!$J$6<>5,'Tipos de Cambio'!$J$6<>6,'Tipos de Cambio'!$J$6<>7),LOOKUP(1,'Datos mensuales'!$AM$2:$AS$2,'Datos mensuales'!$AM114:$AS114),LOOKUP('Tipos de Cambio'!$J$6,'Datos mensuales'!$AM$2:$AS$2,'Datos mensuales'!$AM114:$AS114)) -> n.d. | AU114: 5.04855 | AV114: n.d. | AW114: n.d. | AX114: n.d. | AY114: n.d. | AZ114: n.d. | BA114: n.d. | BB114: n.d. | BC114: 133.1 | BD114: 177.7 | BE114: 103.4 | BF114: 100 | BG114: 3.882573279 | BH114: 3.786009298 | BI114: 4.819704568 | BJ114: 9306.57 | BK114: 2288.03 | BL114: 1238.33
B115: marzo | D115: n.d. | E115: -2.581801717 | F115: n.d. | G115: 1.726263872 | H115: 0.9811843472 | I115: -0.3875968992 | J115: 18.25520801 | T115: 14.68 | U115: n.d. | W115: n.d. | X115: n.d. | Y115: n.d. | Z115: n.d. | AA115: n.d. | AB115: 428.77 | AC115: n.d. | AD115: n.d. | AE115: n.d. | AM115: n.d. | AN115: 1.52 | AO115: n.d. | AP115: n.d. | AQ115: 1.088296 | AR115: 119.78 | AS115: 9.7694 | AT115: =IF(AND('Tipos de Cambio'!$J$6<>1,'Tipos de Cambio'!$J$6<>2,'Tipos de Cambio'!$J$6<>3,'Tipos de Cambio'!$J$6<>4,'Tipos de Cambio'!$J$6<>5,'Tipos de Cambio'!$J$6<>6,'Tipos de Cambio'!$J$6<>7),LOOKUP(1,'Datos mensuales'!$AM$2:$AS$2,'Datos mensuales'!$AM115:$AS115),LOOKUP('Tipos de Cambio'!$J$6,'Datos mensuales'!$AM$2:$AS$2,'Datos mensuales'!$AM115:$AS115)) -> n.d. | AU115: 5.09461 | AV115: n.d. | AW115: n.d. | AX115: n.d. | AY115: n.d. | AZ115: n.d. | BA115: n.d. | BB115: n.d. | BC115: 134 | BD115: 176.6 | BE115: 105.5 | BF115: 100 | BG115: 3.998839607 | BH115: 3.927891301 | BI115: 4.681613556 | BJ115: 9786.16 | BK115: 2461.4 | BL115: 1286.37
B116: abril | D116: n.d. | E116: -3.754466331 | F116: n.d. | G116: 2.276923077 | H116: 1.071428571 | I116: -0.09671179884 | J116: 18.23425471 | T116: 17.31 | U116: n.d. | W116: n.d. | X116: n.d. | Y116: n.d. | Z116: n.d. | AA116: n.d. | AB116: 439.74 | AC116: n.d. | AD116: n.d. | AE116: n.d. | AM116: n.d. | AN116: 1.49 | AO116: n.d. | AP116: n.d. | AQ116: 1.070441001 | AR116: 119.81 | AS116: 9.4461 | AT116: =IF(AND('Tipos de Cambio'!$J$6<>1,'Tipos de Cambio'!$J$6<>2,'Tipos de Cambio'!$J$6<>3,'Tipos de Cambio'!$J$6<>4,'Tipos de Cambio'!$J$6<>5,'Tipos de Cambio'!$J$6<>6,'Tipos de Cambio'!$J$6<>7),LOOKUP(1,'Datos mensuales'!$AM$2:$AS$2,'Datos mensuales'!$AM116:$AS116),LOOKUP('Tipos de Cambio'!$J$6,'Datos mensuales'!$AM$2:$AS$2,'Datos mensuales'!$AM116:$AS116)) -> n.d. | AU116: 5.05118 | AV116: n.d. | AW116: n.d. | AX116: n.d. | AY116: n.d. | AZ116: n.d. | BA116: n.d. | BB116: n.d. | BC116: 135.5 | BD116: 175.5 | BE116: 108.8 | BF116: 100 | BG116: 3.838653112 | BH116: 3.927994843 | BI116: 4.539151847 | BJ116: 10789.04 | BK116: 2542.85 | BL116: 1335.18
B117: mayo | D117: n.d. | E117: -4.003256018 | F117: n.d. | G117: 2.088452088 | H117: 0.977348511 | I117: -0.3857280617 | J117: 18.00552899 | T117: 17.72 | U117: n.d. | W117: n.d. | X117: n.d. | Y117: n.d. | Z117: n.d. | AA117: n.d. | AB117: 398.46 | AC117: n.d. | AD117: n.d. | AE117: n.d. | AM117: n.d. | AN117: 1.46 | AO117: n.d. | AP117: n.d. | AQ117: 1.06281 | AR117: 122.11 | AS117: 9.3623 | AT117: =IF(AND('Tipos de Cambio'!$J$6<>1,'Tipos de Cambio'!$J$6<>2,'Tipos de Cambio'!$J$6<>3,'Tipos de Cambio'!$J$6<>4,'Tipos de Cambio'!$J$6<>5,'Tipos de Cambio'!$J$6<>6,'Tipos de Cambio'!$J$6<>7),LOOKUP(1,'Datos mensuales'!$AM$2:$AS$2,'Datos mensuales'!$AM117:$AS117),LOOKUP('Tipos de Cambio'!$J$6,'Datos mensuales'!$AM$2:$AS$2,'Datos mensuales'!$AM117:$AS117)) -> n.d. | AU117: 5.13066 | AV117: n.d. | AW117: n.d. | AX117: n.d. | AY117: n.d. | AZ117: n.d. | BA117: n.d. | BB117: n.d. | BC117: 137.7 | BD117: 177.2 | BE117: 111.3 | BF117: 100 | BG117: 3.995605446 | BH117: 4.09898134 | BI117: 4.392233225 | BJ117: 10559.75 | BK117: 2470.52 | BL117: 1301.84
B118: junio | D118: n.d. | E118: -4.095281722 | F118: n.d. | G118: 1.963190184 | H118: 0.8729611762 | I118: -0.2904162633 | J118: 17.39333038 | T118: 17.92 | U118: n.d. | W118: n.d. | X118: n.d. | Y118: n.d. | Z118: n.d. | AA118: n.d. | AB118: 330.79 | AC118: n.d. | AD118: n.d. | AE118: n.d. | AM118: n.d. | AN118: 1.47 | AO118: n.d. | AP118: n.d. | AQ118: 1.037755001 | AR118: 120.9 | AS118: 9.5418 | AT118: =IF(AND('Tipos de Cambio'!$J$6<>1,'Tipos de Cambio'!$J$6<>2,'Tipos de Cambio'!$J$6<>3,'Tipos de Cambio'!$J$6<>4,'Tipos de Cambio'!$J$6<>5,'Tipos de Cambio'!$J$6<>6,'Tipos de Cambio'!$J$6<>7),LOOKUP(1,'Datos mensuales'!$AM$2:$AS$2,'Datos mensuales'!$AM118:$AS118),LOOKUP('Tipos de Cambio'!$J$6,'Datos mensuales'!$AM$2:$AS$2,'Datos mensuales'!$AM118:$AS118)) -> n.d. | AU118: 5.37233 | AV118: n.d. | AW118: n.d. | AX118: n.d. | AY118: n.d. | AZ118: n.d. | BA118: n.d. | BB118: n.d. | BC118: 139 | BD118: 175 | BE118: 114.9 | BF118: 100 | BG118: 4.513463348 | BH118: 4.630577539 | BI118: 4.240726363 | BJ118: 10970.81 | BK118: 2686.12 | BL118: 1372.71
B119: julio | D119: n.d. | E119: -5.46037563 | F119: n.d. | G119: 2.144607843 | H119: 1.068228808 | I119: -0.09737098345 | J119: 17.04063117 | T119: 20.1 | U119: n.d. | W119: n.d. | X119: n.d. | Y119: n.d. | Z119: n.d. | AA119: n.d. | AB119: 279.58 | AC119: n.d. | AD119: n.d. | AE119: n.d. | AM119: n.d. | AN119: 1.49 | AO119: n.d. | AP119: n.d. | AQ119: 1.035268 | AR119: 119.86 | AS119: 9.3671 | AT119: =IF(AND('Tipos de Cambio'!$J$6<>1,'Tipos de Cambio'!$J$6<>2,'Tipos de Cambio'!$J$6<>3,'Tipos de Cambio'!$J$6<>4,'Tipos de Cambio'!$J$6<>5,'Tipos de Cambio'!$J$6<>6,'Tipos de Cambio'!$J$6<>7),LOOKUP(1,'Datos mensuales'!$AM$2:$AS$2,'Datos mensuales'!$AM119:$AS119),LOOKUP('Tipos de Cambio'!$J$6,'Datos mensuales'!$AM$2:$AS$2,'Datos mensuales'!$AM119:$AS119)) -> n.d. | AU119: 5.60978 | AV119: n.d. | AW119: n.d. | AX119: n.d. | AY119: n.d. | AZ119: n.d. | BA119: n.d. | BB119: n.d. | BC119: 136.2 | BD119: 179.2 | BE119: 107.6 | BF119: 100 | BG119: 5.575437711 | BH119: 5.281084681 | BI119: 4.08447747 | BJ119: 10655.15 | BK119: 2638.49 | BL119: 1328.72
B120: agosto | D120: n.d. | E120: -6.15958336 | F120: n.d. | G120: 2.264381885 | H120: 1.160119458 | I120: 0.2923976608 | J120: 16.57868928 | T120: 21.28 | U120: n.d. | W120: n.d. | X120: n.d. | Y120: n.d. | Z120: n.d. | AA120: n.d. | AB120: 308.27 | AC120: n.d. | AD120: n.d. | AE120: n.d. | AM120: n.d. | AN120: 1.49 | AO120: n.d. | AP120: n.d. | AQ120: 1.060355001 | AR120: 113.4 | AS120: 9.3981 | AT120: =IF(AND('Tipos de Cambio'!$J$6<>1,'Tipos de Cambio'!$J$6<>2,'Tipos de Cambio'!$J$6<>3,'Tipos de Cambio'!$J$6<>4,'Tipos de Cambio'!$J$6<>5,'Tipos de Cambio'!$J$6<>6,'Tipos de Cambio'!$J$6<>7),LOOKUP(1,'Datos mensuales'!$AM$2:$AS$2,'Datos mensuales'!$AM120:$AS120),LOOKUP('Tipos de Cambio'!$J$6,'Datos mensuales'!$AM$2:$AS$2,'Datos mensuales'!$AM120:$AS120)) -> n.d. | AU120: 5.85539 | AV120: n.d. | AW120: n.d. | AX120: n.d. | AY120: n.d. | AZ120: n.d. | BA120: n.d. | BB120: n.d. | BC120: 136 | BD120: 176.3 | BE120: 109.2 | BF120: 100 | BG120: 3.843733173 | BH120: 3.782175075 | BI120: 3.923357073 | BJ120: 10829.28 | BK120: 2739.35 | BL120: 1320.41
B121: septiembre | D121: n.d. | E121: -5.982709886 | F121: n.d. | G121: 2.628361858 | H121: 1.160119458 | I121: -0.1934235977 | J121: 15.82656639 | T121: 23.8 | U121: n.d. | W121: n.d. | X121: n.d. | Y121: n.d. | Z121: n.d. | AA121: n.d. | AB121: 342.4 | AC121: n.d. | AD121: n.d. | AE121: n.d. | AM121: n.d. | AN121: 1.48 | AO121: n.d. | AP121: n.d. | AQ121: 1.050077 | AR121: 107.57 | AS121: 9.3403 | AT121: =IF(AND('Tipos de Cambio'!$J$6<>1,'Tipos de Cambio'!$J$6<>2,'Tipos de Cambio'!$J$6<>3,'Tipos de Cambio'!$J$6<>4,'Tipos de Cambio'!$J$6<>5,'Tipos de Cambio'!$J$6<>6,'Tipos de Cambio'!$J$6<>7),LOOKUP(1,'Datos mensuales'!$AM$2:$AS$2,'Datos mensuales'!$AM121:$AS121),LOOKUP('Tipos de Cambio'!$J$6,'Datos mensuales'!$AM$2:$AS$2,'Datos mensuales'!$AM121:$AS121)) -> n.d. | AU121: 5.94267 | AV121: n.d. | AW121: n.d. | AX121: n.d. | AY121: n.d. | AZ121: n.d. | BA121: n.d. | BB121: n.d. | BC121: 134.2 | BD121: 176.3 | BE121: 106.2 | BF121: 100 | BG121: 3.74130781 | BH121: 3.963529743 | BI121: 3.757313227 | BJ121: 10336.96 | BK121: 2746.16 | BL121: 1282.71
B122: octubre | D122: n.d. | E122: -4.170009515 | F122: n.d. | G122: 2.56097561 | H122: 1.368287915 | I122: -0.6724303554 | J122: 14.91348104 | T122: 22.69 | U122: n.d. | W122: n.d. | X122: n.d. | Y122: n.d. | Z122: n.d. | AA122: n.d. | AB122: 326.07 | AC122: n.d. | AD122: n.d. | AE122: n.d. | AM122: n.d. | AN122: 1.48 | AO122: n.d. | AP122: n.d. | AQ122: 1.070633 | AR122: 105.97 | AS122: 9.5403 | AT122: =IF(AND('Tipos de Cambio'!$J$6<>1,'Tipos de Cambio'!$J$6<>2,'Tipos de Cambio'!$J$6<>3,'Tipos de Cambio'!$J$6<>4,'Tipos de Cambio'!$J$6<>5,'Tipos de Cambio'!$J$6<>6,'Tipos de Cambio'!$J$6<>7),LOOKUP(1,'Datos mensuales'!$AM$2:$AS$2,'Datos mensuales'!$AM122:$AS122),LOOKUP('Tipos de Cambio'!$J$6,'Datos mensuales'!$AM$2:$AS$2,'Datos mensuales'!$AM122:$AS122)) -> n.d. | AU122: 6.09137 | AV122: n.d. | AW122: n.d. | AX122: n.d. | AY122: n.d. | AZ122: n.d. | BA122: n.d. | BB122: n.d. | BC122: 130.5 | BD122: 173.9 | BE122: 101.5 | BF122: 100 | BG122: 4.322653958 | BH122: 4.339958935 | BI122: 3.586279198 | BJ122: 10729.87 | BK122: 2966.43 | BL122: 1362.93
B123: noviembre | D123: n.d. | E123: -4.282818044 | F123: n.d. | G123: 2.62195122 | H123: 1.460273658 | I123: -1.153846154 | J123: 13.9179923 | T123: 25 | U123: n.d. | W123: n.d. | X123: n.d. | Y123: n.d. | Z123: n.d. | AA123: n.d. | AB123: 315.97 | AC123: n.d. | AD123: n.d. | AE123: n.d. | AM123: n.d. | AN123: 1.47 | AO123: n.d. | AP123: n.d. | AQ123: 1.033823 | AR123: 104.96 | AS123: 9.4205 | AT123: =IF(AND('Tipos de Cambio'!$J$6<>1,'Tipos de Cambio'!$J$6<>2,'Tipos de Cambio'!$J$6<>3,'Tipos de Cambio'!$J$6<>4,'Tipos de Cambio'!$J$6<>5,'Tipos de Cambio'!$J$6<>6,'Tipos de Cambio'!$J$6<>7),LOOKUP(1,'Datos mensuales'!$AM$2:$AS$2,'Datos mensuales'!$AM123:$AS123),LOOKUP('Tipos de Cambio'!$J$6,'Datos mensuales'!$AM$2:$AS$2,'Datos mensuales'!$AM123:$AS123)) -> n.d. | AU123: 6.04324 | AV123: n.d. | AW123: n.d. | AX123: n.d. | AY123: n.d. | AZ123: n.d. | BA123: n.d. | BB123: n.d. | BC123: 137 | BD123: 176.8 | BE123: 110.4 | BF123: 100 | BG123: 4.877154722 | BH123: 4.857331554 | BI123: 3.410197347 | BJ123: 10877.81 | BK123: 3336.16 | BL123: 1388.91
B124: diciembre | D124: n.d. | E124: -4.049264157 | F124: n.d. | G124: 2.684563758 | H124: 1.745922352 | I124: -1.061776062 | J124: 12.31866143 | T124: 26.1 | U124: n.d. | W124: n.d. | X124: n.d. | Y124: n.d. | Z124: n.d. | AA124: n.d. | AB124: 312 | AC124: n.d. | AD124: n.d. | AE124: n.d. | AM124: n.d. | AN124: 1.47 | AO124: n.d. | AP124: n.d. | AQ124: 1.011014 | AR124: 102.68 | AS124: 9.4135 | AT124: =IF(AND('Tipos de Cambio'!$J$6<>1,'Tipos de Cambio'!$J$6<>2,'Tipos de Cambio'!$J$6<>3,'Tipos de Cambio'!$J$6<>4,'Tipos de Cambio'!$J$6<>5,'Tipos de Cambio'!$J$6<>6,'Tipos de Cambio'!$J$6<>7),LOOKUP(1,'Datos mensuales'!$AM$2:$AS$2,'Datos mensuales'!$AM124:$AS124),LOOKUP('Tipos de Cambio'!$J$6,'Datos mensuales'!$AM$2:$AS$2,'Datos mensuales'!$AM124:$AS124)) -> n.d. | AU124: 6.11375 | AV124: n.d. | AW124: n.d. | AX124: n.d. | AY124: n.d. | AZ124: n.d. | BA124: n.d. | BB124: n.d. | BC124: 141.7 | BD124: 181.7 | BE124: 115 | BF124: 100 | BG124: 5.308495697 | BH124: 5.093883288 | BI124: 3.22905685 | BJ124: 11497.12 | BK124: 4069.31 | BL124: 1469.25
A125: 2000 | B125: enero | D125: n.d. | E125: -5.249462184 | F125: n.d. | G125: 2.73889227 | H125: 1.851213062 | I125: -0.6789524733 | J125: 11.02319041 | T125: 27.26 | U125: 25.307 | V125: -1.953 | W125: 284.315 | X125: 39 | Y125: 47.77 | Z125: 111.11 | AA125: 105.8265947 | AB125: 301.79 | AC125: 92.95327496 | AD125: 247.5 | AE125: 482.26 | AM125: n.d. | AN125: 1.45 | AO125: n.d. | AP125: n.d. | AQ125: 1.013695 | AR125: 105.16 | AS125: 9.4793 | AT125: =IF(AND('Tipos de Cambio'!$J$6<>1,'Tipos de Cambio'!$J$6<>2,'Tipos de Cambio'!$J$6<>3,'Tipos de Cambio'!$J$6<>4,'Tipos de Cambio'!$J$6<>5,'Tipos de Cambio'!$J$6<>6,'Tipos de Cambio'!$J$6<>7),LOOKUP(1,'Datos mensuales'!$AM$2:$AS$2,'Datos mensuales'!$AM125:$AS125),LOOKUP('Tipos de Cambio'!$J$6,'Datos mensuales'!$AM$2:$AS$2,'Datos mensuales'!$AM125:$AS125)) -> n.d. | AU125: 6.21497 | AV125: 5.52 | AW125: n.d. | AX125: n.d. | AY125: n.d. | AZ125: n.d. | BA125: n.d. | BB125: n.d. | BC125: 144.7 | BD125: 183.1 | BE125: 119.1 | BF125: 100 | BG125: 4.858494311 | BH125: 4.966527194 | BI125: 3.042939788 | BJ125: 10940.54 | BK125: 3940.35 | BL125: 1394.46
B126: febrero | D126: n.d. | E126: -5.004854964 | F126: n.d. | G126: 3.221884498 | H126: 1.937406855 | I126: -0.6815968841 | J126: 10.52268759 | T126: 29.37 | U126: 27.7535 | V126: -1.6165 | W126: 299.8642857 | X126: 37.65 | Y126: 53.73 | Z126: 103.44 | AA126: 108.412112 | AB126: 277.58 | AC126: 95.08161904 | AD126: 243 | AE126: 578.71 | AM126: n.d. | AN126: 1.45 | AO126: n.d. | AP126: n.d. | AQ126: 0.983424 | AR126: 109.31 | AS126: 9.4456 | AT126: =IF(AND('Tipos de Cambio'!$J$6<>1,'Tipos de Cambio'!$J$6<>2,'Tipos de Cambio'!$J$6<>3,'Tipos de Cambio'!$J$6<>4,'Tipos de Cambio'!$J$6<>5,'Tipos de Cambio'!$J$6<>6,'Tipos de Cambio'!$J$6<>7),LOOKUP(1,'Datos mensuales'!$AM$2:$AS$2,'Datos mensuales'!$AM126:$AS126),LOOKUP('Tipos de Cambio'!$J$6,'Datos mensuales'!$AM$2:$AS$2,'Datos mensuales'!$AM126:$AS126)) -> n.d. | AU126: 6.32988 | AV126: 5.75 | AW126: n.d. | AX126: n.d. | AY126: n.d. | AZ126: n.d. | BA126: n.d. | BB126: n.d. | BC126: 140.8 | BD126: 180.1 | BE126: 114.6 | BF126: 100 | BG126: 4.69765833 | BH126: 4.850209491 | BI126: 2.852048474 | BJ126: 10128.31 | BK126: 4696.69 | BL126: 1366.42
B127: marzo | D127: n.d. | E127: -4.770215793 | F127: n.d. | G127: 3.757575758 | H127: 1.931870142 | I127: -0.5836575875 | J127: 10.11240241 | T127: 29.84 | U127: 27.55956522 | V127: -2.280434783 | W127: 286.3891304 | X127: 40.54 | Y127: 57.46 | Z127: 100.73 | AA127: 105.7005059 | AB127: 294.39 | AC127: 95.16935111 | AD127: 228.8 | AE127: 482.26 | AM127: n.d. | AN127: 1.46 | AO127: n.d. | AP127: n.d. | AQ127: 0.964343 | AR127: 106.71 | AS127: 9.2959 | AT127: =IF(AND('Tipos de Cambio'!$J$6<>1,'Tipos de Cambio'!$J$6<>2,'Tipos de Cambio'!$J$6<>3,'Tipos de Cambio'!$J$6<>4,'Tipos de Cambio'!$J$6<>5,'Tipos de Cambio'!$J$6<>6,'Tipos de Cambio'!$J$6<>7),LOOKUP(1,'Datos mensuales'!$AM$2:$AS$2,'Datos mensuales'!$AM127:$AS127),LOOKUP('Tipos de Cambio'!$J$6,'Datos mensuales'!$AM$2:$AS$2,'Datos mensuales'!$AM127:$AS127)) -> n.d. | AU127: 6.41109 | AV127: 5.85 | AW127: n.d. | AX127: n.d. | AY127: n.d. | AZ127: n.d. | BA127: n.d. | BB127: n.d. | BC127: 137.1 | BD127: 182.5 | BE127: 106.8 | BF127: 100 | BG127: 4.944851428 | BH127: 4.98450425 | BI127: 2.65670807 | BJ127: 10921.93 | BK127: 4572.83 | BL127: 1498.58
B128: abril | D128: n.d. | E128: -4.343563188 | F128: n.d. | G128: 3.068592058 | H128: 1.743987234 | I128: -0.7744433688 | J128: 9.731856053 | T128: 25.72 | U128: 22.80421053 | V128: -2.915789474 | W128: 279.6944444 | X128: 42.79 | Y128: 58.72 | Z128: 94.61 | AA128: 105.1052585 | AB128: 318.14 | AC128: 95.53937295 | AD128: 217 | AE128: 477.09 | AM128: n.d. | AN128: 1.47 | AO128: n.d. | AP128: n.d. | AQ128: 0.9469500002 | AR128: 105.48 | AS128: 9.3748 | AT128: =IF(AND('Tipos de Cambio'!$J$6<>1,'Tipos de Cambio'!$J$6<>2,'Tipos de Cambio'!$J$6<>3,'Tipos de Cambio'!$J$6<>4,'Tipos de Cambio'!$J$6<>5,'Tipos de Cambio'!$J$6<>6,'Tipos de Cambio'!$J$6<>7),LOOKUP(1,'Datos mensuales'!$AM$2:$AS$2,'Datos mensuales'!$AM128:$AS128),LOOKUP('Tipos de Cambio'!$J$6,'Datos mensuales'!$AM$2:$AS$2,'Datos mensuales'!$AM128:$AS128)) -> n.d. | AU128: 6.53573 | AV128: 5.82 | AW128: n.d. | AX128: n.d. | AY128: n.d. | AZ128: n.d. | BA128: n.d. | BB128: n.d. | BC128: 137.7 | BD128: 179.8 | BE128: 109.7 | BF128: 100 | BG128: 5.511176732 | BH128: 5.191835775 | BI128: 2.457369818 | BJ128: 10733.92 | BK128: 3860.66 | BL128: 1452.43
B129: mayo | D129: n.d. | E129: -4.524623901 | F129: n.d. | G129: 3.188929001 | H129: 1.730813027 | I129: -0.6776379477 | J129: 9.483447519 | T129: 28.79 | U129: 27.51636364 | V129: -1.273636364 | W129: 275.1857143 | X129: 42.15 | Y129: 60.5 | Z129: 94.15 | AA129: 110.782155 | AB129: 283.17 | AC129: 95.53055089 | AD129: 198.7826087 | AE129: 415.09 | AM129: n.d. | AN129: 1.4955 | AO129: n.d. | AP129: n.d. | AQ129: 0.9059680003 | AR129: 108.11 | AS129: 9.5078 | AT129: =IF(AND('Tipos de Cambio'!$J$6<>1,'Tipos de Cambio'!$J$6<>2,'Tipos de Cambio'!$J$6<>3,'Tipos de Cambio'!$J$6<>4,'Tipos de Cambio'!$J$6<>5,'Tipos de Cambio'!$J$6<>6,'Tipos de Cambio'!$J$6<>7),LOOKUP(1,'Datos mensuales'!$AM$2:$AS$2,'Datos mensuales'!$AM129:$AS129),LOOKUP('Tipos de Cambio'!$J$6,'Datos mensuales'!$AM$2:$AS$2,'Datos mensuales'!$AM129:$AS129)) -> n.d. | AU129: 6.9575 | AV129: 6.12 | AW129: n.d. | AX129: n.d. | AY129: n.d. | AZ129: n.d. | BA129: n.d. | BB129: n.d. | BC129: 144.7 | BD129: 183.6 | BE129: 118.7 | BF129: 100 | BG129: 4.930562239 | BH129: 5.210909773 | BI129: 2.254633155 | BJ129: 10522.34 | BK129: 3400.91 | BL129: 1420.6
B130: junio | D130: n.d. | E130: -4.537447459 | F130: n.d. | G130: 3.730445247 | H130: 2.117968572 | I130: -0.5825242718 | J130: 9.413061917 | T130: 31.82 | U130: 29.60227273 | V130: -2.217727273 | W130: 285.7318182 | X130: 42.03 | Y130: 59.47 | Z130: 86.44 | AA130: 113.5089218 | AB130: 272.23 | AC130: 84.0395145 | AD130: 197.8636364 | AE130: 392.15 | AM130: n.d. | AN130: 1.4768 | AO130: n.d. | AP130: n.d. | AQ130: 0.949177 | AR130: 106.23 | AS130: 9.7978 | AT130: =IF(AND('Tipos de Cambio'!$J$6<>1,'Tipos de Cambio'!$J$6<>2,'Tipos de Cambio'!$J$6<>3,'Tipos de Cambio'!$J$6<>4,'Tipos de Cambio'!$J$6<>5,'Tipos de Cambio'!$J$6<>6,'Tipos de Cambio'!$J$6<>7),LOOKUP(1,'Datos mensuales'!$AM$2:$AS$2,'Datos mensuales'!$AM130:$AS130),LOOKUP('Tipos de Cambio'!$J$6,'Datos mensuales'!$AM$2:$AS$2,'Datos mensuales'!$AM130:$AS130)) -> n.d. | AU130: 6.96932 | AV130: 6.02 | AW130: n.d. | AX130: n.d. | AY130: n.d. | AZ130: n.d. | BA130: n.d. | BB130: n.d. | BC130: 139.2 | BD130: 180.1 | BE130: 111.9 | BF130: 100 | BG130: 5.178174098 | BH130: 4.932755406 | BI130: 2.04927207 | BJ130: 10447.9 | BK130: 3966.11 | BL130: 1454.6
B131: julio | D131: n.d. | E131: -3.339567788 | F131: n.d. | G131: 3.659268146 | H131: 2.011592226 | I131: -0.5847953216 | J131: 9.11869982 | T131: 29.7 | U131: 28.4825 | V131: -1.2175 | W131: 281.5857143 | X131: 41.51 | Y131: 58.38 | Z131: 87.35 | AA131: 108.977866 | AB131: 266.54 | AC131: 75.05737521 | AD131: 191 | AE131: 306.58 | AM131: n.d. | AN131: 1.47786 | AO131: n.d. | AP131: n.d. | AQ131: 0.9396569997 | AR131: 107.9 | AS131: 9.4688 | AT131: =IF(AND('Tipos de Cambio'!$J$6<>1,'Tipos de Cambio'!$J$6<>2,'Tipos de Cambio'!$J$6<>3,'Tipos de Cambio'!$J$6<>4,'Tipos de Cambio'!$J$6<>5,'Tipos de Cambio'!$J$6<>6,'Tipos de Cambio'!$J$6<>7),LOOKUP(1,'Datos mensuales'!$AM$2:$AS$2,'Datos mensuales'!$AM131:$AS131),LOOKUP('Tipos de Cambio'!$J$6,'Datos mensuales'!$AM$2:$AS$2,'Datos mensuales'!$AM131:$AS131)) -> n.d. | AU131: 6.91917 | AV131: 6.27 | AW131: n.d. | AX131: n.d. | AY131: n.d. | AZ131: n.d. | BA131: n.d. | BB131: n.d. | BC131: 143 | BD131: 186.8 | BE131: 113.7 | BF131: 100 | BG131: 4.392192659 | BH131: 4.43875911 | BI131: 1.842249187 | BJ131: 10521.98 | BK131: 3766.99 | BL131: 1430.83
B132: agosto | D132: n.d. | E132: -2.643273137 | F132: n.d. | G132: 3.411131059 | H132: 2.021119564 | I132: -0.4859086492 | J132: 9.104193487 | T132: 31.26 | U132: 29.78782609 | V132: -1.472173913 | W132: 274.4681818 | X132: 41.63 | Y132: 60.86 | Z132: 76.92 | AA132: 108.2819881 | AB132: 257.15 | AC132: 75.24053114 | AD132: 187.0869565 | AE132: 334.14 | AM132: n.d. | AN132: 1.47902 | AO132: n.d. | AP132: n.d. | AQ132: 0.9040569997 | AR132: 108.0804348 | AS132: 9.272478261 | AT132: =IF(AND('Tipos de Cambio'!$J$6<>1,'Tipos de Cambio'!$J$6<>2,'Tipos de Cambio'!$J$6<>3,'Tipos de Cambio'!$J$6<>4,'Tipos de Cambio'!$J$6<>5,'Tipos de Cambio'!$J$6<>6,'Tipos de Cambio'!$J$6<>7),LOOKUP(1,'Datos mensuales'!$AM$2:$AS$2,'Datos mensuales'!$AM132:$AS132),LOOKUP('Tipos de Cambio'!$J$6,'Datos mensuales'!$AM$2:$AS$2,'Datos mensuales'!$AM132:$AS132)) -> n.d. | AU132: 6.84009 | AV132: 6.35 | AW132: n.d. | AX132: n.d. | AY132: n.d. | AZ132: n.d. | BA132: n.d. | BB132: n.d. | BC132: 140.8 | BD132: 181.3 | BE132: 113.9 | BF132: 100 | BG132: 3.616046726 | BH132: 4.066499908 | BI132: 1.634710056 | BJ132: 11215.1 | BK132: 4206.35 | BL132: 1517.68
B133: septiembre | D133: n.d. | E133: -2.818487969 | F133: n.d. | G133: 3.454437165 | H133: 2.498012944 | I133: -0.9689922481 | J133: 8.84943121 | T133: 33.88 | U133: 32.931 | V133: -0.949 | W133: 273.6785714 | X133: 43.14 | Y133: 61.65 | Z133: 75.78 | AA133: 117.4938692 | AB133: 239.79 | AC133: 80.15057627 | AD133: 178.1428571 | AE133: 421.63 | AM133: n.d. | AN133: 1.48617 | AO133: n.d. | AP133: n.d. | AQ133: 0.8721140001 | AR133: 106.8375 | AS133: 9.3616 | AT133: =IF(AND('Tipos de Cambio'!$J$6<>1,'Tipos de Cambio'!$J$6<>2,'Tipos de Cambio'!$J$6<>3,'Tipos de Cambio'!$J$6<>4,'Tipos de Cambio'!$J$6<>5,'Tipos de Cambio'!$J$6<>6,'Tipos de Cambio'!$J$6<>7),LOOKUP(1,'Datos mensuales'!$AM$2:$AS$2,'Datos mensuales'!$AM133:$AS133),LOOKUP('Tipos de Cambio'!$J$6,'Datos mensuales'!$AM$2:$AS$2,'Datos mensuales'!$AM133:$AS133)) -> n.d. | AU133: 6.76557 | AV133: 6.25 | AW133: n.d. | AX133: n.d. | AY133: n.d. | AZ133: n.d. | BA133: n.d. | BB133: n.d. | BC133: 142.5 | BD133: 182.5 | BE133: 115.9 | BF133: 100 | BG133: 4.379741275 | BH133: 3.720336309 | BI133: 1.42796346 | BJ133: 10650.92 | BK133: 3672.82 | BL133: 1436.51
B134: octubre | D134: n.d. | E134: -3.082434485 | F134: n.d. | G134: 3.448275862 | H134: 2.393375681 | I134: -1.160541586 | J134: 8.909186269 | T134: 33.11 | U134: 30.83727273 | V134: =IF(OR(T134="",U134="n.d."),"",U134-T134) -> -2.272727273 | W134: 269.9977273 | X134: 47.6 | Y134: 60.9 | Z134: 76.66 | AA134: 128.2170248 | AB134: 208.46 | AC134: 84.7072744 | AD134: 186.7272727 | AE134: 382.36 | AM134: n.d. | AN134: 1.5123 | AO134: n.d. | AP134: n.d. | AQ134: 0.8551589999 | AR134: 108.4428571 | AS134: 9.537904762 | AT134: =IF(AND('Tipos de Cambio'!$J$6<>1,'Tipos de Cambio'!$J$6<>2,'Tipos de Cambio'!$J$6<>3,'Tipos de Cambio'!$J$6<>4,'Tipos de Cambio'!$J$6<>5,'Tipos de Cambio'!$J$6<>6,'Tipos de Cambio'!$J$6<>7),LOOKUP(1,'Datos mensuales'!$AM$2:$AS$2,'Datos mensuales'!$AM134:$AS134),LOOKUP('Tipos de Cambio'!$J$6,'Datos mensuales'!$AM$2:$AS$2,'Datos mensuales'!$AM134:$AS134)) -> n.d. | AU134: 6.72617 | AV134: 6.32 | AW134: n.d. | AX134: n.d. | AY134: n.d. | AZ134: n.d. | BA134: n.d. | BB134: n.d. | BC134: 135.8 | BD134: 176.8 | BE134: 108.4 | BF134: 100 | BG134: 2.645025114 | BH134: 2.990960087 | BI134: 1.223470532 | BJ134: 10971.14 | BK134: 3369.63 | BL134: 1429.4
B135: noviembre | D135: n.d. | E135: -2.283019053 | F135: n.d. | G135: 3.446226976 | H135: 2.493200363 | I135: -0.8754863813 | J135: 8.872177988 | T135: 34.42 | U135: 32.4447619 | V135: -1.975238095 | W135: 266.0068182 | X135: 47.99 | Y135: 63.98 | Z135: 71.54 | AA135: 127.725068 | AB135: 215.31 | AC135: 88.93710783 | AD135: 184.8636364 | AE135: 367.9 | AM135: n.d. | AN135: 1.54222 | AO135: n.d. | AP135: n.d. | AQ135: 0.8563859998 | AR135: 109.0095238 | AS135: 9.508142857 | AT135: =IF(AND('Tipos de Cambio'!$J$6<>1,'Tipos de Cambio'!$J$6<>2,'Tipos de Cambio'!$J$6<>3,'Tipos de Cambio'!$J$6<>4,'Tipos de Cambio'!$J$6<>5,'Tipos de Cambio'!$J$6<>6,'Tipos de Cambio'!$J$6<>7),LOOKUP(1,'Datos mensuales'!$AM$2:$AS$2,'Datos mensuales'!$AM135:$AS135),LOOKUP('Tipos de Cambio'!$J$6,'Datos mensuales'!$AM$2:$AS$2,'Datos mensuales'!$AM135:$AS135)) -> n.d. | AU135: 6.70534 | AV135: 6.34 | AW135: n.d. | AX135: n.d. | AY135: n.d. | AZ135: n.d. | BA135: n.d. | BB135: n.d. | BC135: 132.6 | BD135: 179.7 | BE135: 101.2 | BF135: 100 | BG135: 2.136590481 | BH135: 2.019738202 | BI135: 1.022836057 | BJ135: 10414.49 | BK135: 2597.93 | BL135: 1314.95
B136: diciembre | D136: n.d. | E136: -2.109680534 | F136: n.d. | G136: 3.386809269 | H136: 2.483630616 | I136: -0.487804878 | J136: 8.959306479 | T136: 28.44 | U136: 25.5675 | V136: -2.8725 | W136: 271.45 | X136: 47.08 | Y136: 65.87 | Z136: 66.16 | AA136: 128.0149347 | AB136: 199.18 | AC136: 96.22420376 | AD136: 183.5714286 | AE136: 447.81 | AM136: n.d. | AN136: 1.52244 | AO136: n.d. | AP136: n.d. | AQ136: 0.8973159998 | AR136: 112.209 | AS136: 9.46725 | AT136: =IF(AND('Tipos de Cambio'!$J$6<>1,'Tipos de Cambio'!$J$6<>2,'Tipos de Cambio'!$J$6<>3,'Tipos de Cambio'!$J$6<>4,'Tipos de Cambio'!$J$6<>5,'Tipos de Cambio'!$J$6<>6,'Tipos de Cambio'!$J$6<>7),LOOKUP(1,'Datos mensuales'!$AM$2:$AS$2,'Datos mensuales'!$AM136:$AS136),LOOKUP('Tipos de Cambio'!$J$6,'Datos mensuales'!$AM$2:$AS$2,'Datos mensuales'!$AM136:$AS136)) -> n.d. | AU136: 6.39865 | AV136: 5.92 | AW136: n.d. | AX136: n.d. | AY136: n.d. | AZ136: n.d. | BA136: n.d. | BB136: n.d. | BC136: 128.6 | BD136: 176.1 | BE136: 96.9 | BF136: 100 | BG136: 1.060583442 | BH136: 1.100705728 | BI136: 0.8277738297 | BJ136: 10786.85 | BK136: 2470.52 | BL136: 1320.28
A137: 2001 | B137: enero | D137: n.d. | E137: -1.569288427 | F137: n.d. | G137: 3.732227488 | H137: 2.009482953 | I137: -0.390625 | J137: 8.111682161 | T137: 29.59 | U137: 25.62 | V137: -3.97 | W137: 265.486 | X137: 47.31 | Y137: 64.13 | Z137: 65.98 | AA137: 132.8414777 | AB137: 191.79 | AC137: 94.29723327 | AD137: 184.4347826 | AE137: 534.62 | AM137: n.d. | AN137: 1.5032 | AO137: n.d. | AP137: n.d. | AQ137: 0.938282 | AR137: 116.7213636 | AS137: 9.773727273 | AT137: =IF(AND('Tipos de Cambio'!$J$6<>1,'Tipos de Cambio'!$J$6<>2,'Tipos de Cambio'!$J$6<>3,'Tipos de Cambio'!$J$6<>4,'Tipos de Cambio'!$J$6<>5,'Tipos de Cambio'!$J$6<>6,'Tipos de Cambio'!$J$6<>7),LOOKUP(1,'Datos mensuales'!$AM$2:$AS$2,'Datos mensuales'!$AM137:$AS137),LOOKUP('Tipos de Cambio'!$J$6,'Datos mensuales'!$AM$2:$AS$2,'Datos mensuales'!$AM137:$AS137)) -> n.d. | AU137: 5.53091 | AV137: 5.15 | AW137: n.d. | AX137: n.d. | AY137: n.d. | AZ137: n.d. | BA137: n.d. | BB137: n.d. | BC137: 115.7 | BD137: 170.4 | BE137: 79.3 | BF137: 100 | BG137: 0.2867197093 | BH137: 0.2729138052 | BI137: 0.6400559422 | BJ137: 10887.36 | BK137: 2772.73 | BL137: 1366.01
B138: febrero | D138: n.d. | E138: -2.402647666 | F138: n.d. | G138: 3.533568905 | H138: 1.900584795 | I138: -0.2941176471 | J138: 7.090209093 | T138: 29.61 | U138: 27.5 | V138: -2.11 | W138: 261.865 | X138: 47.49 | Y138: 60.4 | Z138: 67.19 | AA138: 128.1159798 | AB138: 185.07 | AC138: 92.37751482 | AD138: 185.1 | AE138: 687.22 | AM138: n.d. | AN138: 1.5213 | AO138: n.d. | AP138: n.d. | AQ138: 0.9217050001 | AR138: 115.4969779 | AS138: 9.534521803 | AT138: =IF(AND('Tipos de Cambio'!$J$6<>1,'Tipos de Cambio'!$J$6<>2,'Tipos de Cambio'!$J$6<>3,'Tipos de Cambio'!$J$6<>4,'Tipos de Cambio'!$J$6<>5,'Tipos de Cambio'!$J$6<>6,'Tipos de Cambio'!$J$6<>7),LOOKUP(1,'Datos mensuales'!$AM$2:$AS$2,'Datos mensuales'!$AM138:$AS138),LOOKUP('Tipos de Cambio'!$J$6,'Datos mensuales'!$AM$2:$AS$2,'Datos mensuales'!$AM138:$AS138)) -> n.d. | AU138: 5.20247 | AV138: 4.89 | AW138: n.d. | AX138: n.d. | AY138: n.d. | AZ138: n.d. | BA138: n.d. | BB138: n.d. | BC138: 109.2 | BD138: 167.1 | BE138: 70.7 | BF138: 100 | BG138: -0.6337623692 | BH138: -0.5712584759 | BI138: 0.4614661943 | BJ138: 10495.28 | BK138: 2151.83 | BL138: 1239.94
B139: marzo | D139: n.d. | E139: -1.948284792 | F139: n.d. | G139: 2.920560748 | H139: 2.186834137 | I139: -0.6849315068 | J139: 7.174546197 | T139: 27.25 | U139: 24.52 | V139: -2.73 | W139: 263.03 | X139: 47.51 | Y139: 54.56 | Z139: 66.5 | AA139: 130.2838561 | AB139: 210.9 | AC139: 91.01215357 | AD139: 177.0909091 | AE139: 540.82 | AM139: n.d. | AN139: 1.55797 | AO139: n.d. | AP139: n.d. | AQ139: 0.9095230003 | AR139: 121.4466667 | AS139: 9.60297619 | AT139: =IF(AND('Tipos de Cambio'!$J$6<>1,'Tipos de Cambio'!$J$6<>2,'Tipos de Cambio'!$J$6<>3,'Tipos de Cambio'!$J$6<>4,'Tipos de Cambio'!$J$6<>5,'Tipos de Cambio'!$J$6<>6,'Tipos de Cambio'!$J$6<>7),LOOKUP(1,'Datos mensuales'!$AM$2:$AS$2,'Datos mensuales'!$AM139:$AS139),LOOKUP('Tipos de Cambio'!$J$6,'Datos mensuales'!$AM$2:$AS$2,'Datos mensuales'!$AM139:$AS139)) -> n.d. | AU139: 4.80858 | AV139: 4.44 | AW139: n.d. | AX139: n.d. | AY139: n.d. | AZ139: n.d. | BA139: n.d. | BB139: n.d. | BC139: 116.9 | BD139: 167.5 | BE139: 83.1 | BF139: 100 | BG139: -1.350026471 | BH139: -1.45211129 | BI139: 0.2937585261 | BJ139: 9878.78 | BK139: 1840.26 | BL139: 1160.33
B140: abril | D140: n.d. | E140: -1.482948382 | F140: n.d. | G140: 3.269118506 | H140: 2.7447905 | I140: -0.7804878049 | J140: 7.105778932 | T140: 27.49 | U140: 25.64 | V140: -1.85 | W140: 260.4789 | X140: 47.41 | Y140: 51.16 | Z140: 66.13 | AA140: 129.3026921 | AB140: 208.96 | AC140: 87.54506652 | AD140: 162.0952381 | AE140: 551.16 | AM140: n.d. | AN140: 1.55749 | AO140: n.d. | AP140: n.d. | AQ140: 0.8920000001 | AR140: 123.7709524 | AS140: 9.327595238 | AT140: =IF(AND('Tipos de Cambio'!$J$6<>1,'Tipos de Cambio'!$J$6<>2,'Tipos de Cambio'!$J$6<>3,'Tipos de Cambio'!$J$6<>4,'Tipos de Cambio'!$J$6<>5,'Tipos de Cambio'!$J$6<>6,'Tipos de Cambio'!$J$6<>7),LOOKUP(1,'Datos mensuales'!$AM$2:$AS$2,'Datos mensuales'!$AM140:$AS140),LOOKUP('Tipos de Cambio'!$J$6,'Datos mensuales'!$AM$2:$AS$2,'Datos mensuales'!$AM140:$AS140)) -> n.d. | AU140: 4.47553 | AV140: 3.99 | AW140: n.d. | AX140: n.d. | AY140: n.d. | AZ140: n.d. | BA140: n.d. | BB140: n.d. | BC140: 109.9 | BD140: 156 | BE140: 79.1 | BF140: 100 | BG140: -2.36136344 | BH140: -2.360291395 | BI140: 0.1386151912 | BJ140: 10734.97 | BK140: 2116.24 | BL140: 1249.46
B141: mayo | D141: n.d. | E141: -1.4874763 | F141: n.d. | G141: 3.61516035 | H141: 3.122901276 | I141: -0.7797270955 | J141: 6.951739883 | T141: 28.63 | U141: 28.29 | V141: -0.34 | W141: 272.3548 | X141: 47.07 | Y141: 49.97 | Z141: 69.22 | AA141: 135.0002556 | AB141: 194.01 | AC141: 85.07752309 | AD141: 164.2608696 | AE141: 636.58 | AM141: n.d. | AN141: 1.54745 | AO141: n.d. | AP141: n.d. | AQ141: 0.8741640004 | AR141: 121.723913 | AS141: 9.188304348 | AT141: =IF(AND('Tipos de Cambio'!$J$6<>1,'Tipos de Cambio'!$J$6<>2,'Tipos de Cambio'!$J$6<>3,'Tipos de Cambio'!$J$6<>4,'Tipos de Cambio'!$J$6<>5,'Tipos de Cambio'!$J$6<>6,'Tipos de Cambio'!$J$6<>7),LOOKUP(1,'Datos mensuales'!$AM$2:$AS$2,'Datos mensuales'!$AM141:$AS141),LOOKUP('Tipos de Cambio'!$J$6,'Datos mensuales'!$AM$2:$AS$2,'Datos mensuales'!$AM141:$AS141)) -> n.d. | AU141: 4.08448 | AV141: 3.74 | AW141: n.d. | AX141: n.d. | AY141: n.d. | AZ141: n.d. | BA141: n.d. | BB141: n.d. | BC141: 116.1 | BD141: 159.6 | BE141: 87.1 | BF141: 100 | BG141: -3.279882595 | BH141: -3.259177207 | BI141: -0.002400306214 | BJ141: 10911.94 | BK141: 2110.49 | BL141: 1255.82
B142: junio | D142: n.d. | E142: -1.11838063 | F142: n.d. | G142: 3.248259861 | H142: 2.832292596 | I142: -0.87890625 | J142: 6.573435246 | T142: 27.6 | U142: 27.82 | V142: 0.22 | W142: 270.231 | X142: 46.39 | Y142: 47.46 | Z142: 63.9 | AA142: 127.2295388 | AB142: 209.17 | AC142: 83.16066599 | AD142: 167.7619048 | AE142: 609.72 | AM142: n.d. | AN142: 1.524533333 | AO142: n.d. | AP142: n.d. | AQ142: 0.8531669997 | AR142: 122.3509524 | AS142: 9.088095238 | AT142: =IF(AND('Tipos de Cambio'!$J$6<>1,'Tipos de Cambio'!$J$6<>2,'Tipos de Cambio'!$J$6<>3,'Tipos de Cambio'!$J$6<>4,'Tipos de Cambio'!$J$6<>5,'Tipos de Cambio'!$J$6<>6,'Tipos de Cambio'!$J$6<>7),LOOKUP(1,'Datos mensuales'!$AM$2:$AS$2,'Datos mensuales'!$AM142:$AS142),LOOKUP('Tipos de Cambio'!$J$6,'Datos mensuales'!$AM$2:$AS$2,'Datos mensuales'!$AM142:$AS142)) -> n.d. | AU142: 3.83006 | AV142: 3.56 | AW142: n.d. | AX142: n.d. | AY142: n.d. | AZ142: n.d. | BA142: n.d. | BB142: n.d. | BC142: 118.9 | BD142: 156.8 | BE142: 93.5 | BF142: 100 | BG142: -3.997248334 | BH142: -3.935454141 | BI142: -0.1278926733 | BJ142: 10502.4 | BK142: 2161.24 | BL142: 1224.42
B143: julio | D143: n.d. | E143: -0.8403521418 | F143: n.d. | G143: 2.719907407 | H143: 2.551247772 | I143: -0.7843137255 | J143: 5.8834976 | T143: 26.43 | U143: 24.62 | V143: -1.81 | W143: 267.5318 | X143: 46.32 | Y143: 45.57 | Z143: 58.72 | AA143: 123.7853304 | AB143: 279.63 | AC143: 90.75466954 | AD143: 169.7272727 | AE143: 697.56 | AM143: n.d. | AN143: 1.53037 | AO143: n.d. | AP143: n.d. | AQ143: 0.8606639998 | AR143: 124.4518182 | AS143: 9.161954545 | AT143: =IF(AND('Tipos de Cambio'!$J$6<>1,'Tipos de Cambio'!$J$6<>2,'Tipos de Cambio'!$J$6<>3,'Tipos de Cambio'!$J$6<>4,'Tipos de Cambio'!$J$6<>5,'Tipos de Cambio'!$J$6<>6,'Tipos de Cambio'!$J$6<>7),LOOKUP(1,'Datos mensuales'!$AM$2:$AS$2,'Datos mensuales'!$AM143:$AS143),LOOKUP('Tipos de Cambio'!$J$6,'Datos mensuales'!$AM$2:$AS$2,'Datos mensuales'!$AM143:$AS143)) -> n.d. | AU143: 3.79111 | AV143: 3.56 | AW143: n.d. | AX143: n.d. | AY143: n.d. | AZ143: n.d. | BA143: n.d. | BB143: n.d. | BC143: 116.3 | BD143: 151.3 | BE143: 92.9 | BF143: 100 | BG143: -4.39631023 | BH143: -4.274621969 | BI143: -0.2366855842 | BJ143: 10522.81 | BK143: 2027.13 | BL143: 1211.23
B144: agosto | D144: n.d. | E144: -1.123616969 | F144: n.d. | G144: 2.719907407 | H144: 2.348358375 | I144: -0.78125 | J144: 5.928756624 | T144: 27.37 | U144: 25.66 | V144: -1.71 | W144: 272.3864 | X144: 46.94 | Y144: 43.35 | Z144: 59.72 | AA144: 121.9231542 | AB144: 312.62 | AC144: 92.87903164 | AD144: 168.7391304 | AE144: 683.43 | AM144: n.d. | AN144: 1.54016 | AO144: n.d. | AP144: n.d. | AQ144: 0.9004829997 | AR144: 121.355 | AS144: 9.13367 | AT144: =IF(AND('Tipos de Cambio'!$J$6<>1,'Tipos de Cambio'!$J$6<>2,'Tipos de Cambio'!$J$6<>3,'Tipos de Cambio'!$J$6<>4,'Tipos de Cambio'!$J$6<>5,'Tipos de Cambio'!$J$6<>6,'Tipos de Cambio'!$J$6<>7),LOOKUP(1,'Datos mensuales'!$AM$2:$AS$2,'Datos mensuales'!$AM144:$AS144),LOOKUP('Tipos de Cambio'!$J$6,'Datos mensuales'!$AM$2:$AS$2,'Datos mensuales'!$AM144:$AS144)) -> n.d. | AU144: 3.57105 | AV144: 3.39 | AW144: n.d. | AX144: n.d. | AY144: n.d. | AZ144: n.d. | BA144: n.d. | BB144: n.d. | BC144: 114 | BD144: 144.5 | BE144: 93.7 | BF144: 100 | BG144: -4.262281586 | BH144: -4.513982945 | BI144: -0.3278581113 | BJ144: 9949.75 | BK144: 1805.43 | BL144: 1133.58
B145: septiembre | D145: n.d. | E145: -1.122566233 | F145: n.d. | G145: 2.648244099 | H145: 2.160186108 | I145: -0.782778865 | J145: 6.139489492 | T145: 26.2 | U145: 25.62 | V145: -0.58 | W145: 283.42 | X145: 47.09 | Y145: 41.26 | Z145: 58.07 | AA145: 122.0312286 | AB145: 259.56 | AC145: 89.74398849 | AD145: 173 | AE145: 571.82 | AM145: n.d. | AN145: 1.567938889 | AO145: n.d. | AP145: n.d. | AQ145: 0.911095 | AR145: 118.926 | AS145: 9.41739 | AT145: =IF(AND('Tipos de Cambio'!$J$6<>1,'Tipos de Cambio'!$J$6<>2,'Tipos de Cambio'!$J$6<>3,'Tipos de Cambio'!$J$6<>4,'Tipos de Cambio'!$J$6<>5,'Tipos de Cambio'!$J$6<>6,'Tipos de Cambio'!$J$6<>7),LOOKUP(1,'Datos mensuales'!$AM$2:$AS$2,'Datos mensuales'!$AM145:$AS145),LOOKUP('Tipos de Cambio'!$J$6,'Datos mensuales'!$AM$2:$AS$2,'Datos mensuales'!$AM145:$AS145)) -> n.d. | AU145: 3.00113 | AV145: 2.71 | AW145: n.d. | AX145: n.d. | AY145: n.d. | AZ145: n.d. | BA145: n.d. | BB145: n.d. | BC145: 97 | BD145: 125.4 | BE145: 78.1 | BF145: 100 | BG145: -4.959970821 | BH145: -4.867332498 | BI145: -0.4007588483 | BJ145: 8847.56 | BK145: 1498.8 | BL145: 1040.94
B146: octubre | D146: n.d. | E146: -1.216079938 | F146: n.d. | G146: 2.126436782 | H146: 2.248809128 | I146: -0.782778865 | J146: 5.890031744 | T146: 22.17 | U146: 20.55 | V146: -1.62 | W146: 283.0609 | X146: 46.64 | Y146: 37.22 | Z146: 56.4 | AA146: 123.3369866 | AB146: 232.09 | AC146: 86.26773913 | AD146: 170.8695652 | AE146: 483.64 | AM146: n.d. | AN146: 1.571677273 | AO146: n.d. | AP146: n.d. | AQ146: 0.9058650003 | AR146: 121.417 | AS146: 9.33908 | AT146: =IF(AND('Tipos de Cambio'!$J$6<>1,'Tipos de Cambio'!$J$6<>2,'Tipos de Cambio'!$J$6<>3,'Tipos de Cambio'!$J$6<>4,'Tipos de Cambio'!$J$6<>5,'Tipos de Cambio'!$J$6<>6,'Tipos de Cambio'!$J$6<>7),LOOKUP(1,'Datos mensuales'!$AM$2:$AS$2,'Datos mensuales'!$AM146:$AS146),LOOKUP('Tipos de Cambio'!$J$6,'Datos mensuales'!$AM$2:$AS$2,'Datos mensuales'!$AM146:$AS146)) -> n.d. | AU146: 2.34255 | AV146: 2.17 | AW146: n.d. | AX146: n.d. | AY146: n.d. | AZ146: n.d. | BA146: n.d. | BB146: n.d. | BC146: 85.3 | BD146: 107.2 | BE146: 70.7 | BF146: 100 | BG146: -5.102946877 | BH146: -5.242975401 | BI146: -0.4550155883 | BJ146: 9075.14 | BK146: 1690.2 | BL146: 1059.78
B147: noviembre | D147: n.d. | E147: -1.401895419 | F147: n.d. | G147: 1.895462378 | H147: 1.968155683 | I147: -0.9813542689 | J147: 5.387833305 | T147: 19.64 | U147: 18.76 | V147: -0.88 | W147: 276.1636 | X147: 47.02 | Y147: 37.88 | Z147: 58.85 | AA147: 125.2714796 | AB147: 281.51 | AC147: 89.88255424 | AD147: 170 | AE147: 496.04 | AM147: n.d. | AN147: 1.592245 | AO147: n.d. | AP147: n.d. | AQ147: 0.888309 | AR147: 122.312 | AS147: 9.22498 | AT147: =IF(AND('Tipos de Cambio'!$J$6<>1,'Tipos de Cambio'!$J$6<>2,'Tipos de Cambio'!$J$6<>3,'Tipos de Cambio'!$J$6<>4,'Tipos de Cambio'!$J$6<>5,'Tipos de Cambio'!$J$6<>6,'Tipos de Cambio'!$J$6<>7),LOOKUP(1,'Datos mensuales'!$AM$2:$AS$2,'Datos mensuales'!$AM147:$AS147),LOOKUP('Tipos de Cambio'!$J$6,'Datos mensuales'!$AM$2:$AS$2,'Datos mensuales'!$AM147:$AS147)) -> n.d. | AU147: 2.10651 | AV147: 1.92 | AW147: n.d. | AX147: n.d. | AY147: n.d. | AZ147: n.d. | BA147: n.d. | BB147: n.d. | BC147: 84.9 | BD147: 96.2 | BE147: 77.3 | BF147: 100 | BG147: -5.610550334 | BH147: -5.426258212 | BI147: -0.4905551422 | BJ147: 9851.56 | BK147: 1930.58 | BL147: 1139.45
B148: diciembre | D148: n.d. | E148: -3.561386878 | F148: n.d. | G148: 1.551724138 | H148: 2.048909451 | I148: -1.176470588 | J148: 4.403498559 | T148: 19.39 | U148: 18.71 | V148: -0.68 | W148: 275.8471 | X148: 47.24 | Y148: 42.87 | Z148: 56.72 | AA148: 122.5330622 | AB148: 295.47 | AC148: 92.31151517 | AD148: 179.3809524 | AE148: 506.37 | AM148: n.d. | AN148: 1.578031579 | AO148: n.d. | AP148: n.d. | AQ148: 0.892372 | AR148: 127.594 | AS148: 9.15738 | AT148: =IF(AND('Tipos de Cambio'!$J$6<>1,'Tipos de Cambio'!$J$6<>2,'Tipos de Cambio'!$J$6<>3,'Tipos de Cambio'!$J$6<>4,'Tipos de Cambio'!$J$6<>5,'Tipos de Cambio'!$J$6<>6,'Tipos de Cambio'!$J$6<>7),LOOKUP(1,'Datos mensuales'!$AM$2:$AS$2,'Datos mensuales'!$AM148:$AS148),LOOKUP('Tipos de Cambio'!$J$6,'Datos mensuales'!$AM$2:$AS$2,'Datos mensuales'!$AM148:$AS148)) -> n.d. | AU148: 1.98829 | AV148: 1.82 | AW148: n.d. | AX148: n.d. | AY148: n.d. | AZ148: n.d. | BA148: n.d. | BB148: n.d. | BC148: 94.6 | BD148: 97.8 | BE148: 92.4 | BF148: 100 | BG148: -5.312001043 | BH148: -5.095245076 | BI148: -0.5076279101 | BJ148: 10021.5 | BK148: 1950.4 | BL148: 1148.08
A149: 2002 | B149: enero | D149: n.d. | E149: -1 | F149: n.d. | G149: 1.142204455 | H149: 2.611775122 | I149: -1.37254902 | J149: 4.786357111 | T149: 19.72 | U149: 19.42 | V149: -0.3 | W149: 281.5114 | X149: 46.74 | Y149: 43.42 | Z149: 58.25 | AA149: 125.3104074 | AB149: 310.3 | AC149: 91.96696059 | AD149: 191.1304348 | AE149: 428.52 | AM149: n.d. | AN149: 1.59971 | AO149: n.d. | AP149: n.d. | AQ149: 0.8832860001 | AR149: 132.628 | AS149: 9.16362 | AT149: =IF(AND('Tipos de Cambio'!$J$6<>1,'Tipos de Cambio'!$J$6<>2,'Tipos de Cambio'!$J$6<>3,'Tipos de Cambio'!$J$6<>4,'Tipos de Cambio'!$J$6<>5,'Tipos de Cambio'!$J$6<>6,'Tipos de Cambio'!$J$6<>7),LOOKUP(1,'Datos mensuales'!$AM$2:$AS$2,'Datos mensuales'!$AM149:$AS149),LOOKUP('Tipos de Cambio'!$J$6,'Datos mensuales'!$AM$2:$AS$2,'Datos mensuales'!$AM149:$AS149)) -> n.d. | AU149: 1.93418 | AV149: 1.77 | AW149: 1.82 | AX149: 3.34 | AY149: 0.09 | AZ149: 5 | BA149: 5.02 | BB149: 1.42 | BC149: 97.8 | BD149: 98.1 | BE149: 97.6 | BF149: 100 | BG149: -4.026889697 | BH149: -4.279750966 | BI149: -0.506819486 | BJ149: 9920 | BK149: 1934.03 | BL149: 1130.2
B150: febrero | D150: n.d. | E150: 0 | F150: n.d. | G150: 1.137656428 | H150: 2.516278556 | I150: -1.573254671 | J150: 4.788344305 | T150: 20.72 | U150: 20.28 | V150: -0.44 | W150: 295.495 | X150: 46.04 | Y150: 42.81 | Z150: 59.12 | AA150: 123.2846711 | AB150: 296.77 | AC150: 90.72819384 | AD150: 194.35 | AE150: 516.71 | AM150: n.d. | AN150: 1.59612 | AO150: n.d. | AP150: n.d. | AQ150: 0.870035 | AR150: 133.647 | AS150: 9.10584 | AT150: =IF(AND('Tipos de Cambio'!$J$6<>1,'Tipos de Cambio'!$J$6<>2,'Tipos de Cambio'!$J$6<>3,'Tipos de Cambio'!$J$6<>4,'Tipos de Cambio'!$J$6<>5,'Tipos de Cambio'!$J$6<>6,'Tipos de Cambio'!$J$6<>7),LOOKUP(1,'Datos mensuales'!$AM$2:$AS$2,'Datos mensuales'!$AM150:$AS150),LOOKUP('Tipos de Cambio'!$J$6,'Datos mensuales'!$AM$2:$AS$2,'Datos mensuales'!$AM150:$AS150)) -> n.d. | AU150: 2.03559 | AV150: 1.86 | AW150: 1.9 | AX150: 3.36 | AY150: 0.1 | AZ150: 4.9 | BA150: 5.07 | BB150: 1.52 | BC150: 95 | BD150: 96.4 | BE150: 94 | BF150: 100 | BG150: -3.4127442 | BH150: -3.372045911 | BI150: -0.4890283713 | BJ150: 10106.13 | BK150: 1731.49 | BL150: 1106.73
B151: marzo | D151: n.d. | E151: -0.8 | F151: n.d. | G151: 1.475595914 | H151: 2.502194908 | I151: -1.18226601 | J151: 4.661247249 | T151: 24.53 | U151: 23.7 | V151: -0.83 | W151: 294.055 | X151: 44.56 | Y151: 42.04 | Z151: 64.47 | AA151: 122.5562955 | AB151: 302.45 | AC151: 89.85794911 | AD151: 189.2857143 | AE151: 571.82 | AM151: n.d. | AN151: 1.58774 | AO151: n.d. | AP151: n.d. | AQ151: 0.8758000003 | AR151: 131.061 | AS151: 9.073 | AT151: =IF(AND('Tipos de Cambio'!$J$6<>1,'Tipos de Cambio'!$J$6<>2,'Tipos de Cambio'!$J$6<>3,'Tipos de Cambio'!$J$6<>4,'Tipos de Cambio'!$J$6<>5,'Tipos de Cambio'!$J$6<>6,'Tipos de Cambio'!$J$6<>7),LOOKUP(1,'Datos mensuales'!$AM$2:$AS$2,'Datos mensuales'!$AM151:$AS151),LOOKUP('Tipos de Cambio'!$J$6,'Datos mensuales'!$AM$2:$AS$2,'Datos mensuales'!$AM151:$AS151)) -> n.d. | AU151: 2.23531 | AV151: 2.06 | AW151: 1.99 | AX151: 3.39 | AY151: 0.1 | AZ151: 5.28 | BA151: 5.32 | BB151: 1.45 | BC151: 110.7 | BD151: 111.5 | BE151: 110.2 | BF151: 100 | BG151: -2.369397155 | BH151: -2.479875248 | BI151: -0.4554109449 | BJ151: 10403.94 | BK151: 1845.35 | BL151: 1147.39
B152: abril | D152: n.d. | E152: -1.3 | F152: n.d. | G152: 1.639344262 | H152: 2.300730564 | I152: -1.081612586 | J152: 4.704792186 | T152: 26.18 | U152: 25.73 | V152: -0.45 | W152: 302.6833 | X152: 43.44 | Y152: 41.38 | Z152: 65.43 | AA152: 123.7217713 | AB152: 311.15 | AC152: 87.10664777 | AD152: 189.5 | AE152: 544.27 | AM152: n.d. | AN152: 1.58133 | AO152: n.d. | AP152: n.d. | AQ152: 0.885843 | AR152: 130.816 | AS152: 9.1662 | AT152: =IF(AND('Tipos de Cambio'!$J$6<>1,'Tipos de Cambio'!$J$6<>2,'Tipos de Cambio'!$J$6<>3,'Tipos de Cambio'!$J$6<>4,'Tipos de Cambio'!$J$6<>5,'Tipos de Cambio'!$J$6<>6,'Tipos de Cambio'!$J$6<>7),LOOKUP(1,'Datos mensuales'!$AM$2:$AS$2,'Datos mensuales'!$AM152:$AS152),LOOKUP('Tipos de Cambio'!$J$6,'Datos mensuales'!$AM$2:$AS$2,'Datos mensuales'!$AM152:$AS152)) -> n.d. | AU152: 2.20696 | AV152: 1.98 | AW152: 1.97 | AX152: 3.41 | AY152: 0.08 | AZ152: 5.21 | BA152: 5.3 | BB152: 1.39 | BC152: 108.5 | BD152: 106.8 | BE152: 109.6 | BF152: 100 | BG152: -1.635426035 | BH152: -1.487377838 | BI152: -0.4073223413 | BJ152: 9946.22 | BK152: 1688.23 | BL152: 1076.92
B153: mayo | D153: n.d. | E153: -1.1 | F153: n.d. | G153: 1.181767023 | H153: 2.018886356 | I153: -0.884086444 | J153: 4.676813959 | T153: 27.04 | U153: 25.35 | V153: -1.69 | W153: 314.4932 | X153: 43.71 | Y153: 39.93 | Z153: 61.4 | AA153: 121.4640638 | AB153: 337.82 | AC153: 90.33130502 | AD153: 198.3043478 | AE153: 625.56 | AM153: n.d. | AN153: 1.55015 | AO153: n.d. | AP153: n.d. | AQ153: 0.9169999999 | AR153: 126.375 | AS153: 9.50989 | AT153: =IF(AND('Tipos de Cambio'!$J$6<>1,'Tipos de Cambio'!$J$6<>2,'Tipos de Cambio'!$J$6<>3,'Tipos de Cambio'!$J$6<>4,'Tipos de Cambio'!$J$6<>5,'Tipos de Cambio'!$J$6<>6,'Tipos de Cambio'!$J$6<>7),LOOKUP(1,'Datos mensuales'!$AM$2:$AS$2,'Datos mensuales'!$AM153:$AS153),LOOKUP('Tipos de Cambio'!$J$6,'Datos mensuales'!$AM$2:$AS$2,'Datos mensuales'!$AM153:$AS153)) -> n.d. | AU153: 2.10051 | AV153: 1.91 | AW153: 1.91 | AX153: 3.46 | AY153: 0.08 | AZ153: 5.15 | BA153: 5.3 | BB153: 1.38 | BC153: 110.3 | BD153: 111.2 | BE153: 109.7 | BF153: 100 | BG153: -0.4876633773 | BH153: -0.3279958613 | BI153: -0.3462589033 | BJ153: 9925.25 | BK153: 1615.73 | BL153: 1067.14
B154: junio | D154: n.d. | E154: -0.8 | F154: n.d. | G154: 1.06741573 | H154: 1.919323357 | I154: -0.6896551724 | J154: 4.938986424 | T154: 25.52 | U154: 24.08 | V154: -1.44 | W154: 321.1778 | X154: 44.07 | Y154: 43.48 | Z154: 58.57 | AA154: 132.0341406 | AB154: 376 | AC154: 93.16980013 | AD154: 202 | AE154: 647.61 | AM154: n.d. | AN154: 1.53184 | AO154: n.d. | AP154: n.d. | AQ154: 0.9554400001 | AR154: 123.29 | AS154: 9.76708 | AT154: =IF(AND('Tipos de Cambio'!$J$6<>1,'Tipos de Cambio'!$J$6<>2,'Tipos de Cambio'!$J$6<>3,'Tipos de Cambio'!$J$6<>4,'Tipos de Cambio'!$J$6<>5,'Tipos de Cambio'!$J$6<>6,'Tipos de Cambio'!$J$6<>7),LOOKUP(1,'Datos mensuales'!$AM$2:$AS$2,'Datos mensuales'!$AM154:$AS154),LOOKUP('Tipos de Cambio'!$J$6,'Datos mensuales'!$AM$2:$AS$2,'Datos mensuales'!$AM154:$AS154)) -> n.d. | AU154: 2.00177 | AV154: 1.83 | AW154: 1.88 | AX154: 3.46 | AY154: 0.07 | AZ154: 4.9 | BA154: 5.16 | BB154: 1.36 | BC154: 106.3 | BD154: 104.9 | BE154: 107.2 | BF154: 100 | BG154: 1.13672355 | BH154: 0.7756631746 | BI154: -0.2737957075 | BJ154: 9243.26 | BK154: 1463.21 | BL154: 989.81
B155: julio | D155: n.d. | E155: -0.9 | F155: n.d. | G155: 1.464788732 | H155: 2.020640956 | I155: -0.790513834 | J155: 5.514387276 | T155: 26.97 | U155: 25.74 | V155: -1.23 | W155: 313.2913 | X155: 45.7 | Y155: 46.59 | Z155: 56.48 | AA155: 149.3049887 | AB155: 369.21 | AC155: 99.70000268 | AD155: 199.6086957 | AE155: 536.82 | AM155: n.d. | AN155: 1.54555 | AO155: n.d. | AP155: n.d. | AQ155: 0.9921829999 | AR155: 117.899 | AS155: 9.77917 | AT155: =IF(AND('Tipos de Cambio'!$J$6<>1,'Tipos de Cambio'!$J$6<>2,'Tipos de Cambio'!$J$6<>3,'Tipos de Cambio'!$J$6<>4,'Tipos de Cambio'!$J$6<>5,'Tipos de Cambio'!$J$6<>6,'Tipos de Cambio'!$J$6<>7),LOOKUP(1,'Datos mensuales'!$AM$2:$AS$2,'Datos mensuales'!$AM155:$AS155),LOOKUP('Tipos de Cambio'!$J$6,'Datos mensuales'!$AM$2:$AS$2,'Datos mensuales'!$AM155:$AS155)) -> n.d. | AU155: 1.90524 | AV155: 1.74 | AW155: 1.85 | AX155: 3.41 | AY155: 0.07 | AZ155: 4.62 | BA155: 5.03 | BB155: 1.3 | BC155: 97.4 | BD155: 99.4 | BE155: 96.1 | BF155: 100 | BG155: 1.439217723 | BH155: 1.443538518 | BI155: -0.1915126911 | BJ155: 8736.59 | BK155: 1328.26 | BL155: 911.62
B156: agosto | D156: n.d. | E156: -0.7 | F156: n.d. | G156: 1.802816901 | H156: 2.120487168 | I156: -0.8858267717 | J156: 5.291754472 | T156: 28.39 | U156: 26.65 | V156: -1.74 | W156: 310.2548 | X156: 46.1 | Y156: 49.43 | Z156: 54.27 | AA156: 161.2589341 | AB156: 391.51 | AC156: 109.8910018 | AD156: 191.3181818 | AE156: 420.26 | AM156: n.d. | AN156: 1.5692 | AO156: n.d. | AP156: n.d. | AQ156: 0.9777590001 | AR156: 119 | AS156: 9.83871 | AT156: =IF(AND('Tipos de Cambio'!$J$6<>1,'Tipos de Cambio'!$J$6<>2,'Tipos de Cambio'!$J$6<>3,'Tipos de Cambio'!$J$6<>4,'Tipos de Cambio'!$J$6<>5,'Tipos de Cambio'!$J$6<>6,'Tipos de Cambio'!$J$6<>7),LOOKUP(1,'Datos mensuales'!$AM$2:$AS$2,'Datos mensuales'!$AM156:$AS156),LOOKUP('Tipos de Cambio'!$J$6,'Datos mensuales'!$AM$2:$AS$2,'Datos mensuales'!$AM156:$AS156)) -> n.d. | AU156: 1.76385 | AV156: 1.64 | AW156: 1.78 | AX156: 3.35 | AY156: 0.07 | AZ156: 4.24 | BA156: 4.73 | BB156: 1.26 | BC156: 94.5 | BD156: 93.1 | BE156: 95.5 | BF156: 100 | BG156: 1.663306338 | BH156: 1.774946789 | BI156: -0.1009260022 | BJ156: 8663.5 | BK156: 1314.85 | BL156: 916.07
B157: septiembre | D157: n.d. | E157: -0.7 | F157: n.d. | G157: 1.514301739 | H157: 2.103665149 | I157: -0.6903353057 | J157: 4.948115226 | T157: 29.66 | U157: 28.4 | V157: -1.26 | W157: 319.1357 | X157: 47.44 | Y157: 49.02 | Z157: 60.67 | AA157: 187.8428099 | AB157: 369.4 | AC157: 113.9414542 | AD157: 188.4761905 | AE157: 485.71 | AM157: n.d. | AN157: 1.57614 | AO157: n.d. | AP157: n.d. | AQ157: 0.9807950001 | AR157: 121.078 | AS157: 10.0708 | AT157: =IF(AND('Tipos de Cambio'!$J$6<>1,'Tipos de Cambio'!$J$6<>2,'Tipos de Cambio'!$J$6<>3,'Tipos de Cambio'!$J$6<>4,'Tipos de Cambio'!$J$6<>5,'Tipos de Cambio'!$J$6<>6,'Tipos de Cambio'!$J$6<>7),LOOKUP(1,'Datos mensuales'!$AM$2:$AS$2,'Datos mensuales'!$AM157:$AS157),LOOKUP('Tipos de Cambio'!$J$6,'Datos mensuales'!$AM$2:$AS$2,'Datos mensuales'!$AM157:$AS157)) -> n.d. | AU157: 1.77994 | AV157: 1.64 | AW157: 1.8 | AX157: 3.31 | AY157: 0.07 | AZ157: 3.88 | BA157: 4.52 | BB157: 1.16 | BC157: 93.7 | BD157: 88.5 | BE157: 97.2 | BF157: 100 | BG157: 2.124702663 | BH157: 2.114322247 | BI157: -0.003449107312 | BJ157: 7591.93 | BK157: 1172.06 | BL157: 815.28
B158: octubre | D158: n.d. | E158: -0.8 | F158: n.d. | G158: 2.025886325 | H158: 2.296858072 | I158: -0.8875739645 | J158: 4.936411903 | T158: 28.84 | U158: 27.54 | V158: -1.3 | W158: 316.5565 | X158: 48.13 | Y158: 49.56 | Z158: 65.73 | AA158: 190.3162178 | AB158: 372.8 | AC158: 109.6468099 | AD158: 185.4782609 | AE158: 544.27 | AM158: n.d. | AN158: 1.57801 | AO158: n.d. | AP158: n.d. | AQ158: 0.9811231898 | AR158: 123.908 | AS158: 10.0941 | AT158: =IF(AND('Tipos de Cambio'!$J$6<>1,'Tipos de Cambio'!$J$6<>2,'Tipos de Cambio'!$J$6<>3,'Tipos de Cambio'!$J$6<>4,'Tipos de Cambio'!$J$6<>5,'Tipos de Cambio'!$J$6<>6,'Tipos de Cambio'!$J$6<>7),LOOKUP(1,'Datos mensuales'!$AM$2:$AS$2,'Datos mensuales'!$AM158:$AS158),LOOKUP('Tipos de Cambio'!$J$6,'Datos mensuales'!$AM$2:$AS$2,'Datos mensuales'!$AM158:$AS158)) -> n.d. | AU158: 1.73677 | AV158: 1.59 | AW158: 1.78 | AX158: 3.26 | AY158: 0.07 | AZ158: 3.91 | BA158: 4.62 | BB158: 1.09 | BC158: 79.4 | BD158: 77.5 | BE158: 80.7 | BF158: 100 | BG158: 2.312859655 | BH158: 2.562337354 | BI158: 0.09962320216 | BJ158: 8397.03 | BK158: 1329.75 | BL158: 885.76
B159: noviembre | D159: n.d. | E159: -0.7 | F159: n.d. | G159: 2.198421646 | H159: 2.28800694 | I159: -0.396432111 | J159: 5.388107513 | T159: 26.35 | U159: 29.6 | V159: 3.25 | W159: 319.0667 | X159: 49.16 | Y159: 52.24 | Z159: 69.87 | AA159: 176.2615736 | AB159: 409.97 | AC159: 108.6464294 | AD159: 187.1904762 | AE159: 396.14 | AM159: n.d. | AN159: 1.57145 | AO159: n.d. | AP159: n.d. | AQ159: 1.001799231 | AR159: 121.505 | AS159: 10.1952 | AT159: =IF(AND('Tipos de Cambio'!$J$6<>1,'Tipos de Cambio'!$J$6<>2,'Tipos de Cambio'!$J$6<>3,'Tipos de Cambio'!$J$6<>4,'Tipos de Cambio'!$J$6<>5,'Tipos de Cambio'!$J$6<>6,'Tipos de Cambio'!$J$6<>7),LOOKUP(1,'Datos mensuales'!$AM$2:$AS$2,'Datos mensuales'!$AM159:$AS159),LOOKUP('Tipos de Cambio'!$J$6,'Datos mensuales'!$AM$2:$AS$2,'Datos mensuales'!$AM159:$AS159)) -> n.d. | AU159: 1.46164 | AV159: 1.3 | AW159: 1.46 | AX159: 3.12 | AY159: 0.07 | AZ159: 4.04 | BA159: 4.59 | BB159: 0.99 | BC159: 84.9 | BD159: 78.3 | BE159: 89.3 | BF159: 100 | BG159: 3.39554756 | BH159: 2.966260383 | BI159: 0.2071309743 | BJ159: 8896.09 | BK159: 1478.78 | BL159: 936.31
B160: diciembre | D160: n.d. | E160: -0.4 | F160: n.d. | G160: 2.376910017 | H160: 2.277633851 | I160: -0.2976190476 | J160: 5.700479405 | T160: 29.46 | U160: 28.33 | V160: -1.13 | W160: 331.9194 | X160: 48.56 | Y160: 54.475 | Z160: 64.16 | AA160: 168.9771242 | AB160: 433.56 | AC160: 107.0126485 | AD160: 185.2727273 | AE160: 625.22 | AM160: n.d. | AN160: 1.55922 | AO160: n.d. | AP160: n.d. | AQ160: 1.019166444 | AR160: 121.893 | AS160: 10.2251 | AT160: =IF(AND('Tipos de Cambio'!$J$6<>1,'Tipos de Cambio'!$J$6<>2,'Tipos de Cambio'!$J$6<>3,'Tipos de Cambio'!$J$6<>4,'Tipos de Cambio'!$J$6<>5,'Tipos de Cambio'!$J$6<>6,'Tipos de Cambio'!$J$6<>7),LOOKUP(1,'Datos mensuales'!$AM$2:$AS$2,'Datos mensuales'!$AM160:$AS160),LOOKUP('Tipos de Cambio'!$J$6,'Datos mensuales'!$AM$2:$AS$2,'Datos mensuales'!$AM160:$AS160)) -> n.d. | AU160: 1.42222 | AV160: 1.27 | AW160: 1.41 | AX160: 2.94 | AY160: 0.06 | AZ160: 4.03 | BA160: 4.41 | BB160: 0.97 | BC160: 80.7 | BD160: 69.6 | BE160: 88.1 | BF160: 100 | BG160: 2.882660904 | BH160: 3.118454836 | BI160: 0.3180731667 | BJ160: 8341.63 | BK160: 1335.51 | BL160: 879.82
A161: 2003 | B161: enero | D161: n.d. | E161: 0.4 | F161: n.d. | G161: 2.597402597 | H161: 2.103106126 | I161: -0.3976143141 | J161: 5.15706154 | T161: 32.95 | U161: 31.18 | V161: -1.77 | W161: 356.8591 | X161: 48.59927 | Y161: 56.71 | Z161: 65.57 | AA161: 149.5992143 | AB161: 431.32 | AC161: 105.7528656 | AD161: 199.7391304 | AE161: 560.8 | AM161: 3.43 | AN161: 1.541448 | AO161: n.d. | AP161: n.d. | AQ161: 1.06184 | AR161: 118.813 | AS161: 10.6223 | AT161: =IF(AND('Tipos de Cambio'!$J$6<>1,'Tipos de Cambio'!$J$6<>2,'Tipos de Cambio'!$J$6<>3,'Tipos de Cambio'!$J$6<>4,'Tipos de Cambio'!$J$6<>5,'Tipos de Cambio'!$J$6<>6,'Tipos de Cambio'!$J$6<>7),LOOKUP(1,'Datos mensuales'!$AM$2:$AS$2,'Datos mensuales'!$AM161:$AS161),LOOKUP('Tipos de Cambio'!$J$6,'Datos mensuales'!$AM$2:$AS$2,'Datos mensuales'!$AM161:$AS161)) -> 3.43 | AU161: 1.37293 | AV161: 1.22 | AW161: 1.37 | AX161: 2.83 | AY161: 0.06 | AZ161: 4.02 | BA161: 4.27 | BB161: 0.84 | BC161: 79 | BD161: 69.6 | BE161: 81.4 | BF161: 100 | BG161: 2.940311371 | BH161: 3.113716924 | BI161: 0.4316279926 | BJ161: 8053.81 | BK161: 1320.91 | BL161: 855.7
B162: febrero | D162: n.d. | E162: 0.2 | F162: n.d. | G162: 2.98087739 | H162: 2.368392723 | I162: -0.1998001998 | J162: 5.516997733 | T162: 35.83 | U162: 32.77 | V162: -3.06 | W162: 358.97 | X162: 48.90215 | Y162: 58.54 | Z162: 66.41 | AA162: 150.8381551 | AB162: 421.52 | AC162: 106.0371916 | AD162: 198.75 | AE162: 461.59 | AM162: 3.6 | AN162: 1.51215 | AO162: n.d. | AP162: n.d. | AQ162: 1.078422 | AR162: 119.338 | AS162: 10.9447 | AT162: =IF(AND('Tipos de Cambio'!$J$6<>1,'Tipos de Cambio'!$J$6<>2,'Tipos de Cambio'!$J$6<>3,'Tipos de Cambio'!$J$6<>4,'Tipos de Cambio'!$J$6<>5,'Tipos de Cambio'!$J$6<>6,'Tipos de Cambio'!$J$6<>7),LOOKUP(1,'Datos mensuales'!$AM$2:$AS$2,'Datos mensuales'!$AM162:$AS162),LOOKUP('Tipos de Cambio'!$J$6,'Datos mensuales'!$AM$2:$AS$2,'Datos mensuales'!$AM162:$AS162)) -> 3.6 | AU162: 1.34338 | AV162: 1.2 | AW162: 1.34 | AX162: 2.69 | AY162: 0.06 | AZ162: 3.9 | BA162: 4.06 | BB162: 0.83 | BC162: 64 | BD162: 61.6 | BE162: 65.6 | BF162: 100 | BG162: 3.214727423 | BH162: 2.885472671 | BI162: 0.5471569635 | BJ162: 7891.08 | BK162: 1337.52 | BL162: 841.15
B163: marzo | D163: n.d. | E163: 0.9 | F163: n.d. | G163: 3.020134228 | H163: 2.451820128 | I163: -0.09970089731 | J163: 5.642671095 | T163: 33.51 | U163: 30.61 | V163: -2.9 | W163: 340.55 | X163: 49.0528 | Y163: 61.01 | Z163: 61.75 | AA163: 141.8086821 | AB163: 390.13 | AC163: 105.0640156 | AD163: 196.952381 | AE163: 485.71 | AM163: 3.46 | AN163: 1.47608 | AO163: n.d. | AP163: n.d. | AQ163: 1.078454 | AR163: 118.687 | AS163: 10.9053 | AT163: =IF(AND('Tipos de Cambio'!$J$6<>1,'Tipos de Cambio'!$J$6<>2,'Tipos de Cambio'!$J$6<>3,'Tipos de Cambio'!$J$6<>4,'Tipos de Cambio'!$J$6<>5,'Tipos de Cambio'!$J$6<>6,'Tipos de Cambio'!$J$6<>7),LOOKUP(1,'Datos mensuales'!$AM$2:$AS$2,'Datos mensuales'!$AM163:$AS163),LOOKUP('Tipos de Cambio'!$J$6,'Datos mensuales'!$AM$2:$AS$2,'Datos mensuales'!$AM163:$AS163)) -> 3.46 | AU163: 1.26429 | AV163: 1.16 | AW163: 1.29 | AX163: 2.53 | AY163: 0.06 | AZ163: 3.79 | BA163: 4.13 | BB163: 0.74 | BC163: 62.5 | BD163: 63.5 | BE163: 62.5 | BF163: 100 | BG163: 2.200463279 | BH163: 2.144767803 | BI163: 0.6641993257 | BJ163: 7992.13 | BK163: 1341.17 | BL163: 848.18
B164: abril | D164: n.d. | E164: 1 | F164: n.d. | G164: 2.224694105 | H164: 2.078448092 | I164: -0.09940357853 | J164: 5.248111921 | T164: 28.17 | U164: 25 | V164: -3.17 | W164: 328.18 | X164: 48.18798 | Y164: 60.78 | Z164: 64.69 | AA164: 138.6154825 | AB164: 377.2 | AC164: 105.2537329 | AD164: 195.1818182 | AE164: 384.43 | AM164: 3.11 | AN164: 1.4582 | AO164: n.d. | AP164: n.d. | AQ164: 1.085478 | AR164: 119.895 | AS164: 10.5887 | AT164: =IF(AND('Tipos de Cambio'!$J$6<>1,'Tipos de Cambio'!$J$6<>2,'Tipos de Cambio'!$J$6<>3,'Tipos de Cambio'!$J$6<>4,'Tipos de Cambio'!$J$6<>5,'Tipos de Cambio'!$J$6<>6,'Tipos de Cambio'!$J$6<>7),LOOKUP(1,'Datos mensuales'!$AM$2:$AS$2,'Datos mensuales'!$AM164:$AS164),LOOKUP('Tipos de Cambio'!$J$6,'Datos mensuales'!$AM$2:$AS$2,'Datos mensuales'!$AM164:$AS164)) -> 3.11 | AU164: 1.27931 | AV164: 1.17 | AW164: 1.3 | AX164: 2.54 | AY164: 0.06 | AZ164: 3.94 | BA164: 4.23 | BB164: 0.66 | BC164: 81 | BD164: 84.8 | BE164: 75.2 | BF164: 100 | BG164: 0.9497611804 | BH164: 1.147849953 | BI164: 0.7824506023 | BJ164: 8480.09 | BK164: 1464.31 | BL164: 916.92
B165: mayo | D165: n.d. | E165: 0.7 | F165: n.d. | G165: 2.057842047 | H165: 1.808703054 | I165: -0.1982160555 | J165: 4.696298424 | T165: 28.11 | U165: 25.81 | V165: -2.3 | W165: 355.6825 | X165: 48.16465 | Y165: 57.8 | Z165: 66.26 | AA165: 141.9617807 | AB165: 382.12 | AC165: 107.8173535 | AD165: 197.7272727 | AE165: 296.25 | AM165: 2.94 | AN165: 1.38396 | AO165: n.d. | AP165: n.d. | AQ165: 1.15481 | AR165: 117.368 | AS165: 10.2528 | AT165: =IF(AND('Tipos de Cambio'!$J$6<>1,'Tipos de Cambio'!$J$6<>2,'Tipos de Cambio'!$J$6<>3,'Tipos de Cambio'!$J$6<>4,'Tipos de Cambio'!$J$6<>5,'Tipos de Cambio'!$J$6<>6,'Tipos de Cambio'!$J$6<>7),LOOKUP(1,'Datos mensuales'!$AM$2:$AS$2,'Datos mensuales'!$AM165:$AS165),LOOKUP('Tipos de Cambio'!$J$6,'Datos mensuales'!$AM$2:$AS$2,'Datos mensuales'!$AM165:$AS165)) -> 2.94 | AU165: 1.23334 | AV165: 1.11 | AW165: 1.28 | AX165: 2.41 | AY165: 0.06 | AZ165: 3.56 | BA165: 3.92 | BB165: 0.57 | BC165: 83.6 | BD165: 67.3 | BE165: 94.5 | BF165: 100 | BG165: 0.564385208 | BH165: 0.3754468865 | BI165: 0.9017050664 | BJ165: 8850.26 | BK165: 1595.91 | BL165: 963.59
B166: junio | D166: n.d. | E166: 0.3 | F166: n.d. | G166: 2.112284603 | H166: 1.893818491 | I166: -0.3968253968 | J166: 4.274373414 | T166: 30.66 | U166: 27.65 | V166: -3.01 | W166: 356.3524 | X166: 47.67333 | Y166: 58.5 | Z166: 61.04 | AA166: 131.3475852 | AB166: 390.44 | AC166: 106.9924957 | AD166: 203.6666667 | AE166: 308.3 | AM166: 2.88 | AN166: 1.35251 | AO166: n.d. | AP166: n.d. | AQ166: 1.167642 | AR166: 118.329 | AS166: 10.5028 | AT166: =IF(AND('Tipos de Cambio'!$J$6<>1,'Tipos de Cambio'!$J$6<>2,'Tipos de Cambio'!$J$6<>3,'Tipos de Cambio'!$J$6<>4,'Tipos de Cambio'!$J$6<>5,'Tipos de Cambio'!$J$6<>6,'Tipos de Cambio'!$J$6<>7),LOOKUP(1,'Datos mensuales'!$AM$2:$AS$2,'Datos mensuales'!$AM166:$AS166),LOOKUP('Tipos de Cambio'!$J$6,'Datos mensuales'!$AM$2:$AS$2,'Datos mensuales'!$AM166:$AS166)) -> 2.88 | AU166: 1.08146 | AV166: 0.94 | AW166: 1.12 | AX166: 2.15 | AY166: 0.06 | AZ166: 3.32 | BA166: 3.72 | BB166: 0.56 | BC166: 83.5 | BD166: 64.9 | BE166: 95.9 | BF166: 100 | BG166: -0.3519206829 | BH166: 0.05877231776 | BI166: 1.02178072 | BJ166: 8985.44 | BK166: 1622.8 | BL166: 974.5
B167: julio | D167: n.d. | E167: 0.5 | F167: n.d. | G167: 2.109938923 | H167: 1.895431796 | I167: -0.1992031873 | J167: 4.126581773 | T167: 30.76 | U167: 28.35 | V167: -2.41 | W167: 351.0196 | X167: 47.06864 | Y167: 60.21 | Z167: 62.95 | AA167: 131.6173611 | AB167: 382.83 | AC167: 97.61442466 | AD167: 199.4782609 | AE167: 296.25 | AM167: 2.87 | AN167: 1.38209 | AO167: n.d. | AP167: n.d. | AQ167: 1.137301 | AR167: 118.696 | AS167: 10.4581 | AT167: =IF(AND('Tipos de Cambio'!$J$6<>1,'Tipos de Cambio'!$J$6<>2,'Tipos de Cambio'!$J$6<>3,'Tipos de Cambio'!$J$6<>4,'Tipos de Cambio'!$J$6<>5,'Tipos de Cambio'!$J$6<>6,'Tipos de Cambio'!$J$6<>7),LOOKUP(1,'Datos mensuales'!$AM$2:$AS$2,'Datos mensuales'!$AM167:$AS167),LOOKUP('Tipos de Cambio'!$J$6,'Datos mensuales'!$AM$2:$AS$2,'Datos mensuales'!$AM167:$AS167)) -> 2.87 | AU167: 1.12332 | AV167: 0.97 | AW167: 1.11 | AX167: 2.13 | AY167: 0.05 | AZ167: 3.93 | BA167: 4.05 | BB167: 1 | BC167: 77 | BD167: 63 | BE167: 86.3 | BF167: 100 | BG167: 0.4770884027 | BH167: 0.1290212095 | BI167: 1.142457836 | BJ167: 9233.8 | BK167: 1735.02 | BL167: 990.31
B168: agosto | D168: n.d. | E168: 0.9 | F168: n.d. | G168: 2.158273381 | H168: 2.065807688 | I168: -0.2979145978 | J168: 4.043346423 | T168: 31.57 | U168: 29.89 | V168: -1.68 | W168: 359.7675 | X168: 46.85762 | Y168: 60.5 | Z168: 63.89 | AA168: 148.717181 | AB168: 361.94 | AC168: 100.3078479 | AD168: 196.4285714 | AE168: 285.91 | AM168: 2.99 | AN168: 1.39627 | AO168: n.d. | AP168: n.d. | AQ168: 1.114004 | AR168: 118.662 | AS168: 10.783 | AT168: =IF(AND('Tipos de Cambio'!$J$6<>1,'Tipos de Cambio'!$J$6<>2,'Tipos de Cambio'!$J$6<>3,'Tipos de Cambio'!$J$6<>4,'Tipos de Cambio'!$J$6<>5,'Tipos de Cambio'!$J$6<>6,'Tipos de Cambio'!$J$6<>7),LOOKUP(1,'Datos mensuales'!$AM$2:$AS$2,'Datos mensuales'!$AM168:$AS168),LOOKUP('Tipos de Cambio'!$J$6,'Datos mensuales'!$AM$2:$AS$2,'Datos mensuales'!$AM168:$AS168)) -> 2.99 | AU168: 1.19525 | AV168: 1.05 | AW168: 1.14 | AX168: 2.14 | AY168: 0.05 | AZ168: 4.44 | BA168: 4.2 | BB168: 1.15 | BC168: 81.7 | BD168: 62 | BE168: 94.9 | BF168: 100 | BG168: 0.201993672 | BH168: 0.3457683376 | BI168: 1.263449066 | BJ168: 9415.82 | BK168: 1810.45 | BL168: 1008.01
B169: septiembre | D169: n.d. | E169: 1.1 | F169: n.d. | G169: 2.320441989 | H169: 2.155904843 | I169: -0.1986097319 | J169: 4.036960174 | T169: 28.31 | U169: 27.11 | V169: -1.2 | W169: 378.9455 | X169: 46.66341 | Y169: 64.18 | Z169: 66.41 | AA169: 145.6230246 | AB169: 374.87 | AC169: 103.2150218 | AD169: 202.8636364 | AE169: 311.8 | AM169: 2.92 | AN169: 1.36337 | AO169: n.d. | AP169: n.d. | AQ169: 1.12661 | AR169: 114.8 | AS169: 10.9229 | AT169: =IF(AND('Tipos de Cambio'!$J$6<>1,'Tipos de Cambio'!$J$6<>2,'Tipos de Cambio'!$J$6<>3,'Tipos de Cambio'!$J$6<>4,'Tipos de Cambio'!$J$6<>5,'Tipos de Cambio'!$J$6<>6,'Tipos de Cambio'!$J$6<>7),LOOKUP(1,'Datos mensuales'!$AM$2:$AS$2,'Datos mensuales'!$AM169:$AS169),LOOKUP('Tipos de Cambio'!$J$6,'Datos mensuales'!$AM$2:$AS$2,'Datos mensuales'!$AM169:$AS169)) -> 2.92 | AU169: 1.18557 | AV169: 1.03 | AW169: 1.14 | AX169: 2.15 | AY169: 0.05 | AZ169: 4.29 | BA169: 4.23 | BB169: 1.45 | BC169: 77 | BD169: 59.7 | BE169: 88.5 | BF169: 100 | BG169: 0.6719676957 | BH169: 0.670192307 | BI169: 1.384396727 | BJ169: 9275.06 | BK169: 1786.94 | BL169: 995.97
B170: octubre | D170: n.d. | E170: 1.8 | F170: n.d. | G170: 2.040816327 | H170: 1.969921627 | I170: 0 | J170: 3.960210949 | T170: 30.34 | U170: 29.61 | V170: -0.73 | W170: 378.9196 | X170: 46.3507 | Y170: 72.4 | Z170: 64.3 | AA170: 147.4558337 | AB170: 449.02 | AC170: 104.1717183 | AD170: 204 | AE170: 327.9 | AM170: 2.86 | AN170: 1.3221 | AO170: n.d. | AP170: n.d. | AQ170: 1.171173 | AR170: 109.509 | AS170: 11.1796 | AT170: =IF(AND('Tipos de Cambio'!$J$6<>1,'Tipos de Cambio'!$J$6<>2,'Tipos de Cambio'!$J$6<>3,'Tipos de Cambio'!$J$6<>4,'Tipos de Cambio'!$J$6<>5,'Tipos de Cambio'!$J$6<>6,'Tipos de Cambio'!$J$6<>7),LOOKUP(1,'Datos mensuales'!$AM$2:$AS$2,'Datos mensuales'!$AM170:$AS170),LOOKUP('Tipos de Cambio'!$J$6,'Datos mensuales'!$AM$2:$AS$2,'Datos mensuales'!$AM170:$AS170)) -> 2.86 | AU170: 1.20399 | AV170: 1.02 | AW170: 1.16 | AX170: 2.14 | AY170: 0.06 | AZ170: 4.27 | BA170: 4.31 | BB170: 1.4 | BC170: 81.7 | BD170: 67 | BE170: 91.5 | BF170: 100 | BG170: 1.060303581 | BH170: 1.036520312 | BI170: 1.504879568 | BJ170: 9801.12 | BK170: 1932.21 | BL170: 1050.71
B171: noviembre | D171: n.d. | E171: 3 | F171: n.d. | G171: 1.765030336 | H171: 2.152019506 | I171: -0.4975124378 | J171: 3.982119503 | T171: 31.11 | U171: 28.73 | V171: -2.38 | W171: 389.91 | X171: 45.95898 | Y171: 76.77 | Z171: 62.28 | AA171: 160.5453276 | AB171: 484.63 | AC171: 108.0310116 | AD171: 201.75 | AE171: 408.2 | AM171: 2.91 | AN171: 1.31304 | AO171: n.d. | AP171: n.d. | AQ171: 1.172047 | AR171: 109.158 | AS171: 11.1494 | AT171: =IF(AND('Tipos de Cambio'!$J$6<>1,'Tipos de Cambio'!$J$6<>2,'Tipos de Cambio'!$J$6<>3,'Tipos de Cambio'!$J$6<>4,'Tipos de Cambio'!$J$6<>5,'Tipos de Cambio'!$J$6<>6,'Tipos de Cambio'!$J$6<>7),LOOKUP(1,'Datos mensuales'!$AM$2:$AS$2,'Datos mensuales'!$AM171:$AS171),LOOKUP('Tipos de Cambio'!$J$6,'Datos mensuales'!$AM$2:$AS$2,'Datos mensuales'!$AM171:$AS171)) -> 2.91 | AU171: 1.24331 | AV171: 1.04 | AW171: 1.17 | AX171: 2.16 | AY171: 0.06 | AZ171: 4.29 | BA171: 4.44 | BB171: 1.38 | BC171: 92.5 | BD171: 81 | BE171: 100.1 | BF171: 100 | BG171: 1.313015419 | BH171: 1.3398232 | BI171: 1.624427377 | BJ171: 9782.46 | BK171: 1960.26 | BL171: 1058.2
B172: diciembre | D172: n.d. | E172: 3.2 | F172: n.d. | G172: 1.879491432 | H172: 1.973614776 | I172: -0.3980099502 | J172: 3.976521807 | T172: 32.13 | U172: 29.81 | V172: -2.32 | W172: 406.9526 | X172: 44.97425 | Y172: 73.6 | Z172: 64.86 | AA172: 165.5734462 | AB172: 478.47 | AC172: 111.9818495 | AD172: 197 | AE172: 370.3 | AM172: 2.92 | AN172: 1.31275 | AO172: n.d. | AP172: n.d. | AQ172: 1.230189 | AR172: 107.742 | AS172: 11.2515 | AT172: =IF(AND('Tipos de Cambio'!$J$6<>1,'Tipos de Cambio'!$J$6<>2,'Tipos de Cambio'!$J$6<>3,'Tipos de Cambio'!$J$6<>4,'Tipos de Cambio'!$J$6<>5,'Tipos de Cambio'!$J$6<>6,'Tipos de Cambio'!$J$6<>7),LOOKUP(1,'Datos mensuales'!$AM$2:$AS$2,'Datos mensuales'!$AM172:$AS172),LOOKUP('Tipos de Cambio'!$J$6,'Datos mensuales'!$AM$2:$AS$2,'Datos mensuales'!$AM172:$AS172)) -> 2.92 | AU172: 1.23503 | AV172: 1.01 | AW172: 1.17 | AX172: 2.15 | AY172: 0.06 | AZ172: 4.26 | BA172: 4.36 | BB172: 1.35 | BC172: 91.3 | BD172: 73.9 | BE172: 102.9 | BF172: 100 | BG172: 1.685817945 | BH172: 1.469972244 | BI172: 1.742538744 | BJ172: 10453.92 | BK172: 2003.37 | BL172: 1111.92
A173: 2004 | B173: enero | D173: n.d. | E173: 3.2 | F173: n.d. | G173: 1.926252064 | H173: 1.880215485 | I173: -0.2994011976 | J173: 4.201509872 | T173: 34.31 | U173: 31.28 | V173: -3.03 | W173: 413.7881 | X173: 45.12393009 | Y173: 76.15 | Z173: 72.73 | AA173: 166.3271236 | AB173: 467.69 | AC173: 115.0864131 | AD173: 207.4545455 | AE173: 427.2 | AM173: 2.85 | AN173: 1.29575 | AO173: 8.2769 | AP173: n.d. | AQ173: 1.260893 | AR173: 106.269 | AS173: 10.9203 | AT173: =IF(AND('Tipos de Cambio'!$J$6<>1,'Tipos de Cambio'!$J$6<>2,'Tipos de Cambio'!$J$6<>3,'Tipos de Cambio'!$J$6<>4,'Tipos de Cambio'!$J$6<>5,'Tipos de Cambio'!$J$6<>6,'Tipos de Cambio'!$J$6<>7),LOOKUP(1,'Datos mensuales'!$AM$2:$AS$2,'Datos mensuales'!$AM173:$AS173),LOOKUP('Tipos de Cambio'!$J$6,'Datos mensuales'!$AM$2:$AS$2,'Datos mensuales'!$AM173:$AS173)) -> 2.85 | AU173: 1.18801 | AV173: 0.99 | AW173: 1.13 | AX173: 2.09 | AY173: 0.06 | AZ173: 4.13 | BA173: 4.26 | BB173: 1.33 | BC173: 96.4 | BD173: 79.4 | BE173: 107.8 | BF173: 100 | BG173: 1.272284076 | BH173: 1.386236827 | BI173: 1.858694219 | BJ173: 10488.07 | BK173: 2066.15 | BL173: 1131.13
B174: febrero | D174: n.d. | E174: 2.1 | F174: n.d. | G174: 1.6930639 | H174: 1.609001998 | I174: 0 | J174: 4.534442653 | T174: 34.69 | U174: 30.86 | V174: -3.83 | W174: 404.8775 | X174: 45.51612039 | Y174: 73.91 | Z174: 76.21 | AA174: 161.3914525 | AB174: 501.61 | AC174: 122.906529 | AD174: 213.25 | AE174: 496.1 | AM174: 2.93 | AN174: 1.32989 | AO174: 8.2771 | AP174: n.d. | AQ174: 1.263703 | AR174: 106.708 | AS174: 11.0319 | AT174: =IF(AND('Tipos de Cambio'!$J$6<>1,'Tipos de Cambio'!$J$6<>2,'Tipos de Cambio'!$J$6<>3,'Tipos de Cambio'!$J$6<>4,'Tipos de Cambio'!$J$6<>5,'Tipos de Cambio'!$J$6<>6,'Tipos de Cambio'!$J$6<>7),LOOKUP(1,'Datos mensuales'!$AM$2:$AS$2,'Datos mensuales'!$AM174:$AS174),LOOKUP('Tipos de Cambio'!$J$6,'Datos mensuales'!$AM$2:$AS$2,'Datos mensuales'!$AM174:$AS174)) -> 2.93 | AU174: 1.18575 | AV174: 1.01 | AW174: 1.12 | AX174: 2.07 | AY174: 0.05 | AZ174: 4.06 | BA174: 4.18 | BB174: 1.25 | BC174: 87.3 | BD174: 73.1 | BE174: 96.8 | BF174: 100 | BG174: 1.520524541 | BH174: 1.370065878 | BI174: 1.972357895 | BJ174: 10583.92 | BK174: 2029.82 | BL174: 1144.94
B175: marzo | D175: n.d. | E175: 3 | F175: n.d. | G175: 1.737242128 | H175: 1.672066047 | I175: -0.0998003992 | J175: 4.230728652 | T175: 36.74 | U175: 33.63 | V175: -3.11 | W175: 406.6674 | X175: 46.58170354 | Y175: 72.23 | Z175: 78.06 | AA175: 166.2797891 | AB175: 520.57 | AC175: 128.4302408 | AD175: 240.3478261 | AE175: 512.6 | AM175: 2.91 | AN175: 1.32858 | AO175: 8.2771 | AP175: n.d. | AQ175: 1.226339 | AR175: 108.516 | AS175: 11.019 | AT175: =IF(AND('Tipos de Cambio'!$J$6<>1,'Tipos de Cambio'!$J$6<>2,'Tipos de Cambio'!$J$6<>3,'Tipos de Cambio'!$J$6<>4,'Tipos de Cambio'!$J$6<>5,'Tipos de Cambio'!$J$6<>6,'Tipos de Cambio'!$J$6<>7),LOOKUP(1,'Datos mensuales'!$AM$2:$AS$2,'Datos mensuales'!$AM175:$AS175),LOOKUP('Tipos de Cambio'!$J$6,'Datos mensuales'!$AM$2:$AS$2,'Datos mensuales'!$AM175:$AS175)) -> 2.91 | AU175: 1.15853 | AV175: 1.01 | AW175: 1.11 | AX175: 2.03 | AY175: 0.05 | AZ175: 3.81 | BA175: 4.02 | BB175: 1.35 | BC175: 88.5 | BD175: 84.4 | BE175: 91.3 | BF175: 100 | BG175: 1.207299352 | BH175: 1.689854053 | BI175: 2.082964266 | BJ175: 10357.7 | BK175: 1994.22 | BL175: 1126.21
B176: abril | D176: n.d. | E176: 3.8 | F176: n.d. | G176: 2.285092492 | H176: 2.036128224 | I176: -0.3980099502 | J176: 4.21011308 | T176: 36.75 | U176: 33.59 | V176: -3.16 | W176: 403.26 | X176: 46.39885245 | Y176: 69.46 | Z176: 75.44 | AA176: 166.5844116 | AB176: 516.34 | AC176: 133.3926327 | AD176: 253.4090909 | AE176: 529.1 | AM176: 2.9 | AN176: 1.34197 | AO176: 8.2769 | AP176: n.d. | AQ176: 1.199145 | AR176: 107.656 | AS176: 11.2701 | AT176: =IF(AND('Tipos de Cambio'!$J$6<>1,'Tipos de Cambio'!$J$6<>2,'Tipos de Cambio'!$J$6<>3,'Tipos de Cambio'!$J$6<>4,'Tipos de Cambio'!$J$6<>5,'Tipos de Cambio'!$J$6<>6,'Tipos de Cambio'!$J$6<>7),LOOKUP(1,'Datos mensuales'!$AM$2:$AS$2,'Datos mensuales'!$AM176:$AS176),LOOKUP('Tipos de Cambio'!$J$6,'Datos mensuales'!$AM$2:$AS$2,'Datos mensuales'!$AM176:$AS176)) -> 2.9 | AU176: 1.28028 | AV176: 1.11 | AW176: 1.15 | AX176: 2.05 | AY176: 0.05 | AZ176: 4.32 | BA176: 4.24 | BB176: 1.51 | BC176: 92.9 | BD176: 90.6 | BE176: 94.5 | BF176: 100 | BG176: 2.387477372 | BH176: 2.282948303 | BI176: 2.189910086 | BJ176: 10225.57 | BK176: 1920.15 | BL176: 1107.3
B177: mayo | D177: n.d. | E177: 4.4 | F177: n.d. | G177: 3.051771117 | H177: 2.466297419 | I177: -0.4965243297 | J177: 4.285220265 | T177: 40.28 | U177: 37.57 | V177: -2.71 | W177: 383.7789 | X177: 45.75578579 | Y177: 70.04 | Z177: 76.99 | AA177: 163.7343716 | AB177: 481.14 | AC177: 129.3048998 | AD177: 251.5714286 | AE177: 556.3 | AM177: 3.09 | AN177: 1.37886 | AO177: 8.2771 | AP177: n.d. | AQ177: 1.199787 | AR177: 112.196 | AS177: 11.5199 | AT177: =IF(AND('Tipos de Cambio'!$J$6<>1,'Tipos de Cambio'!$J$6<>2,'Tipos de Cambio'!$J$6<>3,'Tipos de Cambio'!$J$6<>4,'Tipos de Cambio'!$J$6<>5,'Tipos de Cambio'!$J$6<>6,'Tipos de Cambio'!$J$6<>7),LOOKUP(1,'Datos mensuales'!$AM$2:$AS$2,'Datos mensuales'!$AM177:$AS177),LOOKUP('Tipos de Cambio'!$J$6,'Datos mensuales'!$AM$2:$AS$2,'Datos mensuales'!$AM177:$AS177)) -> 3.09 | AU177: 1.52145 | AV177: 1.33 | AW177: 1.25 | AX177: 2.09 | AY177: 0.05 | AZ177: 4.7 | BA177: 4.39 | BB177: 1.49 | BC177: 93.2 | BD177: 90.3 | BE177: 95.2 | BF177: 100 | BG177: 3.117690735 | BH177: 2.651415213 | BI177: 2.292569346 | BJ177: 10188.45 | BK177: 1986.74 | BL177: 1120.68
B178: junio | D178: n.d. | E178: 5 | F178: n.d. | G178: 3.266194883 | H178: 2.380703769 | I178: 0 | J178: 4.366145813 | T178: 38.03 | U178: 35.18 | V178: -2.85 | W178: 392.3727 | X178: 44.1585386 | Y178: 64.55 | Z178: 82.21 | AA178: 154.7433276 | AB178: 408.98 | AC178: 123.2271974 | AD178: 244.2272727 | AE178: 603.5 | AM178: 3.13 | AN178: 1.35784 | AO178: 8.2767 | AP178: n.d. | AQ178: 1.213245 | AR178: 109.434 | AS178: 11.3926 | AT178: =IF(AND('Tipos de Cambio'!$J$6<>1,'Tipos de Cambio'!$J$6<>2,'Tipos de Cambio'!$J$6<>3,'Tipos de Cambio'!$J$6<>4,'Tipos de Cambio'!$J$6<>5,'Tipos de Cambio'!$J$6<>6,'Tipos de Cambio'!$J$6<>7),LOOKUP(1,'Datos mensuales'!$AM$2:$AS$2,'Datos mensuales'!$AM178:$AS178),LOOKUP('Tipos de Cambio'!$J$6,'Datos mensuales'!$AM$2:$AS$2,'Datos mensuales'!$AM178:$AS178)) -> 3.13 | AU178: 1.81122 | AV178: 1.64 | AW178: 1.5 | AX178: 2.11 | AY178: 0.05 | AZ178: 4.73 | BA178: 4.44 | BB178: 1.77 | BC178: 102.1 | BD178: 105.9 | BE178: 100.8 | BF178: 100 | BG178: 2.2483668 | BH178: 2.575392038 | BI178: 2.390327975 | BJ178: 10435.48 | BK178: 2047.79 | BL178: 1140.84
B179: julio | D179: n.d. | E179: 5.3 | F179: n.d. | G179: 2.990755846 | H179: 2.288640401 | I179: -0.0998003992 | J179: 4.488254632 | T179: 40.78 | U179: 38.22 | V179: -2.56 | W179: 398.0909 | X179: 44.88816284 | Y179: 57.02 | Z179: 74.94 | AA179: 150.6009166 | AB179: 386.63 | AC179: 104.4804287 | AD179: 240.3181818 | AE179: 603.5 | AM179: 3.04 | AN179: 1.3225 | AO179: 8.2767 | AP179: n.d. | AQ179: 1.227406 | AR179: 109.487 | AS179: 11.4678 | AT179: =IF(AND('Tipos de Cambio'!$J$6<>1,'Tipos de Cambio'!$J$6<>2,'Tipos de Cambio'!$J$6<>3,'Tipos de Cambio'!$J$6<>4,'Tipos de Cambio'!$J$6<>5,'Tipos de Cambio'!$J$6<>6,'Tipos de Cambio'!$J$6<>7),LOOKUP(1,'Datos mensuales'!$AM$2:$AS$2,'Datos mensuales'!$AM179:$AS179),LOOKUP('Tipos de Cambio'!$J$6,'Datos mensuales'!$AM$2:$AS$2,'Datos mensuales'!$AM179:$AS179)) -> 3.04 | AU179: 1.89381 | AV179: 1.7 | AW179: 1.63 | AX179: 2.12 | AY179: 0.05 | AZ179: 4.48 | BA179: 4.34 | BB179: 1.79 | BC179: 106.1 | BD179: 106.5 | BE179: 105.8 | BF179: 100 | BG179: 2.425851823 | BH179: 2.477701744 | BI179: 2.482603081 | BJ179: 10139.71 | BK179: 1887.36 | BL179: 1101.72
B180: agosto | D180: n.d. | E180: 5.3 | F180: n.d. | G180: 2.654387866 | H180: 2.295252999 | I180: -0.1992031873 | J180: 4.818828116 | T180: 44.9 | U180: 42.74 | V180: -2.16 | W180: 400.5095 | X180: 44.312862 | Y180: 53.56 | Z180: 73.61 | AA180: 141.2947957 | AB180: 393.71 | AC180: 104.0394536 | AD180: 252.5454545 | AE180: 547.7 | AM180: 3 | AN180: 1.31268 | AO180: 8.2768 | AP180: n.d. | AQ180: 1.21989 | AR180: 110.234 | AS180: 11.3953 | AT180: =IF(AND('Tipos de Cambio'!$J$6<>1,'Tipos de Cambio'!$J$6<>2,'Tipos de Cambio'!$J$6<>3,'Tipos de Cambio'!$J$6<>4,'Tipos de Cambio'!$J$6<>5,'Tipos de Cambio'!$J$6<>6,'Tipos de Cambio'!$J$6<>7),LOOKUP(1,'Datos mensuales'!$AM$2:$AS$2,'Datos mensuales'!$AM180:$AS180),LOOKUP('Tipos de Cambio'!$J$6,'Datos mensuales'!$AM$2:$AS$2,'Datos mensuales'!$AM180:$AS180)) -> 3 | AU180: 1.93961 | AV180: 1.76 | AW180: 1.73 | AX180: 2.11 | AY180: 0.05 | AZ180: 4.27 | BA180: 4.17 | BB180: 1.63 | BC180: 98.7 | BD180: 100.7 | BE180: 97.3 | BF180: 100 | BG180: 2.718252073 | BH180: 2.495825046 | BI180: 2.568831312 | BJ180: 10173.92 | BK180: 1838.1 | BL180: 1104.24
B181: septiembre | D181: n.d. | E181: 5.2 | F181: n.d. | G181: 2.537796976 | H181: 2.110406487 | I181: 0 | J181: 5.060080741 | T181: 45.94 | U181: 43.2 | V181: -2.74 | W181: 405.275 | X181: 45.36688032 | Y181: 56.57 | Z181: 80.47 | AA181: 151.0348418 | AB181: 401.64 | AC181: 97.75502543 | AD181: 252 | AE181: 538.8 | AM181: 2.89 | AN181: 1.2881 | AO181: 8.2767 | AP181: n.d. | AQ181: 1.220989 | AR181: 110.091 | AS181: 11.487 | AT181: =IF(AND('Tipos de Cambio'!$J$6<>1,'Tipos de Cambio'!$J$6<>2,'Tipos de Cambio'!$J$6<>3,'Tipos de Cambio'!$J$6<>4,'Tipos de Cambio'!$J$6<>5,'Tipos de Cambio'!$J$6<>6,'Tipos de Cambio'!$J$6<>7),LOOKUP(1,'Datos mensuales'!$AM$2:$AS$2,'Datos mensuales'!$AM181:$AS181),LOOKUP('Tipos de Cambio'!$J$6,'Datos mensuales'!$AM$2:$AS$2,'Datos mensuales'!$AM181:$AS181)) -> 2.89 | AU181: 2.08716 | AV181: 1.91 | AW181: 1.9 | AX181: 2.12 | AY181: 0.05 | AZ181: 4.13 | BA181: 4.11 | BB181: 1.5 | BC181: 96.8 | BD181: 95.5 | BE181: 97.6 | BF181: 100 | BG181: 2.20697698 | BH181: 2.538649126 | BI181: 2.648456625 | BJ181: 10080.27 | BK181: 1896.84 | BL181: 1114.58
B182: octubre | D182: n.d. | E182: 4.3 | F182: n.d. | G182: 3.189189189 | H182: 2.368093062 | I182: 0.4975124378 | J182: 5.401236028 | T182: 53.28 | U182: 49.78 | V182: -3.5 | W182: 420.4643 | X182: 47.15052289 | Y182: 52.63 | Z182: 80.55 | AA182: 150.145995 | AB182: 381.61 | AC182: 93.36828155 | AD182: 253.5238095 | AE182: 496.1 | AM182: 2.85 | AN182: 1.24693 | AO182: 8.2765 | AP182: n.d. | AQ182: 1.251049 | AR182: 108.784 | AS182: 11.4037 | AT182: =IF(AND('Tipos de Cambio'!$J$6<>1,'Tipos de Cambio'!$J$6<>2,'Tipos de Cambio'!$J$6<>3,'Tipos de Cambio'!$J$6<>4,'Tipos de Cambio'!$J$6<>5,'Tipos de Cambio'!$J$6<>6,'Tipos de Cambio'!$J$6<>7),LOOKUP(1,'Datos mensuales'!$AM$2:$AS$2,'Datos mensuales'!$AM182:$AS182),LOOKUP('Tipos de Cambio'!$J$6,'Datos mensuales'!$AM$2:$AS$2,'Datos mensuales'!$AM182:$AS182)) -> 2.85 | AU182: 2.22685 | AV182: 2.05 | AW182: 2.08 | AX182: 2.15 | AY182: 0.05 | AZ182: 4.08 | BA182: 3.98 | BB182: 1.49 | BC182: 92.8 | BD182: 94.2 | BE182: 92 | BF182: 100 | BG182: 3.115864378 | BH182: 2.687690734 | BI182: 2.720926163 | BJ182: 10027.47 | BK182: 1974.99 | BL182: 1130.2
B183: noviembre | D183: n.d. | E183: 2.8 | F183: n.d. | G183: 3.52303523 | H183: 2.200083022 | I183: 0.8 | J183: 5.425294261 | T183: 48.47 | U183: 43.11 | V183: -5.36 | W183: 439.375 | X183: 45.06453244 | Y183: 49.21 | Z183: 90.27 | AA183: 156.5686542 | AB183: 386.67 | AC183: 93.75333031 | AD183: 262.3181818 | AE183: 492.6 | AM183: 2.79 | AN183: 1.1974 | AO183: 8.2765 | AP183: n.d. | AQ183: 1.301729 | AR183: 104.778 | AS183: 11.37 | AT183: =IF(AND('Tipos de Cambio'!$J$6<>1,'Tipos de Cambio'!$J$6<>2,'Tipos de Cambio'!$J$6<>3,'Tipos de Cambio'!$J$6<>4,'Tipos de Cambio'!$J$6<>5,'Tipos de Cambio'!$J$6<>6,'Tipos de Cambio'!$J$6<>7),LOOKUP(1,'Datos mensuales'!$AM$2:$AS$2,'Datos mensuales'!$AM183:$AS183),LOOKUP('Tipos de Cambio'!$J$6,'Datos mensuales'!$AM$2:$AS$2,'Datos mensuales'!$AM183:$AS183)) -> 2.79 | AU183: 2.50011 | AV183: 2.32 | AW183: 2.31 | AX183: 2.17 | AY183: 0.05 | AZ183: 4.19 | BA183: 3.87 | BB183: 1.46 | BC183: 92.6 | BD183: 96.3 | BE183: 90.2 | BF183: 100 | BG183: 2.548078345 | BH183: 2.92870311 | BI183: 2.785688595 | BJ183: 10428.02 | BK183: 2096.81 | BL183: 1173.82
B184: diciembre | D184: n.d. | E184: 2.4 | F184: n.d. | G184: 3.255561584 | H184: 2.359759884 | I184: 0.1998001998 | J184: 5.190848256 | T184: 43.15 | U184: 39.6 | V184: -3.55 | W184: 442.0789 | X184: 45.29654245 | Y184: 48.6 | Z184: 104.12 | AA184: 153.8743107 | AB184: 370.09 | AC184: 95.58977364 | AD184: 278.4347826 | AE184: 496.1 | AM184: 2.72 | AN184: 1.21888 | AO184: 8.2765 | AP184: n.d. | AQ184: 1.339426 | AR184: 103.81 | AS184: 11.2012 | AT184: =IF(AND('Tipos de Cambio'!$J$6<>1,'Tipos de Cambio'!$J$6<>2,'Tipos de Cambio'!$J$6<>3,'Tipos de Cambio'!$J$6<>4,'Tipos de Cambio'!$J$6<>5,'Tipos de Cambio'!$J$6<>6,'Tipos de Cambio'!$J$6<>7),LOOKUP(1,'Datos mensuales'!$AM$2:$AS$2,'Datos mensuales'!$AM184:$AS184),LOOKUP('Tipos de Cambio'!$J$6,'Datos mensuales'!$AM$2:$AS$2,'Datos mensuales'!$AM184:$AS184)) -> 2.72 | AU184: 2.71039 | AV184: 2.5 | AW184: 2.5 | AX184: 2.17 | AY184: 0.05 | AZ184: 4.23 | BA184: 3.69 | BB184: 1.4 | BC184: 102.3 | BD184: 105.9 | BE184: 99.9 | BF184: 100 | BG184: 3.364970275 | BH184: 3.232706626 | BI184: 2.842199504 | BJ184: 10783.01 | BK184: 2175.44 | BL184: 1211.92
A185: 2005 | B185: enero | D185: n.d. | E185: 1.9 | F185: n.d. | G185: 2.969762419 | H185: 1.928460342 | I185: 0.2002002002 | J185: 4.544821244 | T185: 46.84 | U185: 44.51 | V185: -2.33 | W185: 424.03 | X185: 45.46587826 | Y185: 51.28 | Z185: 107.16 | AA185: 153.5931196 | AB185: 346.63 | AC185: 95.98462746 | AD185: 288.3809524 | AE185: 575.3 | AM185: 2.69 | AN185: 1.22484 | AO185: 8.2765 | AP185: n.d. | AQ185: 1.312845 | AR185: 103.341 | AS185: 11.2627 | AT185: =IF(AND('Tipos de Cambio'!$J$6<>1,'Tipos de Cambio'!$J$6<>2,'Tipos de Cambio'!$J$6<>3,'Tipos de Cambio'!$J$6<>4,'Tipos de Cambio'!$J$6<>5,'Tipos de Cambio'!$J$6<>6,'Tipos de Cambio'!$J$6<>7),LOOKUP(1,'Datos mensuales'!$AM$2:$AS$2,'Datos mensuales'!$AM185:$AS185),LOOKUP('Tipos de Cambio'!$J$6,'Datos mensuales'!$AM$2:$AS$2,'Datos mensuales'!$AM185:$AS185)) -> 2.69 | AU185: 2.89119 | AV185: 2.68 | AW185: 2.66 | AX185: 2.15 | AY185: 0.05 | AZ185: 4.21 | BA185: 3.63 | BB185: 1.37 | BC185: 105.1 | BD185: 112.1 | BE185: 100.4 | BF185: 100 | BG185: 3.57654104 | BH185: 3.547469607 | BI185: 2.889933916 | BJ185: 10489.94 | BK185: 2062.41 | BL185: 1181.27
B186: febrero | D186: n.d. | E186: 3.9 | F186: n.d. | G186: 3.007518797 | H186: 2.101014283 | I186: -0.1001001001 | J186: 4.269424311 | T186: 48.15 | U186: 45.48 | V186: -2.67 | W186: 423.35 | X186: 44.8860632 | Y186: 52.25 | Z186: 120.86 | AA186: 151.3047037 | AB186: 347.57 | AC186: 94.35939361 | AD186: 292.35 | AE186: 885.3 | AM186: 2.6 | AN186: 1.24005 | AO186: 8.2765 | AP186: n.d. | AQ186: 1.30095 | AR186: 104.994 | AS186: 11.1373 | AT186: =IF(AND('Tipos de Cambio'!$J$6<>1,'Tipos de Cambio'!$J$6<>2,'Tipos de Cambio'!$J$6<>3,'Tipos de Cambio'!$J$6<>4,'Tipos de Cambio'!$J$6<>5,'Tipos de Cambio'!$J$6<>6,'Tipos de Cambio'!$J$6<>7),LOOKUP(1,'Datos mensuales'!$AM$2:$AS$2,'Datos mensuales'!$AM186:$AS186),LOOKUP('Tipos de Cambio'!$J$6,'Datos mensuales'!$AM$2:$AS$2,'Datos mensuales'!$AM186:$AS186)) -> 2.6 | AU186: 3.04672 | AV186: 2.85 | AW186: 2.82 | AX186: 2.14 | AY186: 0.05 | AZ186: 4.16 | BA186: 3.62 | BB186: 1.4 | BC186: 104.4 | BD186: 116.8 | BE186: 96.1 | BF186: 100 | BG186: 3.69868751 | BH186: 3.813877466 | BI186: 2.928403028 | BJ186: 10766.23 | BK186: 2051.72 | BL186: 1203.6
B187: marzo | D187: n.d. | E187: 2.7 | F187: n.d. | G187: 3.148345784 | H187: 2.08654538 | I187: 0 | J187: 4.385674323 | T187: 54.19 | U187: 53.1 | V187: -1.09 | W187: 434.3214 | X187: 45.4181783 | Y187: 56.4 | Z187: 135.03 | AA187: 150.9858503 | AB187: 374.83 | AC187: 99.94371067 | AD187: 295 | AE187: 792.3 | AM187: 2.7 | AN187: 1.21603 | AO187: 8.2765 | AP187: n.d. | AQ187: 1.31967 | AR187: 105.254 | AS187: 11.1552 | AT187: =IF(AND('Tipos de Cambio'!$J$6<>1,'Tipos de Cambio'!$J$6<>2,'Tipos de Cambio'!$J$6<>3,'Tipos de Cambio'!$J$6<>4,'Tipos de Cambio'!$J$6<>5,'Tipos de Cambio'!$J$6<>6,'Tipos de Cambio'!$J$6<>7),LOOKUP(1,'Datos mensuales'!$AM$2:$AS$2,'Datos mensuales'!$AM187:$AS187),LOOKUP('Tipos de Cambio'!$J$6,'Datos mensuales'!$AM$2:$AS$2,'Datos mensuales'!$AM187:$AS187)) -> 2.7 | AU187: 3.28152 | AV187: 3.09 | AW187: 3.03 | AX187: 2.14 | AY187: 0.05 | AZ187: 4.49 | BA187: 3.76 | BB187: 1.45 | BC187: 103 | BD187: 117 | BE187: 93.7 | BF187: 100 | BG187: 4.145015396 | BH187: 3.927857004 | BI187: 2.957172006 | BJ187: 10503.76 | BK187: 1999.23 | BL187: 1180.59
B188: abril | D188: n.d. | E188: 1.8 | F188: n.d. | G188: 3.510638298 | H188: 2.077363897 | I188: 0.0999000999 | J188: 4.599581021 | T188: 52.98 | U188: 51.88 | V188: -1.1 | W188: 429.2333 | X188: 46.76943857 | Y188: 56.95 | Z188: 129.53 | AA188: 140.8769677 | AB188: 375.84 | AC188: 96.391198 | AD188: 299.1428571 | AE188: 592.5 | AM188: 2.58 | AN188: 1.23686 | AO188: 8.2765 | AP188: n.d. | AQ188: 1.294018 | AR188: 107.167 | AS188: 11.1097 | AT188: =IF(AND('Tipos de Cambio'!$J$6<>1,'Tipos de Cambio'!$J$6<>2,'Tipos de Cambio'!$J$6<>3,'Tipos de Cambio'!$J$6<>4,'Tipos de Cambio'!$J$6<>5,'Tipos de Cambio'!$J$6<>6,'Tipos de Cambio'!$J$6<>7),LOOKUP(1,'Datos mensuales'!$AM$2:$AS$2,'Datos mensuales'!$AM188:$AS188),LOOKUP('Tipos de Cambio'!$J$6,'Datos mensuales'!$AM$2:$AS$2,'Datos mensuales'!$AM188:$AS188)) -> 2.58 | AU188: 3.38366 | AV188: 3.14 | AW188: 3.15 | AX188: 2.14 | AY188: 0.05 | AZ188: 4.34 | BA188: 3.57 | BB188: 1.32 | BC188: 97.7 | BD188: 113.6 | BE188: 87.2 | BF188: 100 | BG188: 3.891572381 | BH188: 3.826040901 | BI188: 2.975875176 | BJ188: 10192.51 | BK188: 1921.65 | BL188: 1156.85
B189: mayo | D189: n.d. | E189: 1.8 | F189: n.d. | G189: 2.802749868 | H189: 1.988781234 | I189: 0.0998003992 | J189: 4.599172831 | T189: 49.83 | U189: 48.65 | V189: -1.18 | W189: 421.8725 | X189: 48.26228126 | Y189: 55.86 | Z189: 128.37 | AA189: 144.2538856 | AB189: 370.16 | AC189: 95.26864149 | AD189: 295.2727273 | AE189: 618.3 | AM189: 2.46 | AN189: 1.25566 | AO189: 8.2765 | AP189: n.d. | AQ189: 1.268458 | AR189: 106.654 | AS189: 10.9723 | AT189: =IF(AND('Tipos de Cambio'!$J$6<>1,'Tipos de Cambio'!$J$6<>2,'Tipos de Cambio'!$J$6<>3,'Tipos de Cambio'!$J$6<>4,'Tipos de Cambio'!$J$6<>5,'Tipos de Cambio'!$J$6<>6,'Tipos de Cambio'!$J$6<>7),LOOKUP(1,'Datos mensuales'!$AM$2:$AS$2,'Datos mensuales'!$AM189:$AS189),LOOKUP('Tipos de Cambio'!$J$6,'Datos mensuales'!$AM$2:$AS$2,'Datos mensuales'!$AM189:$AS189)) -> 2.46 | AU189: 3.48591 | AV189: 3.17 | AW189: 3.27 | AX189: 2.13 | AY189: 0.05 | AZ189: 4.14 | BA189: 3.41 | BB189: 1.27 | BC189: 103.1 | BD189: 117.8 | BE189: 93.4 | BF189: 100 | BG189: 3.28539164 | BH189: 3.81354339 | BI189: 2.984221945 | BJ189: 10467.48 | BK189: 2068.22 | BL189: 1191.5
B190: junio | D190: n.d. | E190: 1.6 | F190: n.d. | G190: 2.530311017 | H190: 2.070372259 | I190: -0.4980079681 | J190: 4.331552278 | T190: 56.35 | U190: 54.35 | V190: -2 | W190: 430.6568 | X190: 48.2591318 | Y190: 53.97 | Z190: 121.16 | AA190: 141.9307633 | AB190: 369.64 | AC190: 97.56159286 | AD190: 287.0454545 | AE190: 485.7 | AM190: 2.42 | AN190: 1.24017 | AO190: 8.2765 | AP190: n.d. | AQ190: 1.215957 | AR190: 108.747 | AS190: 10.8197 | AT190: =IF(AND('Tipos de Cambio'!$J$6<>1,'Tipos de Cambio'!$J$6<>2,'Tipos de Cambio'!$J$6<>3,'Tipos de Cambio'!$J$6<>4,'Tipos de Cambio'!$J$6<>5,'Tipos de Cambio'!$J$6<>6,'Tipos de Cambio'!$J$6<>7),LOOKUP(1,'Datos mensuales'!$AM$2:$AS$2,'Datos mensuales'!$AM190:$AS190),LOOKUP('Tipos de Cambio'!$J$6,'Datos mensuales'!$AM$2:$AS$2,'Datos mensuales'!$AM190:$AS190)) -> 2.42 | AU190: 3.61307 | AV190: 3.22 | AW190: 3.43 | AX190: 2.11 | AY190: 0.05 | AZ190: 4 | BA190: 3.25 | BB190: 1.24 | BC190: 106.2 | BD190: 120.8 | BE190: 96.4 | BF190: 100 | BG190: 4.53703734 | BH190: 3.904873717 | BI190: 2.981987228 | BJ190: 10274.97 | BK190: 2056.96 | BL190: 1191.33
B191: julio | D191: n.d. | E191: 1.8 | F191: n.d. | G191: 3.167898627 | H191: 2.16591745 | I191: -0.2997002997 | J191: 4.466071068 | T191: 59 | U191: 57.52 | V191: -1.48 | W191: 424.4786 | X191: 48.35944201 | Y191: 55.06 | Z191: 109.93 | AA191: 143.8698268 | AB191: 369.6 | AC191: 105.5953928 | AD191: 278.7142857 | AE191: 401.3 | AM191: 2.37 | AN191: 1.22376 | AO191: 8.2369 | AP191: n.d. | AQ191: 1.20301 | AR191: 111.94 | AS191: 10.6755 | AT191: =IF(AND('Tipos de Cambio'!$J$6<>1,'Tipos de Cambio'!$J$6<>2,'Tipos de Cambio'!$J$6<>3,'Tipos de Cambio'!$J$6<>4,'Tipos de Cambio'!$J$6<>5,'Tipos de Cambio'!$J$6<>6,'Tipos de Cambio'!$J$6<>7),LOOKUP(1,'Datos mensuales'!$AM$2:$AS$2,'Datos mensuales'!$AM191:$AS191),LOOKUP('Tipos de Cambio'!$J$6,'Datos mensuales'!$AM$2:$AS$2,'Datos mensuales'!$AM191:$AS191)) -> 2.37 | AU191: 3.8333 | AV191: 3.53 | AW191: 3.61 | AX191: 2.13 | AY191: 0.06 | AZ191: 4.16 | BA191: 3.32 | BB191: 1.26 | BC191: 103.2 | BD191: 118.5 | BE191: 93 | BF191: 100 | BG191: 3.536102467 | BH191: 3.820493527 | BI191: 2.969008551 | BJ191: 10640.91 | BK191: 2184.83 | BL191: 1234.18
B192: agosto | D192: n.d. | E192: 1.3 | F192: n.d. | G192: 3.64116095 | H192: 2.243753187 | I192: -0.2994011976 | J192: 3.949131683 | T192: 64.99 | U192: 63.98 | V192: -1.01 | W192: 437.9295 | X192: 45.16978821 | Y192: 53.97 | Z192: 108.2 | AA192: 149.3590111 | AB192: 360.3 | AC192: 98.63826326 | AD192: 283.4782609 | AE192: 404.8 | AM192: 2.37 | AN192: 1.20428 | AO192: 8.1019 | AP192: n.d. | AQ192: 1.229437 | AR192: 110.607 | AS192: 10.6862 | AT192: =IF(AND('Tipos de Cambio'!$J$6<>1,'Tipos de Cambio'!$J$6<>2,'Tipos de Cambio'!$J$6<>3,'Tipos de Cambio'!$J$6<>4,'Tipos de Cambio'!$J$6<>5,'Tipos de Cambio'!$J$6<>6,'Tipos de Cambio'!$J$6<>7),LOOKUP(1,'Datos mensuales'!$AM$2:$AS$2,'Datos mensuales'!$AM192:$AS192),LOOKUP('Tipos de Cambio'!$J$6,'Datos mensuales'!$AM$2:$AS$2,'Datos mensuales'!$AM192:$AS192)) -> 2.37 | AU192: 4.02469 | AV192: 3.78 | AW192: 3.8 | AX192: 2.16 | AY192: 0.06 | AZ192: 4.26 | BA192: 3.32 | BB192: 1.43 | BC192: 105.5 | BD192: 123.8 | BE192: 93.3 | BF192: 100 | BG192: 3.662935539 | BH192: 3.768259076 | BI192: 2.945191435 | BJ192: 10481.6 | BK192: 2152.09 | BL192: 1220.33
B193: septiembre | D193: n.d. | E193: 0.9 | F193: n.d. | G193: 4.686677199 | H193: 2.586031358 | I193: -0.2985074627 | J193: 3.509882281 | T193: 65.59 | U193: 62.91 | V193: -2.68 | W193: 456.0477 | X193: 46.66130721 | Y193: 54.86 | Z193: 99.49 | AA193: 159.7086436 | AB193: 369.98 | AC193: 96.99343795 | AD193: 287.4090909 | AE193: 594.2 | AM193: 2.3 | AN193: 1.17789 | AO193: 8.0922 | AP193: n.d. | AQ193: 1.226192 | AR193: 111.156 | AS193: 10.7791 | AT193: =IF(AND('Tipos de Cambio'!$J$6<>1,'Tipos de Cambio'!$J$6<>2,'Tipos de Cambio'!$J$6<>3,'Tipos de Cambio'!$J$6<>4,'Tipos de Cambio'!$J$6<>5,'Tipos de Cambio'!$J$6<>6,'Tipos de Cambio'!$J$6<>7),LOOKUP(1,'Datos mensuales'!$AM$2:$AS$2,'Datos mensuales'!$AM193:$AS193),LOOKUP('Tipos de Cambio'!$J$6,'Datos mensuales'!$AM$2:$AS$2,'Datos mensuales'!$AM193:$AS193)) -> 2.3 | AU193: 4.04512 | AV193: 3.79 | AW193: 3.91 | AX193: 2.14 | AY193: 0.06 | AZ193: 4.19 | BA193: 3.16 | BB193: 1.38 | BC193: 87.5 | BD193: 110.4 | BE193: 72.3 | BF193: 100 | BG193: 1.532724782 | BH193: 3.814819678 | BI193: 2.910502504 | BJ193: 10568.7 | BK193: 2151.69 | BL193: 1228.81
B194: octubre | D194: n.d. | E194: 1.2 | F194: n.d. | G194: 4.347826087 | H194: 2.495941558 | I194: -0.7920792079 | J194: 3.050247827 | T194: 62.26 | U194: 58.54 | V194: -3.72 | W194: 469.8976 | X194: 47.88539622 | Y194: 58.37 | Z194: 105.05 | AA194: 167.8266975 | AB194: 382.82 | AC194: 101.4996925 | AD194: 290.7142857 | AE194: 630.4 | AM194: 2.25 | AN194: 1.17728 | AO194: 8.0889 | AP194: n.d. | AQ194: 1.20308 | AR194: 114.82 | AS194: 10.8332 | AT194: =IF(AND('Tipos de Cambio'!$J$6<>1,'Tipos de Cambio'!$J$6<>2,'Tipos de Cambio'!$J$6<>3,'Tipos de Cambio'!$J$6<>4,'Tipos de Cambio'!$J$6<>5,'Tipos de Cambio'!$J$6<>6,'Tipos de Cambio'!$J$6<>7),LOOKUP(1,'Datos mensuales'!$AM$2:$AS$2,'Datos mensuales'!$AM194:$AS194),LOOKUP('Tipos de Cambio'!$J$6,'Datos mensuales'!$AM$2:$AS$2,'Datos mensuales'!$AM194:$AS194)) -> 2.25 | AU194: 4.35301 | AV194: 4.13 | AW194: 4.17 | AX194: 2.2 | AY194: 0.06 | AZ194: 4.45 | BA194: 3.32 | BB194: 1.54 | BC194: 85.2 | BD194: 107.8 | BE194: 70.1 | BF194: 100 | BG194: 1.865961165 | BH194: 3.798874101 | BI194: 2.864966867 | BJ194: 10440.07 | BK194: 2117.34 | BL194: 1207.01
B195: noviembre | D195: n.d. | E195: 1.3 | F195: n.d. | G195: 3.455497382 | H195: 2.315190902 | I195: -0.9920634921 | J195: 2.914047615 | T195: 58.32 | U195: 55.24 | V195: -3.08 | W195: 476.6659 | X195: 47.70026063 | Y195: 56.83 | Z195: 107.74 | AA195: 161.116337 | AB195: 375.97 | AC195: 95.96986438 | AD195: 278.9545455 | AE195: 589.1 | AM195: 2.21 | AN195: 1.18139 | AO195: 8.084 | AP195: n.d. | AQ195: 1.177477 | AR195: 118.45 | AS195: 10.6714 | AT195: =IF(AND('Tipos de Cambio'!$J$6<>1,'Tipos de Cambio'!$J$6<>2,'Tipos de Cambio'!$J$6<>3,'Tipos de Cambio'!$J$6<>4,'Tipos de Cambio'!$J$6<>5,'Tipos de Cambio'!$J$6<>6,'Tipos de Cambio'!$J$6<>7),LOOKUP(1,'Datos mensuales'!$AM$2:$AS$2,'Datos mensuales'!$AM195:$AS195),LOOKUP('Tipos de Cambio'!$J$6,'Datos mensuales'!$AM$2:$AS$2,'Datos mensuales'!$AM195:$AS195)) -> 2.21 | AU195: 4.55492 | AV195: 4.3 | AW195: 4.35 | AX195: 2.36 | AY195: 0.06 | AZ195: 4.53 | BA195: 3.53 | BB195: 1.52 | BC195: 98.9 | BD195: 114 | BE195: 88.8 | BF195: 100 | BG195: 2.656289717 | BH195: 3.675161883 | BI195: 2.808671095 | BJ195: 10805.87 | BK195: 2232.82 | BL195: 1249.48
B196: diciembre | D196: n.d. | E196: 1.6 | F196: n.d. | G196: 3.415659485 | H196: 2.224469161 | I196: -0.3988035892 | J196: 3.332741004 | T196: 59.41 | U196: 56.86 | V196: -2.55 | W196: 510.0972 | X196: 48.281178 | Y196: 56.53 | Z196: 105.77 | AA196: 164.4410311 | AB196: 368.9 | AC196: 102.6619921 | AD196: 277.2727273 | AE196: 645.9 | AM196: 2.28 | AN196: 1.16166 | AO196: 8.0759 | AP196: n.d. | AQ196: 1.185659 | AR196: 118.368 | AS196: 10.629 | AT196: =IF(AND('Tipos de Cambio'!$J$6<>1,'Tipos de Cambio'!$J$6<>2,'Tipos de Cambio'!$J$6<>3,'Tipos de Cambio'!$J$6<>4,'Tipos de Cambio'!$J$6<>5,'Tipos de Cambio'!$J$6<>6,'Tipos de Cambio'!$J$6<>7),LOOKUP(1,'Datos mensuales'!$AM$2:$AS$2,'Datos mensuales'!$AM196:$AS196),LOOKUP('Tipos de Cambio'!$J$6,'Datos mensuales'!$AM$2:$AS$2,'Datos mensuales'!$AM196:$AS196)) -> 2.28 | AU196: 4.66619 | AV196: 4.33 | AW196: 4.49 | AX196: 2.47 | AY196: 0.07 | AZ196: 4.46 | BA196: 3.41 | BB196: 1.54 | BC196: 103.8 | BD196: 120.7 | BE196: 92.6 | BF196: 100 | BG196: 2.544491743 | BH196: 3.313605306 | BI196: 2.741764273 | BJ196: 10717.5 | BK196: 2205.32 | BL196: 1248.29
A197: 2006 | B197: enero | D197: n.d. | E197: 1.9 | F197: n.d. | G197: 3.985317252 | H197: 2.390397721 | I197: -0.0999000999 | J197: 3.935000089 | T197: 65.49 | U197: 62.99 | V197: -2.5 | W197: 549.864 | X197: 51.54291329 | Y197: 59.1 | Z197: 124.2 | AA197: 167.1607185 | AB197: 377.92 | AC197: 102.696908 | AD197: 284.4545455 | AE197: 685.5 | AM197: 2.28 | AN197: 1.15788 | AO197: 8.06594 | AP197: n.d. | AQ197: 1.210587 | AR197: 115.586 | AS197: 10.5496 | AT197: =IF(AND('Tipos de Cambio'!$J$6<>1,'Tipos de Cambio'!$J$6<>2,'Tipos de Cambio'!$J$6<>3,'Tipos de Cambio'!$J$6<>4,'Tipos de Cambio'!$J$6<>5,'Tipos de Cambio'!$J$6<>6,'Tipos de Cambio'!$J$6<>7),LOOKUP(1,'Datos mensuales'!$AM$2:$AS$2,'Datos mensuales'!$AM197:$AS197),LOOKUP('Tipos de Cambio'!$J$6,'Datos mensuales'!$AM$2:$AS$2,'Datos mensuales'!$AM197:$AS197)) -> 2.28 | AU197: 4.73259 | AV197: 4.47 | AW197: 4.6 | AX197: 2.51 | AY197: 0.07 | AZ197: 4.41 | BA197: 3.39 | BB197: 1.47 | BC197: 106.3 | BD197: 129.4 | BE197: 91.5 | BF197: 100 | BG197: 2.187647814 | BH197: 2.747365513 | BI197: 2.664451561 | BJ197: 10864.86 | BK197: 2305.82 | BL197: 1280.08
B198: febrero | D198: n.d. | E198: 1.4 | F198: n.d. | G198: 3.597497393 | H198: 2.331474911 | I198: -0.1002004008 | J198: 3.748372871 | T198: 61.63 | U198: 60.21 | V198: =IF(OR(T198="",U198="n.d."),"",U198-T198) -> -1.42 | W198: 554.995 | X198: 53.1974806 | Y198: 60.75 | Z198: 119.12 | AA198: 179.8409096 | AB198: 390.63 | AC198: 106.920962 | AD198: 296.4 | AE198: 854.3 | AM198: 2.16 | AN198: 1.14873 | AO198: 8.05124 | AP198: n.d. | AQ198: 1.193584 | AR198: 117.839 | AS198: 10.4813 | AT198: =IF(AND('Tipos de Cambio'!$J$6<>1,'Tipos de Cambio'!$J$6<>2,'Tipos de Cambio'!$J$6<>3,'Tipos de Cambio'!$J$6<>4,'Tipos de Cambio'!$J$6<>5,'Tipos de Cambio'!$J$6<>6,'Tipos de Cambio'!$J$6<>7),LOOKUP(1,'Datos mensuales'!$AM$2:$AS$2,'Datos mensuales'!$AM198:$AS198),LOOKUP('Tipos de Cambio'!$J$6,'Datos mensuales'!$AM$2:$AS$2,'Datos mensuales'!$AM198:$AS198)) -> 2.16 | AU198: 4.92275 | AV198: 4.69 | AW198: 4.76 | AX198: 2.6 | AY198: 0.07 | AZ198: 4.56 | BA198: 3.55 | BB198: 1.57 | BC198: 102.7 | BD198: 130.3 | BE198: 84.2 | BF198: 100 | BG198: 1.575250854 | BH198: 2.281639465 | BI198: 2.576973321 | BJ198: 10993.41 | BK198: 2281.39 | BL198: 1280.66
B199: marzo | D199: n.d. | E199: 1.2 | F199: n.d. | G199: 3.362648733 | H199: 2.22513089 | I199: -0.1998001998 | J199: 3.41243675 | T199: 62.69 | U199: 62.06 | V199: -0.63 | W199: 557.0935 | X199: 50.8385372 | Y199: 58.62 | Z199: 113.66 | AA199: 174.4359645 | AB199: 383.36 | AC199: 104.8939228 | AD199: 297.7391304 | AE199: 825.4 | AM199: 2.14 | AN199: 1.15731 | AO199: 8.04499 | AP199: n.d. | AQ199: 1.20299 | AR199: 117.278 | AS199: 10.7493 | AT199: =IF(AND('Tipos de Cambio'!$J$6<>1,'Tipos de Cambio'!$J$6<>2,'Tipos de Cambio'!$J$6<>3,'Tipos de Cambio'!$J$6<>4,'Tipos de Cambio'!$J$6<>5,'Tipos de Cambio'!$J$6<>6,'Tipos de Cambio'!$J$6<>7),LOOKUP(1,'Datos mensuales'!$AM$2:$AS$2,'Datos mensuales'!$AM199:$AS199),LOOKUP('Tipos de Cambio'!$J$6,'Datos mensuales'!$AM$2:$AS$2,'Datos mensuales'!$AM199:$AS199)) -> 2.14 | AU199: 5.05275 | AV199: 4.79 | AW199: 4.92 | AX199: 2.72 | AY199: 0.1 | AZ199: 4.72 | BA199: 3.73 | BB199: 1.7 | BC199: 107.5 | BD199: 133.33 | BE199: 90.3 | BF199: 100 | BG199: 1.925657443 | BH199: 2.150717096 | BI199: 2.479570108 | BJ199: 11109.32 | BK199: 2339.79 | BL199: 1294.83
B200: abril | D200: n.d. | E200: 1.2 | F200: n.d. | G200: 3.545734841 | H200: 2.456140351 | I200: -0.0998003992 | J200: 3.196535549 | T200: 69.44 | U200: 70.26 | V200: 0.82 | W200: 610.6528 | X200: 51.99770319 | Y200: 57.16 | Z200: 115.42 | AA200: 180.3460383 | AB200: 386.41 | AC200: 107.8222869 | AD200: 298.5 | AE200: 730.293625 | AM200: 2.13 | AN200: 1.1441 | AO200: 8.01434 | AP200: n.d. | AQ200: 1.226288 | AR200: 117.07 | AS200: 11.0489 | AT200: =IF(AND('Tipos de Cambio'!$J$6<>1,'Tipos de Cambio'!$J$6<>2,'Tipos de Cambio'!$J$6<>3,'Tipos de Cambio'!$J$6<>4,'Tipos de Cambio'!$J$6<>5,'Tipos de Cambio'!$J$6<>6,'Tipos de Cambio'!$J$6<>7),LOOKUP(1,'Datos mensuales'!$AM$2:$AS$2,'Datos mensuales'!$AM200:$AS200),LOOKUP('Tipos de Cambio'!$J$6,'Datos mensuales'!$AM$2:$AS$2,'Datos mensuales'!$AM200:$AS200)) -> 2.13 | AU200: 5.20472 | AV200: 4.9 | AW200: 5.07 | AX200: 2.79 | AY200: 0.11 | AZ200: 4.99 | BA200: 4.01 | BB200: 1.91 | BC200: 109.8 | BD200: 136.2 | BE200: 92.3 | BF200: 100 | BG200: 2.172529389 | BH200: 2.162325873 | BI200: 2.37245507 | BJ200: 11367.14 | BK200: 2322.57 | BL200: 1310.61
... 116 more rows

Sheet Datos trimestrales (hidden)
F1: Tasa de Crecimiento del PIB real
C2: 1 | D2: 2 | E2: 3 | F2: 4 | G2: 5 | H2: 6 | I2: 7 | K2: 1 | L2: 2 | M2: 3 | N2: 4 | O2: 5 | P2: 6 | Q2: 7 | R2: =IF(AND('Crecimiento del PIB'!J6<>1,'Crecimiento del PIB'!J6<>2,'Crecimiento del PIB'!J6<>3,'Crecimiento del PIB'!J6<>4,'Crecimiento del PIB'!J6<>5,'Crecimiento del PIB'!J6<>6,'Crecimiento del PIB'!J6<>7),LOOKUP(1,'Datos trimestrales'!$C$2:$I$2,'Datos trimestrales'!$C3:$I3),LOOKUP('Crecimiento del PIB'!J6,'Datos trimestrales'!$C$2:$I$2,'Datos trimestrales'!$C3:$I3)) -> Colombia
C3: Brasil | D3: China | E3: Colombia | F3: Estados Unidos | G3: EuroZona | H3: Japón | I3: México | J3: Promedio Países | K3: Brasil | L3: China | M3: Colombia | N3: Estados Unidos | O3: EuroZona | P3: Japón | Q3: México
C4: T1.12 | D4: T1.12 | E4: T1.12 | F4: T1.12 | G4: T1.12 | H4: T1.12 | I4: T1.12 | K4: Aceleración | L4: Aceleración | M4: Aceleración | N4: Aceleración | O4: Aceleración | P4: Aceleración | Q4: Aceleración | R4: Variación % | S4: Aceleración
A5: 1995 | B5: I | D5: n.d. | E5: n.d. | F5: n.d. | G5: n.d. | H5: n.d. | I5: n.d.
B6: II | D6: n.d. | E6: n.d. | F6: n.d. | G6: n.d. | H6: n.d. | I6: n.d.
B7: III | D7: n.d. | E7: n.d. | F7: n.d. | G7: n.d. | H7: n.d. | I7: n.d.
B8: IV | D8: n.d. | E8: n.d. | F8: n.d. | G8: n.d. | H8: n.d. | I8: n.d.
A9: 1996 | B9: I | D9: n.d. | E9: n.d. | F9: 2.59530166 | G9: 1.245457862 | H9: 3.285449994 | I9: 1.640505911
B10: II | D10: n.d. | E10: n.d. | F10: 4.023301125 | G10: 1.401368399 | H10: 2.251070756 | I10: 6.702746527
B11: III | D11: n.d. | E11: n.d. | F11: 4.094060425 | G11: 1.642514063 | H11: 1.893831757 | I11: 6.886755293
B12: IV | D12: n.d. | E12: n.d. | F12: 4.29540496 | G12: 1.619328692 | H12: 3.004664523 | I12: 8.350506626
A13: 1997 | B13: I | D13: n.d. | E13: n.d. | F13: 3.08138375 | G13: 1.980090112 | H13: 3.504364439 | I13: 4.349167738
B14: II | D14: n.d. | E14: n.d. | F14: 6.173643786 | G14: 2.489046394 | H14: 1.498739052 | I14: 8.50342181
B15: III | D15: n.d. | E15: n.d. | F15: 5.194750965 | G15: 2.601630355 | H15: 1.709323968 | I15: 7.932760945
B16: IV | D16: n.d. | E16: n.d. | F16: 3.139245013 | G16: 3.299647489 | H16: -0.158636657 | I16: 7.053551953
A17: 1998 | B17: I | D17: n.d. | E17: n.d. | F17: 4.016907407 | G17: 3.572114393 | H17: -2.388109652 | I17: 8.195889429
B18: II | D18: n.d. | E18: n.d. | F18: 3.93691826 | G18: 2.716299306 | H18: -1.830987632 | I18: 4.437607522
B19: III | D19: n.d. | E19: n.d. | F19: 5.3371308 | G19: 2.614437592 | H19: -2.289138635 | I19: 4.526632651
B20: IV | D20: n.d. | E20: n.d. | F20: 6.726166945 | G20: 1.874908288 | H20: -1.526587297 | I20: 1.925671937
A21: 1999 | B21: I | D21: n.d. | E21: n.d. | F21: 3.791509078 | G21: 2.093813604 | H21: -0.2810209817 | I21: 2.25941602
B22: II | D22: n.d. | E22: n.d. | F22: 3.409848204 | G22: 2.369252728 | H22: 0.1461862585 | I22: 2.105483711
B23: III | D23: n.d. | E23: n.d. | F23: 5.191836284 | G23: 2.903358723 | H23: -0.1378911377 | I23: 2.775618169
B24: IV | D24: n.d. | E24: n.d. | F24: 7.102427833 | G24: 3.841401883 | H24: -0.4996677328 | I24: 3.503097116
A25: 2000 | B25: I | D25: n.d. | E25: n.d. | F25: 1.153392498 | G25: 4.318731436 | H25: 3.292899669 | I25: 5.433848954
B26: II | D26: n.d. | E26: n.d. | F26: 7.770117835 | G26: 4.49228178 | H26: 2.538546283 | I26: 6.116850459
B27: III | D27: n.d. | E27: n.d. | F27: 0.5121445171 | G27: 3.812367967 | H27: 3.033045695 | I27: 5.774124301
B28: IV | D28: n.d. | E28: n.d. | F28: 2.147917646 | G28: 3.203243624 | H28: 2.596474862 | I28: 3.913481988
A29: 2001 | B29: I | D29: n.d. | E29: 1.204513757 | F29: -1.140023454 | G29: 2.934094806 | H29: 2.035631276 | I29: 0.07608460529 | J29: =AVERAGE(F29:I29) -> 0.9764468082
B30: II | D30: n.d. | E30: 1.430703805 | F30: 2.139413583 | G30: 2.067936632 | H30: 1.001203205 | I30: -0.558414997 | J30: 1.162534606
B31: III | D31: n.d. | E31: 1.701561515 | F31: -1.212121451 | G31: 1.716820211 | H31: -0.291026923 | I31: -1.039797977 | J31: -0.2065315351
B32: IV | D32: n.d. | E32: 2.371109461 | F32: 0.985147923 | G32: 1.284820654 | H32: -1.841510061 | I32: -0.885780571 | J32: -0.1143305139
A33: 2002 | B33: I | D33: 7.6 | E33: 0.7516913054 | F33: 3.812413901 | G33: 0.4129600041 | H33: -1.937454504 | I33: -2.24652438 | J33: 0.01034875546
B34: II | D34: 7.8 | E34: 3.976121061 | F34: 2.204415053 | G34: 0.9702078817 | H34: -0.2144460963 | I34: 1.430703076 | J34: 1.097719979 | K34: =+C34-C33 -> 0 | L34: 0.2 | M34: 3.224429755 | N34: -1.607998848 | O34: 0.5572478776 | P34: 1.723008407 | Q34: 3.677227456
B35: III | D35: 7.9 | E35: 2.814651611 | F35: 1.937186458 | G35: 1.189077145 | H35: 1.466516386 | I35: 0.3188412042 | J35: 1.227905298 | K35: 0 | L35: 0.1 | M35: -1.16146945 | N35: -0.2672285958 | O35: 0.2188692636 | P35: 1.680962483 | Q35: -1.111861872
B36: IV | D36: 9.1 | E36: 2.466769791 | F36: 0.1915441934 | G36: 1.081088698 | H36: 1.683566703 | I36: 1.005759938 | J36: 0.9904898829 | K36: 0 | L36: 1.2 | M36: -0.3478818202 | N36: -1.745642264 | O36: -0.1079884475 | P36: 0.2170503163 | Q36: 0.6869187336
A37: 2003 | B37: I | D37: 9.9 | E37: 4.258200006 | F37: 2.042788938 | G37: 0.8443594863 | H37: 1.337807326 | I37: 3.184141274 | J37: 1.852274256 | K37: 0 | L37: 0.8 | M37: 1.791430215 | N37: 1.851244744 | O37: -0.2367292116 | P37: -0.3457593764 | Q37: 2.178381337
B38: II | D38: 8.2 | E38: 2.442118194 | F38: 3.836437784 | G38: 0.3508516941 | H38: 1.303758081 | I38: 0.4015949453 | J38: 1.473160626 | K38: 0 | L38: -1.7 | M38: -1.816081812 | N38: 1.793648846 | O38: -0.4935077922 | P38: -0.0340492449 | Q38: -2.782546329
B39: III | D39: 8.5 | E39: 3.933622629 | F39: 6.931212615 | G39: 0.5119256448 | H39: 1.088296175 | I39: 0.4038890981 | J39: 2.233830883 | K39: 0 | L39: 0.3 | M39: 1.491504436 | N39: 3.094774831 | O39: 0.1610739507 | P39: -0.2154619067 | Q39: 0.002294152782
B40: IV | D40: 10 | E40: 5.051233751 | F40: 4.614943955 | G40: 1.18792721 | H40: 1.898034551 | I40: 1.754920386 | J40: 2.363956526 | K40: 0 | L40: 1.5 | M40: 1.117611122 | N40: -2.31626866 | O40: 0.6760015649 | P40: 0.8097383768 | Q40: 1.351031288
A41: 2004 | B41: I | D41: 9.5 | E41: 6.115822953 | F41: 2.414033074 | G41: 1.782105518 | H41: 4.172092393 | I41: 4.196008492 | J41: 3.141059869 | K41: 0 | L41: -0.5 | M41: 1.064589201 | N41: -2.200910881 | O41: 0.5941783084 | P41: 2.274057841 | Q41: 2.441088106
B42: II | D42: 9.5 | E42: 4.397638257 | F42: 3.095578957 | G42: 2.245376333 | H42: 3.221878723 | I42: 4.126736462 | J42: 3.172392619 | K42: 0 | L42: 0 | M42: -1.718184695 | N42: 0.681545883 | O42: 0.4632708146 | P42: -0.9502136699 | Q42: -0.0692720299
B43: III | D43: 9.7 | E43: 4.44710764 | F43: 3.556130046 | G43: 2.154690561 | H43: 2.895003185 | I43: 4.124878874 | J43: 3.182675666 | K43: 0 | L43: 0.2 | M43: 0.04946938326 | N43: 0.4605510886 | O43: -0.09068577198 | P43: -0.3268755378 | Q43: -0.001857588522
B44: IV | D44: 9.8 | E44: 6.368746344 | F44: 3.417983427 | G44: 1.752983581 | H44: 0.8355553179 | I44: 4.721664645 | J44: 2.682046743 | K44: 0 | L44: 0.1 | M44: 1.921638703 | N44: -0.1381466191 | O44: -0.4017069792 | P44: -2.059447867 | Q44: 0.5967857718
A45: 2005 | B45: I | D45: 9.4 | E45: 4.199812676 | F45: 4.445732701 | G45: 1.45911646 | H45: 1.080271755 | I45: 1.477782898 | J45: 2.115725954 | K45: 0 | L45: -0.4 | M45: -2.168933668 | N45: 1.027749274 | O45: -0.2938671211 | P45: 0.2447164367 | Q45: -3.243881747
B46: II | D46: 9.5 | E46: 6.037679314 | F46: 2.202324368 | G46: 1.621284567 | H46: 2.000741015 | I46: 3.518305512 | J46: 2.335663865 | K46: 0 | L46: 0.1 | M46: 1.837866638 | N46: -2.243408333 | O46: 0.1621681065 | P46: 0.9204692605 | Q46: 2.040522613
B47: III | D47: 9.4 | E47: 5.386665351 | F47: 3.304575276 | G47: 1.897356814 | H47: 1.982443601 | I47: 3.401953958 | J47: 2.646582412 | K47: 0 | L47: -0.1 | M47: -0.6510139632 | N47: 1.102250908 | O47: 0.2760722476 | P47: -0.01829741419 | Q47: -0.1163515539
B48: IV | D48: 9.9 | E48: 3.257932618 | F48: 2.232130939 | G48: 2.22049093 | H48: 2.640089778 | I48: 3.69797946 | J48: 2.697672777 | K48: 0 | L48: 0.5 | M48: -2.128732733 | N48: -1.072444337 | O48: 0.3231341161 | P48: 0.6576461766 | Q48: 0.2960255027
A49: 2006 | B49: I | D49: 10.2 | E49: 5.382439656 | F49: 4.942950116 | G49: 2.925312741 | H49: 2.486355182 | I49: 5.779726865 | J49: 4.033586226 | K49: 0 | L49: 0.3 | M49: 2.124507038 | N49: 2.710819177 | O49: 0.7048218109 | P49: -0.1537345956 | Q49: 2.081747404
B50: II | D50: 10.9 | E50: 5.80575277 | F50: 1.248724401 | G50: 3.353733804 | H50: 2.01321466 | I50: 4.878652883 | J50: 2.873581437 | K50: 0 | L50: 0.7 | M50: 0.423313114 | N50: -3.694225716 | O50: 0.4284210631 | P50: -0.4731405223 | Q50: -0.9010739811
B51: III | D51: 10.7 | E51: 7.634222295 | F51: 0.3513487875 | G51: 3.35571972 | H51: 1.637424897 | I51: 5.40058302 | J51: 2.686269106 | K51: 0 | L51: -0.2 | M51: 1.828469525 | N51: -0.8973756135 | O51: 0.001985915404 | P51: -0.3757897627 | Q51: 0.5219301365
B52: IV | D52: 10.7 | E52: 7.918533699 | F52: 3.159096244 | G52: 3.807297982 | H52: 2.03081338 | I52: 4.007162062 | J52: 3.251092417 | K52: 0 | L52: 0 | M52: 0.2843114041 | N52: 2.807747456 | O52: 0.4515782626 | P52: 0.3933884829 | Q52: -1.393420958
A53: 2007 | B53: I | C53: -1.313542569 | D53: 11.1 | E53: 7.973478602 | F53: 0.2638763244 | G53: 3.688205979 | H53: 3.542289637 | I53: 2.922951319 | J53: 2.604330815 | K53: -1.313542569 | L53: 0.4 | M53: 0.05494490284 | N53: -2.89521992 | O53: -0.1190920036 | P53: 1.511476257 | Q53: -1.084210743 | R53: =IF(AND('Crecimiento del PIB'!$J$6<>1,'Crecimiento del PIB'!$J$6<>2,'Crecimiento del PIB'!$J$6<>3,'Crecimiento del PIB'!$J$6<>4,'Crecimiento del PIB'!$J$6<>5,'Crecimiento del PIB'!$J$6<>6,'Crecimiento del PIB'!$J$6<>7),LOOKUP(1,'Datos trimestrales'!$C$2:$I$2,'Datos trimestrales'!$C53:$I53),LOOKUP('Crecimiento del PIB'!$J$6,'Datos trimestrales'!$C$2:$I$2,'Datos trimestrales'!$C53:$I53)) -> 7.973478602 | S53: =IF(AND('Crecimiento del PIB'!$J$6<>1,'Crecimiento del PIB'!$J$6<>2,'Crecimiento del PIB'!$J$6<>3,'Crecimiento del PIB'!$J$6<>4,'Crecimiento del PIB'!$J$6<>5,'Crecimiento del PIB'!$J$6<>6,'Crecimiento del PIB'!$J$6<>7),LOOKUP(1,'Datos trimestrales'!$K$2:$Q$2,'Datos trimestrales'!$K53:$Q53),LOOKUP('Crecimiento del PIB'!$J$6,'Datos trimestrales'!$K$2:$Q$2,'Datos trimestrales'!$K53:$Q53)) -> 0.05494490284
B54: II | C54: 5.185589287 | D54: 11.5 | E54: 6.321775127 | F54: 3.115579935 | G54: 3.032810765 | H54: 2.313647801 | I54: 2.74717567 | J54: 2.802303543 | K54: 6.499131856 | L54: 0.4 | M54: -1.651703475 | N54: 2.851703611 | O54: -0.6553952139 | P54: -1.228641836 | Q54: -0.1757756493 | R54: =IF(AND('Crecimiento del PIB'!$J$6<>1,'Crecimiento del PIB'!$J$6<>2,'Crecimiento del PIB'!$J$6<>3,'Crecimiento del PIB'!$J$6<>4,'Crecimiento del PIB'!$J$6<>5,'Crecimiento del PIB'!$J$6<>6,'Crecimiento del PIB'!$J$6<>7),LOOKUP(1,'Datos trimestrales'!$C$2:$I$2,'Datos trimestrales'!$C54:$I54),LOOKUP('Crecimiento del PIB'!$J$6,'Datos trimestrales'!$C$2:$I$2,'Datos trimestrales'!$C54:$I54)) -> 6.321775127 | S54: =IF(AND('Crecimiento del PIB'!$J$6<>1,'Crecimiento del PIB'!$J$6<>2,'Crecimiento del PIB'!$J$6<>3,'Crecimiento del PIB'!$J$6<>4,'Crecimiento del PIB'!$J$6<>5,'Crecimiento del PIB'!$J$6<>6,'Crecimiento del PIB'!$J$6<>7),LOOKUP(1,'Datos trimestrales'!$K$2:$Q$2,'Datos trimestrales'!$K54:$Q54),LOOKUP('Crecimiento del PIB'!$J$6,'Datos trimestrales'!$K$2:$Q$2,'Datos trimestrales'!$K54:$Q54)) -> -1.651703475
B55: III | C55: 1.784860493 | D55: 11.5 | E55: 6.135589902 | F55: 2.722507214 | G55: 2.986579159 | H55: 1.740529751 | I55: 3.157220332 | J55: 2.651709114 | K55: -3.400728794 | L55: 0 | M55: -0.1861852249 | N55: -0.393072721 | O55: -0.04623160594 | P55: -0.5731180507 | Q55: 0.4100446625 | R55: =IF(AND('Crecimiento del PIB'!$J$6<>1,'Crecimiento del PIB'!$J$6<>2,'Crecimiento del PIB'!$J$6<>3,'Crecimiento del PIB'!$J$6<>4,'Crecimiento del PIB'!$J$6<>5,'Crecimiento del PIB'!$J$6<>6,'Crecimiento del PIB'!$J$6<>7),LOOKUP(1,'Datos trimestrales'!$C$2:$I$2,'Datos trimestrales'!$C55:$I55),LOOKUP('Crecimiento del PIB'!$J$6,'Datos trimestrales'!$C$2:$I$2,'Datos trimestrales'!$C55:$I55)) -> 6.135589902 | S55: =IF(AND('Crecimiento del PIB'!$J$6<>1,'Crecimiento del PIB'!$J$6<>2,'Crecimiento del PIB'!$J$6<>3,'Crecimiento del PIB'!$J$6<>4,'Crecimiento del PIB'!$J$6<>5,'Crecimiento del PIB'!$J$6<>6,'Crecimiento del PIB'!$J$6<>7),LOOKUP(1,'Datos trimestrales'!$K$2:$Q$2,'Datos trimestrales'!$K55:$Q55),LOOKUP('Crecimiento del PIB'!$J$6,'Datos trimestrales'!$K$2:$Q$2,'Datos trimestrales'!$K55:$Q55)) -> -0.1861852249
B56: IV | C56: 0.9605777001 | D56: 11.4 | E56: 7.201253138 | F56: 1.469732302 | G56: 2.290721813 | H56: 1.893780121 | I56: 3.745904881 | J56: 2.350034779 | K56: -0.8242827931 | L56: -0.1 | M56: 1.065663236 | N56: -1.252774912 | O56: -0.6958573457 | P56: 0.1532503703 | Q56: 0.5886845488 | R56: =IF(AND('Crecimiento del PIB'!$J$6<>1,'Crecimiento del PIB'!$J$6<>2,'Crecimiento del PIB'!$J$6<>3,'Crecimiento del PIB'!$J$6<>4,'Crecimiento del PIB'!$J$6<>5,'Crecimiento del PIB'!$J$6<>6,'Crecimiento del PIB'!$J$6<>7),LOOKUP(1,'Datos trimestrales'!$C$2:$I$2,'Datos trimestrales'!$C56:$I56),LOOKUP('Crecimiento del PIB'!$J$6,'Datos trimestrales'!$C$2:$I$2,'Datos trimestrales'!$C56:$I56)) -> 7.201253138 | S56: =IF(AND('Crecimiento del PIB'!$J$6<>1,'Crecimiento del PIB'!$J$6<>2,'Crecimiento del PIB'!$J$6<>3,'Crecimiento del PIB'!$J$6<>4,'Crecimiento del PIB'!$J$6<>5,'Crecimiento del PIB'!$J$6<>6,'Crecimiento del PIB'!$J$6<>7),LOOKUP(1,'Datos trimestrales'!$K$2:$Q$2,'Datos trimestrales'!$K56:$Q56),LOOKUP('Crecimiento del PIB'!$J$6,'Datos trimestrales'!$K$2:$Q$2,'Datos trimestrales'!$K56:$Q56)) -> 1.065663236
A57: 2008 | B57: I | C57: -1.663932875 | D57: 10.6 | E57: 5.050558247 | F57: -2.659097244 | G57: 2.069552264 | H57: 1.281094679 | I57: 2.149971573 | J57: 0.7103803181 | K57: -2.624510575 | L57: -0.8 | M57: -2.150694891 | N57: -4.128829546 | O57: -0.2211695492 | P57: -0.6126854418 | Q57: -1.595933308 | R57: =IF(AND('Crecimiento del PIB'!$J$6<>1,'Crecimiento del PIB'!$J$6<>2,'Crecimiento del PIB'!$J$6<>3,'Crecimiento del PIB'!$J$6<>4,'Crecimiento del PIB'!$J$6<>5,'Crecimiento del PIB'!$J$6<>6,'Crecimiento del PIB'!$J$6<>7),LOOKUP(1,'Datos trimestrales'!$C$2:$I$2,'Datos trimestrales'!$C57:$I57),LOOKUP('Crecimiento del PIB'!$J$6,'Datos trimestrales'!$C$2:$I$2,'Datos trimestrales'!$C57:$I57)) -> 5.050558247 | S57: =IF(AND('Crecimiento del PIB'!$J$6<>1,'Crecimiento del PIB'!$J$6<>2,'Crecimiento del PIB'!$J$6<>3,'Crecimiento del PIB'!$J$6<>4,'Crecimiento del PIB'!$J$6<>5,'Crecimiento del PIB'!$J$6<>6,'Crecimiento del PIB'!$J$6<>7),LOOKUP(1,'Datos trimestrales'!$K$2:$Q$2,'Datos trimestrales'!$K57:$Q57),LOOKUP('Crecimiento del PIB'!$J$6,'Datos trimestrales'!$K$2:$Q$2,'Datos trimestrales'!$K57:$Q57)) -> -2.150694891
B58: II | C58: 5.346517186 | D58: 10.4 | E58: 5.293840599 | F58: 1.996597138 | G58: 1.174175476 | H58: -0.3231719677 | I58: 3.082515989 | J58: 1.482529159 | K58: 7.01045006 | L58: -0.2 | M58: 0.2432823514 | N58: 4.655694382 | O58: -0.895376788 | P58: -1.604266647 | Q58: 0.9325444157 | R58: =IF(AND('Crecimiento del PIB'!$J$6<>1,'Crecimiento del PIB'!$J$6<>2,'Crecimiento del PIB'!$J$6<>3,'Crecimiento del PIB'!$J$6<>4,'Crecimiento del PIB'!$J$6<>5,'Crecimiento del PIB'!$J$6<>6,'Crecimiento del PIB'!$J$6<>7),LOOKUP(1,'Datos trimestrales'!$C$2:$I$2,'Datos trimestrales'!$C58:$I58),LOOKUP('Crecimiento del PIB'!$J$6,'Datos trimestrales'!$C$2:$I$2,'Datos trimestrales'!$C58:$I58)) -> 5.293840599 | S58: =IF(AND('Crecimiento del PIB'!$J$6<>1,'Crecimiento del PIB'!$J$6<>2,'Crecimiento del PIB'!$J$6<>3,'Crecimiento del PIB'!$J$6<>4,'Crecimiento del PIB'!$J$6<>5,'Crecimiento del PIB'!$J$6<>6,'Crecimiento del PIB'!$J$6<>7),LOOKUP(1,'Datos trimestrales'!$K$2:$Q$2,'Datos trimestrales'!$K58:$Q58),LOOKUP('Crecimiento del PIB'!$J$6,'Datos trimestrales'!$K$2:$Q$2,'Datos trimestrales'!$K58:$Q58)) -> 0.2432823514
B59: III | C59: 2.415788071 | D59: 9.9 | E59: 3.606271777 | F59: -1.965411719 | G59: -0.03920387126 | H59: -1.383152262 | I59: 1.589934901 | J59: -0.4494582376 | K59: -2.930729114 | L59: -0.5 | M59: -1.687568822 | N59: -3.962008856 | O59: -1.213379347 | P59: -1.059980294 | Q59: -1.492581087 | R59: =IF(AND('Crecimiento del PIB'!$J$6<>1,'Crecimiento del PIB'!$J$6<>2,'Crecimiento del PIB'!$J$6<>3,'Crecimiento del PIB'!$J$6<>4,'Crecimiento del PIB'!$J$6<>5,'Crecimiento del PIB'!$J$6<>6,'Crecimiento del PIB'!$J$6<>7),LOOKUP(1,'Datos trimestrales'!$C$2:$I$2,'Datos trimestrales'!$C59:$I59),LOOKUP('Crecimiento del PIB'!$J$6,'Datos trimestrales'!$C$2:$I$2,'Datos trimestrales'!$C59:$I59)) -> 3.606271777 | S59: =IF(AND('Crecimiento del PIB'!$J$6<>1,'Crecimiento del PIB'!$J$6<>2,'Crecimiento del PIB'!$J$6<>3,'Crecimiento del PIB'!$J$6<>4,'Crecimiento del PIB'!$J$6<>5,'Crecimiento del PIB'!$J$6<>6,'Crecimiento del PIB'!$J$6<>7),LOOKUP(1,'Datos trimestrales'!$K$2:$Q$2,'Datos trimestrales'!$K59:$Q59),LOOKUP('Crecimiento del PIB'!$J$6,'Datos trimestrales'!$K$2:$Q$2,'Datos trimestrales'!$K59:$Q59)) -> -1.687568822
B60: IV | C60: -4.84099347 | D60: 9 | E60: 0.3893192418 | F60: -8.333028248 | G60: -2.137464487 | H60: -4.120206324 | I60: -1.118573233 | J60: -3.927318073 | K60: -7.256781542 | L60: -0.9 | M60: -3.216952535 | N60: -6.36761653 | O60: -2.098260615 | P60: -2.737054062 | Q60: -2.708508134 | R60: =IF(AND('Crecimiento del PIB'!$J$6<>1,'Crecimiento del PIB'!$J$6<>2,'Crecimiento del PIB'!$J$6<>3,'Crecimiento del PIB'!$J$6<>4,'Crecimiento del PIB'!$J$6<>5,'Crecimiento del PIB'!$J$6<>6,'Crecimiento del PIB'!$J$6<>7),LOOKUP(1,'Datos trimestrales'!$C$2:$I$2,'Datos trimestrales'!$C60:$I60),LOOKUP('Crecimiento del PIB'!$J$6,'Datos trimestrales'!$C$2:$I$2,'Datos trimestrales'!$C60:$I60)) -> 0.3893192418 | S60: =IF(AND('Crecimiento del PIB'!$J$6<>1,'Crecimiento del PIB'!$J$6<>2,'Crecimiento del PIB'!$J$6<>3,'Crecimiento del PIB'!$J$6<>4,'Crecimiento del PIB'!$J$6<>5,'Crecimiento del PIB'!$J$6<>6,'Crecimiento del PIB'!$J$6<>7),LOOKUP(1,'Datos trimestrales'!$K$2:$Q$2,'Datos trimestrales'!$K60:$Q60),LOOKUP('Crecimiento del PIB'!$J$6,'Datos trimestrales'!$K$2:$Q$2,'Datos trimestrales'!$K60:$Q60)) -> -3.216952535
A61: 2009 | B61: I | C61: -5.241533913 | D61: 6.1 | E61: 1.076853662 | F61: -5.442856547 | G61: -5.462831987 | H61: -9.3 | I61: -5.238050747 | J61: -6.36093482 | K61: -0.4005404429 | L61: -2.9 | M61: 0.6875344204 | N61: 2.890171701 | O61: -3.325367501 | P61: -5.179793676 | Q61: -4.119477514 | R61: =IF(AND('Crecimiento del PIB'!$J$6<>1,'Crecimiento del PIB'!$J$6<>2,'Crecimiento del PIB'!$J$6<>3,'Crecimiento del PIB'!$J$6<>4,'Crecimiento del PIB'!$J$6<>5,'Crecimiento del PIB'!$J$6<>6,'Crecimiento del PIB'!$J$6<>7),LOOKUP(1,'Datos trimestrales'!$C$2:$I$2,'Datos trimestrales'!$C61:$I61),LOOKUP('Crecimiento del PIB'!$J$6,'Datos trimestrales'!$C$2:$I$2,'Datos trimestrales'!$C61:$I61)) -> 1.076853662 | S61: =IF(AND('Crecimiento del PIB'!$J$6<>1,'Crecimiento del PIB'!$J$6<>2,'Crecimiento del PIB'!$J$6<>3,'Crecimiento del PIB'!$J$6<>4,'Crecimiento del PIB'!$J$6<>5,'Crecimiento del PIB'!$J$6<>6,'Crecimiento del PIB'!$J$6<>7),LOOKUP(1,'Datos trimestrales'!$K$2:$Q$2,'Datos trimestrales'!$K61:$Q61),LOOKUP('Crecimiento del PIB'!$J$6,'Datos trimestrales'!$K$2:$Q$2,'Datos trimestrales'!$K61:$Q61)) -> 0.6875344204
B62: II | C62: 5.685611837 | D62: 7.1 | E62: 1.18286731 | F62: -0.4223712223 | G62: -5.321393382 | H62: -6.6 | I62: -7.946672971 | J62: -5.072609394 | K62: 10.92714575 | L62: 1 | M62: 0.1060136479 | N62: 5.020485325 | O62: 0.1414386049 | P62: 2.7 | Q62: -2.708622224 | R62: =IF(AND('Crecimiento del PIB'!$J$6<>1,'Crecimiento del PIB'!$J$6<>2,'Crecimiento del PIB'!$J$6<>3,'Crecimiento del PIB'!$J$6<>4,'Crecimiento del PIB'!$J$6<>5,'Crecimiento del PIB'!$J$6<>6,'Crecimiento del PIB'!$J$6<>7),LOOKUP(1,'Datos trimestrales'!$C$2:$I$2,'Datos trimestrales'!$C62:$I62),LOOKUP('Crecimiento del PIB'!$J$6,'Datos trimestrales'!$C$2:$I$2,'Datos trimestrales'!$C62:$I62)) -> 1.18286731 | S62: =IF(AND('Crecimiento del PIB'!$J$6<>1,'Crecimiento del PIB'!$J$6<>2,'Crecimiento del PIB'!$J$6<>3,'Crecimiento del PIB'!$J$6<>4,'Crecimiento del PIB'!$J$6<>5,'Crecimiento del PIB'!$J$6<>6,'Crecimiento del PIB'!$J$6<>7),LOOKUP(1,'Datos trimestrales'!$K$2:$Q$2,'Datos trimestrales'!$K62:$Q62),LOOKUP('Crecimiento del PIB'!$J$6,'Datos trimestrales'!$K$2:$Q$2,'Datos trimestrales'!$K62:$Q62)) -> 0.1060136479
B63: III | C63: 3.394364824 | D63: 7.7 | E63: 1.335324781 | F63: 1.276534924 | G63: -4.353862059 | H63: -5.6 | I63: -4.573681263 | J63: -3.3127521 | K63: -2.291247013 | L63: 0.6 | M63: 0.1524574705 | N63: 1.698906146 | O63: 0.9675313235 | P63: 1 | Q63: 3.372991707 | R63: =IF(AND('Crecimiento del PIB'!$J$6<>1,'Crecimiento del PIB'!$J$6<>2,'Crecimiento del PIB'!$J$6<>3,'Crecimiento del PIB'!$J$6<>4,'Crecimiento del PIB'!$J$6<>5,'Crecimiento del PIB'!$J$6<>6,'Crecimiento del PIB'!$J$6<>7),LOOKUP(1,'Datos trimestrales'!$C$2:$I$2,'Datos trimestrales'!$C63:$I63),LOOKUP('Crecimiento del PIB'!$J$6,'Datos trimestrales'!$C$2:$I$2,'Datos trimestrales'!$C63:$I63)) -> 1.335324781 | S63: =IF(AND('Crecimiento del PIB'!$J$6<>1,'Crecimiento del PIB'!$J$6<>2,'Crecimiento del PIB'!$J$6<>3,'Crecimiento del PIB'!$J$6<>4,'Crecimiento del PIB'!$J$6<>5,'Crecimiento del PIB'!$J$6<>6,'Crecimiento del PIB'!$J$6<>7),LOOKUP(1,'Datos trimestrales'!$K$2:$Q$2,'Datos trimestrales'!$K63:$Q63),LOOKUP('Crecimiento del PIB'!$J$6,'Datos trimestrales'!$K$2:$Q$2,'Datos trimestrales'!$K63:$Q63)) -> 0.1524574705
B64: IV | C64: 1.705207654 | D64: 8.7 | E64: 3.011753915 | F64: 3.879532268 | G64: -2.243693605 | H64: -0.5 | I64: -1.029111581 | J64: 0.02668177044 | K64: -1.68915717 | L64: 1 | M64: 1.676429135 | N64: 2.602997344 | O64: 2.110168453 | P64: 5.1 | Q64: 3.544569683 | R64: =IF(AND('Crecimiento del PIB'!$J$6<>1,'Crecimiento del PIB'!$J$6<>2,'Crecimiento del PIB'!$J$6<>3,'Crecimiento del PIB'!$J$6<>4,'Crecimiento del PIB'!$J$6<>5,'Crecimiento del PIB'!$J$6<>6,'Crecimiento del PIB'!$J$6<>7),LOOKUP(1,'Datos trimestrales'!$C$2:$I$2,'Datos trimestrales'!$C64:$I64),LOOKUP('Crecimiento del PIB'!$J$6,'Datos trimestrales'!$C$2:$I$2,'Datos trimestrales'!$C64:$I64)) -> 3.011753915 | S64: =IF(AND('Crecimiento del PIB'!$J$6<>1,'Crecimiento del PIB'!$J$6<>2,'Crecimiento del PIB'!$J$6<>3,'Crecimiento del PIB'!$J$6<>4,'Crecimiento del PIB'!$J$6<>5,'Crecimiento del PIB'!$J$6<>6,'Crecimiento del PIB'!$J$6<>7),LOOKUP(1,'Datos trimestrales'!$K$2:$Q$2,'Datos trimestrales'!$K64:$Q64),LOOKUP('Crecimiento del PIB'!$J$6,'Datos trimestrales'!$K$2:$Q$2,'Datos trimestrales'!$K64:$Q64)) -> 1.676429135
A65: 2010 | B65: I | C65: -1.612831448 | D65: 11.9 | E65: 3.634596117 | F65: 1.591229291 | G65: 1.023082909 | H65: 4.902369885 | I65: 3.65426502 | J65: 2.792736776 | K65: -3.318039102 | L65: 3.2 | M65: 0.6228422019 | N65: -2.288302977 | O65: 3.266776514 | P65: 5.402369885 | Q65: 4.683376601 | R65: =IF(AND('Crecimiento del PIB'!$J$6<>1,'Crecimiento del PIB'!$J$6<>2,'Crecimiento del PIB'!$J$6<>3,'Crecimiento del PIB'!$J$6<>4,'Crecimiento del PIB'!$J$6<>5,'Crecimiento del PIB'!$J$6<>6,'Crecimiento del PIB'!$J$6<>7),LOOKUP(1,'Datos trimestrales'!$C$2:$I$2,'Datos trimestrales'!$C65:$I65),LOOKUP('Crecimiento del PIB'!$J$6,'Datos trimestrales'!$C$2:$I$2,'Datos trimestrales'!$C65:$I65)) -> 3.634596117 | S65: =IF(AND('Crecimiento del PIB'!$J$6<>1,'Crecimiento del PIB'!$J$6<>2,'Crecimiento del PIB'!$J$6<>3,'Crecimiento del PIB'!$J$6<>4,'Crecimiento del PIB'!$J$6<>5,'Crecimiento del PIB'!$J$6<>6,'Crecimiento del PIB'!$J$6<>7),LOOKUP(1,'Datos trimestrales'!$K$2:$Q$2,'Datos trimestrales'!$K65:$Q65),LOOKUP('Crecimiento del PIB'!$J$6,'Datos trimestrales'!$K$2:$Q$2,'Datos trimestrales'!$K65:$Q65)) -> 0.6228422019
B66: II | C66: 5.126252822 | D66: 11.1 | E66: 3.54837759 | F66: 3.900221207 | G66: 2.189652292 | H66: 4.448991699 | I66: 6.70771661 | J66: 4.311645452 | K66: 6.73908427 | L66: -0.8 | M66: -0.0862185276 | N66: 2.308991915 | O66: 1.166569383 | P66: -0.453378186 | Q66: 3.05345159 | R66: =IF(AND('Crecimiento del PIB'!$J$6<>1,'Crecimiento del PIB'!$J$6<>2,'Crecimiento del PIB'!$J$6<>3,'Crecimiento del PIB'!$J$6<>4,'Crecimiento del PIB'!$J$6<>5,'Crecimiento del PIB'!$J$6<>6,'Crecimiento del PIB'!$J$6<>7),LOOKUP(1,'Datos trimestrales'!$C$2:$I$2,'Datos trimestrales'!$C66:$I66),LOOKUP('Crecimiento del PIB'!$J$6,'Datos trimestrales'!$C$2:$I$2,'Datos trimestrales'!$C66:$I66)) -> 3.54837759 | S66: =IF(AND('Crecimiento del PIB'!$J$6<>1,'Crecimiento del PIB'!$J$6<>2,'Crecimiento del PIB'!$J$6<>3,'Crecimiento del PIB'!$J$6<>4,'Crecimiento del PIB'!$J$6<>5,'Crecimiento del PIB'!$J$6<>6,'Crecimiento del PIB'!$J$6<>7),LOOKUP(1,'Datos trimestrales'!$K$2:$Q$2,'Datos trimestrales'!$K66:$Q66),LOOKUP('Crecimiento del PIB'!$J$6,'Datos trimestrales'!$K$2:$Q$2,'Datos trimestrales'!$K66:$Q66)) -> -0.0862185276
B67: III | C67: 1.644669614 | D67: 10.6 | E67: 3.410477408 | F67: 2.777831602 | G67: 2.18880205 | H67: 6.009198919 | I67: 5.40194214 | J67: 4.094443678 | K67: -3.481583208 | L67: -0.5 | M67: -0.1379001815 | N67: -1.122389605 | O67: -0.0008502420094 | P67: 1.560207219 | Q67: -1.30577447 | R67: =IF(AND('Crecimiento del PIB'!$J$6<>1,'Crecimiento del PIB'!$J$6<>2,'Crecimiento del PIB'!$J$6<>3,'Crecimiento del PIB'!$J$6<>4,'Crecimiento del PIB'!$J$6<>5,'Crecimiento del PIB'!$J$6<>6,'Crecimiento del PIB'!$J$6<>7),LOOKUP(1,'Datos trimestrales'!$C$2:$I$2,'Datos trimestrales'!$C67:$I67),LOOKUP('Crecimiento del PIB'!$J$6,'Datos trimestrales'!$C$2:$I$2,'Datos trimestrales'!$C67:$I67)) -> 3.410477408 | S67: =IF(AND('Crecimiento del PIB'!$J$6<>1,'Crecimiento del PIB'!$J$6<>2,'Crecimiento del PIB'!$J$6<>3,'Crecimiento del PIB'!$J$6<>4,'Crecimiento del PIB'!$J$6<>5,'Crecimiento del PIB'!$J$6<>6,'Crecimiento del PIB'!$J$6<>7),LOOKUP(1,'Datos trimestrales'!$K$2:$Q$2,'Datos trimestrales'!$K67:$Q67),LOOKUP('Crecimiento del PIB'!$J$6,'Datos trimestrales'!$K$2:$Q$2,'Datos trimestrales'!$K67:$Q67)) -> -0.1379001815
B68: IV | C68: 0.1908370019 | D68: 10.3 | E68: 5.274465779 | F68: 2.808204096 | G68: 2.213713898 | H68: 3.314616224 | I68: 4.530396208 | J68: 3.216732606 | K68: -1.453832612 | L68: -0.3 | M68: 1.863988371 | N68: 0.03037249427 | O68: 0.02491184836 | P68: -2.694582695 | Q68: -0.8715459324 | R68: =IF(AND('Crecimiento del PIB'!$J$6<>1,'Crecimiento del PIB'!$J$6<>2,'Crecimiento del PIB'!$J$6<>3,'Crecimiento del PIB'!$J$6<>4,'Crecimiento del PIB'!$J$6<>5,'Crecimiento del PIB'!$J$6<>6,'Crecimiento del PIB'!$J$6<>7),LOOKUP(1,'Datos trimestrales'!$C$2:$I$2,'Datos trimestrales'!$C68:$I68),LOOKUP('Crecimiento del PIB'!$J$6,'Datos trimestrales'!$C$2:$I$2,'Datos trimestrales'!$C68:$I68)) -> 5.274465779 | S68: =IF(AND('Crecimiento del PIB'!$J$6<>1,'Crecimiento del PIB'!$J$6<>2,'Crecimiento del PIB'!$J$6<>3,'Crecimiento del PIB'!$J$6<>4,'Crecimiento del PIB'!$J$6<>5,'Crecimiento del PIB'!$J$6<>6,'Crecimiento del PIB'!$J$6<>7),LOOKUP(1,'Datos trimestrales'!$K$2:$Q$2,'Datos trimestrales'!$K68:$Q68),LOOKUP('Crecimiento del PIB'!$J$6,'Datos trimestrales'!$K$2:$Q$2,'Datos trimestrales'!$K68:$Q68)) -> 1.863988371
A69: 2011 | B69: I | C69: -2.638110897 | D69: 9.7 | E69: 5.641649039 | F69: -1.289360434 | G69: 2.578520685 | H69: 0.04713284424 | I69: 4.433155496 | J69: 1.442362148 | K69: -2.828947899 | L69: -0.6 | M69: 0.3671832596 | N69: -4.09756453 | O69: 0.3648067865 | P69: -3.267483379 | Q69: -0.09724071207 | R69: =IF(AND('Crecimiento del PIB'!$J$6<>1,'Crecimiento del PIB'!$J$6<>2,'Crecimiento del PIB'!$J$6<>3,'Crecimiento del PIB'!$J$6<>4,'Crecimiento del PIB'!$J$6<>5,'Crecimiento del PIB'!$J$6<>6,'Crecimiento del PIB'!$J$6<>7),LOOKUP(1,'Datos trimestrales'!$C$2:$I$2,'Datos trimestrales'!$C69:$I69),LOOKUP('Crecimiento del PIB'!$J$6,'Datos trimestrales'!$C$2:$I$2,'Datos trimestrales'!$C69:$I69)) -> 5.641649039 | S69: =IF(AND('Crecimiento del PIB'!$J$6<>1,'Crecimiento del PIB'!$J$6<>2,'Crecimiento del PIB'!$J$6<>3,'Crecimiento del PIB'!$J$6<>4,'Crecimiento del PIB'!$J$6<>5,'Crecimiento del PIB'!$J$6<>6,'Crecimiento del PIB'!$J$6<>7),LOOKUP(1,'Datos trimestrales'!$K$2:$Q$2,'Datos trimestrales'!$K69:$Q69),LOOKUP('Crecimiento del PIB'!$J$6,'Datos trimestrales'!$K$2:$Q$2,'Datos trimestrales'!$K69:$Q69)) -> 0.3671832596
B70: II | C70: 4.199091619 | D70: 9.6 | E70: 6.30615246 | F70: 3.187673195 | G70: 1.719739286 | H70: -1.486897587 | I70: 3.197252902 | J70: 1.654441949 | K70: 6.837202516 | L70: -0.1 | M70: 0.6645034211 | N70: =+F70-F69 -> 4.477033629 | O70: -0.8587813989 | P70: -1.534030432 | Q70: -1.235902594 | R70: =IF(AND('Crecimiento del PIB'!$J$6<>1,'Crecimiento del PIB'!$J$6<>2,'Crecimiento del PIB'!$J$6<>3,'Crecimiento del PIB'!$J$6<>4,'Crecimiento del PIB'!$J$6<>5,'Crecimiento del PIB'!$J$6<>6,'Crecimiento del PIB'!$J$6<>7),LOOKUP(1,'Datos trimestrales'!$C$2:$I$2,'Datos trimestrales'!$C70:$I70),LOOKUP('Crecimiento del PIB'!$J$6,'Datos trimestrales'!$C$2:$I$2,'Datos trimestrales'!$C70:$I70)) -> 6.30615246 | S70: =IF(AND('Crecimiento del PIB'!$J$6<>1,'Crecimiento del PIB'!$J$6<>2,'Crecimiento del PIB'!$J$6<>3,'Crecimiento del PIB'!$J$6<>4,'Crecimiento del PIB'!$J$6<>5,'Crecimiento del PIB'!$J$6<>6,'Crecimiento del PIB'!$J$6<>7),LOOKUP(1,'Datos trimestrales'!$K$2:$Q$2,'Datos trimestrales'!$K70:$Q70),LOOKUP('Crecimiento del PIB'!$J$6,'Datos trimestrales'!$K$2:$Q$2,'Datos trimestrales'!$K70:$Q70)) -> 0.6645034211
B71: III | C71: 0.4716326332 | D71: 9.4 | E71: 7.942006551 | F71: 1.360533785 | G71: 1.385881754 | H71: -0.5021434084 | I71: 4.12667851 | J71: 1.59273766 | K71: =+C71-C70 -> -3.727458986 | L71: -0.2 | M71: 1.635854091 | N71: -1.82713941 | O71: -0.3338575311 | P71: 0.984754179 | Q71: 0.9294256086 | R71: =IF(AND('Crecimiento del PIB'!$J$6<>1,'Crecimiento del PIB'!$J$6<>2,'Crecimiento del PIB'!$J$6<>3,'Crecimiento del PIB'!$J$6<>4,'Crecimiento del PIB'!$J$6<>5,'Crecimiento del PIB'!$J$6<>6,'Crecimiento del PIB'!$J$6<>7),LOOKUP(1,'Datos trimestrales'!$C$2:$I$2,'Datos trimestrales'!$C71:$I71),LOOKUP('Crecimiento del PIB'!$J$6,'Datos trimestrales'!$C$2:$I$2,'Datos trimestrales'!$C71:$I71)) -> 7.942006551 | S71: =IF(AND('Crecimiento del PIB'!$J$6<>1,'Crecimiento del PIB'!$J$6<>2,'Crecimiento del PIB'!$J$6<>3,'Crecimiento del PIB'!$J$6<>4,'Crecimiento del PIB'!$J$6<>5,'Crecimiento del PIB'!$J$6<>6,'Crecimiento del PIB'!$J$6<>7),LOOKUP(1,'Datos trimestrales'!$K$2:$Q$2,'Datos trimestrales'!$K71:$Q71),LOOKUP('Crecimiento del PIB'!$J$6,'Datos trimestrales'!$K$2:$Q$2,'Datos trimestrales'!$K71:$Q71)) -> 1.635854091
B72: IV | C72: -0.5516274218 | D72: 9.2 | E72: 6.457188034 | F72: 4.866583683 | G72: 0.6792134637 | H72: 0.09234783595 | I72: 4.274710443 | J72: 2.478213856 | K72: -1.023260055 | L72: -0.2 | M72: -1.484818516 | N72: 3.506049898 | O72: -0.7066682908 | P72: 0.5944912444 | Q72: 0.1480319329 | R72: =IF(AND('Crecimiento del PIB'!$J$6<>1,'Crecimiento del PIB'!$J$6<>2,'Crecimiento del PIB'!$J$6<>3,'Crecimiento del PIB'!$J$6<>4,'Crecimiento del PIB'!$J$6<>5,'Crecimiento del PIB'!$J$6<>6,'Crecimiento del PIB'!$J$6<>7),LOOKUP(1,'Datos trimestrales'!$C$2:$I$2,'Datos trimestrales'!$C72:$I72),LOOKUP('Crecimiento del PIB'!$J$6,'Datos trimestrales'!$C$2:$I$2,'Datos trimestrales'!$C72:$I72)) -> 6.457188034 | S72: =IF(AND('Crecimiento del PIB'!$J$6<>1,'Crecimiento del PIB'!$J$6<>2,'Crecimiento del PIB'!$J$6<>3,'Crecimiento del PIB'!$J$6<>4,'Crecimiento del PIB'!$J$6<>5,'Crecimiento del PIB'!$J$6<>6,'Crecimiento del PIB'!$J$6<>7),LOOKUP(1,'Datos trimestrales'!$K$2:$Q$2,'Datos trimestrales'!$K72:$Q72),LOOKUP('Crecimiento del PIB'!$J$6,'Datos trimestrales'!$K$2:$Q$2,'Datos trimestrales'!$K72:$Q72)) -> -1.484818516
A73: 2012 | B73: I | C73: -3.184675767 | D73: 8.1 | E73: 6.061594498 | F73: 3.711478783 | G73: -0.1719819219 | H73: 3.243520113 | I73: 4.817401168 | J73: 2.900104536 | K73: -2.633048345 | L73: -1.1 | M73: -0.395593536 | N73: -1.1551049 | O73: -0.8511953856 | P73: 3.151172277 | Q73: 0.5426907243 | R73: =IF(AND('Crecimiento del PIB'!$J$6<>1,'Crecimiento del PIB'!$J$6<>2,'Crecimiento del PIB'!$J$6<>3,'Crecimiento del PIB'!$J$6<>4,'Crecimiento del PIB'!$J$6<>5,'Crecimiento del PIB'!$J$6<>6,'Crecimiento del PIB'!$J$6<>7),LOOKUP(1,'Datos trimestrales'!$C$2:$I$2,'Datos trimestrales'!$C73:$I73),LOOKUP('Crecimiento del PIB'!$J$6,'Datos trimestrales'!$C$2:$I$2,'Datos trimestrales'!$C73:$I73)) -> 6.061594498 | S73: =IF(AND('Crecimiento del PIB'!$J$6<>1,'Crecimiento del PIB'!$J$6<>2,'Crecimiento del PIB'!$J$6<>3,'Crecimiento del PIB'!$J$6<>4,'Crecimiento del PIB'!$J$6<>5,'Crecimiento del PIB'!$J$6<>6,'Crecimiento del PIB'!$J$6<>7),LOOKUP(1,'Datos trimestrales'!$K$2:$Q$2,'Datos trimestrales'!$K73:$Q73),LOOKUP('Crecimiento del PIB'!$J$6,'Datos trimestrales'!$K$2:$Q$2,'Datos trimestrales'!$K73:$Q73)) -> -0.395593536
B74: II | C74: 3.94416322 | D74: 7.8 | E74: 5.170813551 | F74: 1.204235268 | G74: -0.5095800669 | H74: 3.235544654 | I74: 4.427886812 | J74: 2.089521667 | K74: 7.128838986 | L74: -0.3 | M74: -0.8907809475 | N74: -2.507243515 | O74: -0.337598145 | P74: -0.007975459366 | Q74: -0.3895143555 | R74: =IF(AND('Crecimiento del PIB'!$J$6<>1,'Crecimiento del PIB'!$J$6<>2,'Crecimiento del PIB'!$J$6<>3,'Crecimiento del PIB'!$J$6<>4,'Crecimiento del PIB'!$J$6<>5,'Crecimiento del PIB'!$J$6<>6,'Crecimiento del PIB'!$J$6<>7),LOOKUP(1,'Datos trimestrales'!$C$2:$I$2,'Datos trimestrales'!$C74:$I74),LOOKUP('Crecimiento del PIB'!$J$6,'Datos trimestrales'!$C$2:$I$2,'Datos trimestrales'!$C74:$I74)) -> 5.170813551 | S74: =IF(AND('Crecimiento del PIB'!$J$6<>1,'Crecimiento del PIB'!$J$6<>2,'Crecimiento del PIB'!$J$6<>3,'Crecimiento del PIB'!$J$6<>4,'Crecimiento del PIB'!$J$6<>5,'Crecimiento del PIB'!$J$6<>6,'Crecimiento del PIB'!$J$6<>7),LOOKUP(1,'Datos trimestrales'!$K$2:$Q$2,'Datos trimestrales'!$K74:$Q74),LOOKUP('Crecimiento del PIB'!$J$6,'Datos trimestrales'!$K$2:$Q$2,'Datos trimestrales'!$K74:$Q74)) -> -0.8907809475
B75: III | C75: 0.8666540114 | D75: 7.7 | E75: 2.510559039 | F75: 2.78469761 | G75: -0.686725069 | H75: -0.2206406913 | I75: 3.113041617 | J75: 1.247593367 | K75: -3.077509208 | L75: -0.1 | M75: -2.660254512 | N75: 1.580462342 | O75: -0.1771450022 | P75: -3.456185345 | Q75: -1.314845195 | R75: =IF(AND('Crecimiento del PIB'!$J$6<>1,'Crecimiento del PIB'!$J$6<>2,'Crecimiento del PIB'!$J$6<>3,'Crecimiento del PIB'!$J$6<>4,'Crecimiento del PIB'!$J$6<>5,'Crecimiento del PIB'!$J$6<>6,'Crecimiento del PIB'!$J$6<>7),LOOKUP(1,'Datos trimestrales'!$C$2:$I$2,'Datos trimestrales'!$C75:$I75),LOOKUP('Crecimiento del PIB'!$J$6,'Datos trimestrales'!$C$2:$I$2,'Datos trimestrales'!$C75:$I75)) -> 2.510559039 | S75: =IF(AND('Crecimiento del PIB'!$J$6<>1,'Crecimiento del PIB'!$J$6<>2,'Crecimiento del PIB'!$J$6<>3,'Crecimiento del PIB'!$J$6<>4,'Crecimiento del PIB'!$J$6<>5,'Crecimiento del PIB'!$J$6<>6,'Crecimiento del PIB'!$J$6<>7),LOOKUP(1,'Datos trimestrales'!$K$2:$Q$2,'Datos trimestrales'!$K75:$Q75),LOOKUP('Crecimiento del PIB'!$J$6,'Datos trimestrales'!$K$2:$Q$2,'Datos trimestrales'!$K75:$Q75)) -> -2.660254512
B76: IV | C76: 0.3106971524 | D76: 7.8 | E76: 2.564722544 | F76: 0.1442778144 | G76: -0.961759411 | H76: -0.3012703681 | I76: 3.344841396 | J76: 0.5565223578 | K76: -0.555956859 | L76: 0.1 | M76: 0.05416350485 | N76: -2.640419796 | O76: -0.2750343419 | P76: -0.08062967671 | Q76: 0.2317997785 | R76: =IF(AND('Crecimiento del PIB'!$J$6<>1,'Crecimiento del PIB'!$J$6<>2,'Crecimiento del PIB'!$J$6<>3,'Crecimiento del PIB'!$J$6<>4,'Crecimiento del PIB'!$J$6<>5,'Crecimiento del PIB'!$J$6<>6,'Crecimiento del PIB'!$J$6<>7),LOOKUP(1,'Datos trimestrales'!$C$2:$I$2,'Datos trimestrales'!$C76:$I76),LOOKUP('Crecimiento del PIB'!$J$6,'Datos trimestrales'!$C$2:$I$2,'Datos trimestrales'!$C76:$I76)) -> 2.564722544 | S76: =IF(AND('Crecimiento del PIB'!$J$6<>1,'Crecimiento del PIB'!$J$6<>2,'Crecimiento del PIB'!$J$6<>3,'Crecimiento del PIB'!$J$6<>4,'Crecimiento del PIB'!$J$6<>5,'Crecimiento del PIB'!$J$6<>6,'Crecimiento del PIB'!$J$6<>7),LOOKUP(1,'Datos trimestrales'!$K$2:$Q$2,'Datos trimestrales'!$K76:$Q76),LOOKUP('Crecimiento del PIB'!$J$6,'Datos trimestrales'!$K$2:$Q$2,'Datos trimestrales'!$K76:$Q76)) -> 0.05416350485
A77: 2013 | B77: I | C77: -3.118156327 | D77: 7.7 | E77: 2.638031045 | F77: 1.145197938 | G77: -1.2 | H77: 0.06599593765 | I77: 0.6140800539 | J77: 0.1563184824 | K77: -3.42885348 | L77: -0.1 | M77: 0.07330850105 | N77: 1.000920124 | O77: -0.238240589 | P77: 0.3672663057 | Q77: -2.730761342 | R77: =IF(AND('Crecimiento del PIB'!$J$6<>1,'Crecimiento del PIB'!$J$6<>2,'Crecimiento del PIB'!$J$6<>3,'Crecimiento del PIB'!$J$6<>4,'Crecimiento del PIB'!$J$6<>5,'Crecimiento del PIB'!$J$6<>6,'Crecimiento del PIB'!$J$6<>7),LOOKUP(1,'Datos trimestrales'!$C$2:$I$2,'Datos trimestrales'!$C77:$I77),LOOKUP('Crecimiento del PIB'!$J$6,'Datos trimestrales'!$C$2:$I$2,'Datos trimestrales'!$C77:$I77)) -> 2.638031045 | S77: =IF(AND('Crecimiento del PIB'!$J$6<>1,'Crecimiento del PIB'!$J$6<>2,'Crecimiento del PIB'!$J$6<>3,'Crecimiento del PIB'!$J$6<>4,'Crecimiento del PIB'!$J$6<>5,'Crecimiento del PIB'!$J$6<>6,'Crecimiento del PIB'!$J$6<>7),LOOKUP(1,'Datos trimestrales'!$K$2:$Q$2,'Datos trimestrales'!$K77:$Q77),LOOKUP('Crecimiento del PIB'!$J$6,'Datos trimestrales'!$K$2:$Q$2,'Datos trimestrales'!$K77:$Q77)) -> 0.07330850105
B78: II | C78: 5.543056128 | D78: 7.5 | E78: 4.045958285 | F78: 2.481715179 | G78: -0.6 | H78: 1.282653025 | I78: 1.58536218 | J78: 1.187432596 | K78: =+C78-C77 -> 8.661212455 | L78: -0.2 | M78: 1.40792724 | N78: 1.336517241 | O78: 0.6 | P78: 1.216657087 | Q78: 0.9712821262 | R78: =IF(AND('Crecimiento del PIB'!$J$6<>1,'Crecimiento del PIB'!$J$6<>2,'Crecimiento del PIB'!$J$6<>3,'Crecimiento del PIB'!$J$6<>4,'Crecimiento del PIB'!$J$6<>5,'Crecimiento del PIB'!$J$6<>6,'Crecimiento del PIB'!$J$6<>7),LOOKUP(1,'Datos trimestrales'!$C$2:$I$2,'Datos trimestrales'!$C78:$I78),LOOKUP('Crecimiento del PIB'!$J$6,'Datos trimestrales'!$C$2:$I$2,'Datos trimestrales'!$C78:$I78)) -> 4.045958285 | S78: =IF(AND('Crecimiento del PIB'!$J$6<>1,'Crecimiento del PIB'!$J$6<>2,'Crecimiento del PIB'!$J$6<>3,'Crecimiento del PIB'!$J$6<>4,'Crecimiento del PIB'!$J$6<>5,'Crecimiento del PIB'!$J$6<>6,'Crecimiento del PIB'!$J$6<>7),LOOKUP(1,'Datos trimestrales'!$K$2:$Q$2,'Datos trimestrales'!$K78:$Q78),LOOKUP('Crecimiento del PIB'!$J$6,'Datos trimestrales'!$K$2:$Q$2,'Datos trimestrales'!$K78:$Q78)) -> 1.40792724
B79: III | C79: -0.13944675 | D79: 7.8 | E79: 5.427031085 | F79: 4.13409375 | G79: -0.3 | H79: 2.367863373 | I79: 1.393424376 | J79: 1.898845375 | K79: =+C79-C78 -> -5.682502878 | L79: 0.3 | M79: 1.3810728 | N79: 1.652378571 | O79: 0.3 | P79: 1.085210348 | Q79: -0.191937804 | R79: =IF(AND('Crecimiento del PIB'!$J$6<>1,'Crecimiento del PIB'!$J$6<>2,'Crecimiento del PIB'!$J$6<>3,'Crecimiento del PIB'!$J$6<>4,'Crecimiento del PIB'!$J$6<>5,'Crecimiento del PIB'!$J$6<>6,'Crecimiento del PIB'!$J$6<>7),LOOKUP(1,'Datos trimestrales'!$C$2:$I$2,'Datos trimestrales'!$C79:$I79),LOOKUP('Crecimiento del PIB'!$J$6,'Datos trimestrales'!$C$2:$I$2,'Datos trimestrales'!$C79:$I79)) -> 5.427031085 | S79: =IF(AND('Crecimiento del PIB'!$J$6<>1,'Crecimiento del PIB'!$J$6<>2,'Crecimiento del PIB'!$J$6<>3,'Crecimiento del PIB'!$J$6<>4,'Crecimiento del PIB'!$J$6<>5,'Crecimiento del PIB'!$J$6<>6,'Crecimiento del PIB'!$J$6<>7),LOOKUP(1,'Datos trimestrales'!$K$2:$Q$2,'Datos trimestrales'!$K79:$Q79),LOOKUP('Crecimiento del PIB'!$J$6,'Datos trimestrales'!$K$2:$Q$2,'Datos trimestrales'!$K79:$Q79)) -> 1.3810728
B80: IV | C80: 0.06547782106 | D80: 7.7 | E80: 4.907722359 | F80: 2.626607164 | G80: 0.5 | H80: 2.5387882 | I80: 0.6708574151 | J80: =AVERAGE(F80:I80) -> 1.584063195 | K80: =+C80-C79 -> 0.2049245711 | L80: =+D80-D79 -> -0.1 | M80: =+E80-E79 -> -0.5193087259 | N80: =+F80-F79 -> -1.507486585 | O80: =+G80-G79 -> 0.8 | P80: =+H80-H79 -> 0.1709248266 | Q80: =+I80-I79 -> -0.722566961 | R80: =IF(AND('Crecimiento del PIB'!$J$6<>1,'Crecimiento del PIB'!$J$6<>2,'Crecimiento del PIB'!$J$6<>3,'Crecimiento del PIB'!$J$6<>4,'Crecimiento del PIB'!$J$6<>5,'Crecimiento del PIB'!$J$6<>6,'Crecimiento del PIB'!$J$6<>7),LOOKUP(1,'Datos trimestrales'!$C$2:$I$2,'Datos trimestrales'!$C80:$I80),LOOKUP('Crecimiento del PIB'!$J$6,'Datos trimestrales'!$C$2:$I$2,'Datos trimestrales'!$C80:$I80)) -> 4.907722359 | S80: =IF(AND('Crecimiento del PIB'!$J$6<>1,'Crecimiento del PIB'!$J$6<>2,'Crecimiento del PIB'!$J$6<>3,'Crecimiento del PIB'!$J$6<>4,'Crecimiento del PIB'!$J$6<>5,'Crecimiento del PIB'!$J$6<>6,'Crecimiento del PIB'!$J$6<>7),LOOKUP(1,'Datos trimestrales'!$K$2:$Q$2,'Datos trimestrales'!$K80:$Q80),LOOKUP('Crecimiento del PIB'!$J$6,'Datos trimestrales'!$K$2:$Q$2,'Datos trimestrales'!$K80:$Q80)) -> -0.5193087259
A81: 2014 | B81: I | C81: -3.362890356 | D81: 7.4 | F81: -0.9849063189 | G81: 0.2 | H81: 2.979335166 | I81: 1.8 | J81: 0.9986072118 | K81: =+C81-C80 -> -3.428368177 | L81: =+D81-D80 -> -0.3 | M81: =+E81-E80 -> -4.907722359 | N81: =+F81-F80 -> -3.611513483 | O81: =+G81-G80 -> -0.3 | P81: =+H81-H80 -> 0.4405469662 | Q81: =+I81-I80 -> 1.129142585 | R81: =IF(AND('Crecimiento del PIB'!$J$6<>1,'Crecimiento del PIB'!$J$6<>2,'Crecimiento del PIB'!$J$6<>3,'Crecimiento del PIB'!$J$6<>4,'Crecimiento del PIB'!$J$6<>5,'Crecimiento del PIB'!$J$6<>6,'Crecimiento del PIB'!$J$6<>7),LOOKUP(1,'Datos mensuales'!#REF!,'Datos mensuales'!#REF!),LOOKUP('Crecimiento del PIB'!$J$6,'Datos mensuales'!#REF!,'Datos mensuales'!#REF!)) ->  | S81: =IF(AND('Crecimiento del PIB'!$J$6<>1,'Crecimiento del PIB'!$J$6<>2,'Crecimiento del PIB'!$J$6<>3,'Crecimiento del PIB'!$J$6<>4,'Crecimiento del PIB'!$J$6<>5,'Crecimiento del PIB'!$J$6<>6,'Crecimiento del PIB'!$J$6<>7),LOOKUP(1,'Datos mensuales'!#REF!,'Datos mensuales'!#REF!),LOOKUP('Crecimiento del PIB'!$J$6,'Datos mensuales'!#REF!,'Datos mensuales'!#REF!)) -> 
B82: II | R82: =IF(AND('Crecimiento del PIB'!$J$6<>1,'Crecimiento del PIB'!$J$6<>2,'Crecimiento del PIB'!$J$6<>3,'Crecimiento del PIB'!$J$6<>4,'Crecimiento del PIB'!$J$6<>5,'Crecimiento del PIB'!$J$6<>6,'Crecimiento del PIB'!$J$6<>7),LOOKUP(1,'Datos mensuales'!#REF!,'Datos mensuales'!#REF!),LOOKUP('Crecimiento del PIB'!$J$6,'Datos mensuales'!#REF!,'Datos mensuales'!#REF!)) ->  | S82: =IF(AND('Crecimiento del PIB'!$J$6<>1,'Crecimiento del PIB'!$J$6<>2,'Crecimiento del PIB'!$J$6<>3,'Crecimiento del PIB'!$J$6<>4,'Crecimiento del PIB'!$J$6<>5,'Crecimiento del PIB'!$J$6<>6,'Crecimiento del PIB'!$J$6<>7),LOOKUP(1,'Datos mensuales'!#REF!,'Datos mensuales'!#REF!),LOOKUP('Crecimiento del PIB'!$J$6,'Datos mensuales'!#REF!,'Datos mensuales'!#REF!)) -> 
B83: III | R83: =IF(AND('Crecimiento del PIB'!$J$6<>1,'Crecimiento del PIB'!$J$6<>2,'Crecimiento del PIB'!$J$6<>3,'Crecimiento del PIB'!$J$6<>4,'Crecimiento del PIB'!$J$6<>5,'Crecimiento del PIB'!$J$6<>6,'Crecimiento del PIB'!$J$6<>7),LOOKUP(1,'Datos mensuales'!#REF!,'Datos mensuales'!#REF!),LOOKUP('Crecimiento del PIB'!$J$6,'Datos mensuales'!#REF!,'Datos mensuales'!#REF!)) ->  | S83: =IF(AND('Crecimiento del PIB'!$J$6<>1,'Crecimiento del PIB'!$J$6<>2,'Crecimiento del PIB'!$J$6<>3,'Crecimiento del PIB'!$J$6<>4,'Crecimiento del PIB'!$J$6<>5,'Crecimiento del PIB'!$J$6<>6,'Crecimiento del PIB'!$J$6<>7),LOOKUP(1,'Datos mensuales'!#REF!,'Datos mensuales'!#REF!),LOOKUP('Crecimiento del PIB'!$J$6,'Datos mensuales'!#REF!,'Datos mensuales'!#REF!)) -> 
B84: IV | R84: =IF(AND('Crecimiento del PIB'!$J$6<>1,'Crecimiento del PIB'!$J$6<>2,'Crecimiento del PIB'!$J$6<>3,'Crecimiento del PIB'!$J$6<>4,'Crecimiento del PIB'!$J$6<>5,'Crecimiento del PIB'!$J$6<>6,'Crecimiento del PIB'!$J$6<>7),LOOKUP(1,'Datos mensuales'!#REF!,'Datos mensuales'!#REF!),LOOKUP('Crecimiento del PIB'!$J$6,'Datos mensuales'!#REF!,'Datos mensuales'!#REF!)) ->  | S84: =IF(AND('Crecimiento del PIB'!$J$6<>1,'Crecimiento del PIB'!$J$6<>2,'Crecimiento del PIB'!$J$6<>3,'Crecimiento del PIB'!$J$6<>4,'Crecimiento del PIB'!$J$6<>5,'Crecimiento del PIB'!$J$6<>6,'Crecimiento del PIB'!$J$6<>7),LOOKUP(1,'Datos mensuales'!#REF!,'Datos mensuales'!#REF!),LOOKUP('Crecimiento del PIB'!$J$6,'Datos mensuales'!#REF!,'Datos mensuales'!#REF!)) -> 
R85: =IF(AND('Crecimiento del PIB'!$J$6<>1,'Crecimiento del PIB'!$J$6<>2,'Crecimiento del PIB'!$J$6<>3,'Crecimiento del PIB'!$J$6<>4,'Crecimiento del PIB'!$J$6<>5,'Crecimiento del PIB'!$J$6<>6,'Crecimiento del PIB'!$J$6<>7),LOOKUP(1,'Datos mensuales'!#REF!,'Datos mensuales'!#REF!),LOOKUP('Crecimiento del PIB'!$J$6,'Datos mensuales'!#REF!,'Datos mensuales'!#REF!)) ->  | S85: =IF(AND('Crecimiento del PIB'!$J$6<>1,'Crecimiento del PIB'!$J$6<>2,'Crecimiento del PIB'!$J$6<>3,'Crecimiento del PIB'!$J$6<>4,'Crecimiento del PIB'!$J$6<>5,'Crecimiento del PIB'!$J$6<>6,'Crecimiento del PIB'!$J$6<>7),LOOKUP(1,'Datos mensuales'!#REF!,'Datos mensuales'!#REF!),LOOKUP('Crecimiento del PIB'!$J$6,'Datos mensuales'!#REF!,'Datos mensuales'!#REF!)) -> 
R86: =IF(AND('Crecimiento del PIB'!$J$6<>1,'Crecimiento del PIB'!$J$6<>2,'Crecimiento del PIB'!$J$6<>3,'Crecimiento del PIB'!$J$6<>4,'Crecimiento del PIB'!$J$6<>5,'Crecimiento del PIB'!$J$6<>6,'Crecimiento del PIB'!$J$6<>7),LOOKUP(1,'Datos mensuales'!#REF!,'Datos mensuales'!#REF!),LOOKUP('Crecimiento del PIB'!$J$6,'Datos mensuales'!#REF!,'Datos mensuales'!#REF!)) ->  | S86: =IF(AND('Crecimiento del PIB'!$J$6<>1,'Crecimiento del PIB'!$J$6<>2,'Crecimiento del PIB'!$J$6<>3,'Crecimiento del PIB'!$J$6<>4,'Crecimiento del PIB'!$J$6<>5,'Crecimiento del PIB'!$J$6<>6,'Crecimiento del PIB'!$J$6<>7),LOOKUP(1,'Datos mensuales'!#REF!,'Datos mensuales'!#REF!),LOOKUP('Crecimiento del PIB'!$J$6,'Datos mensuales'!#REF!,'Datos mensuales'!#REF!)) -> 
R87: =IF(AND('Crecimiento del PIB'!$J$6<>1,'Crecimiento del PIB'!$J$6<>2,'Crecimiento del PIB'!$J$6<>3,'Crecimiento del PIB'!$J$6<>4,'Crecimiento del PIB'!$J$6<>5,'Crecimiento del PIB'!$J$6<>6,'Crecimiento del PIB'!$J$6<>7),LOOKUP(1,'Datos mensuales'!#REF!,'Datos mensuales'!#REF!),LOOKUP('Crecimiento del PIB'!$J$6,'Datos mensuales'!#REF!,'Datos mensuales'!#REF!)) ->  | S87: =IF(AND('Crecimiento del PIB'!$J$6<>1,'Crecimiento del PIB'!$J$6<>2,'Crecimiento del PIB'!$J$6<>3,'Crecimiento del PIB'!$J$6<>4,'Crecimiento del PIB'!$J$6<>5,'Crecimiento del PIB'!$J$6<>6,'Crecimiento del PIB'!$J$6<>7),LOOKUP(1,'Datos mensuales'!#REF!,'Datos mensuales'!#REF!),LOOKUP('Crecimiento del PIB'!$J$6,'Datos mensuales'!#REF!,'Datos mensuales'!#REF!)) -> 
R88: =IF(AND('Crecimiento del PIB'!$J$6<>1,'Crecimiento del PIB'!$J$6<>2,'Crecimiento del PIB'!$J$6<>3,'Crecimiento del PIB'!$J$6<>4,'Crecimiento del PIB'!$J$6<>5,'Crecimiento del PIB'!$J$6<>6,'Crecimiento del PIB'!$J$6<>7),LOOKUP(1,'Datos mensuales'!#REF!,'Datos mensuales'!#REF!),LOOKUP('Crecimiento del PIB'!$J$6,'Datos mensuales'!#REF!,'Datos mensuales'!#REF!)) ->  | S88: =IF(AND('Crecimiento del PIB'!$J$6<>1,'Crecimiento del PIB'!$J$6<>2,'Crecimiento del PIB'!$J$6<>3,'Crecimiento del PIB'!$J$6<>4,'Crecimiento del PIB'!$J$6<>5,'Crecimiento del PIB'!$J$6<>6,'Crecimiento del PIB'!$J$6<>7),LOOKUP(1,'Datos mensuales'!#REF!,'Datos mensuales'!#REF!),LOOKUP('Crecimiento del PIB'!$J$6,'Datos mensuales'!#REF!,'Datos mensuales'!#REF!)) -> 
R89: =IF(AND('Crecimiento del PIB'!$J$6<>1,'Crecimiento del PIB'!$J$6<>2,'Crecimiento del PIB'!$J$6<>3,'Crecimiento del PIB'!$J$6<>4,'Crecimiento del PIB'!$J$6<>5,'Crecimiento del PIB'!$J$6<>6,'Crecimiento del PIB'!$J$6<>7),LOOKUP(1,'Datos mensuales'!#REF!,'Datos mensuales'!#REF!),LOOKUP('Crecimiento del PIB'!$J$6,'Datos mensuales'!#REF!,'Datos mensuales'!#REF!)) ->  | S89: =IF(AND('Crecimiento del PIB'!$J$6<>1,'Crecimiento del PIB'!$J$6<>2,'Crecimiento del PIB'!$J$6<>3,'Crecimiento del PIB'!$J$6<>4,'Crecimiento del PIB'!$J$6<>5,'Crecimiento del PIB'!$J$6<>6,'Crecimiento del PIB'!$J$6<>7),LOOKUP(1,'Datos mensuales'!#REF!,'Datos mensuales'!#REF!),LOOKUP('Crecimiento del PIB'!$J$6,'Datos mensuales'!#REF!,'Datos mensuales'!#REF!)) -> 
R90: =IF(AND('Crecimiento del PIB'!$J$6<>1,'Crecimiento del PIB'!$J$6<>2,'Crecimiento del PIB'!$J$6<>3,'Crecimiento del PIB'!$J$6<>4,'Crecimiento del PIB'!$J$6<>5,'Crecimiento del PIB'!$J$6<>6,'Crecimiento del PIB'!$J$6<>7),LOOKUP(1,'Datos mensuales'!#REF!,'Datos mensuales'!#REF!),LOOKUP('Crecimiento del PIB'!$J$6,'Datos mensuales'!#REF!,'Datos mensuales'!#REF!)) ->  | S90: =IF(AND('Crecimiento del PIB'!$J$6<>1,'Crecimiento del PIB'!$J$6<>2,'Crecimiento del PIB'!$J$6<>3,'Crecimiento del PIB'!$J$6<>4,'Crecimiento del PIB'!$J$6<>5,'Crecimiento del PIB'!$J$6<>6,'Crecimiento del PIB'!$J$6<>7),LOOKUP(1,'Datos mensuales'!#REF!,'Datos mensuales'!#REF!),LOOKUP('Crecimiento del PIB'!$J$6,'Datos mensuales'!#REF!,'Datos mensuales'!#REF!)) -> 
R91: =IF(AND('Crecimiento del PIB'!$J$6<>1,'Crecimiento del PIB'!$J$6<>2,'Crecimiento del PIB'!$J$6<>3,'Crecimiento del PIB'!$J$6<>4,'Crecimiento del PIB'!$J$6<>5,'Crecimiento del PIB'!$J$6<>6,'Crecimiento del PIB'!$J$6<>7),LOOKUP(1,'Datos mensuales'!#REF!,'Datos mensuales'!#REF!),LOOKUP('Crecimiento del PIB'!$J$6,'Datos mensuales'!#REF!,'Datos mensuales'!#REF!)) ->  | S91: =IF(AND('Crecimiento del PIB'!$J$6<>1,'Crecimiento del PIB'!$J$6<>2,'Crecimiento del PIB'!$J$6<>3,'Crecimiento del PIB'!$J$6<>4,'Crecimiento del PIB'!$J$6<>5,'Crecimiento del PIB'!$J$6<>6,'Crecimiento del PIB'!$J$6<>7),LOOKUP(1,'Datos mensuales'!#REF!,'Datos mensuales'!#REF!),LOOKUP('Crecimiento del PIB'!$J$6,'Datos mensuales'!#REF!,'Datos mensuales'!#REF!)) -> 
R92: =IF(AND('Crecimiento del PIB'!$J$6<>1,'Crecimiento del PIB'!$J$6<>2,'Crecimiento del PIB'!$J$6<>3,'Crecimiento del PIB'!$J$6<>4,'Crecimiento del PIB'!$J$6<>5,'Crecimiento del PIB'!$J$6<>6,'Crecimiento del PIB'!$J$6<>7),LOOKUP(1,'Datos mensuales'!#REF!,'Datos mensuales'!#REF!),LOOKUP('Crecimiento del PIB'!$J$6,'Datos mensuales'!#REF!,'Datos mensuales'!#REF!)) ->  | S92: =IF(AND('Crecimiento del PIB'!$J$6<>1,'Crecimiento del PIB'!$J$6<>2,'Crecimiento del PIB'!$J$6<>3,'Crecimiento del PIB'!$J$6<>4,'Crecimiento del PIB'!$J$6<>5,'Crecimiento del PIB'!$J$6<>6,'Crecimiento del PIB'!$J$6<>7),LOOKUP(1,'Datos mensuales'!#REF!,'Datos mensuales'!#REF!),LOOKUP('Crecimiento del PIB'!$J$6,'Datos mensuales'!#REF!,'Datos mensuales'!#REF!)) -> 
R93: =IF(AND('Crecimiento del PIB'!$J$6<>1,'Crecimiento del PIB'!$J$6<>2,'Crecimiento del PIB'!$J$6<>3,'Crecimiento del PIB'!$J$6<>4,'Crecimiento del PIB'!$J$6<>5,'Crecimiento del PIB'!$J$6<>6,'Crecimiento del PIB'!$J$6<>7),LOOKUP(1,'Datos mensuales'!#REF!,'Datos mensuales'!#REF!),LOOKUP('Crecimiento del PIB'!$J$6,'Datos mensuales'!#REF!,'Datos mensuales'!#REF!)) ->  | S93: =IF(AND('Crecimiento del PIB'!$J$6<>1,'Crecimiento del PIB'!$J$6<>2,'Crecimiento del PIB'!$J$6<>3,'Crecimiento del PIB'!$J$6<>4,'Crecimiento del PIB'!$J$6<>5,'Crecimiento del PIB'!$J$6<>6,'Crecimiento del PIB'!$J$6<>7),LOOKUP(1,'Datos mensuales'!#REF!,'Datos mensuales'!#REF!),LOOKUP('Crecimiento del PIB'!$J$6,'Datos mensuales'!#REF!,'Datos mensuales'!#REF!)) -> 
R94: =IF(AND('Crecimiento del PIB'!$J$6<>1,'Crecimiento del PIB'!$J$6<>2,'Crecimiento del PIB'!$J$6<>3,'Crecimiento del PIB'!$J$6<>4,'Crecimiento del PIB'!$J$6<>5,'Crecimiento del PIB'!$J$6<>6,'Crecimiento del PIB'!$J$6<>7),LOOKUP(1,'Datos mensuales'!#REF!,'Datos mensuales'!#REF!),LOOKUP('Crecimiento del PIB'!$J$6,'Datos mensuales'!#REF!,'Datos mensuales'!#REF!)) ->  | S94: =IF(AND('Crecimiento del PIB'!$J$6<>1,'Crecimiento del PIB'!$J$6<>2,'Crecimiento del PIB'!$J$6<>3,'Crecimiento del PIB'!$J$6<>4,'Crecimiento del PIB'!$J$6<>5,'Crecimiento del PIB'!$J$6<>6,'Crecimiento del PIB'!$J$6<>7),LOOKUP(1,'Datos mensuales'!#REF!,'Datos mensuales'!#REF!),LOOKUP('Crecimiento del PIB'!$J$6,'Datos mensuales'!#REF!,'Datos mensuales'!#REF!)) -> 
R95: =IF(AND('Crecimiento del PIB'!$J$6<>1,'Crecimiento del PIB'!$J$6<>2,'Crecimiento del PIB'!$J$6<>3,'Crecimiento del PIB'!$J$6<>4,'Crecimiento del PIB'!$J$6<>5,'Crecimiento del PIB'!$J$6<>6,'Crecimiento del PIB'!$J$6<>7),LOOKUP(1,'Datos mensuales'!#REF!,'Datos mensuales'!#REF!),LOOKUP('Crecimiento del PIB'!$J$6,'Datos mensuales'!#REF!,'Datos mensuales'!#REF!)) ->  | S95: =IF(AND('Crecimiento del PIB'!$J$6<>1,'Crecimiento del PIB'!$J$6<>2,'Crecimiento del PIB'!$J$6<>3,'Crecimiento del PIB'!$J$6<>4,'Crecimiento del PIB'!$J$6<>5,'Crecimiento del PIB'!$J$6<>6,'Crecimiento del PIB'!$J$6<>7),LOOKUP(1,'Datos mensuales'!#REF!,'Datos mensuales'!#REF!),LOOKUP('Crecimiento del PIB'!$J$6,'Datos mensuales'!#REF!,'Datos mensuales'!#REF!)) -> 
R96: =IF(AND('Crecimiento del PIB'!$J$6<>1,'Crecimiento del PIB'!$J$6<>2,'Crecimiento del PIB'!$J$6<>3,'Crecimiento del PIB'!$J$6<>4,'Crecimiento del PIB'!$J$6<>5,'Crecimiento del PIB'!$J$6<>6,'Crecimiento del PIB'!$J$6<>7),LOOKUP(1,'Datos mensuales'!#REF!,'Datos mensuales'!#REF!),LOOKUP('Crecimiento del PIB'!$J$6,'Datos mensuales'!#REF!,'Datos mensuales'!#REF!)) ->  | S96: =IF(AND('Crecimiento del PIB'!$J$6<>1,'Crecimiento del PIB'!$J$6<>2,'Crecimiento del PIB'!$J$6<>3,'Crecimiento del PIB'!$J$6<>4,'Crecimiento del PIB'!$J$6<>5,'Crecimiento del PIB'!$J$6<>6,'Crecimiento del PIB'!$J$6<>7),LOOKUP(1,'Datos mensuales'!#REF!,'Datos mensuales'!#REF!),LOOKUP('Crecimiento del PIB'!$J$6,'Datos mensuales'!#REF!,'Datos mensuales'!#REF!)) -> 
R97: =IF(AND('Crecimiento del PIB'!$J$6<>1,'Crecimiento del PIB'!$J$6<>2,'Crecimiento del PIB'!$J$6<>3,'Crecimiento del PIB'!$J$6<>4,'Crecimiento del PIB'!$J$6<>5,'Crecimiento del PIB'!$J$6<>6,'Crecimiento del PIB'!$J$6<>7),LOOKUP(1,'Datos mensuales'!#REF!,'Datos mensuales'!#REF!),LOOKUP('Crecimiento del PIB'!$J$6,'Datos mensuales'!#REF!,'Datos mensuales'!#REF!)) ->  | S97: =IF(AND('Crecimiento del PIB'!$J$6<>1,'Crecimiento del PIB'!$J$6<>2,'Crecimiento del PIB'!$J$6<>3,'Crecimiento del PIB'!$J$6<>4,'Crecimiento del PIB'!$J$6<>5,'Crecimiento del PIB'!$J$6<>6,'Crecimiento del PIB'!$J$6<>7),LOOKUP(1,'Datos mensuales'!#REF!,'Datos mensuales'!#REF!),LOOKUP('Crecimiento del PIB'!$J$6,'Datos mensuales'!#REF!,'Datos mensuales'!#REF!)) -> 
R98: =IF(AND('Crecimiento del PIB'!$J$6<>1,'Crecimiento del PIB'!$J$6<>2,'Crecimiento del PIB'!$J$6<>3,'Crecimiento del PIB'!$J$6<>4,'Crecimiento del PIB'!$J$6<>5,'Crecimiento del PIB'!$J$6<>6,'Crecimiento del PIB'!$J$6<>7),LOOKUP(1,'Datos mensuales'!#REF!,'Datos mensuales'!#REF!),LOOKUP('Crecimiento del PIB'!$J$6,'Datos mensuales'!#REF!,'Datos mensuales'!#REF!)) ->  | S98: =IF(AND('Crecimiento del PIB'!$J$6<>1,'Crecimiento del PIB'!$J$6<>2,'Crecimiento del PIB'!$J$6<>3,'Crecimiento del PIB'!$J$6<>4,'Crecimiento del PIB'!$J$6<>5,'Crecimiento del PIB'!$J$6<>6,'Crecimiento del PIB'!$J$6<>7),LOOKUP(1,'Datos mensuales'!#REF!,'Datos mensuales'!#REF!),LOOKUP('Crecimiento del PIB'!$J$6,'Datos mensuales'!#REF!,'Datos mensuales'!#REF!)) -> 
R99: =IF(AND('Crecimiento del PIB'!$J$6<>1,'Crecimiento del PIB'!$J$6<>2,'Crecimiento del PIB'!$J$6<>3,'Crecimiento del PIB'!$J$6<>4,'Crecimiento del PIB'!$J$6<>5,'Crecimiento del PIB'!$J$6<>6,'Crecimiento del PIB'!$J$6<>7),LOOKUP(1,'Datos mensuales'!#REF!,'Datos mensuales'!#REF!),LOOKUP('Crecimiento del PIB'!$J$6,'Datos mensuales'!#REF!,'Datos mensuales'!#REF!)) ->  | S99: =IF(AND('Crecimiento del PIB'!$J$6<>1,'Crecimiento del PIB'!$J$6<>2,'Crecimiento del PIB'!$J$6<>3,'Crecimiento del PIB'!$J$6<>4,'Crecimiento del PIB'!$J$6<>5,'Crecimiento del PIB'!$J$6<>6,'Crecimiento del PIB'!$J$6<>7),LOOKUP(1,'Datos mensuales'!#REF!,'Datos mensuales'!#REF!),LOOKUP('Crecimiento del PIB'!$J$6,'Datos mensuales'!#REF!,'Datos mensuales'!#REF!)) -> 
R100: =IF(AND('Crecimiento del PIB'!$J$6<>1,'Crecimiento del PIB'!$J$6<>2,'Crecimiento del PIB'!$J$6<>3,'Crecimiento del PIB'!$J$6<>4,'Crecimiento del PIB'!$J$6<>5,'Crecimiento del PIB'!$J$6<>6,'Crecimiento del PIB'!$J$6<>7),LOOKUP(1,'Datos mensuales'!#REF!,'Datos mensuales'!#REF!),LOOKUP('Crecimiento del PIB'!$J$6,'Datos mensuales'!#REF!,'Datos mensuales'!#REF!)) ->  | S100: =IF(AND('Crecimiento del PIB'!$J$6<>1,'Crecimiento del PIB'!$J$6<>2,'Crecimiento del PIB'!$J$6<>3,'Crecimiento del PIB'!$J$6<>4,'Crecimiento del PIB'!$J$6<>5,'Crecimiento del PIB'!$J$6<>6,'Crecimiento del PIB'!$J$6<>7),LOOKUP(1,'Datos mensuales'!#REF!,'Datos mensuales'!#REF!),LOOKUP('Crecimiento del PIB'!$J$6,'Datos mensuales'!#REF!,'Datos mensuales'!#REF!)) -> 
R101: =IF(AND('Crecimiento del PIB'!$J$6<>1,'Crecimiento del PIB'!$J$6<>2,'Crecimiento del PIB'!$J$6<>3,'Crecimiento del PIB'!$J$6<>4,'Crecimiento del PIB'!$J$6<>5,'Crecimiento del PIB'!$J$6<>6,'Crecimiento del PIB'!$J$6<>7),LOOKUP(1,'Datos mensuales'!#REF!,'Datos mensuales'!#REF!),LOOKUP('Crecimiento del PIB'!$J$6,'Datos mensuales'!#REF!,'Datos mensuales'!#REF!)) ->  | S101: =IF(AND('Crecimiento del PIB'!$J$6<>1,'Crecimiento del PIB'!$J$6<>2,'Crecimiento del PIB'!$J$6<>3,'Crecimiento del PIB'!$J$6<>4,'Crecimiento del PIB'!$J$6<>5,'Crecimiento del PIB'!$J$6<>6,'Crecimiento del PIB'!$J$6<>7),LOOKUP(1,'Datos mensuales'!#REF!,'Datos mensuales'!#REF!),LOOKUP('Crecimiento del PIB'!$J$6,'Datos mensuales'!#REF!,'Datos mensuales'!#REF!)) -> 
R102: =IF(AND('Crecimiento del PIB'!$J$6<>1,'Crecimiento del PIB'!$J$6<>2,'Crecimiento del PIB'!$J$6<>3,'Crecimiento del PIB'!$J$6<>4,'Crecimiento del PIB'!$J$6<>5,'Crecimiento del PIB'!$J$6<>6,'Crecimiento del PIB'!$J$6<>7),LOOKUP(1,'Datos mensuales'!#REF!,'Datos mensuales'!#REF!),LOOKUP('Crecimiento del PIB'!$J$6,'Datos mensuales'!#REF!,'Datos mensuales'!#REF!)) ->  | S102: =IF(AND('Crecimiento del PIB'!$J$6<>1,'Crecimiento del PIB'!$J$6<>2,'Crecimiento del PIB'!$J$6<>3,'Crecimiento del PIB'!$J$6<>4,'Crecimiento del PIB'!$J$6<>5,'Crecimiento del PIB'!$J$6<>6,'Crecimiento del PIB'!$J$6<>7),LOOKUP(1,'Datos mensuales'!#REF!,'Datos mensuales'!#REF!),LOOKUP('Crecimiento del PIB'!$J$6,'Datos mensuales'!#REF!,'Datos mensuales'!#REF!)) -> 
R103: =IF(AND('Crecimiento del PIB'!$J$6<>1,'Crecimiento del PIB'!$J$6<>2,'Crecimiento del PIB'!$J$6<>3,'Crecimiento del PIB'!$J$6<>4,'Crecimiento del PIB'!$J$6<>5,'Crecimiento del PIB'!$J$6<>6,'Crecimiento del PIB'!$J$6<>7),LOOKUP(1,'Datos mensuales'!#REF!,'Datos mensuales'!#REF!),LOOKUP('Crecimiento del PIB'!$J$6,'Datos mensuales'!#REF!,'Datos mensuales'!#REF!)) ->  | S103: =IF(AND('Crecimiento del PIB'!$J$6<>1,'Crecimiento del PIB'!$J$6<>2,'Crecimiento del PIB'!$J$6<>3,'Crecimiento del PIB'!$J$6<>4,'Crecimiento del PIB'!$J$6<>5,'Crecimiento del PIB'!$J$6<>6,'Crecimiento del PIB'!$J$6<>7),LOOKUP(1,'Datos mensuales'!#REF!,'Datos mensuales'!#REF!),LOOKUP('Crecimiento del PIB'!$J$6,'Datos mensuales'!#REF!,'Datos mensuales'!#REF!)) -> 
R104: =IF(AND('Crecimiento del PIB'!$J$6<>1,'Crecimiento del PIB'!$J$6<>2,'Crecimiento del PIB'!$J$6<>3,'Crecimiento del PIB'!$J$6<>4,'Crecimiento del PIB'!$J$6<>5,'Crecimiento del PIB'!$J$6<>6,'Crecimiento del PIB'!$J$6<>7),LOOKUP(1,'Datos mensuales'!#REF!,'Datos mensuales'!#REF!),LOOKUP('Crecimiento del PIB'!$J$6,'Datos mensuales'!#REF!,'Datos mensuales'!#REF!)) ->  | S104: =IF(AND('Crecimiento del PIB'!$J$6<>1,'Crecimiento del PIB'!$J$6<>2,'Crecimiento del PIB'!$J$6<>3,'Crecimiento del PIB'!$J$6<>4,'Crecimiento del PIB'!$J$6<>5,'Crecimiento del PIB'!$J$6<>6,'Crecimiento del PIB'!$J$6<>7),LOOKUP(1,'Datos mensuales'!#REF!,'Datos mensuales'!#REF!),LOOKUP('Crecimiento del PIB'!$J$6,'Datos mensuales'!#REF!,'Datos mensuales'!#REF!)) -> 
R105: =IF(AND('Crecimiento del PIB'!$J$6<>1,'Crecimiento del PIB'!$J$6<>2,'Crecimiento del PIB'!$J$6<>3,'Crecimiento del PIB'!$J$6<>4,'Crecimiento del PIB'!$J$6<>5,'Crecimiento del PIB'!$J$6<>6,'Crecimiento del PIB'!$J$6<>7),LOOKUP(1,'Datos mensuales'!#REF!,'Datos mensuales'!#REF!),LOOKUP('Crecimiento del PIB'!$J$6,'Datos mensuales'!#REF!,'Datos mensuales'!#REF!)) ->  | S105: =IF(AND('Crecimiento del PIB'!$J$6<>1,'Crecimiento del PIB'!$J$6<>2,'Crecimiento del PIB'!$J$6<>3,'Crecimiento del PIB'!$J$6<>4,'Crecimiento del PIB'!$J$6<>5,'Crecimiento del PIB'!$J$6<>6,'Crecimiento del PIB'!$J$6<>7),LOOKUP(1,'Datos mensuales'!#REF!,'Datos mensuales'!#REF!),LOOKUP('Crecimiento del PIB'!$J$6,'Datos mensuales'!#REF!,'Datos mensuales'!#REF!)) -> 
R106: =IF(AND('Crecimiento del PIB'!$J$6<>1,'Crecimiento del PIB'!$J$6<>2,'Crecimiento del PIB'!$J$6<>3,'Crecimiento del PIB'!$J$6<>4,'Crecimiento del PIB'!$J$6<>5,'Crecimiento del PIB'!$J$6<>6,'Crecimiento del PIB'!$J$6<>7),LOOKUP(1,'Datos mensuales'!#REF!,'Datos mensuales'!#REF!),LOOKUP('Crecimiento del PIB'!$J$6,'Datos mensuales'!#REF!,'Datos mensuales'!#REF!)) ->  | S106: =IF(AND('Crecimiento del PIB'!$J$6<>1,'Crecimiento del PIB'!$J$6<>2,'Crecimiento del PIB'!$J$6<>3,'Crecimiento del PIB'!$J$6<>4,'Crecimiento del PIB'!$J$6<>5,'Crecimiento del PIB'!$J$6<>6,'Crecimiento del PIB'!$J$6<>7),LOOKUP(1,'Datos mensuales'!#REF!,'Datos mensuales'!#REF!),LOOKUP('Crecimiento del PIB'!$J$6,'Datos mensuales'!#REF!,'Datos mensuales'!#REF!)) -> 
R107: =IF(AND('Crecimiento del PIB'!$J$6<>1,'Crecimiento del PIB'!$J$6<>2,'Crecimiento del PIB'!$J$6<>3,'Crecimiento del PIB'!$J$6<>4,'Crecimiento del PIB'!$J$6<>5,'Crecimiento del PIB'!$J$6<>6,'Crecimiento del PIB'!$J$6<>7),LOOKUP(1,'Datos mensuales'!#REF!,'Datos mensuales'!#REF!),LOOKUP('Crecimiento del PIB'!$J$6,'Datos mensuales'!#REF!,'Datos mensuales'!#REF!)) ->  | S107: =IF(AND('Crecimiento del PIB'!$J$6<>1,'Crecimiento del PIB'!$J$6<>2,'Crecimiento del PIB'!$J$6<>3,'Crecimiento del PIB'!$J$6<>4,'Crecimiento del PIB'!$J$6<>5,'Crecimiento del PIB'!$J$6<>6,'Crecimiento del PIB'!$J$6<>7),LOOKUP(1,'Datos mensuales'!#REF!,'Datos mensuales'!#REF!),LOOKUP('Crecimiento del PIB'!$J$6,'Datos mensuales'!#REF!,'Datos mensuales'!#REF!)) -> 
R108: =IF(AND('Crecimiento del PIB'!$J$6<>1,'Crecimiento del PIB'!$J$6<>2,'Crecimiento del PIB'!$J$6<>3,'Crecimiento del PIB'!$J$6<>4,'Crecimiento del PIB'!$J$6<>5,'Crecimiento del PIB'!$J$6<>6,'Crecimiento del PIB'!$J$6<>7),LOOKUP(1,'Datos mensuales'!#REF!,'Datos mensuales'!#REF!),LOOKUP('Crecimiento del PIB'!$J$6,'Datos mensuales'!#REF!,'Datos mensuales'!#REF!)) ->  | S108: =IF(AND('Crecimiento del PIB'!$J$6<>1,'Crecimiento del PIB'!$J$6<>2,'Crecimiento del PIB'!$J$6<>3,'Crecimiento del PIB'!$J$6<>4,'Crecimiento del PIB'!$J$6<>5,'Crecimiento del PIB'!$J$6<>6,'Crecimiento del PIB'!$J$6<>7),LOOKUP(1,'Datos mensuales'!#REF!,'Datos mensuales'!#REF!),LOOKUP('Crecimiento del PIB'!$J$6,'Datos mensuales'!#REF!,'Datos mensuales'!#REF!)) -> 
R109: =IF(AND('Crecimiento del PIB'!$J$6<>1,'Crecimiento del PIB'!$J$6<>2,'Crecimiento del PIB'!$J$6<>3,'Crecimiento del PIB'!$J$6<>4,'Crecimiento del PIB'!$J$6<>5,'Crecimiento del PIB'!$J$6<>6,'Crecimiento del PIB'!$J$6<>7),LOOKUP(1,'Datos mensuales'!#REF!,'Datos mensuales'!#REF!),LOOKUP('Crecimiento del PIB'!$J$6,'Datos mensuales'!#REF!,'Datos mensuales'!#REF!)) ->  | S109: =IF(AND('Crecimiento del PIB'!$J$6<>1,'Crecimiento del PIB'!$J$6<>2,'Crecimiento del PIB'!$J$6<>3,'Crecimiento del PIB'!$J$6<>4,'Crecimiento del PIB'!$J$6<>5,'Crecimiento del PIB'!$J$6<>6,'Crecimiento del PIB'!$J$6<>7),LOOKUP(1,'Datos mensuales'!#REF!,'Datos mensuales'!#REF!),LOOKUP('Crecimiento del PIB'!$J$6,'Datos mensuales'!#REF!,'Datos mensuales'!#REF!)) -> 
R110: =IF(AND('Crecimiento del PIB'!$J$6<>1,'Crecimiento del PIB'!$J$6<>2,'Crecimiento del PIB'!$J$6<>3,'Crecimiento del PIB'!$J$6<>4,'Crecimiento del PIB'!$J$6<>5,'Crecimiento del PIB'!$J$6<>6,'Crecimiento del PIB'!$J$6<>7),LOOKUP(1,'Datos mensuales'!#REF!,'Datos mensuales'!#REF!),LOOKUP('Crecimiento del PIB'!$J$6,'Datos mensuales'!#REF!,'Datos mensuales'!#REF!)) ->  | S110: =IF(AND('Crecimiento del PIB'!$J$6<>1,'Crecimiento del PIB'!$J$6<>2,'Crecimiento del PIB'!$J$6<>3,'Crecimiento del PIB'!$J$6<>4,'Crecimiento del PIB'!$J$6<>5,'Crecimiento del PIB'!$J$6<>6,'Crecimiento del PIB'!$J$6<>7),LOOKUP(1,'Datos mensuales'!#REF!,'Datos mensuales'!#REF!),LOOKUP('Crecimiento del PIB'!$J$6,'Datos mensuales'!#REF!,'Datos mensuales'!#REF!)) -> 
R111: =IF(AND('Crecimiento del PIB'!$J$6<>1,'Crecimiento del PIB'!$J$6<>2,'Crecimiento del PIB'!$J$6<>3,'Crecimiento del PIB'!$J$6<>4,'Crecimiento del PIB'!$J$6<>5,'Crecimiento del PIB'!$J$6<>6,'Crecimiento del PIB'!$J$6<>7),LOOKUP(1,'Datos mensuales'!#REF!,'Datos mensuales'!#REF!),LOOKUP('Crecimiento del PIB'!$J$6,'Datos mensuales'!#REF!,'Datos mensuales'!#REF!)) ->  | S111: =IF(AND('Crecimiento del PIB'!$J$6<>1,'Crecimiento del PIB'!$J$6<>2,'Crecimiento del PIB'!$J$6<>3,'Crecimiento del PIB'!$J$6<>4,'Crecimiento del PIB'!$J$6<>5,'Crecimiento del PIB'!$J$6<>6,'Crecimiento del PIB'!$J$6<>7),LOOKUP(1,'Datos mensuales'!#REF!,'Datos mensuales'!#REF!),LOOKUP('Crecimiento del PIB'!$J$6,'Datos mensuales'!#REF!,'Datos mensuales'!#REF!)) -> 
R112: =IF(AND('Crecimiento del PIB'!$J$6<>1,'Crecimiento del PIB'!$J$6<>2,'Crecimiento del PIB'!$J$6<>3,'Crecimiento del PIB'!$J$6<>4,'Crecimiento del PIB'!$J$6<>5,'Crecimiento del PIB'!$J$6<>6,'Crecimiento del PIB'!$J$6<>7),LOOKUP(1,'Datos mensuales'!#REF!,'Datos mensuales'!#REF!),LOOKUP('Crecimiento del PIB'!$J$6,'Datos mensuales'!#REF!,'Datos mensuales'!#REF!)) ->  | S112: =IF(AND('Crecimiento del PIB'!$J$6<>1,'Crecimiento del PIB'!$J$6<>2,'Crecimiento del PIB'!$J$6<>3,'Crecimiento del PIB'!$J$6<>4,'Crecimiento del PIB'!$J$6<>5,'Crecimiento del PIB'!$J$6<>6,'Crecimiento del PIB'!$J$6<>7),LOOKUP(1,'Datos mensuales'!#REF!,'Datos mensuales'!#REF!),LOOKUP('Crecimiento del PIB'!$J$6,'Datos mensuales'!#REF!,'Datos mensuales'!#REF!)) -> 
R113: =IF(AND('Crecimiento del PIB'!$J$6<>1,'Crecimiento del PIB'!$J$6<>2,'Crecimiento del PIB'!$J$6<>3,'Crecimiento del PIB'!$J$6<>4,'Crecimiento del PIB'!$J$6<>5,'Crecimiento del PIB'!$J$6<>6,'Crecimiento del PIB'!$J$6<>7),LOOKUP(1,'Datos mensuales'!#REF!,'Datos mensuales'!#REF!),LOOKUP('Crecimiento del PIB'!$J$6,'Datos mensuales'!#REF!,'Datos mensuales'!#REF!)) ->  | S113: =IF(AND('Crecimiento del PIB'!$J$6<>1,'Crecimiento del PIB'!$J$6<>2,'Crecimiento del PIB'!$J$6<>3,'Crecimiento del PIB'!$J$6<>4,'Crecimiento del PIB'!$J$6<>5,'Crecimiento del PIB'!$J$6<>6,'Crecimiento del PIB'!$J$6<>7),LOOKUP(1,'Datos mensuales'!#REF!,'Datos mensuales'!#REF!),LOOKUP('Crecimiento del PIB'!$J$6,'Datos mensuales'!#REF!,'Datos mensuales'!#REF!)) -> 
R114: =IF(AND('Crecimiento del PIB'!$J$6<>1,'Crecimiento del PIB'!$J$6<>2,'Crecimiento del PIB'!$J$6<>3,'Crecimiento del PIB'!$J$6<>4,'Crecimiento del PIB'!$J$6<>5,'Crecimiento del PIB'!$J$6<>6,'Crecimiento del PIB'!$J$6<>7),LOOKUP(1,'Datos mensuales'!#REF!,'Datos mensuales'!#REF!),LOOKUP('Crecimiento del PIB'!$J$6,'Datos mensuales'!#REF!,'Datos mensuales'!#REF!)) ->  | S114: =IF(AND('Crecimiento del PIB'!$J$6<>1,'Crecimiento del PIB'!$J$6<>2,'Crecimiento del PIB'!$J$6<>3,'Crecimiento del PIB'!$J$6<>4,'Crecimiento del PIB'!$J$6<>5,'Crecimiento del PIB'!$J$6<>6,'Crecimiento del PIB'!$J$6<>7),LOOKUP(1,'Datos mensuales'!#REF!,'Datos mensuales'!#REF!),LOOKUP('Crecimiento del PIB'!$J$6,'Datos mensuales'!#REF!,'Datos mensuales'!#REF!)) -> 
R115: =IF(AND('Crecimiento del PIB'!$J$6<>1,'Crecimiento del PIB'!$J$6<>2,'Crecimiento del PIB'!$J$6<>3,'Crecimiento del PIB'!$J$6<>4,'Crecimiento del PIB'!$J$6<>5,'Crecimiento del PIB'!$J$6<>6,'Crecimiento del PIB'!$J$6<>7),LOOKUP(1,'Datos mensuales'!#REF!,'Datos mensuales'!#REF!),LOOKUP('Crecimiento del PIB'!$J$6,'Datos mensuales'!#REF!,'Datos mensuales'!#REF!)) ->  | S115: =IF(AND('Crecimiento del PIB'!$J$6<>1,'Crecimiento del PIB'!$J$6<>2,'Crecimiento del PIB'!$J$6<>3,'Crecimiento del PIB'!$J$6<>4,'Crecimiento del PIB'!$J$6<>5,'Crecimiento del PIB'!$J$6<>6,'Crecimiento del PIB'!$J$6<>7),LOOKUP(1,'Datos mensuales'!#REF!,'Datos mensuales'!#REF!),LOOKUP('Crecimiento del PIB'!$J$6,'Datos mensuales'!#REF!,'Datos mensuales'!#REF!)) -> 
R116: =IF(AND('Crecimiento del PIB'!$J$6<>1,'Crecimiento del PIB'!$J$6<>2,'Crecimiento del PIB'!$J$6<>3,'Crecimiento del PIB'!$J$6<>4,'Crecimiento del PIB'!$J$6<>5,'Crecimiento del PIB'!$J$6<>6,'Crecimiento del PIB'!$J$6<>7),LOOKUP(1,'Datos mensuales'!#REF!,'Datos mensuales'!#REF!),LOOKUP('Crecimiento del PIB'!$J$6,'Datos mensuales'!#REF!,'Datos mensuales'!#REF!)) ->  | S116: =IF(AND('Crecimiento del PIB'!$J$6<>1,'Crecimiento del PIB'!$J$6<>2,'Crecimiento del PIB'!$J$6<>3,'Crecimiento del PIB'!$J$6<>4,'Crecimiento del PIB'!$J$6<>5,'Crecimiento del PIB'!$J$6<>6,'Crecimiento del PIB'!$J$6<>7),LOOKUP(1,'Datos mensuales'!#REF!,'Datos mensuales'!#REF!),LOOKUP('Crecimiento del PIB'!$J$6,'Datos mensuales'!#REF!,'Datos mensuales'!#REF!)) -> 
R117: =IF(AND('Crecimiento del PIB'!$J$6<>1,'Crecimiento del PIB'!$J$6<>2,'Crecimiento del PIB'!$J$6<>3,'Crecimiento del PIB'!$J$6<>4,'Crecimiento del PIB'!$J$6<>5,'Crecimiento del PIB'!$J$6<>6,'Crecimiento del PIB'!$J$6<>7),LOOKUP(1,'Datos mensuales'!#REF!,'Datos mensuales'!#REF!),LOOKUP('Crecimiento del PIB'!$J$6,'Datos mensuales'!#REF!,'Datos mensuales'!#REF!)) ->  | S117: =IF(AND('Crecimiento del PIB'!$J$6<>1,'Crecimiento del PIB'!$J$6<>2,'Crecimiento del PIB'!$J$6<>3,'Crecimiento del PIB'!$J$6<>4,'Crecimiento del PIB'!$J$6<>5,'Crecimiento del PIB'!$J$6<>6,'Crecimiento del PIB'!$J$6<>7),LOOKUP(1,'Datos mensuales'!#REF!,'Datos mensuales'!#REF!),LOOKUP('Crecimiento del PIB'!$J$6,'Datos mensuales'!#REF!,'Datos mensuales'!#REF!)) -> 
R118: =IF(AND('Crecimiento del PIB'!$J$6<>1,'Crecimiento del PIB'!$J$6<>2,'Crecimiento del PIB'!$J$6<>3,'Crecimiento del PIB'!$J$6<>4,'Crecimiento del PIB'!$J$6<>5,'Crecimiento del PIB'!$J$6<>6,'Crecimiento del PIB'!$J$6<>7),LOOKUP(1,'Datos mensuales'!#REF!,'Datos mensuales'!#REF!),LOOKUP('Crecimiento del PIB'!$J$6,'Datos mensuales'!#REF!,'Datos mensuales'!#REF!)) ->  | S118: =IF(AND('Crecimiento del PIB'!$J$6<>1,'Crecimiento del PIB'!$J$6<>2,'Crecimiento del PIB'!$J$6<>3,'Crecimiento del PIB'!$J$6<>4,'Crecimiento del PIB'!$J$6<>5,'Crecimiento del PIB'!$J$6<>6,'Crecimiento del PIB'!$J$6<>7),LOOKUP(1,'Datos mensuales'!#REF!,'Datos mensuales'!#REF!),LOOKUP('Crecimiento del PIB'!$J$6,'Datos mensuales'!#REF!,'Datos mensuales'!#REF!)) -> 
R119: =IF(AND('Crecimiento del PIB'!$J$6<>1,'Crecimiento del PIB'!$J$6<>2,'Crecimiento del PIB'!$J$6<>3,'Crecimiento del PIB'!$J$6<>4,'Crecimiento del PIB'!$J$6<>5,'Crecimiento del PIB'!$J$6<>6,'Crecimiento del PIB'!$J$6<>7),LOOKUP(1,'Datos mensuales'!#REF!,'Datos mensuales'!#REF!),LOOKUP('Crecimiento del PIB'!$J$6,'Datos mensuales'!#REF!,'Datos mensuales'!#REF!)) ->  | S119: =IF(AND('Crecimiento del PIB'!$J$6<>1,'Crecimiento del PIB'!$J$6<>2,'Crecimiento del PIB'!$J$6<>3,'Crecimiento del PIB'!$J$6<>4,'Crecimiento del PIB'!$J$6<>5,'Crecimiento del PIB'!$J$6<>6,'Crecimiento del PIB'!$J$6<>7),LOOKUP(1,'Datos mensuales'!#REF!,'Datos mensuales'!#REF!),LOOKUP('Crecimiento del PIB'!$J$6,'Datos mensuales'!#REF!,'Datos mensuales'!#REF!)) -> 
R120: =IF(AND('Crecimiento del PIB'!$J$6<>1,'Crecimiento del PIB'!$J$6<>2,'Crecimiento del PIB'!$J$6<>3,'Crecimiento del PIB'!$J$6<>4,'Crecimiento del PIB'!$J$6<>5,'Crecimiento del PIB'!$J$6<>6,'Crecimiento del PIB'!$J$6<>7),LOOKUP(1,'Datos mensuales'!#REF!,'Datos mensuales'!#REF!),LOOKUP('Crecimiento del PIB'!$J$6,'Datos mensuales'!#REF!,'Datos mensuales'!#REF!)) ->  | S120: =IF(AND('Crecimiento del PIB'!$J$6<>1,'Crecimiento del PIB'!$J$6<>2,'Crecimiento del PIB'!$J$6<>3,'Crecimiento del PIB'!$J$6<>4,'Crecimiento del PIB'!$J$6<>5,'Crecimiento del PIB'!$J$6<>6,'Crecimiento del PIB'!$J$6<>7),LOOKUP(1,'Datos mensuales'!#REF!,'Datos mensuales'!#REF!),LOOKUP('Crecimiento del PIB'!$J$6,'Datos mensuales'!#REF!,'Datos mensuales'!#REF!)) -> 
R121: =IF(AND('Crecimiento del PIB'!$J$6<>1,'Crecimiento del PIB'!$J$6<>2,'Crecimiento del PIB'!$J$6<>3,'Crecimiento del PIB'!$J$6<>4,'Crecimiento del PIB'!$J$6<>5,'Crecimiento del PIB'!$J$6<>6,'Crecimiento del PIB'!$J$6<>7),LOOKUP(1,'Datos mensuales'!#REF!,'Datos mensuales'!#REF!),LOOKUP('Crecimiento del PIB'!$J$6,'Datos mensuales'!#REF!,'Datos mensuales'!#REF!)) ->  | S121: =IF(AND('Crecimiento del PIB'!$J$6<>1,'Crecimiento del PIB'!$J$6<>2,'Crecimiento del PIB'!$J$6<>3,'Crecimiento del PIB'!$J$6<>4,'Crecimiento del PIB'!$J$6<>5,'Crecimiento del PIB'!$J$6<>6,'Crecimiento del PIB'!$J$6<>7),LOOKUP(1,'Datos mensuales'!#REF!,'Datos mensuales'!#REF!),LOOKUP('Crecimiento del PIB'!$J$6,'Datos mensuales'!#REF!,'Datos mensuales'!#REF!)) -> 
R122: =IF(AND('Crecimiento del PIB'!$J$6<>1,'Crecimiento del PIB'!$J$6<>2,'Crecimiento del PIB'!$J$6<>3,'Crecimiento del PIB'!$J$6<>4,'Crecimiento del PIB'!$J$6<>5,'Crecimiento del PIB'!$J$6<>6,'Crecimiento del PIB'!$J$6<>7),LOOKUP(1,'Datos mensuales'!#REF!,'Datos mensuales'!#REF!),LOOKUP('Crecimiento del PIB'!$J$6,'Datos mensuales'!#REF!,'Datos mensuales'!#REF!)) ->  | S122: =IF(AND('Crecimiento del PIB'!$J$6<>1,'Crecimiento del PIB'!$J$6<>2,'Crecimiento del PIB'!$J$6<>3,'Crecimiento del PIB'!$J$6<>4,'Crecimiento del PIB'!$J$6<>5,'Crecimiento del PIB'!$J$6<>6,'Crecimiento del PIB'!$J$6<>7),LOOKUP(1,'Datos mensuales'!#REF!,'Datos mensuales'!#REF!),LOOKUP('Crecimiento del PIB'!$J$6,'Datos mensuales'!#REF!,'Datos mensuales'!#REF!)) -> 
R123: =IF(AND('Crecimiento del PIB'!$J$6<>1,'Crecimiento del PIB'!$J$6<>2,'Crecimiento del PIB'!$J$6<>3,'Crecimiento del PIB'!$J$6<>4,'Crecimiento del PIB'!$J$6<>5,'Crecimiento del PIB'!$J$6<>6,'Crecimiento del PIB'!$J$6<>7),LOOKUP(1,'Datos mensuales'!#REF!,'Datos mensuales'!#REF!),LOOKUP('Crecimiento del PIB'!$J$6,'Datos mensuales'!#REF!,'Datos mensuales'!#REF!)) ->  | S123: =IF(AND('Crecimiento del PIB'!$J$6<>1,'Crecimiento del PIB'!$J$6<>2,'Crecimiento del PIB'!$J$6<>3,'Crecimiento del PIB'!$J$6<>4,'Crecimiento del PIB'!$J$6<>5,'Crecimiento del PIB'!$J$6<>6,'Crecimiento del PIB'!$J$6<>7),LOOKUP(1,'Datos mensuales'!#REF!,'Datos mensuales'!#REF!),LOOKUP('Crecimiento del PIB'!$J$6,'Datos mensuales'!#REF!,'Datos mensuales'!#REF!)) -> 
R124: =IF(AND('Crecimiento del PIB'!$J$6<>1,'Crecimiento del PIB'!$J$6<>2,'Crecimiento del PIB'!$J$6<>3,'Crecimiento del PIB'!$J$6<>4,'Crecimiento del PIB'!$J$6<>5,'Crecimiento del PIB'!$J$6<>6,'Crecimiento del PIB'!$J$6<>7),LOOKUP(1,'Datos mensuales'!#REF!,'Datos mensuales'!#REF!),LOOKUP('Crecimiento del PIB'!$J$6,'Datos mensuales'!#REF!,'Datos mensuales'!#REF!)) ->  | S124: =IF(AND('Crecimiento del PIB'!$J$6<>1,'Crecimiento del PIB'!$J$6<>2,'Crecimiento del PIB'!$J$6<>3,'Crecimiento del PIB'!$J$6<>4,'Crecimiento del PIB'!$J$6<>5,'Crecimiento del PIB'!$J$6<>6,'Crecimiento del PIB'!$J$6<>7),LOOKUP(1,'Datos mensuales'!#REF!,'Datos mensuales'!#REF!),LOOKUP('Crecimiento del PIB'!$J$6,'Datos mensuales'!#REF!,'Datos mensuales'!#REF!)) -> 
R125: =IF(AND('Crecimiento del PIB'!$J$6<>1,'Crecimiento del PIB'!$J$6<>2,'Crecimiento del PIB'!$J$6<>3,'Crecimiento del PIB'!$J$6<>4,'Crecimiento del PIB'!$J$6<>5,'Crecimiento del PIB'!$J$6<>6,'Crecimiento del PIB'!$J$6<>7),LOOKUP(1,'Datos mensuales'!#REF!,'Datos mensuales'!#REF!),LOOKUP('Crecimiento del PIB'!$J$6,'Datos mensuales'!#REF!,'Datos mensuales'!#REF!)) ->  | S125: =IF(AND('Crecimiento del PIB'!$J$6<>1,'Crecimiento del PIB'!$J$6<>2,'Crecimiento del PIB'!$J$6<>3,'Crecimiento del PIB'!$J$6<>4,'Crecimiento del PIB'!$J$6<>5,'Crecimiento del PIB'!$J$6<>6,'Crecimiento del PIB'!$J$6<>7),LOOKUP(1,'Datos mensuales'!#REF!,'Datos mensuales'!#REF!),LOOKUP('Crecimiento del PIB'!$J$6,'Datos mensuales'!#REF!,'Datos mensuales'!#REF!)) -> 
R126: =IF(AND('Crecimiento del PIB'!$J$6<>1,'Crecimiento del PIB'!$J$6<>2,'Crecimiento del PIB'!$J$6<>3,'Crecimiento del PIB'!$J$6<>4,'Crecimiento del PIB'!$J$6<>5,'Crecimiento del PIB'!$J$6<>6,'Crecimiento del PIB'!$J$6<>7),LOOKUP(1,'Datos mensuales'!#REF!,'Datos mensuales'!#REF!),LOOKUP('Crecimiento del PIB'!$J$6,'Datos mensuales'!#REF!,'Datos mensuales'!#REF!)) ->  | S126: =IF(AND('Crecimiento del PIB'!$J$6<>1,'Crecimiento del PIB'!$J$6<>2,'Crecimiento del PIB'!$J$6<>3,'Crecimiento del PIB'!$J$6<>4,'Crecimiento del PIB'!$J$6<>5,'Crecimiento del PIB'!$J$6<>6,'Crecimiento del PIB'!$J$6<>7),LOOKUP(1,'Datos mensuales'!#REF!,'Datos mensuales'!#REF!),LOOKUP('Crecimiento del PIB'!$J$6,'Datos mensuales'!#REF!,'Datos mensuales'!#REF!)) -> 
R127: =IF(AND('Crecimiento del PIB'!$J$6<>1,'Crecimiento del PIB'!$J$6<>2,'Crecimiento del PIB'!$J$6<>3,'Crecimiento del PIB'!$J$6<>4,'Crecimiento del PIB'!$J$6<>5,'Crecimiento del PIB'!$J$6<>6,'Crecimiento del PIB'!$J$6<>7),LOOKUP(1,'Datos mensuales'!#REF!,'Datos mensuales'!#REF!),LOOKUP('Crecimiento del PIB'!$J$6,'Datos mensuales'!#REF!,'Datos mensuales'!#REF!)) ->  | S127: =IF(AND('Crecimiento del PIB'!$J$6<>1,'Crecimiento del PIB'!$J$6<>2,'Crecimiento del PIB'!$J$6<>3,'Crecimiento del PIB'!$J$6<>4,'Crecimiento del PIB'!$J$6<>5,'Crecimiento del PIB'!$J$6<>6,'Crecimiento del PIB'!$J$6<>7),LOOKUP(1,'Datos mensuales'!#REF!,'Datos mensuales'!#REF!),LOOKUP('Crecimiento del PIB'!$J$6,'Datos mensuales'!#REF!,'Datos mensuales'!#REF!)) -> 
R128: =IF(AND('Crecimiento del PIB'!$J$6<>1,'Crecimiento del PIB'!$J$6<>2,'Crecimiento del PIB'!$J$6<>3,'Crecimiento del PIB'!$J$6<>4,'Crecimiento del PIB'!$J$6<>5,'Crecimiento del PIB'!$J$6<>6,'Crecimiento del PIB'!$J$6<>7),LOOKUP(1,'Datos mensuales'!#REF!,'Datos mensuales'!#REF!),LOOKUP('Crecimiento del PIB'!$J$6,'Datos mensuales'!#REF!,'Datos mensuales'!#REF!)) ->  | S128: =IF(AND('Crecimiento del PIB'!$J$6<>1,'Crecimiento del PIB'!$J$6<>2,'Crecimiento del PIB'!$J$6<>3,'Crecimiento del PIB'!$J$6<>4,'Crecimiento del PIB'!$J$6<>5,'Crecimiento del PIB'!$J$6<>6,'Crecimiento del PIB'!$J$6<>7),LOOKUP(1,'Datos mensuales'!#REF!,'Datos mensuales'!#REF!),LOOKUP('Crecimiento del PIB'!$J$6,'Datos mensuales'!#REF!,'Datos mensuales'!#REF!)) -> 
R129: =IF(AND('Crecimiento del PIB'!$J$6<>1,'Crecimiento del PIB'!$J$6<>2,'Crecimiento del PIB'!$J$6<>3,'Crecimiento del PIB'!$J$6<>4,'Crecimiento del PIB'!$J$6<>5,'Crecimiento del PIB'!$J$6<>6,'Crecimiento del PIB'!$J$6<>7),LOOKUP(1,'Datos mensuales'!#REF!,'Datos mensuales'!#REF!),LOOKUP('Crecimiento del PIB'!$J$6,'Datos mensuales'!#REF!,'Datos mensuales'!#REF!)) ->  | S129: =IF(AND('Crecimiento del PIB'!$J$6<>1,'Crecimiento del PIB'!$J$6<>2,'Crecimiento del PIB'!$J$6<>3,'Crecimiento del PIB'!$J$6<>4,'Crecimiento del PIB'!$J$6<>5,'Crecimiento del PIB'!$J$6<>6,'Crecimiento del PIB'!$J$6<>7),LOOKUP(1,'Datos mensuales'!#REF!,'Datos mensuales'!#REF!),LOOKUP('Crecimiento del PIB'!$J$6,'Datos mensuales'!#REF!,'Datos mensuales'!#REF!)) -> 
R130: =IF(AND('Crecimiento del PIB'!$J$6<>1,'Crecimiento del PIB'!$J$6<>2,'Crecimiento del PIB'!$J$6<>3,'Crecimiento del PIB'!$J$6<>4,'Crecimiento del PIB'!$J$6<>5,'Crecimiento del PIB'!$J$6<>6,'Crecimiento del PIB'!$J$6<>7),LOOKUP(1,'Datos mensuales'!#REF!,'Datos mensuales'!#REF!),LOOKUP('Crecimiento del PIB'!$J$6,'Datos mensuales'!#REF!,'Datos mensuales'!#REF!)) ->  | S130: =IF(AND('Crecimiento del PIB'!$J$6<>1,'Crecimiento del PIB'!$J$6<>2,'Crecimiento del PIB'!$J$6<>3,'Crecimiento del PIB'!$J$6<>4,'Crecimiento del PIB'!$J$6<>5,'Crecimiento del PIB'!$J$6<>6,'Crecimiento del PIB'!$J$6<>7),LOOKUP(1,'Datos mensuales'!#REF!,'Datos mensuales'!#REF!),LOOKUP('Crecimiento del PIB'!$J$6,'Datos mensuales'!#REF!,'Datos mensuales'!#REF!)) -> 
R131: =IF(AND('Crecimiento del PIB'!$J$6<>1,'Crecimiento del PIB'!$J$6<>2,'Crecimiento del PIB'!$J$6<>3,'Crecimiento del PIB'!$J$6<>4,'Crecimiento del PIB'!$J$6<>5,'Crecimiento del PIB'!$J$6<>6,'Crecimiento del PIB'!$J$6<>7),LOOKUP(1,'Datos mensuales'!#REF!,'Datos mensuales'!#REF!),LOOKUP('Crecimiento del PIB'!$J$6,'Datos mensuales'!#REF!,'Datos mensuales'!#REF!)) ->  | S131: =IF(AND('Crecimiento del PIB'!$J$6<>1,'Crecimiento del PIB'!$J$6<>2,'Crecimiento del PIB'!$J$6<>3,'Crecimiento del PIB'!$J$6<>4,'Crecimiento del PIB'!$J$6<>5,'Crecimiento del PIB'!$J$6<>6,'Crecimiento del PIB'!$J$6<>7),LOOKUP(1,'Datos mensuales'!#REF!,'Datos mensuales'!#REF!),LOOKUP('Crecimiento del PIB'!$J$6,'Datos mensuales'!#REF!,'Datos mensuales'!#REF!)) -> 

Sheet Crecimiento del PIB
A1: Secretaría Ejecutiva | H1: =Índice!J27 -> Junio
A2: Consejo Monetario Centroamericano | H2: =Índice!J29 -> 2014
A3: PIB trimestral a Precios constantes de países seleccionados variación interanual1/
A5: =+'Datos trimestrales'!R2 -> Colombia
J6: 3 | K6: Seleccionar país
J8: 1 | K8: Brasil
J9: 2 | K9: China
J10: 3 | K10: Colombia
J11: 4 | K11: Estados Unidos
J12: 5 | K12: EuroZona
J13: 6 | K13: Japón
J14: 7 | K14: México
A25: Fuente: Bancos Centrales e Institutos de Estadística.
A26: PIB trimestral a Precios constantes de los países seleccionados variación interanual | J26: Seleccione el país
A47: Fuente: Bancos Centrales e Institutos de Estadística.
A49: Nota:
A50: 1/ Ver Nota Técnica para una descripción de las tasas de variación utilizadas en cada país.

Sheet Inflación
A1: Secretaría Ejecutiva | H1: =Índice!J27 -> Junio
A2: Consejo Monetario Centroamericano | H2: =Índice!J29 -> 2014
A3: Inflación de países seleccionados variación interanual del Indice de Precios al Consumidor
A5: ='Datos mensuales'!R3 -> Brasil
J6: 1 | K6: Seleccionar País
J8: 1 | K8: Brasil
J9: 2 | K9: China
J10: 3 | K10: Colombia
J11: 4 | K11: Estados Unidos
J12: 5 | K12: EuroZona
J13: 6 | K13: Japón
J14: 7 | K14: México
A21: Fuente: Bancos Centrales e Institutos de Estadística.
A22: Inflación de todos los paises variación interanual del Indice de Precios al Consumidor | J22: Seleccione el país
A42: Fuente: Bancos Centrales e Institutos de Estadística.

Sheet Tasas de Interés
A1: Secretaría Ejecutiva | H1: =Índice!J27 -> Junio
A2: Consejo Monetario Centroamericano | H2: =Índice!J29 -> 2014
A3: Tasas de Interés de Referencia
A48: Fuente: European Central Bank y www.HSH.com
A49: http://www.hsh.com/indices

Sheet Confianza EEUU
A1: Secretaría Ejecutiva | H1: =Índice!J27 -> Junio
A2: Consejo Monetario Centroamericano | H2: =Índice!J29 -> 2014
A3: Índice de Confianza del Consumidor de EEUU
A25: Fuente: The Conference Board.
A26: http://www.conference-board.org/data/consumerdata.cfm

Sheet Commodities
A1: Secretaría Ejecutiva | I1: =Índice!J27 -> Junio
A2: Consejo Monetario Centroamericano | I2: =Índice!J29 -> 2014
A3: Precios de los Principales Commodities
D7: Principales Productos de Importación
D57: Principales Productos de Exportación
A82: Fuentes:
A83: Petróleo: US Energy Information Administration. | J83: Café: International Coffee Organization.
A84: http://quotes.ino.com/exchanges/contracts.html?r=NYMEX_CL | J84: http://www.ico.org/prices/p2.htm
A86: Oro: The London Bullion Market Association. | J86: Azúcar, Algodón, Aceite de Palma, Banano,Maíz, Trigo y Arroz: IMF Primary Commodity Prices.
A87: http://www.lbma.org.uk/pages/index.cfm?page_id=53&title=gold_fixings&show=2010&type=daily#latest | J87: http://www.imf.org/external/np/res/commod/index.asp

Sheet Tipos de Cambio
A1: Secretaría Ejecutiva | H1: =Índice!J27 -> Junio
A2: Consejo Monetario Centroamericano | H2: =Índice!J29 -> 2014
A3: Tipos de Cambio de las divisas de los principales socios comerciales. Moneda Nacional/ US$, excepto el euro ( US$/€)
A5: ='Datos mensuales'!AT3 -> Brasil
J6: 1 | K6: Seleccionar país
J8: 1 | K8: Brasil | L8: -Real
J9: 2 | K9: Canadá | L9: -Dólar
J10: 3 | K10: China | L10: -Renmimbi
J11: 4 | K11: Colombia | L11: -Peso
J12: 5 | K12: EuroZona | L12: -Euro
J13: 6 | K13: Japón | L13: -Yen
J14: 7 | K14: México | L14: -Peso
A24: Fuente: www.x-rates.com
A27: Indice del tipo de cambio (enero del 2007 = 100) | J27: Seleccione el país

Sheet Indices Bursátiles
A1: Secretaría Ejecutiva | J1: =Índice!J27 -> Junio
A2: Consejo Monetario Centroamericano | J2: =Índice!J29 -> 2014
A3: Indices Bursátiles de referencia
A45: Fuente: Bloomberg.

Sheet Series Mensuales
A1: Series Históricas Mensuales | C1: Variación Interanual del Indice de Precios al Consumidor | K1: Tasas de Interés de Referencia. | T1: Índice de Confianza del Consumidor de Estados Unidos | X1: Precio de los Principales Commodities | AF1: Tipos de Cambio principales divisas/ US$ | AM1: Índices Bursatiles Internacionales de Referencia
C2: Brasil | D2: China | E2: Colombia | F2: Estados Unidos | G2: Japón | H2: México | I2: Eurozona | K2: 3 Meses Plazo | N2: 6 Meses Plazo | P2: Bonos 10 años | X2: WTI-NY | Y2: Brent | Z2: Oro | AA2: Trigo | AB2: Café | AC2: Maíz | AD2: Arroz | AF2: EuroZona | AG2: Japón | AH2: China | AI2: Colombia | AJ2: Canadá | AK2: México | AM2: Dow Jones | AN2: Nasdaq Composite | AO2: Standard & Poor's 500
C3: % | D3: % | E3: % | F3: % | G3: % | H3: % | I3: % | K3: Estados Unidos | L3: EuroZona | M3: Japón | N3: LIBOR | O3: Letras del Tesoro US | P3: Estados Unidos | Q3: EuroZona | R3: Japón | T3: Confianza | U3: Situación Presente | V3: Expectativas | X3: US$ por barril | Y3: US$ por barril | Z3: $/toz | AA3: US$/tm | AB3: US centavos/Libra | AC3: US$/tm | AD3: US$/tm | AF3: US$/Euro | AG3: Yen/US$ | AH3: CNY/US$ | AI3: Peso/US$ | AJ3: Dólar/US$ | AK3: Peso/US$
A4: 1990 | B4: enero | C4: ='Datos mensuales'!D5 -> n.d. | D4: ='Datos mensuales'!E5 -> n.d. | E4: ='Datos mensuales'!F5 -> n.d. | F4: ='Datos mensuales'!G5 -> n.d. | G4: ='Datos mensuales'!I5 -> n.d. | H4: ='Datos mensuales'!J5 -> n.d. | I4: ='Datos mensuales'!H5 -> n.d. | K4: ='Datos mensuales'!AW5 -> n.d. | L4: ='Datos mensuales'!AX5 -> n.d. | M4: ='Datos mensuales'!AY5 -> n.d. | N4: ='Datos mensuales'!AU5 -> n.d. | O4: ='Datos mensuales'!AV5 -> n.d. | P4: ='Datos mensuales'!AZ5 -> n.d. | Q4: ='Datos mensuales'!BA5 -> n.d. | R4: ='Datos mensuales'!BB5 -> n.d. | T4: ='Datos mensuales'!BC5 -> n.d. | U4: ='Datos mensuales'!BD5 -> n.d. | V4: ='Datos mensuales'!BE5 -> n.d. | X4: ='Datos mensuales'!T5 -> 22.86 | Y4: ='Datos mensuales'!U5 -> n.d. | Z4: ='Datos mensuales'!W5 -> n.d. | AA4: ='Datos mensuales'!AA5 -> n.d. | AB4: ='Datos mensuales'!Z5 -> n.d. | AC4: ='Datos mensuales'!AC5 -> n.d. | AD4: ='Datos mensuales'!AD5 -> n.d. | AF4: ='Datos mensuales'!AQ5 ->  | AG4: ='Datos mensuales'!AR5 -> n.d. | AH4: ='Datos mensuales'!AO5 -> n.d. | AI4: ='Datos mensuales'!AP5 -> n.d. | AJ4: ='Datos mensuales'!AN5 -> n.d. | AK4: ='Datos mensuales'!AS5 -> n.d. | AM4: ='Datos mensuales'!BJ5 -> 2590.54 | AN4: ='Datos mensuales'!BK5 -> 415.81 | AO4: ='Datos mensuales'!BL5 -> 329.08
B5: febrero | C5: ='Datos mensuales'!D6 -> n.d. | D5: ='Datos mensuales'!E6 -> n.d. | E5: ='Datos mensuales'!F6 -> n.d. | F5: ='Datos mensuales'!G6 -> n.d. | G5: ='Datos mensuales'!I6 -> n.d. | H5: ='Datos mensuales'!J6 -> n.d. | I5: ='Datos mensuales'!H6 -> n.d. | K5: ='Datos mensuales'!AW6 -> n.d. | L5: ='Datos mensuales'!AX6 -> n.d. | M5: ='Datos mensuales'!AY6 -> n.d. | N5: ='Datos mensuales'!AU6 -> n.d. | O5: ='Datos mensuales'!AV6 -> n.d. | P5: ='Datos mensuales'!AZ6 -> n.d. | Q5: ='Datos mensuales'!BA6 -> n.d. | R5: ='Datos mensuales'!BB6 -> n.d. | T5: ='Datos mensuales'!BC6 -> n.d. | U5: ='Datos mensuales'!BD6 -> n.d. | V5: ='Datos mensuales'!BE6 -> n.d. | X5: ='Datos mensuales'!T6 -> 22.11 | Y5: ='Datos mensuales'!U6 -> n.d. | Z5: ='Datos mensuales'!W6 -> n.d. | AA5: ='Datos mensuales'!AA6 -> n.d. | AB5: ='Datos mensuales'!Z6 -> n.d. | AC5: ='Datos mensuales'!AC6 -> n.d. | AD5: ='Datos mensuales'!AD6 -> n.d. | AF5: ='Datos mensuales'!AQ6 ->  | AG5: ='Datos mensuales'!AR6 -> n.d. | AH5: ='Datos mensuales'!AO6 -> n.d. | AI5: ='Datos mensuales'!AP6 -> n.d. | AJ5: ='Datos mensuales'!AN6 -> n.d. | AK5: ='Datos mensuales'!AS6 -> n.d. | AM5: ='Datos mensuales'!BJ6 -> 2627.25 | AN5: ='Datos mensuales'!BK6 -> 425.83 | AO5: ='Datos mensuales'!BL6 -> 331.89
B6: marzo | C6: ='Datos mensuales'!D7 -> n.d. | D6: ='Datos mensuales'!E7 -> n.d. | E6: ='Datos mensuales'!F7 -> n.d. | F6: ='Datos mensuales'!G7 -> n.d. | G6: ='Datos mensuales'!I7 -> n.d. | H6: ='Datos mensuales'!J7 -> n.d. | I6: ='Datos mensuales'!H7 -> n.d. | K6: ='Datos mensuales'!AW7 -> n.d. | L6: ='Datos mensuales'!AX7 -> n.d. | M6: ='Datos mensuales'!AY7 -> n.d. | N6: ='Datos mensuales'!AU7 -> n.d. | O6: ='Datos mensuales'!AV7 -> n.d. | P6: ='Datos mensuales'!AZ7 -> n.d. | Q6: ='Datos mensuales'!BA7 -> n.d. | R6: ='Datos mensuales'!BB7 -> n.d. | T6: ='Datos mensuales'!BC7 -> n.d. | U6: ='Datos mensuales'!BD7 -> n.d. | V6: ='Datos mensuales'!BE7 -> n.d. | X6: ='Datos mensuales'!T7 -> 20.39 | Y6: ='Datos mensuales'!U7 -> n.d. | Z6: ='Datos mensuales'!W7 -> n.d. | AA6: ='Datos mensuales'!AA7 -> n.d. | AB6: ='Datos mensuales'!Z7 -> n.d. | AC6: ='Datos mensuales'!AC7 -> n.d. | AD6: ='Datos mensuales'!AD7 -> n.d. | AF6: ='Datos mensuales'!AQ7 ->  | AG6: ='Datos mensuales'!AR7 -> n.d. | AH6: ='Datos mensuales'!AO7 -> n.d. | AI6: ='Datos mensuales'!AP7 -> n.d. | AJ6: ='Datos mensuales'!AN7 -> n.d. | AK6: ='Datos mensuales'!AS7 -> n.d. | AM6: ='Datos mensuales'!BJ7 -> 2707.21 | AN6: ='Datos mensuales'!BK7 -> 435.54 | AO6: ='Datos mensuales'!BL7 -> 339.94
B7: abril | C7: ='Datos mensuales'!D8 -> n.d. | D7: ='Datos mensuales'!E8 -> n.d. | E7: ='Datos mensuales'!F8 -> n.d. | F7: ='Datos mensuales'!G8 -> n.d. | G7: ='Datos mensuales'!I8 -> n.d. | H7: ='Datos mensuales'!J8 -> n.d. | I7: ='Datos mensuales'!H8 -> n.d. | K7: ='Datos mensuales'!AW8 -> n.d. | L7: ='Datos mensuales'!AX8 -> n.d. | M7: ='Datos mensuales'!AY8 -> n.d. | N7: ='Datos mensuales'!AU8 -> n.d. | O7: ='Datos mensuales'!AV8 -> n.d. | P7: ='Datos mensuales'!AZ8 -> n.d. | Q7: ='Datos mensuales'!BA8 -> n.d. | R7: ='Datos mensuales'!BB8 -> n.d. | T7: ='Datos mensuales'!BC8 -> n.d. | U7: ='Datos mensuales'!BD8 -> n.d. | V7: ='Datos mensuales'!BE8 -> n.d. | X7: ='Datos mensuales'!T8 -> 18.43 | Y7: ='Datos mensuales'!U8 -> n.d. | Z7: ='Datos mensuales'!W8 -> n.d. | AA7: ='Datos mensuales'!AA8 -> n.d. | AB7: ='Datos mensuales'!Z8 -> n.d. | AC7: ='Datos mensuales'!AC8 -> n.d. | AD7: ='Datos mensuales'!AD8 -> n.d. | AF7: ='Datos mensuales'!AQ8 ->  | AG7: ='Datos mensuales'!AR8 -> n.d. | AH7: ='Datos mensuales'!AO8 -> n.d. | AI7: ='Datos mensuales'!AP8 -> n.d. | AJ7: ='Datos mensuales'!AN8 -> n.d. | AK7: ='Datos mensuales'!AS8 -> n.d. | AM7: ='Datos mensuales'!BJ8 -> 2656.76 | AN7: ='Datos mensuales'!BK8 -> 420.07 | AO7: ='Datos mensuales'!BL8 -> 330.8
B8: mayo | C8: ='Datos mensuales'!D9 -> n.d. | D8: ='Datos mensuales'!E9 -> n.d. | E8: ='Datos mensuales'!F9 -> n.d. | F8: ='Datos mensuales'!G9 -> n.d. | G8: ='Datos mensuales'!I9 -> n.d. | H8: ='Datos mensuales'!J9 -> n.d. | I8: ='Datos mensuales'!H9 -> n.d. | K8: ='Datos mensuales'!AW9 -> n.d. | L8: ='Datos mensuales'!AX9 -> n.d. | M8: ='Datos mensuales'!AY9 -> n.d. | N8: ='Datos mensuales'!AU9 -> n.d. | O8: ='Datos mensuales'!AV9 -> n.d. | P8: ='Datos mensuales'!AZ9 -> n.d. | Q8: ='Datos mensuales'!BA9 -> n.d. | R8: ='Datos mensuales'!BB9 -> n.d. | T8: ='Datos mensuales'!BC9 -> n.d. | U8: ='Datos mensuales'!BD9 -> n.d. | V8: ='Datos mensuales'!BE9 -> n.d. | X8: ='Datos mensuales'!T9 -> 18.2 | Y8: ='Datos mensuales'!U9 -> n.d. | Z8: ='Datos mensuales'!W9 -> n.d. | AA8: ='Datos mensuales'!AA9 -> n.d. | AB8: ='Datos mensuales'!Z9 -> n.d. | AC8: ='Datos mensuales'!AC9 -> n.d. | AD8: ='Datos mensuales'!AD9 -> n.d. | AF8: ='Datos mensuales'!AQ9 ->  | AG8: ='Datos mensuales'!AR9 -> n.d. | AH8: ='Datos mensuales'!AO9 -> n.d. | AI8: ='Datos mensuales'!AP9 -> n.d. | AJ8: ='Datos mensuales'!AN9 -> n.d. | AK8: ='Datos mensuales'!AS9 -> n.d. | AM8: ='Datos mensuales'!BJ9 -> 2876.66 | AN8: ='Datos mensuales'!BK9 -> 458.97 | AO8: ='Datos mensuales'!BL9 -> 361.23
B9: junio | C9: ='Datos mensuales'!D10 -> n.d. | D9: ='Datos mensuales'!E10 -> n.d. | E9: ='Datos mensuales'!F10 -> n.d. | F9: ='Datos mensuales'!G10 -> n.d. | G9: ='Datos mensuales'!I10 -> n.d. | H9: ='Datos mensuales'!J10 -> n.d. | I9: ='Datos mensuales'!H10 -> n.d. | K9: ='Datos mensuales'!AW10 -> n.d. | L9: ='Datos mensuales'!AX10 -> n.d. | M9: ='Datos mensuales'!AY10 -> n.d. | N9: ='Datos mensuales'!AU10 -> n.d. | O9: ='Datos mensuales'!AV10 -> n.d. | P9: ='Datos mensuales'!AZ10 -> n.d. | Q9: ='Datos mensuales'!BA10 -> n.d. | R9: ='Datos mensuales'!BB10 -> n.d. | T9: ='Datos mensuales'!BC10 -> n.d. | U9: ='Datos mensuales'!BD10 -> n.d. | V9: ='Datos mensuales'!BE10 -> n.d. | X9: ='Datos mensuales'!T10 -> 16.7 | Y9: ='Datos mensuales'!U10 -> n.d. | Z9: ='Datos mensuales'!W10 -> n.d. | AA9: ='Datos mensuales'!AA10 -> n.d. | AB9: ='Datos mensuales'!Z10 -> n.d. | AC9: ='Datos mensuales'!AC10 -> n.d. | AD9: ='Datos mensuales'!AD10 -> n.d. | AF9: ='Datos mensuales'!AQ10 ->  | AG9: ='Datos mensuales'!AR10 -> n.d. | AH9: ='Datos mensuales'!AO10 -> n.d. | AI9: ='Datos mensuales'!AP10 -> n.d. | AJ9: ='Datos mensuales'!AN10 -> n.d. | AK9: ='Datos mensuales'!AS10 -> n.d. | AM9: ='Datos mensuales'!BJ10 -> 2880.69 | AN9: ='Datos mensuales'!BK10 -> 462.29 | AO9: ='Datos mensuales'!BL10 -> 358.02
B10: julio | C10: ='Datos mensuales'!D11 -> n.d. | D10: ='Datos mensuales'!E11 -> n.d. | E10: ='Datos mensuales'!F11 -> n.d. | F10: ='Datos mensuales'!G11 -> n.d. | G10: ='Datos mensuales'!I11 -> n.d. | H10: ='Datos mensuales'!J11 -> n.d. | I10: ='Datos mensuales'!H11 -> n.d. | K10: ='Datos mensuales'!AW11 -> n.d. | L10: ='Datos mensuales'!AX11 -> n.d. | M10: ='Datos mensuales'!AY11 -> n.d. | N10: ='Datos mensuales'!AU11 -> n.d. | O10: ='Datos mensuales'!AV11 -> n.d. | P10: ='Datos mensuales'!AZ11 -> n.d. | Q10: ='Datos mensuales'!BA11 -> n.d. | R10: ='Datos mensuales'!BB11 -> n.d. | T10: ='Datos mensuales'!BC11 -> n.d. | U10: ='Datos mensuales'!BD11 -> n.d. | V10: ='Datos mensuales'!BE11 -> n.d. | X10: ='Datos mensuales'!T11 -> 18.45 | Y10: ='Datos mensuales'!U11 -> n.d. | Z10: ='Datos mensuales'!W11 -> n.d. | AA10: ='Datos mensuales'!AA11 -> n.d. | AB10: ='Datos mensuales'!Z11 -> n.d. | AC10: ='Datos mensuales'!AC11 -> n.d. | AD10: ='Datos mensuales'!AD11 -> n.d. | AF10: ='Datos mensuales'!AQ11 ->  | AG10: ='Datos mensuales'!AR11 -> n.d. | AH10: ='Datos mensuales'!AO11 -> n.d. | AI10: ='Datos mensuales'!AP11 -> n.d. | AJ10: ='Datos mensuales'!AN11 -> n.d. | AK10: ='Datos mensuales'!AS11 -> n.d. | AM10: ='Datos mensuales'!BJ11 -> 2905.2 | AN10: ='Datos mensuales'!BK11 -> 438.24 | AO10: ='Datos mensuales'!BL11 -> 356.15
